Workbook

Sheet الحركة
A1: =MAX(datainfo!$A$5:$A$40000)+1 -> 3 | I1: كمال المنصوري
B2: رقم الحساب الجاري
F4: =IFERROR(الرصيد!$Q$4,"") ->  | H4: =datainfo!G3 -> 
B7: الموظف | D7: صافي الراتب المستحق
B8: الرصيد الحالي
B9: =IF($B$4="","",VLOOKUP($B$4,المتعامل!$B$6:$D$1500,2,0)) ->  | D9: =IF($B$4="","",VLOOKUP($B$4,'الراتب الشهري'!$B$9:$K$22,10,0)) ->  | F9: =IF(D11>D9,"lnformation","") -> 
B11: الرصيد | F11: =IFERROR(IF(D11>F4,"انتبه ، الرصيد غير كاف",""),"") -> 
D13: =NOW() -> 2020-04-11T23:57:01.040

Sheet الراتب الشهري
B2: اسم الشركة | C2: بلدية بيضاء برج | H2: المحاسب | I2: بعداش السبتي
B4: كشف رواتب الموظفين لشهر | D4: 2020-04-01 | H4: المحقق | I4: زروال | J4: يوسف
A7: الرقم | B7: رقم الحساب الجاري | C7: الموظف | D7: الراتب الاساسي | E7: اضافات | F7: اجمالي الراتب | G7: الاقتطاعات | J7: مجموع الاقتطاعات | K7: صافي الراتب المستحق
G8: ضريبة دخل | H8: الضمان الاجتماعي | I8: اخرى
A9: =IF(B9="","",SUBTOTAL(3,$B$9:B9)) -> 1 | B9: 10001 | C9: =IF($B9="","",VLOOKUP($B9,المتعامل!$B$6:$D$1500,2,0)) -> احمد المهراوي | D9: 2050 | E9: 90 | F9: =IF($B9="","",E9+D9) -> 2140 | G9: =IF(B9="","",IF(D9<=3000,-(20%*D9),IF(D9<=2500,-(15%*D9),IF(D9>3000,-(30%*D9))))) -> -410 | H9: 300 | I9: 10 | J9: =IF($B9="","",SUM(G9:I9)) -> -100 | K9: =IF($B9="","",F9+J9) -> 2040
A10: =IF(B10="","",SUBTOTAL(3,$B$9:B10)) -> 2 | B10: 10002 | C10: =IF($B10="","",VLOOKUP($B10,المتعامل!$B$6:$D$1500,2,0)) -> بن محمد عمران | D10: 2050 | E10: 150 | F10: 2200 | G10: -410 | H10: 300 | I10: 10 | J10: =IF($B10="","",SUM(G10:I10)) -> -100 | K10: =IF($B10="","",F10+J10) -> 2100
A11: =IF(B11="","",SUBTOTAL(3,$B$9:B11)) -> 3 | B11: 10003 | C11: =IF($B11="","",VLOOKUP($B11,المتعامل!$B$6:$D$1500,2,0)) -> ليلى بوصور | D11: 2050 | E11: 180 | F11: 2230 | G11: -410 | H11: 300 | I11: 10 | J11: -100 | K11: 2130
A12: =IF(B12="","",SUBTOTAL(3,$B$9:B12)) -> 4 | B12: 10004 | C12: =IF($B12="","",VLOOKUP($B12,المتعامل!$B$6:$D$1500,2,0)) -> حميدان الضاوية | D12: 2050 | E12: 90 | F12: 2140 | G12: -410 | H12: 300 | I12: 10 | J12: -100 | K12: 2040
A13: =IF(B13="","",SUBTOTAL(3,$B$9:B13)) -> 5 | B13: 10005 | C13: =IF($B13="","",VLOOKUP($B13,المتعامل!$B$6:$D$1500,2,0)) -> اكرم وفاء | D13: 2050 | E13: 120 | F13: 2170 | G13: -410 | H13: 300 | I13: 10 | J13: -100 | K13: 2070
A14: =IF(B14="","",SUBTOTAL(3,$B$9:B14)) -> 6 | B14: 10006 | C14: =IF($B14="","",VLOOKUP($B14,المتعامل!$B$6:$D$1500,2,0)) -> عيسى مهند | D14: 2050 | E14: 150 | F14: 2200 | G14: -410 | H14: 300 | I14: 10 | J14: -100 | K14: 2100
A15: =IF(B15="","",SUBTOTAL(3,$B$9:B15)) -> 7 | B15: 10007 | C15: =IF($B15="","",VLOOKUP($B15,المتعامل!$B$6:$D$1500,2,0)) -> كعبوش الخير | D15: 2050 | E15: 150 | F15: 2200 | G15: -410 | H15: 300 | I15: 10 | J15: -100 | K15: 2100
A16: =IF(B16="","",SUBTOTAL(3,$B$9:B16)) -> 8 | B16: 10008 | C16: =IF($B16="","",VLOOKUP($B16,المتعامل!$B$6:$D$1500,2,0)) -> محمدي البشير | D16: 2050 | E16: 30 | F16: 2080 | G16: -410 | H16: 300 | I16: 10 | J16: -100 | K16: 1980
A17: =IF(B17="","",SUBTOTAL(3,$B$9:B17)) -> 9 | B17: 10009 | C17: =IF($B17="","",VLOOKUP($B17,المتعامل!$B$6:$D$1500,2,0)) -> عمران وفاء | D17: 2050 | E17: 30 | F17: 2080 | G17: -410 | H17: 300 | I17: 10 | J17: -100 | K17: 1980
A18: =IF(B18="","",SUBTOTAL(3,$B$9:B18)) -> 10 | B18: 10010 | C18: =IF($B18="","",VLOOKUP($B18,المتعامل!$B$6:$D$1500,2,0)) -> نصر محمد | D18: 2050 | E18: 150 | F18: 2200 | G18: -410 | H18: 300 | I18: 10 | J18: -100 | K18: 2100
A19: =IF(B19="","",SUBTOTAL(3,$B$9:B19)) ->  | C19: =IF($B19="","",VLOOKUP($B19,المتعامل!$B$6:$D$1500,2,0)) ->  | D19: =IF($B19="","",VLOOKUP($B19,المتعامل!$B$6:$D$1500,3,0)) -> 
A20: =IF(B20="","",SUBTOTAL(3,$B$9:B20)) ->  | C20: =IF($B20="","",VLOOKUP($B20,المتعامل!$B$6:$D$1500,2,0)) ->  | D20: =IF($B20="","",VLOOKUP($B20,المتعامل!$B$6:$D$1500,3,0)) -> 
A21: =IF(B21="","",SUBTOTAL(3,$B$9:B21)) ->  | C21: =IF($B21="","",VLOOKUP($B21,المتعامل!$B$6:$D$1500,2,0)) ->  | D21: =IF($B21="","",VLOOKUP($B21,المتعامل!$B$6:$D$1500,3,0)) -> 
A22: =IF(B22="","",SUBTOTAL(3,$B$9:B22)) ->  | C22: =IF($B22="","",VLOOKUP($B22,المتعامل!$B$6:$D$1500,2,0)) ->  | D22: =IF($B22="","",VLOOKUP($B22,المتعامل!$B$6:$D$1500,3,0)) -> 
A23: =IF(B23="","",SUBTOTAL(3,$B$9:B23)) ->  | C23: =IF($B23="","",VLOOKUP($B23,المتعامل!$B$6:$D$1500,2,0)) ->  | D23: =IF($B23="","",VLOOKUP($B23,المتعامل!$B$6:$D$1500,3,0)) ->  | F23: =IF($B23="","",E23+D23) ->  | G23: =IF(B23="","",IF(D23<=3000,-(20%*D23),IF(D23<=2500,-(15%*D23),IF(D23>3000,-(30%*D23))))) ->  | J23: =IF($B23="","",SUM(G23:I23)) ->  | K23: =IF($B23="","",F23+J23) -> 
A24: =IF(B24="","",SUBTOTAL(3,$B$9:B24)) ->  | C24: =IF($B24="","",VLOOKUP($B24,المتعامل!$B$6:$D$1500,2,0)) ->  | D24: =IF($B24="","",VLOOKUP($B24,المتعامل!$B$6:$D$1500,3,0)) -> 
A25: =IF(B25="","",SUBTOTAL(3,$B$9:B25)) ->  | C25: =IF($B25="","",VLOOKUP($B25,المتعامل!$B$6:$D$1500,2,0)) ->  | D25: =IF($B25="","",VLOOKUP($B25,المتعامل!$B$6:$D$1500,3,0)) -> 
A26: =IF(B26="","",SUBTOTAL(3,$B$9:B26)) ->  | C26: =IF($B26="","",VLOOKUP($B26,المتعامل!$B$6:$D$1500,2,0)) ->  | D26: =IF($B26="","",VLOOKUP($B26,المتعامل!$B$6:$D$1500,3,0)) -> 
A27: =IF(B27="","",SUBTOTAL(3,$B$9:B27)) ->  | C27: =IF($B27="","",VLOOKUP($B27,المتعامل!$B$6:$D$1500,2,0)) ->  | D27: =IF($B27="","",VLOOKUP($B27,المتعامل!$B$6:$D$1500,3,0)) -> 
A28: =IF(B28="","",SUBTOTAL(3,$B$9:B28)) ->  | C28: =IF($B28="","",VLOOKUP($B28,المتعامل!$B$6:$D$1500,2,0)) ->  | D28: =IF($B28="","",VLOOKUP($B28,المتعامل!$B$6:$D$1500,3,0)) -> 
A29: =IF(B29="","",SUBTOTAL(3,$B$9:B29)) ->  | C29: =IF($B29="","",VLOOKUP($B29,المتعامل!$B$6:$D$1500,2,0)) ->  | D29: =IF($B29="","",VLOOKUP($B29,المتعامل!$B$6:$D$1500,3,0)) -> 
A30: =IF(B30="","",SUBTOTAL(3,$B$9:B30)) ->  | C30: =IF($B30="","",VLOOKUP($B30,المتعامل!$B$6:$D$1500,2,0)) ->  | D30: =IF($B30="","",VLOOKUP($B30,المتعامل!$B$6:$D$1500,3,0)) -> 
A31: =IF(B31="","",SUBTOTAL(3,$B$9:B31)) ->  | C31: =IF($B31="","",VLOOKUP($B31,المتعامل!$B$6:$D$1500,2,0)) ->  | D31: =IF($B31="","",VLOOKUP($B31,المتعامل!$B$6:$D$1500,3,0)) -> 
A32: =IF(B32="","",SUBTOTAL(3,$B$9:B32)) ->  | C32: =IF($B32="","",VLOOKUP($B32,المتعامل!$B$6:$D$1500,2,0)) ->  | D32: =IF($B32="","",VLOOKUP($B32,المتعامل!$B$6:$D$1500,3,0)) -> 
A33: =IF(B33="","",SUBTOTAL(3,$B$9:B33)) ->  | C33: =IF($B33="","",VLOOKUP($B33,المتعامل!$B$6:$D$1500,2,0)) ->  | D33: =IF($B33="","",VLOOKUP($B33,المتعامل!$B$6:$D$1500,3,0)) -> 
A34: =IF(B34="","",SUBTOTAL(3,$B$9:B34)) ->  | C34: =IF($B34="","",VLOOKUP($B34,المتعامل!$B$6:$D$1500,2,0)) ->  | D34: =IF($B34="","",VLOOKUP($B34,المتعامل!$B$6:$D$1500,3,0)) -> 
A35: =IF(B35="","",SUBTOTAL(3,$B$9:B35)) ->  | C35: =IF($B35="","",VLOOKUP($B35,المتعامل!$B$6:$D$1500,2,0)) ->  | D35: =IF($B35="","",VLOOKUP($B35,المتعامل!$B$6:$D$1500,3,0)) -> 
A36: =IF(B36="","",SUBTOTAL(3,$B$9:B36)) ->  | C36: =IF($B36="","",VLOOKUP($B36,المتعامل!$B$6:$D$1500,2,0)) ->  | D36: =IF($B36="","",VLOOKUP($B36,المتعامل!$B$6:$D$1500,3,0)) -> 
A37: =IF(B37="","",SUBTOTAL(3,$B$9:B37)) ->  | C37: =IF($B37="","",VLOOKUP($B37,المتعامل!$B$6:$D$1500,2,0)) ->  | D37: =IF($B37="","",VLOOKUP($B37,المتعامل!$B$6:$D$1500,3,0)) -> 
A38: =IF(B38="","",SUBTOTAL(3,$B$9:B38)) ->  | C38: =IF($B38="","",VLOOKUP($B38,المتعامل!$B$6:$D$1500,2,0)) ->  | D38: =IF($B38="","",VLOOKUP($B38,المتعامل!$B$6:$D$1500,3,0)) -> 
A39: =IF(B39="","",SUBTOTAL(3,$B$9:B39)) ->  | C39: =IF($B39="","",VLOOKUP($B39,المتعامل!$B$6:$D$1500,2,0)) ->  | D39: =IF($B39="","",VLOOKUP($B39,المتعامل!$B$6:$D$1500,3,0)) -> 
A40: =IF(B40="","",SUBTOTAL(3,$B$9:B40)) ->  | C40: =IF($B40="","",VLOOKUP($B40,المتعامل!$B$6:$D$1500,2,0)) ->  | D40: =IF($B40="","",VLOOKUP($B40,المتعامل!$B$6:$D$1500,3,0)) -> 
A41: =IF(B41="","",SUBTOTAL(3,$B$9:B41)) ->  | C41: =IF($B41="","",VLOOKUP($B41,المتعامل!$B$6:$D$1500,2,0)) ->  | D41: =IF($B41="","",VLOOKUP($B41,المتعامل!$B$6:$D$1500,3,0)) -> 
A42: =IF(B42="","",SUBTOTAL(3,$B$9:B42)) ->  | C42: =IF($B42="","",VLOOKUP($B42,المتعامل!$B$6:$D$1500,2,0)) ->  | D42: =IF($B42="","",VLOOKUP($B42,المتعامل!$B$6:$D$1500,3,0)) -> 
A43: =IF(B43="","",SUBTOTAL(3,$B$9:B43)) ->  | C43: =IF($B43="","",VLOOKUP($B43,المتعامل!$B$6:$D$1500,2,0)) ->  | D43: =IF($B43="","",VLOOKUP($B43,المتعامل!$B$6:$D$1500,3,0)) -> 
A44: =IF(B44="","",SUBTOTAL(3,$B$9:B44)) ->  | C44: =IF($B44="","",VLOOKUP($B44,المتعامل!$B$6:$D$1500,2,0)) ->  | D44: =IF($B44="","",VLOOKUP($B44,المتعامل!$B$6:$D$1500,3,0)) -> 
A45: =IF(B45="","",SUBTOTAL(3,$B$9:B45)) ->  | C45: =IF($B45="","",VLOOKUP($B45,المتعامل!$B$6:$D$1500,2,0)) ->  | D45: =IF($B45="","",VLOOKUP($B45,المتعامل!$B$6:$D$1500,3,0)) -> 
A46: =IF(B46="","",SUBTOTAL(3,$B$9:B46)) ->  | C46: =IF($B46="","",VLOOKUP($B46,المتعامل!$B$6:$D$1500,2,0)) ->  | D46: =IF($B46="","",VLOOKUP($B46,المتعامل!$B$6:$D$1500,3,0)) -> 
A47: =IF(B47="","",SUBTOTAL(3,$B$9:B47)) ->  | C47: =IF($B47="","",VLOOKUP($B47,المتعامل!$B$6:$D$1500,2,0)) ->  | D47: =IF($B47="","",VLOOKUP($B47,المتعامل!$B$6:$D$1500,3,0)) -> 
A48: =IF(B48="","",SUBTOTAL(3,$B$9:B48)) ->  | C48: =IF($B48="","",VLOOKUP($B48,المتعامل!$B$6:$D$1500,2,0)) ->  | D48: =IF($B48="","",VLOOKUP($B48,المتعامل!$B$6:$D$1500,3,0)) -> 
A49: =IF(B49="","",SUBTOTAL(3,$B$9:B49)) ->  | C49: =IF($B49="","",VLOOKUP($B49,المتعامل!$B$6:$D$1500,2,0)) ->  | D49: =IF($B49="","",VLOOKUP($B49,المتعامل!$B$6:$D$1500,3,0)) -> 
A50: =IF(B50="","",SUBTOTAL(3,$B$9:B50)) ->  | C50: =IF($B50="","",VLOOKUP($B50,المتعامل!$B$6:$D$1500,2,0)) ->  | D50: =IF($B50="","",VLOOKUP($B50,المتعامل!$B$6:$D$1500,3,0)) -> 
A51: =IF(B51="","",SUBTOTAL(3,$B$9:B51)) ->  | C51: =IF($B51="","",VLOOKUP($B51,المتعامل!$B$6:$D$1500,2,0)) ->  | D51: =IF($B51="","",VLOOKUP($B51,المتعامل!$B$6:$D$1500,3,0)) -> 
A52: =IF(B52="","",SUBTOTAL(3,$B$9:B52)) ->  | C52: =IF($B52="","",VLOOKUP($B52,المتعامل!$B$6:$D$1500,2,0)) ->  | D52: =IF($B52="","",VLOOKUP($B52,المتعامل!$B$6:$D$1500,3,0)) -> 
A53: =IF(B53="","",SUBTOTAL(3,$B$9:B53)) ->  | C53: =IF($B53="","",VLOOKUP($B53,المتعامل!$B$6:$D$1500,2,0)) ->  | D53: =IF($B53="","",VLOOKUP($B53,المتعامل!$B$6:$D$1500,3,0)) -> 
A54: =IF(B54="","",SUBTOTAL(3,$B$9:B54)) ->  | C54: =IF($B54="","",VLOOKUP($B54,المتعامل!$B$6:$D$1500,2,0)) ->  | D54: =IF($B54="","",VLOOKUP($B54,المتعامل!$B$6:$D$1500,3,0)) -> 
A55: =IF(B55="","",SUBTOTAL(3,$B$9:B55)) ->  | C55: =IF($B55="","",VLOOKUP($B55,المتعامل!$B$6:$D$1500,2,0)) ->  | D55: =IF($B55="","",VLOOKUP($B55,المتعامل!$B$6:$D$1500,3,0)) -> 
A56: =IF(B56="","",SUBTOTAL(3,$B$9:B56)) ->  | C56: =IF($B56="","",VLOOKUP($B56,المتعامل!$B$6:$D$1500,2,0)) ->  | D56: =IF($B56="","",VLOOKUP($B56,المتعامل!$B$6:$D$1500,3,0)) -> 
A57: =IF(B57="","",SUBTOTAL(3,$B$9:B57)) ->  | C57: =IF($B57="","",VLOOKUP($B57,المتعامل!$B$6:$D$1500,2,0)) ->  | D57: =IF($B57="","",VLOOKUP($B57,المتعامل!$B$6:$D$1500,3,0)) -> 
A58: =IF(B58="","",SUBTOTAL(3,$B$9:B58)) ->  | C58: =IF($B58="","",VLOOKUP($B58,المتعامل!$B$6:$D$1500,2,0)) ->  | D58: =IF($B58="","",VLOOKUP($B58,المتعامل!$B$6:$D$1500,3,0)) -> 
A59: =IF(B59="","",SUBTOTAL(3,$B$9:B59)) ->  | C59: =IF($B59="","",VLOOKUP($B59,المتعامل!$B$6:$D$1500,2,0)) ->  | D59: =IF($B59="","",VLOOKUP($B59,المتعامل!$B$6:$D$1500,3,0)) -> 
A60: =IF(B60="","",SUBTOTAL(3,$B$9:B60)) ->  | C60: =IF($B60="","",VLOOKUP($B60,المتعامل!$B$6:$D$1500,2,0)) ->  | D60: =IF($B60="","",VLOOKUP($B60,المتعامل!$B$6:$D$1500,3,0)) -> 
A61: =IF(B61="","",SUBTOTAL(3,$B$9:B61)) ->  | C61: =IF($B61="","",VLOOKUP($B61,المتعامل!$B$6:$D$1500,2,0)) ->  | D61: =IF($B61="","",VLOOKUP($B61,المتعامل!$B$6:$D$1500,3,0)) -> 
A62: =IF(B62="","",SUBTOTAL(3,$B$9:B62)) ->  | C62: =IF($B62="","",VLOOKUP($B62,المتعامل!$B$6:$D$1500,2,0)) ->  | D62: =IF($B62="","",VLOOKUP($B62,المتعامل!$B$6:$D$1500,3,0)) -> 
A63: =IF(B63="","",SUBTOTAL(3,$B$9:B63)) ->  | C63: =IF($B63="","",VLOOKUP($B63,المتعامل!$B$6:$D$1500,2,0)) ->  | D63: =IF($B63="","",VLOOKUP($B63,المتعامل!$B$6:$D$1500,3,0)) -> 
A64: =IF(B64="","",SUBTOTAL(3,$B$9:B64)) ->  | C64: =IF($B64="","",VLOOKUP($B64,المتعامل!$B$6:$D$1500,2,0)) ->  | D64: =IF($B64="","",VLOOKUP($B64,المتعامل!$B$6:$D$1500,3,0)) -> 
A65: =IF(B65="","",SUBTOTAL(3,$B$9:B65)) ->  | C65: =IF($B65="","",VLOOKUP($B65,المتعامل!$B$6:$D$1500,2,0)) ->  | D65: =IF($B65="","",VLOOKUP($B65,المتعامل!$B$6:$D$1500,3,0)) -> 
A66: =IF(B66="","",SUBTOTAL(3,$B$9:B66)) ->  | C66: =IF($B66="","",VLOOKUP($B66,المتعامل!$B$6:$D$1500,2,0)) ->  | D66: =IF($B66="","",VLOOKUP($B66,المتعامل!$B$6:$D$1500,3,0)) -> 
A67: =IF(B67="","",SUBTOTAL(3,$B$9:B67)) ->  | C67: =IF($B67="","",VLOOKUP($B67,المتعامل!$B$6:$D$1500,2,0)) ->  | D67: =IF($B67="","",VLOOKUP($B67,المتعامل!$B$6:$D$1500,3,0)) -> 
A68: =IF(B68="","",SUBTOTAL(3,$B$9:B68)) ->  | C68: =IF($B68="","",VLOOKUP($B68,المتعامل!$B$6:$D$1500,2,0)) ->  | D68: =IF($B68="","",VLOOKUP($B68,المتعامل!$B$6:$D$1500,3,0)) -> 
A69: =IF(B69="","",SUBTOTAL(3,$B$9:B69)) ->  | C69: =IF($B69="","",VLOOKUP($B69,المتعامل!$B$6:$D$1500,2,0)) ->  | D69: =IF($B69="","",VLOOKUP($B69,المتعامل!$B$6:$D$1500,3,0)) -> 
A70: =IF(B70="","",SUBTOTAL(3,$B$9:B70)) ->  | C70: =IF($B70="","",VLOOKUP($B70,المتعامل!$B$6:$D$1500,2,0)) ->  | D70: =IF($B70="","",VLOOKUP($B70,المتعامل!$B$6:$D$1500,3,0)) -> 
A71: =IF(B71="","",SUBTOTAL(3,$B$9:B71)) ->  | C71: =IF($B71="","",VLOOKUP($B71,المتعامل!$B$6:$D$1500,2,0)) ->  | D71: =IF($B71="","",VLOOKUP($B71,المتعامل!$B$6:$D$1500,3,0)) -> 
A72: =IF(B72="","",SUBTOTAL(3,$B$9:B72)) ->  | C72: =IF($B72="","",VLOOKUP($B72,المتعامل!$B$6:$D$1500,2,0)) ->  | D72: =IF($B72="","",VLOOKUP($B72,المتعامل!$B$6:$D$1500,3,0)) -> 
A73: =IF(B73="","",SUBTOTAL(3,$B$9:B73)) ->  | C73: =IF($B73="","",VLOOKUP($B73,المتعامل!$B$6:$D$1500,2,0)) ->  | D73: =IF($B73="","",VLOOKUP($B73,المتعامل!$B$6:$D$1500,3,0)) -> 
A74: =IF(B74="","",SUBTOTAL(3,$B$9:B74)) ->  | C74: =IF($B74="","",VLOOKUP($B74,المتعامل!$B$6:$D$1500,2,0)) ->  | D74: =IF($B74="","",VLOOKUP($B74,المتعامل!$B$6:$D$1500,3,0)) -> 
A75: =IF(B75="","",SUBTOTAL(3,$B$9:B75)) ->  | C75: =IF($B75="","",VLOOKUP($B75,المتعامل!$B$6:$D$1500,2,0)) ->  | D75: =IF($B75="","",VLOOKUP($B75,المتعامل!$B$6:$D$1500,3,0)) -> 
A76: =IF(B76="","",SUBTOTAL(3,$B$9:B76)) ->  | C76: =IF($B76="","",VLOOKUP($B76,المتعامل!$B$6:$D$1500,2,0)) ->  | D76: =IF($B76="","",VLOOKUP($B76,المتعامل!$B$6:$D$1500,3,0)) -> 
A77: =IF(B77="","",SUBTOTAL(3,$B$9:B77)) ->  | C77: =IF($B77="","",VLOOKUP($B77,المتعامل!$B$6:$D$1500,2,0)) ->  | D77: =IF($B77="","",VLOOKUP($B77,المتعامل!$B$6:$D$1500,3,0)) -> 
A78: =IF(B78="","",SUBTOTAL(3,$B$9:B78)) ->  | C78: =IF($B78="","",VLOOKUP($B78,المتعامل!$B$6:$D$1500,2,0)) ->  | D78: =IF($B78="","",VLOOKUP($B78,المتعامل!$B$6:$D$1500,3,0)) -> 
A79: =IF(B79="","",SUBTOTAL(3,$B$9:B79)) ->  | C79: =IF($B79="","",VLOOKUP($B79,المتعامل!$B$6:$D$1500,2,0)) ->  | D79: =IF($B79="","",VLOOKUP($B79,المتعامل!$B$6:$D$1500,3,0)) -> 
A80: =IF(B80="","",SUBTOTAL(3,$B$9:B80)) ->  | C80: =IF($B80="","",VLOOKUP($B80,المتعامل!$B$6:$D$1500,2,0)) ->  | D80: =IF($B80="","",VLOOKUP($B80,المتعامل!$B$6:$D$1500,3,0)) -> 
A81: =IF(B81="","",SUBTOTAL(3,$B$9:B81)) ->  | C81: =IF($B81="","",VLOOKUP($B81,المتعامل!$B$6:$D$1500,2,0)) ->  | D81: =IF($B81="","",VLOOKUP($B81,المتعامل!$B$6:$D$1500,3,0)) -> 
A82: =IF(B82="","",SUBTOTAL(3,$B$9:B82)) ->  | C82: =IF($B82="","",VLOOKUP($B82,المتعامل!$B$6:$D$1500,2,0)) ->  | D82: =IF($B82="","",VLOOKUP($B82,المتعامل!$B$6:$D$1500,3,0)) -> 
A83: =IF(B83="","",SUBTOTAL(3,$B$9:B83)) ->  | C83: =IF($B83="","",VLOOKUP($B83,المتعامل!$B$6:$D$1500,2,0)) ->  | D83: =IF($B83="","",VLOOKUP($B83,المتعامل!$B$6:$D$1500,3,0)) -> 
A84: =IF(B84="","",SUBTOTAL(3,$B$9:B84)) ->  | C84: =IF($B84="","",VLOOKUP($B84,المتعامل!$B$6:$D$1500,2,0)) ->  | D84: =IF($B84="","",VLOOKUP($B84,المتعامل!$B$6:$D$1500,3,0)) -> 
A85: =IF(B85="","",SUBTOTAL(3,$B$9:B85)) ->  | C85: =IF($B85="","",VLOOKUP($B85,المتعامل!$B$6:$D$1500,2,0)) ->  | D85: =IF($B85="","",VLOOKUP($B85,المتعامل!$B$6:$D$1500,3,0)) -> 
A86: =IF(B86="","",SUBTOTAL(3,$B$9:B86)) ->  | C86: =IF($B86="","",VLOOKUP($B86,المتعامل!$B$6:$D$1500,2,0)) ->  | D86: =IF($B86="","",VLOOKUP($B86,المتعامل!$B$6:$D$1500,3,0)) -> 
A87: =IF(B87="","",SUBTOTAL(3,$B$9:B87)) ->  | C87: =IF($B87="","",VLOOKUP($B87,المتعامل!$B$6:$D$1500,2,0)) ->  | D87: =IF($B87="","",VLOOKUP($B87,المتعامل!$B$6:$D$1500,3,0)) ->  | F87: =IF($B87="","",E87+D87) ->  | G87: =IF(B87="","",IF(D87<=3000,-(20%*D87),IF(D87<=2500,-(15%*D87),IF(D87>3000,-(30%*D87))))) ->  | J87: =IF($B87="","",SUM(G87:I87)) ->  | K87: =IF($B87="","",F87+J87) -> 
A88: =IF(B88="","",SUBTOTAL(3,$B$9:B88)) ->  | C88: =IF($B88="","",VLOOKUP($B88,المتعامل!$B$6:$D$1500,2,0)) ->  | D88: =IF($B88="","",VLOOKUP($B88,المتعامل!$B$6:$D$1500,3,0)) -> 
A89: =IF(B89="","",SUBTOTAL(3,$B$9:B89)) ->  | C89: =IF($B89="","",VLOOKUP($B89,المتعامل!$B$6:$D$1500,2,0)) ->  | D89: =IF($B89="","",VLOOKUP($B89,المتعامل!$B$6:$D$1500,3,0)) -> 
A90: =IF(B90="","",SUBTOTAL(3,$B$9:B90)) ->  | C90: =IF($B90="","",VLOOKUP($B90,المتعامل!$B$6:$D$1500,2,0)) ->  | D90: =IF($B90="","",VLOOKUP($B90,المتعامل!$B$6:$D$1500,3,0)) -> 
A91: =IF(B91="","",SUBTOTAL(3,$B$9:B91)) ->  | C91: =IF($B91="","",VLOOKUP($B91,المتعامل!$B$6:$D$1500,2,0)) ->  | D91: =IF($B91="","",VLOOKUP($B91,المتعامل!$B$6:$D$1500,3,0)) -> 
A92: =IF(B92="","",SUBTOTAL(3,$B$9:B92)) ->  | C92: =IF($B92="","",VLOOKUP($B92,المتعامل!$B$6:$D$1500,2,0)) ->  | D92: =IF($B92="","",VLOOKUP($B92,المتعامل!$B$6:$D$1500,3,0)) -> 
A93: =IF(B93="","",SUBTOTAL(3,$B$9:B93)) ->  | C93: =IF($B93="","",VLOOKUP($B93,المتعامل!$B$6:$D$1500,2,0)) ->  | D93: =IF($B93="","",VLOOKUP($B93,المتعامل!$B$6:$D$1500,3,0)) -> 
A94: =IF(B94="","",SUBTOTAL(3,$B$9:B94)) ->  | C94: =IF($B94="","",VLOOKUP($B94,المتعامل!$B$6:$D$1500,2,0)) ->  | D94: =IF($B94="","",VLOOKUP($B94,المتعامل!$B$6:$D$1500,3,0)) -> 
A95: =IF(B95="","",SUBTOTAL(3,$B$9:B95)) ->  | C95: =IF($B95="","",VLOOKUP($B95,المتعامل!$B$6:$D$1500,2,0)) ->  | D95: =IF($B95="","",VLOOKUP($B95,المتعامل!$B$6:$D$1500,3,0)) -> 
A96: =IF(B96="","",SUBTOTAL(3,$B$9:B96)) ->  | C96: =IF($B96="","",VLOOKUP($B96,المتعامل!$B$6:$D$1500,2,0)) ->  | D96: =IF($B96="","",VLOOKUP($B96,المتعامل!$B$6:$D$1500,3,0)) -> 
A97: =IF(B97="","",SUBTOTAL(3,$B$9:B97)) ->  | C97: =IF($B97="","",VLOOKUP($B97,المتعامل!$B$6:$D$1500,2,0)) ->  | D97: =IF($B97="","",VLOOKUP($B97,المتعامل!$B$6:$D$1500,3,0)) -> 
A98: =IF(B98="","",SUBTOTAL(3,$B$9:B98)) ->  | C98: =IF($B98="","",VLOOKUP($B98,المتعامل!$B$6:$D$1500,2,0)) ->  | D98: =IF($B98="","",VLOOKUP($B98,المتعامل!$B$6:$D$1500,3,0)) -> 
A99: =IF(B99="","",SUBTOTAL(3,$B$9:B99)) ->  | C99: =IF($B99="","",VLOOKUP($B99,المتعامل!$B$6:$D$1500,2,0)) ->  | D99: =IF($B99="","",VLOOKUP($B99,المتعامل!$B$6:$D$1500,3,0)) -> 
A100: =IF(B100="","",SUBTOTAL(3,$B$9:B100)) ->  | C100: =IF($B100="","",VLOOKUP($B100,المتعامل!$B$6:$D$1500,2,0)) ->  | D100: =IF($B100="","",VLOOKUP($B100,المتعامل!$B$6:$D$1500,3,0)) -> 
A101: =IF(B101="","",SUBTOTAL(3,$B$9:B101)) ->  | C101: =IF($B101="","",VLOOKUP($B101,المتعامل!$B$6:$D$1500,2,0)) ->  | D101: =IF($B101="","",VLOOKUP($B101,المتعامل!$B$6:$D$1500,3,0)) -> 
A102: =IF(B102="","",SUBTOTAL(3,$B$9:B102)) ->  | C102: =IF($B102="","",VLOOKUP($B102,المتعامل!$B$6:$D$1500,2,0)) ->  | D102: =IF($B102="","",VLOOKUP($B102,المتعامل!$B$6:$D$1500,3,0)) -> 
A103: =IF(B103="","",SUBTOTAL(3,$B$9:B103)) ->  | C103: =IF($B103="","",VLOOKUP($B103,المتعامل!$B$6:$D$1500,2,0)) ->  | D103: =IF($B103="","",VLOOKUP($B103,المتعامل!$B$6:$D$1500,3,0)) -> 
A104: =IF(B104="","",SUBTOTAL(3,$B$9:B104)) ->  | C104: =IF($B104="","",VLOOKUP($B104,المتعامل!$B$6:$D$1500,2,0)) ->  | D104: =IF($B104="","",VLOOKUP($B104,المتعامل!$B$6:$D$1500,3,0)) -> 
A105: =IF(B105="","",SUBTOTAL(3,$B$9:B105)) ->  | C105: =IF($B105="","",VLOOKUP($B105,المتعامل!$B$6:$D$1500,2,0)) ->  | D105: =IF($B105="","",VLOOKUP($B105,المتعامل!$B$6:$D$1500,3,0)) -> 
A106: =IF(B106="","",SUBTOTAL(3,$B$9:B106)) ->  | C106: =IF($B106="","",VLOOKUP($B106,المتعامل!$B$6:$D$1500,2,0)) ->  | D106: =IF($B106="","",VLOOKUP($B106,المتعامل!$B$6:$D$1500,3,0)) -> 
A107: =IF(B107="","",SUBTOTAL(3,$B$9:B107)) ->  | C107: =IF($B107="","",VLOOKUP($B107,المتعامل!$B$6:$D$1500,2,0)) ->  | D107: =IF($B107="","",VLOOKUP($B107,المتعامل!$B$6:$D$1500,3,0)) -> 
A108: =IF(B108="","",SUBTOTAL(3,$B$9:B108)) ->  | C108: =IF($B108="","",VLOOKUP($B108,المتعامل!$B$6:$D$1500,2,0)) ->  | D108: =IF($B108="","",VLOOKUP($B108,المتعامل!$B$6:$D$1500,3,0)) -> 
A109: =IF(B109="","",SUBTOTAL(3,$B$9:B109)) ->  | C109: =IF($B109="","",VLOOKUP($B109,المتعامل!$B$6:$D$1500,2,0)) ->  | D109: =IF($B109="","",VLOOKUP($B109,المتعامل!$B$6:$D$1500,3,0)) -> 
A110: =IF(B110="","",SUBTOTAL(3,$B$9:B110)) ->  | C110: =IF($B110="","",VLOOKUP($B110,المتعامل!$B$6:$D$1500,2,0)) ->  | D110: =IF($B110="","",VLOOKUP($B110,المتعامل!$B$6:$D$1500,3,0)) -> 
A111: =IF(B111="","",SUBTOTAL(3,$B$9:B111)) ->  | C111: =IF($B111="","",VLOOKUP($B111,المتعامل!$B$6:$D$1500,2,0)) ->  | D111: =IF($B111="","",VLOOKUP($B111,المتعامل!$B$6:$D$1500,3,0)) -> 
A112: =IF(B112="","",SUBTOTAL(3,$B$9:B112)) ->  | C112: =IF($B112="","",VLOOKUP($B112,المتعامل!$B$6:$D$1500,2,0)) ->  | D112: =IF($B112="","",VLOOKUP($B112,المتعامل!$B$6:$D$1500,3,0)) -> 
A113: =IF(B113="","",SUBTOTAL(3,$B$9:B113)) ->  | C113: =IF($B113="","",VLOOKUP($B113,المتعامل!$B$6:$D$1500,2,0)) ->  | D113: =IF($B113="","",VLOOKUP($B113,المتعامل!$B$6:$D$1500,3,0)) -> 
A114: =IF(B114="","",SUBTOTAL(3,$B$9:B114)) ->  | C114: =IF($B114="","",VLOOKUP($B114,المتعامل!$B$6:$D$1500,2,0)) ->  | D114: =IF($B114="","",VLOOKUP($B114,المتعامل!$B$6:$D$1500,3,0)) -> 
A115: =IF(B115="","",SUBTOTAL(3,$B$9:B115)) ->  | C115: =IF($B115="","",VLOOKUP($B115,المتعامل!$B$6:$D$1500,2,0)) ->  | D115: =IF($B115="","",VLOOKUP($B115,المتعامل!$B$6:$D$1500,3,0)) -> 
A116: =IF(B116="","",SUBTOTAL(3,$B$9:B116)) ->  | C116: =IF($B116="","",VLOOKUP($B116,المتعامل!$B$6:$D$1500,2,0)) ->  | D116: =IF($B116="","",VLOOKUP($B116,المتعامل!$B$6:$D$1500,3,0)) -> 
A117: =IF(B117="","",SUBTOTAL(3,$B$9:B117)) ->  | C117: =IF($B117="","",VLOOKUP($B117,المتعامل!$B$6:$D$1500,2,0)) ->  | D117: =IF($B117="","",VLOOKUP($B117,المتعامل!$B$6:$D$1500,3,0)) -> 
A118: =IF(B118="","",SUBTOTAL(3,$B$9:B118)) ->  | C118: =IF($B118="","",VLOOKUP($B118,المتعامل!$B$6:$D$1500,2,0)) ->  | D118: =IF($B118="","",VLOOKUP($B118,المتعامل!$B$6:$D$1500,3,0)) -> 
A119: =IF(B119="","",SUBTOTAL(3,$B$9:B119)) ->  | C119: =IF($B119="","",VLOOKUP($B119,المتعامل!$B$6:$D$1500,2,0)) ->  | D119: =IF($B119="","",VLOOKUP($B119,المتعامل!$B$6:$D$1500,3,0)) -> 
A120: =IF(B120="","",SUBTOTAL(3,$B$9:B120)) ->  | C120: =IF($B120="","",VLOOKUP($B120,المتعامل!$B$6:$D$1500,2,0)) ->  | D120: =IF($B120="","",VLOOKUP($B120,المتعامل!$B$6:$D$1500,3,0)) -> 
A121: =IF(B121="","",SUBTOTAL(3,$B$9:B121)) ->  | C121: =IF($B121="","",VLOOKUP($B121,المتعامل!$B$6:$D$1500,2,0)) ->  | D121: =IF($B121="","",VLOOKUP($B121,المتعامل!$B$6:$D$1500,3,0)) -> 
A122: =IF(B122="","",SUBTOTAL(3,$B$9:B122)) ->  | C122: =IF($B122="","",VLOOKUP($B122,المتعامل!$B$6:$D$1500,2,0)) ->  | D122: =IF($B122="","",VLOOKUP($B122,المتعامل!$B$6:$D$1500,3,0)) -> 
A123: =IF(B123="","",SUBTOTAL(3,$B$9:B123)) ->  | C123: =IF($B123="","",VLOOKUP($B123,المتعامل!$B$6:$D$1500,2,0)) ->  | D123: =IF($B123="","",VLOOKUP($B123,المتعامل!$B$6:$D$1500,3,0)) -> 
A124: =IF(B124="","",SUBTOTAL(3,$B$9:B124)) ->  | C124: =IF($B124="","",VLOOKUP($B124,المتعامل!$B$6:$D$1500,2,0)) ->  | D124: =IF($B124="","",VLOOKUP($B124,المتعامل!$B$6:$D$1500,3,0)) -> 
A125: =IF(B125="","",SUBTOTAL(3,$B$9:B125)) ->  | C125: =IF($B125="","",VLOOKUP($B125,المتعامل!$B$6:$D$1500,2,0)) ->  | D125: =IF($B125="","",VLOOKUP($B125,المتعامل!$B$6:$D$1500,3,0)) -> 
A126: =IF(B126="","",SUBTOTAL(3,$B$9:B126)) ->  | C126: =IF($B126="","",VLOOKUP($B126,المتعامل!$B$6:$D$1500,2,0)) ->  | D126: =IF($B126="","",VLOOKUP($B126,المتعامل!$B$6:$D$1500,3,0)) -> 
A127: =IF(B127="","",SUBTOTAL(3,$B$9:B127)) ->  | C127: =IF($B127="","",VLOOKUP($B127,المتعامل!$B$6:$D$1500,2,0)) ->  | D127: =IF($B127="","",VLOOKUP($B127,المتعامل!$B$6:$D$1500,3,0)) -> 
A128: =IF(B128="","",SUBTOTAL(3,$B$9:B128)) ->  | C128: =IF($B128="","",VLOOKUP($B128,المتعامل!$B$6:$D$1500,2,0)) ->  | D128: =IF($B128="","",VLOOKUP($B128,المتعامل!$B$6:$D$1500,3,0)) -> 
A129: =IF(B129="","",SUBTOTAL(3,$B$9:B129)) ->  | C129: =IF($B129="","",VLOOKUP($B129,المتعامل!$B$6:$D$1500,2,0)) ->  | D129: =IF($B129="","",VLOOKUP($B129,المتعامل!$B$6:$D$1500,3,0)) -> 
A130: =IF(B130="","",SUBTOTAL(3,$B$9:B130)) ->  | C130: =IF($B130="","",VLOOKUP($B130,المتعامل!$B$6:$D$1500,2,0)) ->  | D130: =IF($B130="","",VLOOKUP($B130,المتعامل!$B$6:$D$1500,3,0)) -> 
A131: =IF(B131="","",SUBTOTAL(3,$B$9:B131)) ->  | C131: =IF($B131="","",VLOOKUP($B131,المتعامل!$B$6:$D$1500,2,0)) ->  | D131: =IF($B131="","",VLOOKUP($B131,المتعامل!$B$6:$D$1500,3,0)) -> 
A132: =IF(B132="","",SUBTOTAL(3,$B$9:B132)) ->  | C132: =IF($B132="","",VLOOKUP($B132,المتعامل!$B$6:$D$1500,2,0)) ->  | D132: =IF($B132="","",VLOOKUP($B132,المتعامل!$B$6:$D$1500,3,0)) -> 
A133: =IF(B133="","",SUBTOTAL(3,$B$9:B133)) ->  | C133: =IF($B133="","",VLOOKUP($B133,المتعامل!$B$6:$D$1500,2,0)) ->  | D133: =IF($B133="","",VLOOKUP($B133,المتعامل!$B$6:$D$1500,3,0)) -> 
A134: =IF(B134="","",SUBTOTAL(3,$B$9:B134)) ->  | C134: =IF($B134="","",VLOOKUP($B134,المتعامل!$B$6:$D$1500,2,0)) ->  | D134: =IF($B134="","",VLOOKUP($B134,المتعامل!$B$6:$D$1500,3,0)) -> 
A135: =IF(B135="","",SUBTOTAL(3,$B$9:B135)) ->  | C135: =IF($B135="","",VLOOKUP($B135,المتعامل!$B$6:$D$1500,2,0)) ->  | D135: =IF($B135="","",VLOOKUP($B135,المتعامل!$B$6:$D$1500,3,0)) -> 
A136: =IF(B136="","",SUBTOTAL(3,$B$9:B136)) ->  | C136: =IF($B136="","",VLOOKUP($B136,المتعامل!$B$6:$D$1500,2,0)) ->  | D136: =IF($B136="","",VLOOKUP($B136,المتعامل!$B$6:$D$1500,3,0)) -> 
A137: =IF(B137="","",SUBTOTAL(3,$B$9:B137)) ->  | C137: =IF($B137="","",VLOOKUP($B137,المتعامل!$B$6:$D$1500,2,0)) ->  | D137: =IF($B137="","",VLOOKUP($B137,المتعامل!$B$6:$D$1500,3,0)) -> 
A138: =IF(B138="","",SUBTOTAL(3,$B$9:B138)) ->  | C138: =IF($B138="","",VLOOKUP($B138,المتعامل!$B$6:$D$1500,2,0)) ->  | D138: =IF($B138="","",VLOOKUP($B138,المتعامل!$B$6:$D$1500,3,0)) -> 
A139: =IF(B139="","",SUBTOTAL(3,$B$9:B139)) ->  | C139: =IF($B139="","",VLOOKUP($B139,المتعامل!$B$6:$D$1500,2,0)) ->  | D139: =IF($B139="","",VLOOKUP($B139,المتعامل!$B$6:$D$1500,3,0)) -> 
A140: =IF(B140="","",SUBTOTAL(3,$B$9:B140)) ->  | C140: =IF($B140="","",VLOOKUP($B140,المتعامل!$B$6:$D$1500,2,0)) ->  | D140: =IF($B140="","",VLOOKUP($B140,المتعامل!$B$6:$D$1500,3,0)) -> 
A141: =IF(B141="","",SUBTOTAL(3,$B$9:B141)) ->  | C141: =IF($B141="","",VLOOKUP($B141,المتعامل!$B$6:$D$1500,2,0)) ->  | D141: =IF($B141="","",VLOOKUP($B141,المتعامل!$B$6:$D$1500,3,0)) -> 
A142: =IF(B142="","",SUBTOTAL(3,$B$9:B142)) ->  | C142: =IF($B142="","",VLOOKUP($B142,المتعامل!$B$6:$D$1500,2,0)) ->  | D142: =IF($B142="","",VLOOKUP($B142,المتعامل!$B$6:$D$1500,3,0)) -> 
A143: =IF(B143="","",SUBTOTAL(3,$B$9:B143)) ->  | C143: =IF($B143="","",VLOOKUP($B143,المتعامل!$B$6:$D$1500,2,0)) ->  | D143: =IF($B143="","",VLOOKUP($B143,المتعامل!$B$6:$D$1500,3,0)) -> 
A144: =IF(B144="","",SUBTOTAL(3,$B$9:B144)) ->  | C144: =IF($B144="","",VLOOKUP($B144,المتعامل!$B$6:$D$1500,2,0)) ->  | D144: =IF($B144="","",VLOOKUP($B144,المتعامل!$B$6:$D$1500,3,0)) -> 
A145: =IF(B145="","",SUBTOTAL(3,$B$9:B145)) ->  | C145: =IF($B145="","",VLOOKUP($B145,المتعامل!$B$6:$D$1500,2,0)) ->  | D145: =IF($B145="","",VLOOKUP($B145,المتعامل!$B$6:$D$1500,3,0)) -> 
A146: =IF(B146="","",SUBTOTAL(3,$B$9:B146)) ->  | C146: =IF($B146="","",VLOOKUP($B146,المتعامل!$B$6:$D$1500,2,0)) ->  | D146: =IF($B146="","",VLOOKUP($B146,المتعامل!$B$6:$D$1500,3,0)) -> 
A147: =IF(B147="","",SUBTOTAL(3,$B$9:B147)) ->  | C147: =IF($B147="","",VLOOKUP($B147,المتعامل!$B$6:$D$1500,2,0)) ->  | D147: =IF($B147="","",VLOOKUP($B147,المتعامل!$B$6:$D$1500,3,0)) -> 
A148: =IF(B148="","",SUBTOTAL(3,$B$9:B148)) ->  | C148: =IF($B148="","",VLOOKUP($B148,المتعامل!$B$6:$D$1500,2,0)) ->  | D148: =IF($B148="","",VLOOKUP($B148,المتعامل!$B$6:$D$1500,3,0)) -> 
A149: =IF(B149="","",SUBTOTAL(3,$B$9:B149)) ->  | C149: =IF($B149="","",VLOOKUP($B149,المتعامل!$B$6:$D$1500,2,0)) ->  | D149: =IF($B149="","",VLOOKUP($B149,المتعامل!$B$6:$D$1500,3,0)) -> 
A150: =IF(B150="","",SUBTOTAL(3,$B$9:B150)) ->  | C150: =IF($B150="","",VLOOKUP($B150,المتعامل!$B$6:$D$1500,2,0)) ->  | D150: =IF($B150="","",VLOOKUP($B150,المتعامل!$B$6:$D$1500,3,0)) -> 
A151: =IF(B151="","",SUBTOTAL(3,$B$9:B151)) ->  | C151: =IF($B151="","",VLOOKUP($B151,المتعامل!$B$6:$D$1500,2,0)) ->  | D151: =IF($B151="","",VLOOKUP($B151,المتعامل!$B$6:$D$1500,3,0)) ->  | F151: =IF($B151="","",E151+D151) ->  | G151: =IF(B151="","",IF(D151<=3000,-(20%*D151),IF(D151<=2500,-(15%*D151),IF(D151>3000,-(30%*D151))))) ->  | J151: =IF($B151="","",SUM(G151:I151)) ->  | K151: =IF($B151="","",F151+J151) -> 
A152: =IF(B152="","",SUBTOTAL(3,$B$9:B152)) ->  | C152: =IF($B152="","",VLOOKUP($B152,المتعامل!$B$6:$D$1500,2,0)) ->  | D152: =IF($B152="","",VLOOKUP($B152,المتعامل!$B$6:$D$1500,3,0)) -> 
A153: =IF(B153="","",SUBTOTAL(3,$B$9:B153)) ->  | C153: =IF($B153="","",VLOOKUP($B153,المتعامل!$B$6:$D$1500,2,0)) ->  | D153: =IF($B153="","",VLOOKUP($B153,المتعامل!$B$6:$D$1500,3,0)) -> 
A154: =IF(B154="","",SUBTOTAL(3,$B$9:B154)) ->  | C154: =IF($B154="","",VLOOKUP($B154,المتعامل!$B$6:$D$1500,2,0)) ->  | D154: =IF($B154="","",VLOOKUP($B154,المتعامل!$B$6:$D$1500,3,0)) -> 
A155: =IF(B155="","",SUBTOTAL(3,$B$9:B155)) ->  | C155: =IF($B155="","",VLOOKUP($B155,المتعامل!$B$6:$D$1500,2,0)) ->  | D155: =IF($B155="","",VLOOKUP($B155,المتعامل!$B$6:$D$1500,3,0)) -> 
A156: =IF(B156="","",SUBTOTAL(3,$B$9:B156)) ->  | C156: =IF($B156="","",VLOOKUP($B156,المتعامل!$B$6:$D$1500,2,0)) ->  | D156: =IF($B156="","",VLOOKUP($B156,المتعامل!$B$6:$D$1500,3,0)) -> 
A157: =IF(B157="","",SUBTOTAL(3,$B$9:B157)) ->  | C157: =IF($B157="","",VLOOKUP($B157,المتعامل!$B$6:$D$1500,2,0)) ->  | D157: =IF($B157="","",VLOOKUP($B157,المتعامل!$B$6:$D$1500,3,0)) -> 
A158: =IF(B158="","",SUBTOTAL(3,$B$9:B158)) ->  | C158: =IF($B158="","",VLOOKUP($B158,المتعامل!$B$6:$D$1500,2,0)) ->  | D158: =IF($B158="","",VLOOKUP($B158,المتعامل!$B$6:$D$1500,3,0)) -> 
A159: =IF(B159="","",SUBTOTAL(3,$B$9:B159)) ->  | C159: =IF($B159="","",VLOOKUP($B159,المتعامل!$B$6:$D$1500,2,0)) ->  | D159: =IF($B159="","",VLOOKUP($B159,المتعامل!$B$6:$D$1500,3,0)) -> 
A160: =IF(B160="","",SUBTOTAL(3,$B$9:B160)) ->  | C160: =IF($B160="","",VLOOKUP($B160,المتعامل!$B$6:$D$1500,2,0)) ->  | D160: =IF($B160="","",VLOOKUP($B160,المتعامل!$B$6:$D$1500,3,0)) -> 
A161: =IF(B161="","",SUBTOTAL(3,$B$9:B161)) ->  | C161: =IF($B161="","",VLOOKUP($B161,المتعامل!$B$6:$D$1500,2,0)) ->  | D161: =IF($B161="","",VLOOKUP($B161,المتعامل!$B$6:$D$1500,3,0)) -> 
A162: =IF(B162="","",SUBTOTAL(3,$B$9:B162)) ->  | C162: =IF($B162="","",VLOOKUP($B162,المتعامل!$B$6:$D$1500,2,0)) ->  | D162: =IF($B162="","",VLOOKUP($B162,المتعامل!$B$6:$D$1500,3,0)) -> 
A163: =IF(B163="","",SUBTOTAL(3,$B$9:B163)) ->  | C163: =IF($B163="","",VLOOKUP($B163,المتعامل!$B$6:$D$1500,2,0)) ->  | D163: =IF($B163="","",VLOOKUP($B163,المتعامل!$B$6:$D$1500,3,0)) -> 
A164: =IF(B164="","",SUBTOTAL(3,$B$9:B164)) ->  | C164: =IF($B164="","",VLOOKUP($B164,المتعامل!$B$6:$D$1500,2,0)) ->  | D164: =IF($B164="","",VLOOKUP($B164,المتعامل!$B$6:$D$1500,3,0)) -> 
A165: =IF(B165="","",SUBTOTAL(3,$B$9:B165)) ->  | C165: =IF($B165="","",VLOOKUP($B165,المتعامل!$B$6:$D$1500,2,0)) ->  | D165: =IF($B165="","",VLOOKUP($B165,المتعامل!$B$6:$D$1500,3,0)) -> 
A166: =IF(B166="","",SUBTOTAL(3,$B$9:B166)) ->  | C166: =IF($B166="","",VLOOKUP($B166,المتعامل!$B$6:$D$1500,2,0)) ->  | D166: =IF($B166="","",VLOOKUP($B166,المتعامل!$B$6:$D$1500,3,0)) -> 
A167: =IF(B167="","",SUBTOTAL(3,$B$9:B167)) ->  | C167: =IF($B167="","",VLOOKUP($B167,المتعامل!$B$6:$D$1500,2,0)) ->  | D167: =IF($B167="","",VLOOKUP($B167,المتعامل!$B$6:$D$1500,3,0)) -> 
A168: =IF(B168="","",SUBTOTAL(3,$B$9:B168)) ->  | C168: =IF($B168="","",VLOOKUP($B168,المتعامل!$B$6:$D$1500,2,0)) ->  | D168: =IF($B168="","",VLOOKUP($B168,المتعامل!$B$6:$D$1500,3,0)) -> 
A169: =IF(B169="","",SUBTOTAL(3,$B$9:B169)) ->  | C169: =IF($B169="","",VLOOKUP($B169,المتعامل!$B$6:$D$1500,2,0)) ->  | D169: =IF($B169="","",VLOOKUP($B169,المتعامل!$B$6:$D$1500,3,0)) -> 
A170: =IF(B170="","",SUBTOTAL(3,$B$9:B170)) ->  | C170: =IF($B170="","",VLOOKUP($B170,المتعامل!$B$6:$D$1500,2,0)) ->  | D170: =IF($B170="","",VLOOKUP($B170,المتعامل!$B$6:$D$1500,3,0)) -> 
A171: =IF(B171="","",SUBTOTAL(3,$B$9:B171)) ->  | C171: =IF($B171="","",VLOOKUP($B171,المتعامل!$B$6:$D$1500,2,0)) ->  | D171: =IF($B171="","",VLOOKUP($B171,المتعامل!$B$6:$D$1500,3,0)) -> 
A172: =IF(B172="","",SUBTOTAL(3,$B$9:B172)) ->  | C172: =IF($B172="","",VLOOKUP($B172,المتعامل!$B$6:$D$1500,2,0)) ->  | D172: =IF($B172="","",VLOOKUP($B172,المتعامل!$B$6:$D$1500,3,0)) -> 
A173: =IF(B173="","",SUBTOTAL(3,$B$9:B173)) ->  | C173: =IF($B173="","",VLOOKUP($B173,المتعامل!$B$6:$D$1500,2,0)) ->  | D173: =IF($B173="","",VLOOKUP($B173,المتعامل!$B$6:$D$1500,3,0)) -> 
A174: =IF(B174="","",SUBTOTAL(3,$B$9:B174)) ->  | C174: =IF($B174="","",VLOOKUP($B174,المتعامل!$B$6:$D$1500,2,0)) ->  | D174: =IF($B174="","",VLOOKUP($B174,المتعامل!$B$6:$D$1500,3,0)) -> 
A175: =IF(B175="","",SUBTOTAL(3,$B$9:B175)) ->  | C175: =IF($B175="","",VLOOKUP($B175,المتعامل!$B$6:$D$1500,2,0)) ->  | D175: =IF($B175="","",VLOOKUP($B175,المتعامل!$B$6:$D$1500,3,0)) -> 
A176: =IF(B176="","",SUBTOTAL(3,$B$9:B176)) ->  | C176: =IF($B176="","",VLOOKUP($B176,المتعامل!$B$6:$D$1500,2,0)) ->  | D176: =IF($B176="","",VLOOKUP($B176,المتعامل!$B$6:$D$1500,3,0)) -> 
A177: =IF(B177="","",SUBTOTAL(3,$B$9:B177)) ->  | C177: =IF($B177="","",VLOOKUP($B177,المتعامل!$B$6:$D$1500,2,0)) ->  | D177: =IF($B177="","",VLOOKUP($B177,المتعامل!$B$6:$D$1500,3,0)) -> 
A178: =IF(B178="","",SUBTOTAL(3,$B$9:B178)) ->  | C178: =IF($B178="","",VLOOKUP($B178,المتعامل!$B$6:$D$1500,2,0)) ->  | D178: =IF($B178="","",VLOOKUP($B178,المتعامل!$B$6:$D$1500,3,0)) -> 
A179: =IF(B179="","",SUBTOTAL(3,$B$9:B179)) ->  | C179: =IF($B179="","",VLOOKUP($B179,المتعامل!$B$6:$D$1500,2,0)) ->  | D179: =IF($B179="","",VLOOKUP($B179,المتعامل!$B$6:$D$1500,3,0)) -> 
A180: =IF(B180="","",SUBTOTAL(3,$B$9:B180)) ->  | C180: =IF($B180="","",VLOOKUP($B180,المتعامل!$B$6:$D$1500,2,0)) ->  | D180: =IF($B180="","",VLOOKUP($B180,المتعامل!$B$6:$D$1500,3,0)) -> 
A181: =IF(B181="","",SUBTOTAL(3,$B$9:B181)) ->  | C181: =IF($B181="","",VLOOKUP($B181,المتعامل!$B$6:$D$1500,2,0)) ->  | D181: =IF($B181="","",VLOOKUP($B181,المتعامل!$B$6:$D$1500,3,0)) -> 
A182: =IF(B182="","",SUBTOTAL(3,$B$9:B182)) ->  | C182: =IF($B182="","",VLOOKUP($B182,المتعامل!$B$6:$D$1500,2,0)) ->  | D182: =IF($B182="","",VLOOKUP($B182,المتعامل!$B$6:$D$1500,3,0)) -> 
A183: =IF(B183="","",SUBTOTAL(3,$B$9:B183)) ->  | C183: =IF($B183="","",VLOOKUP($B183,المتعامل!$B$6:$D$1500,2,0)) ->  | D183: =IF($B183="","",VLOOKUP($B183,المتعامل!$B$6:$D$1500,3,0)) -> 
A184: =IF(B184="","",SUBTOTAL(3,$B$9:B184)) ->  | C184: =IF($B184="","",VLOOKUP($B184,المتعامل!$B$6:$D$1500,2,0)) ->  | D184: =IF($B184="","",VLOOKUP($B184,المتعامل!$B$6:$D$1500,3,0)) -> 
A185: =IF(B185="","",SUBTOTAL(3,$B$9:B185)) ->  | C185: =IF($B185="","",VLOOKUP($B185,المتعامل!$B$6:$D$1500,2,0)) ->  | D185: =IF($B185="","",VLOOKUP($B185,المتعامل!$B$6:$D$1500,3,0)) -> 
A186: =IF(B186="","",SUBTOTAL(3,$B$9:B186)) ->  | C186: =IF($B186="","",VLOOKUP($B186,المتعامل!$B$6:$D$1500,2,0)) ->  | D186: =IF($B186="","",VLOOKUP($B186,المتعامل!$B$6:$D$1500,3,0)) -> 
A187: =IF(B187="","",SUBTOTAL(3,$B$9:B187)) ->  | C187: =IF($B187="","",VLOOKUP($B187,المتعامل!$B$6:$D$1500,2,0)) ->  | D187: =IF($B187="","",VLOOKUP($B187,المتعامل!$B$6:$D$1500,3,0)) -> 
A188: =IF(B188="","",SUBTOTAL(3,$B$9:B188)) ->  | C188: =IF($B188="","",VLOOKUP($B188,المتعامل!$B$6:$D$1500,2,0)) ->  | D188: =IF($B188="","",VLOOKUP($B188,المتعامل!$B$6:$D$1500,3,0)) -> 
A189: =IF(B189="","",SUBTOTAL(3,$B$9:B189)) ->  | C189: =IF($B189="","",VLOOKUP($B189,المتعامل!$B$6:$D$1500,2,0)) ->  | D189: =IF($B189="","",VLOOKUP($B189,المتعامل!$B$6:$D$1500,3,0)) -> 
A190: =IF(B190="","",SUBTOTAL(3,$B$9:B190)) ->  | C190: =IF($B190="","",VLOOKUP($B190,المتعامل!$B$6:$D$1500,2,0)) ->  | D190: =IF($B190="","",VLOOKUP($B190,المتعامل!$B$6:$D$1500,3,0)) -> 
A191: =IF(B191="","",SUBTOTAL(3,$B$9:B191)) ->  | C191: =IF($B191="","",VLOOKUP($B191,المتعامل!$B$6:$D$1500,2,0)) ->  | D191: =IF($B191="","",VLOOKUP($B191,المتعامل!$B$6:$D$1500,3,0)) -> 
A192: =IF(B192="","",SUBTOTAL(3,$B$9:B192)) ->  | C192: =IF($B192="","",VLOOKUP($B192,المتعامل!$B$6:$D$1500,2,0)) ->  | D192: =IF($B192="","",VLOOKUP($B192,المتعامل!$B$6:$D$1500,3,0)) -> 
A193: =IF(B193="","",SUBTOTAL(3,$B$9:B193)) ->  | C193: =IF($B193="","",VLOOKUP($B193,المتعامل!$B$6:$D$1500,2,0)) ->  | D193: =IF($B193="","",VLOOKUP($B193,المتعامل!$B$6:$D$1500,3,0)) -> 
A194: =IF(B194="","",SUBTOTAL(3,$B$9:B194)) ->  | C194: =IF($B194="","",VLOOKUP($B194,المتعامل!$B$6:$D$1500,2,0)) ->  | D194: =IF($B194="","",VLOOKUP($B194,المتعامل!$B$6:$D$1500,3,0)) -> 
A195: =IF(B195="","",SUBTOTAL(3,$B$9:B195)) ->  | C195: =IF($B195="","",VLOOKUP($B195,المتعامل!$B$6:$D$1500,2,0)) ->  | D195: =IF($B195="","",VLOOKUP($B195,المتعامل!$B$6:$D$1500,3,0)) -> 
A196: =IF(B196="","",SUBTOTAL(3,$B$9:B196)) ->  | C196: =IF($B196="","",VLOOKUP($B196,المتعامل!$B$6:$D$1500,2,0)) ->  | D196: =IF($B196="","",VLOOKUP($B196,المتعامل!$B$6:$D$1500,3,0)) -> 
A197: =IF(B197="","",SUBTOTAL(3,$B$9:B197)) ->  | C197: =IF($B197="","",VLOOKUP($B197,المتعامل!$B$6:$D$1500,2,0)) ->  | D197: =IF($B197="","",VLOOKUP($B197,المتعامل!$B$6:$D$1500,3,0)) -> 
A198: =IF(B198="","",SUBTOTAL(3,$B$9:B198)) ->  | C198: =IF($B198="","",VLOOKUP($B198,المتعامل!$B$6:$D$1500,2,0)) ->  | D198: =IF($B198="","",VLOOKUP($B198,المتعامل!$B$6:$D$1500,3,0)) -> 
A199: =IF(B199="","",SUBTOTAL(3,$B$9:B199)) ->  | C199: =IF($B199="","",VLOOKUP($B199,المتعامل!$B$6:$D$1500,2,0)) ->  | D199: =IF($B199="","",VLOOKUP($B199,المتعامل!$B$6:$D$1500,3,0)) -> 
A200: =IF(B200="","",SUBTOTAL(3,$B$9:B200)) ->  | C200: =IF($B200="","",VLOOKUP($B200,المتعامل!$B$6:$D$1500,2,0)) ->  | D200: =IF($B200="","",VLOOKUP($B200,المتعامل!$B$6:$D$1500,3,0)) -> 
A201: =IF(B201="","",SUBTOTAL(3,$B$9:B201)) ->  | C201: =IF($B201="","",VLOOKUP($B201,المتعامل!$B$6:$D$1500,2,0)) ->  | D201: =IF($B201="","",VLOOKUP($B201,المتعامل!$B$6:$D$1500,3,0)) -> 
A202: =IF(B202="","",SUBTOTAL(3,$B$9:B202)) ->  | C202: =IF($B202="","",VLOOKUP($B202,المتعامل!$B$6:$D$1500,2,0)) ->  | D202: =IF($B202="","",VLOOKUP($B202,المتعامل!$B$6:$D$1500,3,0)) -> 
A203: =IF(B203="","",SUBTOTAL(3,$B$9:B203)) ->  | C203: =IF($B203="","",VLOOKUP($B203,المتعامل!$B$6:$D$1500,2,0)) ->  | D203: =IF($B203="","",VLOOKUP($B203,المتعامل!$B$6:$D$1500,3,0)) -> 
A204: =IF(B204="","",SUBTOTAL(3,$B$9:B204)) ->  | C204: =IF($B204="","",VLOOKUP($B204,المتعامل!$B$6:$D$1500,2,0)) ->  | D204: =IF($B204="","",VLOOKUP($B204,المتعامل!$B$6:$D$1500,3,0)) -> 
... 939 more rows

Sheet تسويات
E1: مذكرة تسوية الحساب
F3: 2020
A4: 1 | I4: 2
B5: اسم الشركة | C5: شركة الامل - بجاية | J5: التاريخ | K5: =NOW() -> 2020-04-11T23:57:01.040
B6: رقم الحساب | C6: 10010 | J6: الموظف | K6: =IF(C6="","",VLOOKUP($C$6,المتعامل!$B$6:$D$1500,2,0)) -> نصر محمد
B8: رصيد البنك الظاهر في كشف الحساب | E8: =IF(C6="","",VLOOKUP($C$6,'الراتب الشهري'!$B$9:$K$1499,10,0)) -> 2100 | I8: رصيد البنك الظاهر في الدفاتر | K8: =IF(C6="","",VLOOKUP($C$6,'الراتب الشهري'!$B$9:$K$1499,5,0)) -> 2200
B10: يضاف له : | I10: يضاف له :
B11: ايداعات واردة | I11: تحصيل شيكات (برسم التحصيل)
B12: حوالات في الطريق | I12: فوائد دائنة
B13: مصروفات مودعة | I13: شيكات صادرة راجعة
B14: اخرى | I14: اخرى
B16: المجموع | F16: =IF(E8="",F14+F13+F12+F11,E8+F14+F13+F12+F11) -> 2100 | I16: المجموع | M16: =IF(K8="",(M11+M12+M13+M14),K8-(M11+M12+M13+M14)) -> 2200
B18: يطرح منه : | I18: يطرح منه :
B19: شيكات صادرة لم تصرف بعد | I19: عمولات وفوائد مدينة
I20: شيكات واردة راجعة
B24: اخرى | I24: اخرى
B26: المجموع | F26: =F24+F19 -> 0 | I26: المجموع | M26: =-(M24+M20+M19) -> 0
B28: يضاف أو يطرح | I28: يضاف أو يطرح
B29: اخطاء وارد في كشف البنك | I29: اخطاء واردة في دفاتر الشركة
B32: اخرى | I32: اخرى
B34: المجموع | F34: =F32+F29 -> 0 | I34: المجموع | M34: =-(M32+M29) -> 0
B36: الرصيد المعدني 1 | F36: =F34+F26+F16 -> 2100 | I36: الرصيد المعدني 2 | M36: =M34+M26+M16 -> 2200
C39: قيد التسوية | D39: =C6&" "&"alem"&" "&F3 -> 10010 alem 2020 | J39: التاريخ | K39: =NOW() -> 2020-04-11T23:57:01.040
B42: =B36 -> الرصيد المعدني 1 | D42: =F36 -> 2100 | E42: =I36 -> الرصيد المعدني 2 | G42: =M36 -> 2200
C44: فرق التسويات | E44: =D42-G42 -> -100

Sheet المتعامل
B2: كشف رواتب الموظفين الشهري
A4: الرقم | B4: رقم الحساب الجاري | C4: الموظف | D4: الراتب الاساسي
A6: =IF(B6="","",SUBTOTAL(3,$B$6:B6)) -> 1 | B6: 10001 | C6: احمد المهراوي | D6: 2050
A7: =IF(B7="","",SUBTOTAL(3,$B$6:B7)) -> 2 | B7: 10002 | C7: بن محمد عمران | D7: 2050
A8: =IF(B8="","",SUBTOTAL(3,$B$6:B8)) -> 3 | B8: 10003 | C8: ليلى بوصور | D8: 2050
A9: =IF(B9="","",SUBTOTAL(3,$B$6:B9)) -> 4 | B9: 10004 | C9: حميدان الضاوية | D9: 2050
A10: =IF(B10="","",SUBTOTAL(3,$B$6:B10)) -> 5 | B10: 10005 | C10: اكرم وفاء | D10: 2050
A11: =IF(B11="","",SUBTOTAL(3,$B$6:B11)) -> 6 | B11: 10006 | C11: عيسى مهند | D11: 2050
A12: =IF(B12="","",SUBTOTAL(3,$B$6:B12)) -> 7 | B12: 10007 | C12: كعبوش الخير | D12: 2050
A13: =IF(B13="","",SUBTOTAL(3,$B$6:B13)) -> 8 | B13: 10008 | C13: محمدي البشير | D13: 2050
A14: =IF(B14="","",SUBTOTAL(3,$B$6:B14)) -> 9 | B14: 10009 | C14: عمران وفاء | D14: 2050
A15: =IF(B15="","",SUBTOTAL(3,$B$6:B15)) -> 10 | B15: 10010 | C15: نصر محمد | D15: 2050
A16: =IF(B16="","",SUBTOTAL(3,$B$6:B16)) -> 
A17: =IF(B17="","",SUBTOTAL(3,$B$6:B17)) -> 
A18: =IF(B18="","",SUBTOTAL(3,$B$6:B18)) -> 
A19: =IF(B19="","",SUBTOTAL(3,$B$6:B19)) -> 
A20: =IF(B20="","",SUBTOTAL(3,$B$6:B20)) -> 
A21: =IF(B21="","",SUBTOTAL(3,$B$6:B21)) -> 
A22: =IF(B22="","",SUBTOTAL(3,$B$6:B22)) -> 
A23: =IF(B23="","",SUBTOTAL(3,$B$6:B23)) -> 
A24: =IF(B24="","",SUBTOTAL(3,$B$6:B24)) -> 
A25: =IF(B25="","",SUBTOTAL(3,$B$6:B25)) -> 
A26: =IF(B26="","",SUBTOTAL(3,$B$6:B26)) -> 
A27: =IF(B27="","",SUBTOTAL(3,$B$6:B27)) -> 
A28: =IF(B28="","",SUBTOTAL(3,$B$6:B28)) -> 
A29: =IF(B29="","",SUBTOTAL(3,$B$6:B29)) -> 
A30: =IF(B30="","",SUBTOTAL(3,$B$6:B30)) -> 
A31: =IF(B31="","",SUBTOTAL(3,$B$6:B31)) -> 
A32: =IF(B32="","",SUBTOTAL(3,$B$6:B32)) -> 
A33: =IF(B33="","",SUBTOTAL(3,$B$6:B33)) -> 
A34: =IF(B34="","",SUBTOTAL(3,$B$6:B34)) -> 
A35: =IF(B35="","",SUBTOTAL(3,$B$6:B35)) -> 
A36: =IF(B36="","",SUBTOTAL(3,$B$6:B36)) -> 
A37: =IF(B37="","",SUBTOTAL(3,$B$6:B37)) -> 
A38: =IF(B38="","",SUBTOTAL(3,$B$6:B38)) -> 
A39: =IF(B39="","",SUBTOTAL(3,$B$6:B39)) -> 
A40: =IF(B40="","",SUBTOTAL(3,$B$6:B40)) -> 
A41: =IF(B41="","",SUBTOTAL(3,$B$6:B41)) -> 
A42: =IF(B42="","",SUBTOTAL(3,$B$6:B42)) -> 
A43: =IF(B43="","",SUBTOTAL(3,$B$6:B43)) -> 
A44: =IF(B44="","",SUBTOTAL(3,$B$6:B44)) -> 
A45: =IF(B45="","",SUBTOTAL(3,$B$6:B45)) -> 
A46: =IF(B46="","",SUBTOTAL(3,$B$6:B46)) -> 
A47: =IF(B47="","",SUBTOTAL(3,$B$6:B47)) -> 
A48: =IF(B48="","",SUBTOTAL(3,$B$6:B48)) -> 
A49: =IF(B49="","",SUBTOTAL(3,$B$6:B49)) -> 
A50: =IF(B50="","",SUBTOTAL(3,$B$6:B50)) -> 
A51: =IF(B51="","",SUBTOTAL(3,$B$6:B51)) -> 
A52: =IF(B52="","",SUBTOTAL(3,$B$6:B52)) -> 
A53: =IF(B53="","",SUBTOTAL(3,$B$6:B53)) -> 
A54: =IF(B54="","",SUBTOTAL(3,$B$6:B54)) -> 
A55: =IF(B55="","",SUBTOTAL(3,$B$6:B55)) -> 
A56: =IF(B56="","",SUBTOTAL(3,$B$6:B56)) -> 
A57: =IF(B57="","",SUBTOTAL(3,$B$6:B57)) -> 
A58: =IF(B58="","",SUBTOTAL(3,$B$6:B58)) -> 
A59: =IF(B59="","",SUBTOTAL(3,$B$6:B59)) -> 
A60: =IF(B60="","",SUBTOTAL(3,$B$6:B60)) -> 
A61: =IF(B61="","",SUBTOTAL(3,$B$6:B61)) -> 
A62: =IF(B62="","",SUBTOTAL(3,$B$6:B62)) -> 
A63: =IF(B63="","",SUBTOTAL(3,$B$6:B63)) -> 
A64: =IF(B64="","",SUBTOTAL(3,$B$6:B64)) -> 
A65: =IF(B65="","",SUBTOTAL(3,$B$6:B65)) -> 
A66: =IF(B66="","",SUBTOTAL(3,$B$6:B66)) -> 
A67: =IF(B67="","",SUBTOTAL(3,$B$6:B67)) -> 
A68: =IF(B68="","",SUBTOTAL(3,$B$6:B68)) -> 
A69: =IF(B69="","",SUBTOTAL(3,$B$6:B69)) -> 
A70: =IF(B70="","",SUBTOTAL(3,$B$6:B70)) -> 
A71: =IF(B71="","",SUBTOTAL(3,$B$6:B71)) -> 
A72: =IF(B72="","",SUBTOTAL(3,$B$6:B72)) -> 
A73: =IF(B73="","",SUBTOTAL(3,$B$6:B73)) -> 
A74: =IF(B74="","",SUBTOTAL(3,$B$6:B74)) -> 
A75: =IF(B75="","",SUBTOTAL(3,$B$6:B75)) -> 
A76: =IF(B76="","",SUBTOTAL(3,$B$6:B76)) -> 
A77: =IF(B77="","",SUBTOTAL(3,$B$6:B77)) -> 
A78: =IF(B78="","",SUBTOTAL(3,$B$6:B78)) -> 
A79: =IF(B79="","",SUBTOTAL(3,$B$6:B79)) -> 
A80: =IF(B80="","",SUBTOTAL(3,$B$6:B80)) -> 
A81: =IF(B81="","",SUBTOTAL(3,$B$6:B81)) -> 
A82: =IF(B82="","",SUBTOTAL(3,$B$6:B82)) -> 
A83: =IF(B83="","",SUBTOTAL(3,$B$6:B83)) -> 
A84: =IF(B84="","",SUBTOTAL(3,$B$6:B84)) -> 
A85: =IF(B85="","",SUBTOTAL(3,$B$6:B85)) -> 
A86: =IF(B86="","",SUBTOTAL(3,$B$6:B86)) -> 
A87: =IF(B87="","",SUBTOTAL(3,$B$6:B87)) -> 
A88: =IF(B88="","",SUBTOTAL(3,$B$6:B88)) -> 
A89: =IF(B89="","",SUBTOTAL(3,$B$6:B89)) -> 
A90: =IF(B90="","",SUBTOTAL(3,$B$6:B90)) -> 
A91: =IF(B91="","",SUBTOTAL(3,$B$6:B91)) -> 
A92: =IF(B92="","",SUBTOTAL(3,$B$6:B92)) -> 
A93: =IF(B93="","",SUBTOTAL(3,$B$6:B93)) -> 
A94: =IF(B94="","",SUBTOTAL(3,$B$6:B94)) -> 
A95: =IF(B95="","",SUBTOTAL(3,$B$6:B95)) -> 
A96: =IF(B96="","",SUBTOTAL(3,$B$6:B96)) -> 
A97: =IF(B97="","",SUBTOTAL(3,$B$6:B97)) -> 
A98: =IF(B98="","",SUBTOTAL(3,$B$6:B98)) -> 
A99: =IF(B99="","",SUBTOTAL(3,$B$6:B99)) -> 
A100: =IF(B100="","",SUBTOTAL(3,$B$6:B100)) -> 
A101: =IF(B101="","",SUBTOTAL(3,$B$6:B101)) -> 
A102: =IF(B102="","",SUBTOTAL(3,$B$6:B102)) -> 
A103: =IF(B103="","",SUBTOTAL(3,$B$6:B103)) -> 
A104: =IF(B104="","",SUBTOTAL(3,$B$6:B104)) -> 
A105: =IF(B105="","",SUBTOTAL(3,$B$6:B105)) -> 
A106: =IF(B106="","",SUBTOTAL(3,$B$6:B106)) -> 
A107: =IF(B107="","",SUBTOTAL(3,$B$6:B107)) -> 
A108: =IF(B108="","",SUBTOTAL(3,$B$6:B108)) -> 
A109: =IF(B109="","",SUBTOTAL(3,$B$6:B109)) -> 
A110: =IF(B110="","",SUBTOTAL(3,$B$6:B110)) -> 
A111: =IF(B111="","",SUBTOTAL(3,$B$6:B111)) -> 
A112: =IF(B112="","",SUBTOTAL(3,$B$6:B112)) -> 
A113: =IF(B113="","",SUBTOTAL(3,$B$6:B113)) -> 
A114: =IF(B114="","",SUBTOTAL(3,$B$6:B114)) -> 
A115: =IF(B115="","",SUBTOTAL(3,$B$6:B115)) -> 
A116: =IF(B116="","",SUBTOTAL(3,$B$6:B116)) -> 
A117: =IF(B117="","",SUBTOTAL(3,$B$6:B117)) -> 
A118: =IF(B118="","",SUBTOTAL(3,$B$6:B118)) -> 
A119: =IF(B119="","",SUBTOTAL(3,$B$6:B119)) -> 
A120: =IF(B120="","",SUBTOTAL(3,$B$6:B120)) -> 
A121: =IF(B121="","",SUBTOTAL(3,$B$6:B121)) -> 
A122: =IF(B122="","",SUBTOTAL(3,$B$6:B122)) -> 
A123: =IF(B123="","",SUBTOTAL(3,$B$6:B123)) -> 
A124: =IF(B124="","",SUBTOTAL(3,$B$6:B124)) -> 
A125: =IF(B125="","",SUBTOTAL(3,$B$6:B125)) -> 
A126: =IF(B126="","",SUBTOTAL(3,$B$6:B126)) -> 
A127: =IF(B127="","",SUBTOTAL(3,$B$6:B127)) -> 
A128: =IF(B128="","",SUBTOTAL(3,$B$6:B128)) -> 
A129: =IF(B129="","",SUBTOTAL(3,$B$6:B129)) -> 
A130: =IF(B130="","",SUBTOTAL(3,$B$6:B130)) -> 
A131: =IF(B131="","",SUBTOTAL(3,$B$6:B131)) -> 
A132: =IF(B132="","",SUBTOTAL(3,$B$6:B132)) -> 
A133: =IF(B133="","",SUBTOTAL(3,$B$6:B133)) -> 
A134: =IF(B134="","",SUBTOTAL(3,$B$6:B134)) -> 
A135: =IF(B135="","",SUBTOTAL(3,$B$6:B135)) -> 
A136: =IF(B136="","",SUBTOTAL(3,$B$6:B136)) -> 
A137: =IF(B137="","",SUBTOTAL(3,$B$6:B137)) -> 
A138: =IF(B138="","",SUBTOTAL(3,$B$6:B138)) -> 
A139: =IF(B139="","",SUBTOTAL(3,$B$6:B139)) -> 
A140: =IF(B140="","",SUBTOTAL(3,$B$6:B140)) -> 
A141: =IF(B141="","",SUBTOTAL(3,$B$6:B141)) -> 
A142: =IF(B142="","",SUBTOTAL(3,$B$6:B142)) -> 
A143: =IF(B143="","",SUBTOTAL(3,$B$6:B143)) -> 
A144: =IF(B144="","",SUBTOTAL(3,$B$6:B144)) -> 
A145: =IF(B145="","",SUBTOTAL(3,$B$6:B145)) -> 
A146: =IF(B146="","",SUBTOTAL(3,$B$6:B146)) -> 
A147: =IF(B147="","",SUBTOTAL(3,$B$6:B147)) -> 
A148: =IF(B148="","",SUBTOTAL(3,$B$6:B148)) -> 
A149: =IF(B149="","",SUBTOTAL(3,$B$6:B149)) -> 
A150: =IF(B150="","",SUBTOTAL(3,$B$6:B150)) -> 
A151: =IF(B151="","",SUBTOTAL(3,$B$6:B151)) -> 
A152: =IF(B152="","",SUBTOTAL(3,$B$6:B152)) -> 
A153: =IF(B153="","",SUBTOTAL(3,$B$6:B153)) -> 
A154: =IF(B154="","",SUBTOTAL(3,$B$6:B154)) -> 
A155: =IF(B155="","",SUBTOTAL(3,$B$6:B155)) -> 
A156: =IF(B156="","",SUBTOTAL(3,$B$6:B156)) -> 
A157: =IF(B157="","",SUBTOTAL(3,$B$6:B157)) -> 
A158: =IF(B158="","",SUBTOTAL(3,$B$6:B158)) -> 
A159: =IF(B159="","",SUBTOTAL(3,$B$6:B159)) -> 
A160: =IF(B160="","",SUBTOTAL(3,$B$6:B160)) -> 
A161: =IF(B161="","",SUBTOTAL(3,$B$6:B161)) -> 
A162: =IF(B162="","",SUBTOTAL(3,$B$6:B162)) -> 
A163: =IF(B163="","",SUBTOTAL(3,$B$6:B163)) -> 
A164: =IF(B164="","",SUBTOTAL(3,$B$6:B164)) -> 
A165: =IF(B165="","",SUBTOTAL(3,$B$6:B165)) -> 
A166: =IF(B166="","",SUBTOTAL(3,$B$6:B166)) -> 
A167: =IF(B167="","",SUBTOTAL(3,$B$6:B167)) -> 
A168: =IF(B168="","",SUBTOTAL(3,$B$6:B168)) -> 
A169: =IF(B169="","",SUBTOTAL(3,$B$6:B169)) -> 
A170: =IF(B170="","",SUBTOTAL(3,$B$6:B170)) -> 
A171: =IF(B171="","",SUBTOTAL(3,$B$6:B171)) -> 
A172: =IF(B172="","",SUBTOTAL(3,$B$6:B172)) -> 
A173: =IF(B173="","",SUBTOTAL(3,$B$6:B173)) -> 
A174: =IF(B174="","",SUBTOTAL(3,$B$6:B174)) -> 
A175: =IF(B175="","",SUBTOTAL(3,$B$6:B175)) -> 
A176: =IF(B176="","",SUBTOTAL(3,$B$6:B176)) -> 
A177: =IF(B177="","",SUBTOTAL(3,$B$6:B177)) -> 
A178: =IF(B178="","",SUBTOTAL(3,$B$6:B178)) -> 
A179: =IF(B179="","",SUBTOTAL(3,$B$6:B179)) -> 
A180: =IF(B180="","",SUBTOTAL(3,$B$6:B180)) -> 
A181: =IF(B181="","",SUBTOTAL(3,$B$6:B181)) -> 
A182: =IF(B182="","",SUBTOTAL(3,$B$6:B182)) -> 
A183: =IF(B183="","",SUBTOTAL(3,$B$6:B183)) -> 
A184: =IF(B184="","",SUBTOTAL(3,$B$6:B184)) -> 
A185: =IF(B185="","",SUBTOTAL(3,$B$6:B185)) -> 
A186: =IF(B186="","",SUBTOTAL(3,$B$6:B186)) -> 
A187: =IF(B187="","",SUBTOTAL(3,$B$6:B187)) -> 
A188: =IF(B188="","",SUBTOTAL(3,$B$6:B188)) -> 
A189: =IF(B189="","",SUBTOTAL(3,$B$6:B189)) -> 
A190: =IF(B190="","",SUBTOTAL(3,$B$6:B190)) -> 
A191: =IF(B191="","",SUBTOTAL(3,$B$6:B191)) -> 
A192: =IF(B192="","",SUBTOTAL(3,$B$6:B192)) -> 
A193: =IF(B193="","",SUBTOTAL(3,$B$6:B193)) -> 
A194: =IF(B194="","",SUBTOTAL(3,$B$6:B194)) -> 
A195: =IF(B195="","",SUBTOTAL(3,$B$6:B195)) -> 
A196: =IF(B196="","",SUBTOTAL(3,$B$6:B196)) -> 
A197: =IF(B197="","",SUBTOTAL(3,$B$6:B197)) -> 
A198: =IF(B198="","",SUBTOTAL(3,$B$6:B198)) -> 
A199: =IF(B199="","",SUBTOTAL(3,$B$6:B199)) -> 
A200: =IF(B200="","",SUBTOTAL(3,$B$6:B200)) -> 
A201: =IF(B201="","",SUBTOTAL(3,$B$6:B201)) -> 
A202: =IF(B202="","",SUBTOTAL(3,$B$6:B202)) -> 
A203: =IF(B203="","",SUBTOTAL(3,$B$6:B203)) -> 
... 802 more rows

Sheet ورقة5
A2: الرقم | B2: رقم الحساب الجاري | C2: الموظف | D2: صافي الراتب المستحق | F2: التاريخ | G2: نوع المستند | H2: رقم المستند | I2: الحساب الرئيسي | J2: الحساب الفرعي | K2: المدين | L2: الدائن | M2: البييان | O2: الشركة

Sheet datainfos
A2: الحركة اليومية
A3: الرقم | B3: رقم الحساب الجاري | C3: الموظف | D3: الرصيد(دفع/قبض) | F3: الراتب الاساسي | G3: اضافات | H3: اجمالي الراتب | I3: الاقتطاعات | L3: مجموع الاقتطاعات | M3: صافي الراتب المستحق | O3: المتبقي من الرصيد
I4: ضريبة دخل | J4: الضمان الاجتماعي | K4: اخرى
A5: =IF(F5="","",SUBTOTAL(3,$F$5:F5)) -> 1 | B5: =IF(datainfo!B5="","",datainfo!B5) -> 10006 | C5: =IF(datainfo!C5="","",datainfo!C5) -> عيسى مهند | D5: =IF(datainfo!D5="","",datainfo!D5) -> 1810 | F5: =IFERROR(VLOOKUP($B5,المتعامل!$B$6:$D$1600,3,0),"") -> 2050 | G5: =IF($B5="","",VLOOKUP($B5,'الراتب الشهري'!$B$9:$L$1600,4,0)) -> 150 | H5: =IF($B5="","",VLOOKUP($B5,'الراتب الشهري'!$B$9:$L$1600,5,0)) -> 2200 | I5: =IF($B5="","",VLOOKUP($B5,'الراتب الشهري'!$B$9:$L$1600,6,0)) -> -410 | J5: =IF($B5="","",VLOOKUP($B5,'الراتب الشهري'!$B$9:$L$1600,7,0)) -> 300 | K5: =IF($B5="","",VLOOKUP($B5,'الراتب الشهري'!$B$9:$L$1600,8,0)) -> 10 | L5: =IF($B5="","",VLOOKUP($B5,'الراتب الشهري'!$B$9:$L$1600,9,0)) -> -100 | M5: =IF($B5="","",VLOOKUP($B5,'الراتب الشهري'!$B$9:$L$1600,10,0)) -> 2100 | O5: =IF(B5="","",M5+D5) -> 3910
A6: =IF(F6="","",SUBTOTAL(3,$F$5:F6)) -> 2 | B6: =IF(datainfo!B6="","",datainfo!B6) -> 10006 | C6: =IF(datainfo!C6="","",datainfo!C6) -> عيسى مهند | D6: =IF(datainfo!D6="","",datainfo!D6) -> -3500 | F6: =IFERROR(VLOOKUP($B6,المتعامل!$B$6:$D$1600,3,0),"") -> 2050 | G6: =IF($B6="","",VLOOKUP($B6,'الراتب الشهري'!$B$9:$L$1600,4,0)) -> 150 | H6: =IF($B6="","",VLOOKUP($B6,'الراتب الشهري'!$B$9:$L$1600,5,0)) -> 2200 | I6: =IF($B6="","",VLOOKUP($B6,'الراتب الشهري'!$B$9:$L$1600,6,0)) -> -410 | J6: =IF($B6="","",VLOOKUP($B6,'الراتب الشهري'!$B$9:$L$1600,7,0)) -> 300 | K6: =IF($B6="","",VLOOKUP($B6,'الراتب الشهري'!$B$9:$L$1600,8,0)) -> 10 | L6: =IF($B6="","",VLOOKUP($B6,'الراتب الشهري'!$B$9:$L$1600,9,0)) -> -100 | M6: =IF($B6="","",VLOOKUP($B6,'الراتب الشهري'!$B$9:$L$1600,10,0)) -> 2100 | O6: =IF(B6="","",M6+D6) -> -1400
A7: =IF(F7="","",SUBTOTAL(3,$F$5:F7)) ->  | B7: =IF(datainfo!B7="","",datainfo!B7) ->  | C7: =IF(datainfo!C7="","",datainfo!C7) ->  | D7: =IF(datainfo!D7="","",datainfo!D7) ->  | F7: =IFERROR(VLOOKUP($B7,المتعامل!$B$6:$D$1600,3,0),"") ->  | G7: =IF($B7="","",VLOOKUP($B7,'الراتب الشهري'!$B$9:$L$1600,4,0)) ->  | H7: =IF($B7="","",VLOOKUP($B7,'الراتب الشهري'!$B$9:$L$1600,5,0)) ->  | I7: =IF($B7="","",VLOOKUP($B7,'الراتب الشهري'!$B$9:$L$1600,6,0)) ->  | J7: =IF($B7="","",VLOOKUP($B7,'الراتب الشهري'!$B$9:$L$1600,7,0)) ->  | K7: =IF($B7="","",VLOOKUP($B7,'الراتب الشهري'!$B$9:$L$1600,8,0)) ->  | L7: =IF($B7="","",VLOOKUP($B7,'الراتب الشهري'!$B$9:$L$1600,9,0)) ->  | M7: =IF($B7="","",VLOOKUP($B7,'الراتب الشهري'!$B$9:$L$1600,10,0)) -> 
A8: =IF(F8="","",SUBTOTAL(3,$F$5:F8)) ->  | B8: =IF(datainfo!B8="","",datainfo!B8) ->  | C8: =IF(datainfo!C8="","",datainfo!C8) ->  | D8: =IF(datainfo!D8="","",datainfo!D8) ->  | F8: =IFERROR(VLOOKUP($B8,المتعامل!$B$6:$D$1600,3,0),"") ->  | G8: =IF($B8="","",VLOOKUP($B8,'الراتب الشهري'!$B$9:$L$1600,4,0)) ->  | H8: =IF($B8="","",VLOOKUP($B8,'الراتب الشهري'!$B$9:$L$1600,5,0)) ->  | I8: =IF($B8="","",VLOOKUP($B8,'الراتب الشهري'!$B$9:$L$1600,6,0)) ->  | J8: =IF($B8="","",VLOOKUP($B8,'الراتب الشهري'!$B$9:$L$1600,7,0)) ->  | K8: =IF($B8="","",VLOOKUP($B8,'الراتب الشهري'!$B$9:$L$1600,8,0)) ->  | L8: =IF($B8="","",VLOOKUP($B8,'الراتب الشهري'!$B$9:$L$1600,9,0)) ->  | M8: =IF($B8="","",VLOOKUP($B8,'الراتب الشهري'!$B$9:$L$1600,10,0)) -> 
A9: =IF(F9="","",SUBTOTAL(3,$F$5:F9)) ->  | B9: =IF(datainfo!B9="","",datainfo!B9) ->  | C9: =IF(datainfo!C9="","",datainfo!C9) ->  | D9: =IF(datainfo!D9="","",datainfo!D9) ->  | F9: =IFERROR(VLOOKUP($B9,المتعامل!$B$6:$D$1600,3,0),"") ->  | G9: =IF($B9="","",VLOOKUP($B9,'الراتب الشهري'!$B$9:$L$1600,4,0)) ->  | H9: =IF($B9="","",VLOOKUP($B9,'الراتب الشهري'!$B$9:$L$1600,5,0)) ->  | I9: =IF($B9="","",VLOOKUP($B9,'الراتب الشهري'!$B$9:$L$1600,6,0)) ->  | J9: =IF($B9="","",VLOOKUP($B9,'الراتب الشهري'!$B$9:$L$1600,7,0)) ->  | K9: =IF($B9="","",VLOOKUP($B9,'الراتب الشهري'!$B$9:$L$1600,8,0)) ->  | L9: =IF($B9="","",VLOOKUP($B9,'الراتب الشهري'!$B$9:$L$1600,9,0)) ->  | M9: =IF($B9="","",VLOOKUP($B9,'الراتب الشهري'!$B$9:$L$1600,10,0)) -> 
A10: =IF(F10="","",SUBTOTAL(3,$F$5:F10)) ->  | B10: =IF(datainfo!B10="","",datainfo!B10) ->  | C10: =IF(datainfo!C10="","",datainfo!C10) ->  | D10: =IF(datainfo!D10="","",datainfo!D10) ->  | F10: =IFERROR(VLOOKUP($B10,المتعامل!$B$6:$D$1600,3,0),"") ->  | G10: =IF($B10="","",VLOOKUP($B10,'الراتب الشهري'!$B$9:$L$1600,4,0)) ->  | H10: =IF($B10="","",VLOOKUP($B10,'الراتب الشهري'!$B$9:$L$1600,5,0)) ->  | I10: =IF($B10="","",VLOOKUP($B10,'الراتب الشهري'!$B$9:$L$1600,6,0)) ->  | J10: =IF($B10="","",VLOOKUP($B10,'الراتب الشهري'!$B$9:$L$1600,7,0)) ->  | K10: =IF($B10="","",VLOOKUP($B10,'الراتب الشهري'!$B$9:$L$1600,8,0)) ->  | L10: =IF($B10="","",VLOOKUP($B10,'الراتب الشهري'!$B$9:$L$1600,9,0)) ->  | M10: =IF($B10="","",VLOOKUP($B10,'الراتب الشهري'!$B$9:$L$1600,10,0)) -> 
A11: =IF(F11="","",SUBTOTAL(3,$F$5:F11)) ->  | B11: =IF(datainfo!B11="","",datainfo!B11) ->  | C11: =IF(datainfo!C11="","",datainfo!C11) ->  | D11: =IF(datainfo!D11="","",datainfo!D11) ->  | F11: =IFERROR(VLOOKUP($B11,المتعامل!$B$6:$D$1600,3,0),"") ->  | G11: =IF($B11="","",VLOOKUP($B11,'الراتب الشهري'!$B$9:$L$1600,4,0)) ->  | H11: =IF($B11="","",VLOOKUP($B11,'الراتب الشهري'!$B$9:$L$1600,5,0)) ->  | I11: =IF($B11="","",VLOOKUP($B11,'الراتب الشهري'!$B$9:$L$1600,6,0)) ->  | J11: =IF($B11="","",VLOOKUP($B11,'الراتب الشهري'!$B$9:$L$1600,7,0)) ->  | K11: =IF($B11="","",VLOOKUP($B11,'الراتب الشهري'!$B$9:$L$1600,8,0)) ->  | L11: =IF($B11="","",VLOOKUP($B11,'الراتب الشهري'!$B$9:$L$1600,9,0)) ->  | M11: =IF($B11="","",VLOOKUP($B11,'الراتب الشهري'!$B$9:$L$1600,10,0)) -> 
A12: =IF(F12="","",SUBTOTAL(3,$F$5:F12)) ->  | B12: =IF(datainfo!B12="","",datainfo!B12) ->  | C12: =IF(datainfo!C12="","",datainfo!C12) ->  | D12: =IF(datainfo!D12="","",datainfo!D12) ->  | F12: =IFERROR(VLOOKUP($B12,المتعامل!$B$6:$D$1600,3,0),"") ->  | G12: =IF($B12="","",VLOOKUP($B12,'الراتب الشهري'!$B$9:$L$1600,4,0)) ->  | H12: =IF($B12="","",VLOOKUP($B12,'الراتب الشهري'!$B$9:$L$1600,5,0)) ->  | I12: =IF($B12="","",VLOOKUP($B12,'الراتب الشهري'!$B$9:$L$1600,6,0)) ->  | J12: =IF($B12="","",VLOOKUP($B12,'الراتب الشهري'!$B$9:$L$1600,7,0)) ->  | K12: =IF($B12="","",VLOOKUP($B12,'الراتب الشهري'!$B$9:$L$1600,8,0)) ->  | L12: =IF($B12="","",VLOOKUP($B12,'الراتب الشهري'!$B$9:$L$1600,9,0)) ->  | M12: =IF($B12="","",VLOOKUP($B12,'الراتب الشهري'!$B$9:$L$1600,10,0)) -> 
A13: =IF(F13="","",SUBTOTAL(3,$F$5:F13)) ->  | B13: =IF(datainfo!B13="","",datainfo!B13) ->  | C13: =IF(datainfo!C13="","",datainfo!C13) ->  | D13: =IF(datainfo!D13="","",datainfo!D13) ->  | F13: =IFERROR(VLOOKUP($B13,المتعامل!$B$6:$D$1600,3,0),"") ->  | G13: =IF($B13="","",VLOOKUP($B13,'الراتب الشهري'!$B$9:$L$1600,4,0)) ->  | H13: =IF($B13="","",VLOOKUP($B13,'الراتب الشهري'!$B$9:$L$1600,5,0)) ->  | I13: =IF($B13="","",VLOOKUP($B13,'الراتب الشهري'!$B$9:$L$1600,6,0)) ->  | J13: =IF($B13="","",VLOOKUP($B13,'الراتب الشهري'!$B$9:$L$1600,7,0)) ->  | K13: =IF($B13="","",VLOOKUP($B13,'الراتب الشهري'!$B$9:$L$1600,8,0)) ->  | L13: =IF($B13="","",VLOOKUP($B13,'الراتب الشهري'!$B$9:$L$1600,9,0)) ->  | M13: =IF($B13="","",VLOOKUP($B13,'الراتب الشهري'!$B$9:$L$1600,10,0)) -> 
A14: =IF(F14="","",SUBTOTAL(3,$F$5:F14)) ->  | B14: =IF(datainfo!B14="","",datainfo!B14) ->  | C14: =IF(datainfo!C14="","",datainfo!C14) ->  | D14: =IF(datainfo!D14="","",datainfo!D14) ->  | F14: =IFERROR(VLOOKUP($B14,المتعامل!$B$6:$D$1600,3,0),"") ->  | G14: =IF($B14="","",VLOOKUP($B14,'الراتب الشهري'!$B$9:$L$1600,4,0)) ->  | H14: =IF($B14="","",VLOOKUP($B14,'الراتب الشهري'!$B$9:$L$1600,5,0)) ->  | I14: =IF($B14="","",VLOOKUP($B14,'الراتب الشهري'!$B$9:$L$1600,6,0)) ->  | J14: =IF($B14="","",VLOOKUP($B14,'الراتب الشهري'!$B$9:$L$1600,7,0)) ->  | K14: =IF($B14="","",VLOOKUP($B14,'الراتب الشهري'!$B$9:$L$1600,8,0)) ->  | L14: =IF($B14="","",VLOOKUP($B14,'الراتب الشهري'!$B$9:$L$1600,9,0)) ->  | M14: =IF($B14="","",VLOOKUP($B14,'الراتب الشهري'!$B$9:$L$1600,10,0)) -> 
A15: =IF(F15="","",SUBTOTAL(3,$F$5:F15)) ->  | B15: =IF(datainfo!B15="","",datainfo!B15) ->  | C15: =IF(datainfo!C15="","",datainfo!C15) ->  | D15: =IF(datainfo!D15="","",datainfo!D15) ->  | F15: =IFERROR(VLOOKUP($B15,المتعامل!$B$6:$D$1600,3,0),"") ->  | G15: =IF($B15="","",VLOOKUP($B15,'الراتب الشهري'!$B$9:$L$1600,4,0)) ->  | H15: =IF($B15="","",VLOOKUP($B15,'الراتب الشهري'!$B$9:$L$1600,5,0)) ->  | I15: =IF($B15="","",VLOOKUP($B15,'الراتب الشهري'!$B$9:$L$1600,6,0)) ->  | J15: =IF($B15="","",VLOOKUP($B15,'الراتب الشهري'!$B$9:$L$1600,7,0)) ->  | K15: =IF($B15="","",VLOOKUP($B15,'الراتب الشهري'!$B$9:$L$1600,8,0)) ->  | L15: =IF($B15="","",VLOOKUP($B15,'الراتب الشهري'!$B$9:$L$1600,9,0)) ->  | M15: =IF($B15="","",VLOOKUP($B15,'الراتب الشهري'!$B$9:$L$1600,10,0)) -> 
A16: =IF(F16="","",SUBTOTAL(3,$F$5:F16)) ->  | B16: =IF(datainfo!B16="","",datainfo!B16) ->  | C16: =IF(datainfo!C16="","",datainfo!C16) ->  | D16: =IF(datainfo!D16="","",datainfo!D16) ->  | F16: =IFERROR(VLOOKUP($B16,المتعامل!$B$6:$D$1600,3,0),"") ->  | G16: =IF($B16="","",VLOOKUP($B16,'الراتب الشهري'!$B$9:$L$1600,4,0)) ->  | H16: =IF($B16="","",VLOOKUP($B16,'الراتب الشهري'!$B$9:$L$1600,5,0)) ->  | I16: =IF($B16="","",VLOOKUP($B16,'الراتب الشهري'!$B$9:$L$1600,6,0)) ->  | J16: =IF($B16="","",VLOOKUP($B16,'الراتب الشهري'!$B$9:$L$1600,7,0)) ->  | K16: =IF($B16="","",VLOOKUP($B16,'الراتب الشهري'!$B$9:$L$1600,8,0)) ->  | L16: =IF($B16="","",VLOOKUP($B16,'الراتب الشهري'!$B$9:$L$1600,9,0)) ->  | M16: =IF($B16="","",VLOOKUP($B16,'الراتب الشهري'!$B$9:$L$1600,10,0)) -> 
A17: =IF(F17="","",SUBTOTAL(3,$F$5:F17)) ->  | B17: =IF(datainfo!B17="","",datainfo!B17) ->  | C17: =IF(datainfo!C17="","",datainfo!C17) ->  | D17: =IF(datainfo!D17="","",datainfo!D17) ->  | F17: =IFERROR(VLOOKUP($B17,المتعامل!$B$6:$D$1600,3,0),"") ->  | G17: =IF($B17="","",VLOOKUP($B17,'الراتب الشهري'!$B$9:$L$1600,4,0)) ->  | H17: =IF($B17="","",VLOOKUP($B17,'الراتب الشهري'!$B$9:$L$1600,5,0)) ->  | I17: =IF($B17="","",VLOOKUP($B17,'الراتب الشهري'!$B$9:$L$1600,6,0)) ->  | J17: =IF($B17="","",VLOOKUP($B17,'الراتب الشهري'!$B$9:$L$1600,7,0)) ->  | K17: =IF($B17="","",VLOOKUP($B17,'الراتب الشهري'!$B$9:$L$1600,8,0)) ->  | L17: =IF($B17="","",VLOOKUP($B17,'الراتب الشهري'!$B$9:$L$1600,9,0)) ->  | M17: =IF($B17="","",VLOOKUP($B17,'الراتب الشهري'!$B$9:$L$1600,10,0)) -> 
A18: =IF(F18="","",SUBTOTAL(3,$F$5:F18)) ->  | B18: =IF(datainfo!B18="","",datainfo!B18) ->  | C18: =IF(datainfo!C18="","",datainfo!C18) ->  | D18: =IF(datainfo!D18="","",datainfo!D18) ->  | F18: =IFERROR(VLOOKUP($B18,المتعامل!$B$6:$D$1600,3,0),"") ->  | G18: =IF($B18="","",VLOOKUP($B18,'الراتب الشهري'!$B$9:$L$1600,4,0)) ->  | H18: =IF($B18="","",VLOOKUP($B18,'الراتب الشهري'!$B$9:$L$1600,5,0)) ->  | I18: =IF($B18="","",VLOOKUP($B18,'الراتب الشهري'!$B$9:$L$1600,6,0)) ->  | J18: =IF($B18="","",VLOOKUP($B18,'الراتب الشهري'!$B$9:$L$1600,7,0)) ->  | K18: =IF($B18="","",VLOOKUP($B18,'الراتب الشهري'!$B$9:$L$1600,8,0)) ->  | L18: =IF($B18="","",VLOOKUP($B18,'الراتب الشهري'!$B$9:$L$1600,9,0)) ->  | M18: =IF($B18="","",VLOOKUP($B18,'الراتب الشهري'!$B$9:$L$1600,10,0)) -> 
A19: =IF(F19="","",SUBTOTAL(3,$F$5:F19)) ->  | B19: =IF(datainfo!B19="","",datainfo!B19) ->  | C19: =IF(datainfo!C19="","",datainfo!C19) ->  | D19: =IF(datainfo!D19="","",datainfo!D19) ->  | F19: =IFERROR(VLOOKUP($B19,المتعامل!$B$6:$D$1600,3,0),"") ->  | G19: =IF($B19="","",VLOOKUP($B19,'الراتب الشهري'!$B$9:$L$1600,4,0)) ->  | H19: =IF($B19="","",VLOOKUP($B19,'الراتب الشهري'!$B$9:$L$1600,5,0)) ->  | I19: =IF($B19="","",VLOOKUP($B19,'الراتب الشهري'!$B$9:$L$1600,6,0)) ->  | J19: =IF($B19="","",VLOOKUP($B19,'الراتب الشهري'!$B$9:$L$1600,7,0)) ->  | K19: =IF($B19="","",VLOOKUP($B19,'الراتب الشهري'!$B$9:$L$1600,8,0)) ->  | L19: =IF($B19="","",VLOOKUP($B19,'الراتب الشهري'!$B$9:$L$1600,9,0)) ->  | M19: =IF($B19="","",VLOOKUP($B19,'الراتب الشهري'!$B$9:$L$1600,10,0)) -> 
A20: =IF(F20="","",SUBTOTAL(3,$F$5:F20)) ->  | B20: =IF(datainfo!B20="","",datainfo!B20) ->  | C20: =IF(datainfo!C20="","",datainfo!C20) ->  | D20: =IF(datainfo!D20="","",datainfo!D20) ->  | F20: =IFERROR(VLOOKUP($B20,المتعامل!$B$6:$D$1600,3,0),"") ->  | G20: =IF($B20="","",VLOOKUP($B20,'الراتب الشهري'!$B$9:$L$1600,4,0)) ->  | H20: =IF($B20="","",VLOOKUP($B20,'الراتب الشهري'!$B$9:$L$1600,5,0)) ->  | I20: =IF($B20="","",VLOOKUP($B20,'الراتب الشهري'!$B$9:$L$1600,6,0)) ->  | J20: =IF($B20="","",VLOOKUP($B20,'الراتب الشهري'!$B$9:$L$1600,7,0)) ->  | K20: =IF($B20="","",VLOOKUP($B20,'الراتب الشهري'!$B$9:$L$1600,8,0)) ->  | L20: =IF($B20="","",VLOOKUP($B20,'الراتب الشهري'!$B$9:$L$1600,9,0)) ->  | M20: =IF($B20="","",VLOOKUP($B20,'الراتب الشهري'!$B$9:$L$1600,10,0)) -> 
A21: =IF(F21="","",SUBTOTAL(3,$F$5:F21)) ->  | B21: =IF(datainfo!B21="","",datainfo!B21) ->  | C21: =IF(datainfo!C21="","",datainfo!C21) ->  | D21: =IF(datainfo!D21="","",datainfo!D21) ->  | F21: =IFERROR(VLOOKUP($B21,المتعامل!$B$6:$D$1600,3,0),"") ->  | G21: =IF($B21="","",VLOOKUP($B21,'الراتب الشهري'!$B$9:$L$1600,4,0)) ->  | H21: =IF($B21="","",VLOOKUP($B21,'الراتب الشهري'!$B$9:$L$1600,5,0)) ->  | I21: =IF($B21="","",VLOOKUP($B21,'الراتب الشهري'!$B$9:$L$1600,6,0)) ->  | J21: =IF($B21="","",VLOOKUP($B21,'الراتب الشهري'!$B$9:$L$1600,7,0)) ->  | K21: =IF($B21="","",VLOOKUP($B21,'الراتب الشهري'!$B$9:$L$1600,8,0)) ->  | L21: =IF($B21="","",VLOOKUP($B21,'الراتب الشهري'!$B$9:$L$1600,9,0)) ->  | M21: =IF($B21="","",VLOOKUP($B21,'الراتب الشهري'!$B$9:$L$1600,10,0)) -> 
A22: =IF(F22="","",SUBTOTAL(3,$F$5:F22)) ->  | B22: =IF(datainfo!B22="","",datainfo!B22) ->  | C22: =IF(datainfo!C22="","",datainfo!C22) ->  | D22: =IF(datainfo!D22="","",datainfo!D22) ->  | F22: =IFERROR(VLOOKUP($B22,المتعامل!$B$6:$D$1600,3,0),"") ->  | G22: =IF($B22="","",VLOOKUP($B22,'الراتب الشهري'!$B$9:$L$1600,4,0)) ->  | H22: =IF($B22="","",VLOOKUP($B22,'الراتب الشهري'!$B$9:$L$1600,5,0)) ->  | I22: =IF($B22="","",VLOOKUP($B22,'الراتب الشهري'!$B$9:$L$1600,6,0)) ->  | J22: =IF($B22="","",VLOOKUP($B22,'الراتب الشهري'!$B$9:$L$1600,7,0)) ->  | K22: =IF($B22="","",VLOOKUP($B22,'الراتب الشهري'!$B$9:$L$1600,8,0)) ->  | L22: =IF($B22="","",VLOOKUP($B22,'الراتب الشهري'!$B$9:$L$1600,9,0)) ->  | M22: =IF($B22="","",VLOOKUP($B22,'الراتب الشهري'!$B$9:$L$1600,10,0)) -> 
A23: =IF(F23="","",SUBTOTAL(3,$F$5:F23)) ->  | B23: =IF(datainfo!B23="","",datainfo!B23) ->  | C23: =IF(datainfo!C23="","",datainfo!C23) ->  | D23: =IF(datainfo!D23="","",datainfo!D23) ->  | F23: =IFERROR(VLOOKUP($B23,المتعامل!$B$6:$D$1600,3,0),"") ->  | G23: =IF($B23="","",VLOOKUP($B23,'الراتب الشهري'!$B$9:$L$1600,4,0)) ->  | H23: =IF($B23="","",VLOOKUP($B23,'الراتب الشهري'!$B$9:$L$1600,5,0)) ->  | I23: =IF($B23="","",VLOOKUP($B23,'الراتب الشهري'!$B$9:$L$1600,6,0)) ->  | J23: =IF($B23="","",VLOOKUP($B23,'الراتب الشهري'!$B$9:$L$1600,7,0)) ->  | K23: =IF($B23="","",VLOOKUP($B23,'الراتب الشهري'!$B$9:$L$1600,8,0)) ->  | L23: =IF($B23="","",VLOOKUP($B23,'الراتب الشهري'!$B$9:$L$1600,9,0)) ->  | M23: =IF($B23="","",VLOOKUP($B23,'الراتب الشهري'!$B$9:$L$1600,10,0)) -> 
A24: =IF(F24="","",SUBTOTAL(3,$F$5:F24)) ->  | B24: =IF(datainfo!B24="","",datainfo!B24) ->  | C24: =IF(datainfo!C24="","",datainfo!C24) ->  | D24: =IF(datainfo!D24="","",datainfo!D24) ->  | F24: =IFERROR(VLOOKUP($B24,المتعامل!$B$6:$D$1600,3,0),"") ->  | G24: =IF($B24="","",VLOOKUP($B24,'الراتب الشهري'!$B$9:$L$1600,4,0)) ->  | H24: =IF($B24="","",VLOOKUP($B24,'الراتب الشهري'!$B$9:$L$1600,5,0)) ->  | I24: =IF($B24="","",VLOOKUP($B24,'الراتب الشهري'!$B$9:$L$1600,6,0)) ->  | J24: =IF($B24="","",VLOOKUP($B24,'الراتب الشهري'!$B$9:$L$1600,7,0)) ->  | K24: =IF($B24="","",VLOOKUP($B24,'الراتب الشهري'!$B$9:$L$1600,8,0)) ->  | L24: =IF($B24="","",VLOOKUP($B24,'الراتب الشهري'!$B$9:$L$1600,9,0)) ->  | M24: =IF($B24="","",VLOOKUP($B24,'الراتب الشهري'!$B$9:$L$1600,10,0)) -> 
A25: =IF(F25="","",SUBTOTAL(3,$F$5:F25)) ->  | B25: =IF(datainfo!B25="","",datainfo!B25) ->  | C25: =IF(datainfo!C25="","",datainfo!C25) ->  | D25: =IF(datainfo!D25="","",datainfo!D25) ->  | F25: =IFERROR(VLOOKUP($B25,المتعامل!$B$6:$D$1600,3,0),"") ->  | G25: =IF($B25="","",VLOOKUP($B25,'الراتب الشهري'!$B$9:$L$1600,4,0)) ->  | H25: =IF($B25="","",VLOOKUP($B25,'الراتب الشهري'!$B$9:$L$1600,5,0)) ->  | I25: =IF($B25="","",VLOOKUP($B25,'الراتب الشهري'!$B$9:$L$1600,6,0)) ->  | J25: =IF($B25="","",VLOOKUP($B25,'الراتب الشهري'!$B$9:$L$1600,7,0)) ->  | K25: =IF($B25="","",VLOOKUP($B25,'الراتب الشهري'!$B$9:$L$1600,8,0)) ->  | L25: =IF($B25="","",VLOOKUP($B25,'الراتب الشهري'!$B$9:$L$1600,9,0)) ->  | M25: =IF($B25="","",VLOOKUP($B25,'الراتب الشهري'!$B$9:$L$1600,10,0)) -> 
A26: =IF(F26="","",SUBTOTAL(3,$F$5:F26)) ->  | B26: =IF(datainfo!B26="","",datainfo!B26) ->  | C26: =IF(datainfo!C26="","",datainfo!C26) ->  | D26: =IF(datainfo!D26="","",datainfo!D26) ->  | F26: =IFERROR(VLOOKUP($B26,المتعامل!$B$6:$D$1600,3,0),"") ->  | G26: =IF($B26="","",VLOOKUP($B26,'الراتب الشهري'!$B$9:$L$1600,4,0)) ->  | H26: =IF($B26="","",VLOOKUP($B26,'الراتب الشهري'!$B$9:$L$1600,5,0)) ->  | I26: =IF($B26="","",VLOOKUP($B26,'الراتب الشهري'!$B$9:$L$1600,6,0)) ->  | J26: =IF($B26="","",VLOOKUP($B26,'الراتب الشهري'!$B$9:$L$1600,7,0)) ->  | K26: =IF($B26="","",VLOOKUP($B26,'الراتب الشهري'!$B$9:$L$1600,8,0)) ->  | L26: =IF($B26="","",VLOOKUP($B26,'الراتب الشهري'!$B$9:$L$1600,9,0)) ->  | M26: =IF($B26="","",VLOOKUP($B26,'الراتب الشهري'!$B$9:$L$1600,10,0)) -> 
A27: =IF(F27="","",SUBTOTAL(3,$F$5:F27)) ->  | B27: =IF(datainfo!B27="","",datainfo!B27) ->  | C27: =IF(datainfo!C27="","",datainfo!C27) ->  | D27: =IF(datainfo!D27="","",datainfo!D27) ->  | F27: =IFERROR(VLOOKUP($B27,المتعامل!$B$6:$D$1600,3,0),"") ->  | G27: =IF($B27="","",VLOOKUP($B27,'الراتب الشهري'!$B$9:$L$1600,4,0)) ->  | H27: =IF($B27="","",VLOOKUP($B27,'الراتب الشهري'!$B$9:$L$1600,5,0)) ->  | I27: =IF($B27="","",VLOOKUP($B27,'الراتب الشهري'!$B$9:$L$1600,6,0)) ->  | J27: =IF($B27="","",VLOOKUP($B27,'الراتب الشهري'!$B$9:$L$1600,7,0)) ->  | K27: =IF($B27="","",VLOOKUP($B27,'الراتب الشهري'!$B$9:$L$1600,8,0)) ->  | L27: =IF($B27="","",VLOOKUP($B27,'الراتب الشهري'!$B$9:$L$1600,9,0)) ->  | M27: =IF($B27="","",VLOOKUP($B27,'الراتب الشهري'!$B$9:$L$1600,10,0)) -> 
A28: =IF(F28="","",SUBTOTAL(3,$F$5:F28)) ->  | B28: =IF(datainfo!B28="","",datainfo!B28) ->  | C28: =IF(datainfo!C28="","",datainfo!C28) ->  | D28: =IF(datainfo!D28="","",datainfo!D28) ->  | F28: =IFERROR(VLOOKUP($B28,المتعامل!$B$6:$D$1600,3,0),"") ->  | G28: =IF($B28="","",VLOOKUP($B28,'الراتب الشهري'!$B$9:$L$1600,4,0)) ->  | H28: =IF($B28="","",VLOOKUP($B28,'الراتب الشهري'!$B$9:$L$1600,5,0)) ->  | I28: =IF($B28="","",VLOOKUP($B28,'الراتب الشهري'!$B$9:$L$1600,6,0)) ->  | J28: =IF($B28="","",VLOOKUP($B28,'الراتب الشهري'!$B$9:$L$1600,7,0)) ->  | K28: =IF($B28="","",VLOOKUP($B28,'الراتب الشهري'!$B$9:$L$1600,8,0)) ->  | L28: =IF($B28="","",VLOOKUP($B28,'الراتب الشهري'!$B$9:$L$1600,9,0)) ->  | M28: =IF($B28="","",VLOOKUP($B28,'الراتب الشهري'!$B$9:$L$1600,10,0)) -> 
B29: =IF(datainfo!B29="","",datainfo!B29) ->  | C29: =IF(datainfo!C29="","",datainfo!C29) ->  | D29: =IF(datainfo!D29="","",datainfo!D29) ->  | F29: =IFERROR(VLOOKUP($B29,المتعامل!$B$6:$D$1600,3,0),"") ->  | G29: =IF($B29="","",VLOOKUP($B29,'الراتب الشهري'!$B$9:$L$1600,4,0)) ->  | H29: =IF($B29="","",VLOOKUP($B29,'الراتب الشهري'!$B$9:$L$1600,5,0)) ->  | I29: =IF($B29="","",VLOOKUP($B29,'الراتب الشهري'!$B$9:$L$1600,6,0)) ->  | J29: =IF($B29="","",VLOOKUP($B29,'الراتب الشهري'!$B$9:$L$1600,7,0)) ->  | K29: =IF($B29="","",VLOOKUP($B29,'الراتب الشهري'!$B$9:$L$1600,8,0)) ->  | L29: =IF($B29="","",VLOOKUP($B29,'الراتب الشهري'!$B$9:$L$1600,9,0)) ->  | M29: =IF($B29="","",VLOOKUP($B29,'الراتب الشهري'!$B$9:$L$1600,10,0)) -> 
B30: =IF(datainfo!B30="","",datainfo!B30) ->  | C30: =IF(datainfo!C30="","",datainfo!C30) ->  | D30: =IF(datainfo!D30="","",datainfo!D30) ->  | F30: =IFERROR(VLOOKUP($B30,المتعامل!$B$6:$D$1600,3,0),"") ->  | G30: =IF($B30="","",VLOOKUP($B30,'الراتب الشهري'!$B$9:$L$1600,4,0)) ->  | H30: =IF($B30="","",VLOOKUP($B30,'الراتب الشهري'!$B$9:$L$1600,5,0)) ->  | I30: =IF($B30="","",VLOOKUP($B30,'الراتب الشهري'!$B$9:$L$1600,6,0)) ->  | J30: =IF($B30="","",VLOOKUP($B30,'الراتب الشهري'!$B$9:$L$1600,7,0)) ->  | K30: =IF($B30="","",VLOOKUP($B30,'الراتب الشهري'!$B$9:$L$1600,8,0)) ->  | L30: =IF($B30="","",VLOOKUP($B30,'الراتب الشهري'!$B$9:$L$1600,9,0)) ->  | M30: =IF($B30="","",VLOOKUP($B30,'الراتب الشهري'!$B$9:$L$1600,10,0)) -> 
B31: =IF(datainfo!B31="","",datainfo!B31) ->  | C31: =IF(datainfo!C31="","",datainfo!C31) ->  | D31: =IF(datainfo!D31="","",datainfo!D31) ->  | F31: =IFERROR(VLOOKUP($B31,المتعامل!$B$6:$D$1600,3,0),"") ->  | G31: =IF($B31="","",VLOOKUP($B31,'الراتب الشهري'!$B$9:$L$1600,4,0)) ->  | H31: =IF($B31="","",VLOOKUP($B31,'الراتب الشهري'!$B$9:$L$1600,5,0)) ->  | I31: =IF($B31="","",VLOOKUP($B31,'الراتب الشهري'!$B$9:$L$1600,6,0)) ->  | J31: =IF($B31="","",VLOOKUP($B31,'الراتب الشهري'!$B$9:$L$1600,7,0)) ->  | K31: =IF($B31="","",VLOOKUP($B31,'الراتب الشهري'!$B$9:$L$1600,8,0)) ->  | L31: =IF($B31="","",VLOOKUP($B31,'الراتب الشهري'!$B$9:$L$1600,9,0)) ->  | M31: =IF($B31="","",VLOOKUP($B31,'الراتب الشهري'!$B$9:$L$1600,10,0)) -> 
B32: =IF(datainfo!B32="","",datainfo!B32) ->  | C32: =IF(datainfo!C32="","",datainfo!C32) ->  | D32: =IF(datainfo!D32="","",datainfo!D32) ->  | F32: =IFERROR(VLOOKUP($B32,المتعامل!$B$6:$D$1600,3,0),"") ->  | G32: =IF($B32="","",VLOOKUP($B32,'الراتب الشهري'!$B$9:$L$1600,4,0)) ->  | H32: =IF($B32="","",VLOOKUP($B32,'الراتب الشهري'!$B$9:$L$1600,5,0)) ->  | I32: =IF($B32="","",VLOOKUP($B32,'الراتب الشهري'!$B$9:$L$1600,6,0)) ->  | J32: =IF($B32="","",VLOOKUP($B32,'الراتب الشهري'!$B$9:$L$1600,7,0)) ->  | K32: =IF($B32="","",VLOOKUP($B32,'الراتب الشهري'!$B$9:$L$1600,8,0)) ->  | L32: =IF($B32="","",VLOOKUP($B32,'الراتب الشهري'!$B$9:$L$1600,9,0)) ->  | M32: =IF($B32="","",VLOOKUP($B32,'الراتب الشهري'!$B$9:$L$1600,10,0)) -> 
B33: =IF(datainfo!B33="","",datainfo!B33) ->  | C33: =IF(datainfo!C33="","",datainfo!C33) ->  | D33: =IF(datainfo!D33="","",datainfo!D33) ->  | F33: =IFERROR(VLOOKUP($B33,المتعامل!$B$6:$D$1600,3,0),"") ->  | G33: =IF($B33="","",VLOOKUP($B33,'الراتب الشهري'!$B$9:$L$1600,4,0)) ->  | H33: =IF($B33="","",VLOOKUP($B33,'الراتب الشهري'!$B$9:$L$1600,5,0)) ->  | I33: =IF($B33="","",VLOOKUP($B33,'الراتب الشهري'!$B$9:$L$1600,6,0)) ->  | J33: =IF($B33="","",VLOOKUP($B33,'الراتب الشهري'!$B$9:$L$1600,7,0)) ->  | K33: =IF($B33="","",VLOOKUP($B33,'الراتب الشهري'!$B$9:$L$1600,8,0)) ->  | L33: =IF($B33="","",VLOOKUP($B33,'الراتب الشهري'!$B$9:$L$1600,9,0)) ->  | M33: =IF($B33="","",VLOOKUP($B33,'الراتب الشهري'!$B$9:$L$1600,10,0)) -> 
B34: =IF(datainfo!B34="","",datainfo!B34) ->  | C34: =IF(datainfo!C34="","",datainfo!C34) ->  | D34: =IF(datainfo!D34="","",datainfo!D34) ->  | F34: =IFERROR(VLOOKUP($B34,المتعامل!$B$6:$D$1600,3,0),"") ->  | G34: =IF($B34="","",VLOOKUP($B34,'الراتب الشهري'!$B$9:$L$1600,4,0)) ->  | H34: =IF($B34="","",VLOOKUP($B34,'الراتب الشهري'!$B$9:$L$1600,5,0)) ->  | I34: =IF($B34="","",VLOOKUP($B34,'الراتب الشهري'!$B$9:$L$1600,6,0)) ->  | J34: =IF($B34="","",VLOOKUP($B34,'الراتب الشهري'!$B$9:$L$1600,7,0)) ->  | K34: =IF($B34="","",VLOOKUP($B34,'الراتب الشهري'!$B$9:$L$1600,8,0)) ->  | L34: =IF($B34="","",VLOOKUP($B34,'الراتب الشهري'!$B$9:$L$1600,9,0)) ->  | M34: =IF($B34="","",VLOOKUP($B34,'الراتب الشهري'!$B$9:$L$1600,10,0)) -> 
B35: =IF(datainfo!B35="","",datainfo!B35) ->  | C35: =IF(datainfo!C35="","",datainfo!C35) ->  | D35: =IF(datainfo!D35="","",datainfo!D35) ->  | F35: =IFERROR(VLOOKUP($B35,المتعامل!$B$6:$D$1600,3,0),"") ->  | G35: =IF($B35="","",VLOOKUP($B35,'الراتب الشهري'!$B$9:$L$1600,4,0)) ->  | H35: =IF($B35="","",VLOOKUP($B35,'الراتب الشهري'!$B$9:$L$1600,5,0)) ->  | I35: =IF($B35="","",VLOOKUP($B35,'الراتب الشهري'!$B$9:$L$1600,6,0)) ->  | J35: =IF($B35="","",VLOOKUP($B35,'الراتب الشهري'!$B$9:$L$1600,7,0)) ->  | K35: =IF($B35="","",VLOOKUP($B35,'الراتب الشهري'!$B$9:$L$1600,8,0)) ->  | L35: =IF($B35="","",VLOOKUP($B35,'الراتب الشهري'!$B$9:$L$1600,9,0)) ->  | M35: =IF($B35="","",VLOOKUP($B35,'الراتب الشهري'!$B$9:$L$1600,10,0)) -> 
B36: =IF(datainfo!B36="","",datainfo!B36) ->  | C36: =IF(datainfo!C36="","",datainfo!C36) ->  | D36: =IF(datainfo!D36="","",datainfo!D36) ->  | F36: =IFERROR(VLOOKUP($B36,المتعامل!$B$6:$D$1600,3,0),"") ->  | G36: =IF($B36="","",VLOOKUP($B36,'الراتب الشهري'!$B$9:$L$1600,4,0)) ->  | H36: =IF($B36="","",VLOOKUP($B36,'الراتب الشهري'!$B$9:$L$1600,5,0)) ->  | I36: =IF($B36="","",VLOOKUP($B36,'الراتب الشهري'!$B$9:$L$1600,6,0)) ->  | J36: =IF($B36="","",VLOOKUP($B36,'الراتب الشهري'!$B$9:$L$1600,7,0)) ->  | K36: =IF($B36="","",VLOOKUP($B36,'الراتب الشهري'!$B$9:$L$1600,8,0)) ->  | L36: =IF($B36="","",VLOOKUP($B36,'الراتب الشهري'!$B$9:$L$1600,9,0)) ->  | M36: =IF($B36="","",VLOOKUP($B36,'الراتب الشهري'!$B$9:$L$1600,10,0)) -> 
B37: =IF(datainfo!B37="","",datainfo!B37) ->  | C37: =IF(datainfo!C37="","",datainfo!C37) ->  | D37: =IF(datainfo!D37="","",datainfo!D37) ->  | F37: =IFERROR(VLOOKUP($B37,المتعامل!$B$6:$D$1600,3,0),"") ->  | G37: =IF($B37="","",VLOOKUP($B37,'الراتب الشهري'!$B$9:$L$1600,4,0)) ->  | H37: =IF($B37="","",VLOOKUP($B37,'الراتب الشهري'!$B$9:$L$1600,5,0)) ->  | I37: =IF($B37="","",VLOOKUP($B37,'الراتب الشهري'!$B$9:$L$1600,6,0)) ->  | J37: =IF($B37="","",VLOOKUP($B37,'الراتب الشهري'!$B$9:$L$1600,7,0)) ->  | K37: =IF($B37="","",VLOOKUP($B37,'الراتب الشهري'!$B$9:$L$1600,8,0)) ->  | L37: =IF($B37="","",VLOOKUP($B37,'الراتب الشهري'!$B$9:$L$1600,9,0)) ->  | M37: =IF($B37="","",VLOOKUP($B37,'الراتب الشهري'!$B$9:$L$1600,10,0)) -> 
B38: =IF(datainfo!B38="","",datainfo!B38) ->  | C38: =IF(datainfo!C38="","",datainfo!C38) ->  | D38: =IF(datainfo!D38="","",datainfo!D38) ->  | F38: =IFERROR(VLOOKUP($B38,المتعامل!$B$6:$D$1600,3,0),"") ->  | G38: =IF($B38="","",VLOOKUP($B38,'الراتب الشهري'!$B$9:$L$1600,4,0)) ->  | H38: =IF($B38="","",VLOOKUP($B38,'الراتب الشهري'!$B$9:$L$1600,5,0)) ->  | I38: =IF($B38="","",VLOOKUP($B38,'الراتب الشهري'!$B$9:$L$1600,6,0)) ->  | J38: =IF($B38="","",VLOOKUP($B38,'الراتب الشهري'!$B$9:$L$1600,7,0)) ->  | K38: =IF($B38="","",VLOOKUP($B38,'الراتب الشهري'!$B$9:$L$1600,8,0)) ->  | L38: =IF($B38="","",VLOOKUP($B38,'الراتب الشهري'!$B$9:$L$1600,9,0)) ->  | M38: =IF($B38="","",VLOOKUP($B38,'الراتب الشهري'!$B$9:$L$1600,10,0)) -> 
B39: =IF(datainfo!B39="","",datainfo!B39) ->  | C39: =IF(datainfo!C39="","",datainfo!C39) ->  | D39: =IF(datainfo!D39="","",datainfo!D39) ->  | F39: =IFERROR(VLOOKUP($B39,المتعامل!$B$6:$D$1600,3,0),"") ->  | G39: =IF($B39="","",VLOOKUP($B39,'الراتب الشهري'!$B$9:$L$1600,4,0)) ->  | H39: =IF($B39="","",VLOOKUP($B39,'الراتب الشهري'!$B$9:$L$1600,5,0)) ->  | I39: =IF($B39="","",VLOOKUP($B39,'الراتب الشهري'!$B$9:$L$1600,6,0)) ->  | J39: =IF($B39="","",VLOOKUP($B39,'الراتب الشهري'!$B$9:$L$1600,7,0)) ->  | K39: =IF($B39="","",VLOOKUP($B39,'الراتب الشهري'!$B$9:$L$1600,8,0)) ->  | L39: =IF($B39="","",VLOOKUP($B39,'الراتب الشهري'!$B$9:$L$1600,9,0)) ->  | M39: =IF($B39="","",VLOOKUP($B39,'الراتب الشهري'!$B$9:$L$1600,10,0)) -> 
B40: =IF(datainfo!B40="","",datainfo!B40) ->  | C40: =IF(datainfo!C40="","",datainfo!C40) ->  | D40: =IF(datainfo!D40="","",datainfo!D40) -> 
B41: =IF(datainfo!B41="","",datainfo!B41) ->  | C41: =IF(datainfo!C41="","",datainfo!C41) ->  | D41: =IF(datainfo!D41="","",datainfo!D41) -> 
B42: =IF(datainfo!B42="","",datainfo!B42) ->  | C42: =IF(datainfo!C42="","",datainfo!C42) ->  | D42: =IF(datainfo!D42="","",datainfo!D42) -> 
B43: =IF(datainfo!B43="","",datainfo!B43) ->  | C43: =IF(datainfo!C43="","",datainfo!C43) ->  | D43: =IF(datainfo!D43="","",datainfo!D43) -> 
B44: =IF(datainfo!B44="","",datainfo!B44) ->  | C44: =IF(datainfo!C44="","",datainfo!C44) ->  | D44: =IF(datainfo!D44="","",datainfo!D44) -> 
B45: =IF(datainfo!B45="","",datainfo!B45) ->  | C45: =IF(datainfo!C45="","",datainfo!C45) ->  | D45: =IF(datainfo!D45="","",datainfo!D45) -> 
B46: =IF(datainfo!B46="","",datainfo!B46) ->  | C46: =IF(datainfo!C46="","",datainfo!C46) ->  | D46: =IF(datainfo!D46="","",datainfo!D46) -> 
B47: =IF(datainfo!B47="","",datainfo!B47) ->  | C47: =IF(datainfo!C47="","",datainfo!C47) ->  | D47: =IF(datainfo!D47="","",datainfo!D47) -> 
B48: =IF(datainfo!B48="","",datainfo!B48) ->  | C48: =IF(datainfo!C48="","",datainfo!C48) ->  | D48: =IF(datainfo!D48="","",datainfo!D48) -> 
B49: =IF(datainfo!B49="","",datainfo!B49) ->  | C49: =IF(datainfo!C49="","",datainfo!C49) ->  | D49: =IF(datainfo!D49="","",datainfo!D49) -> 
B50: =IF(datainfo!B50="","",datainfo!B50) ->  | C50: =IF(datainfo!C50="","",datainfo!C50) ->  | D50: =IF(datainfo!D50="","",datainfo!D50) -> 
B51: =IF(datainfo!B51="","",datainfo!B51) ->  | C51: =IF(datainfo!C51="","",datainfo!C51) ->  | D51: =IF(datainfo!D51="","",datainfo!D51) -> 
B52: =IF(datainfo!B52="","",datainfo!B52) ->  | C52: =IF(datainfo!C52="","",datainfo!C52) ->  | D52: =IF(datainfo!D52="","",datainfo!D52) -> 
B53: =IF(datainfo!B53="","",datainfo!B53) ->  | C53: =IF(datainfo!C53="","",datainfo!C53) ->  | D53: =IF(datainfo!D53="","",datainfo!D53) -> 
B54: =IF(datainfo!B54="","",datainfo!B54) ->  | C54: =IF(datainfo!C54="","",datainfo!C54) ->  | D54: =IF(datainfo!D54="","",datainfo!D54) -> 
B55: =IF(datainfo!B55="","",datainfo!B55) ->  | C55: =IF(datainfo!C55="","",datainfo!C55) ->  | D55: =IF(datainfo!D55="","",datainfo!D55) -> 
B56: =IF(datainfo!B56="","",datainfo!B56) ->  | C56: =IF(datainfo!C56="","",datainfo!C56) ->  | D56: =IF(datainfo!D56="","",datainfo!D56) -> 
B57: =IF(datainfo!B57="","",datainfo!B57) ->  | C57: =IF(datainfo!C57="","",datainfo!C57) ->  | D57: =IF(datainfo!D57="","",datainfo!D57) -> 
B58: =IF(datainfo!B58="","",datainfo!B58) ->  | C58: =IF(datainfo!C58="","",datainfo!C58) ->  | D58: =IF(datainfo!D58="","",datainfo!D58) -> 
B59: =IF(datainfo!B59="","",datainfo!B59) ->  | C59: =IF(datainfo!C59="","",datainfo!C59) ->  | D59: =IF(datainfo!D59="","",datainfo!D59) -> 
B60: =IF(datainfo!B60="","",datainfo!B60) ->  | C60: =IF(datainfo!C60="","",datainfo!C60) ->  | D60: =IF(datainfo!D60="","",datainfo!D60) -> 
B61: =IF(datainfo!B61="","",datainfo!B61) ->  | C61: =IF(datainfo!C61="","",datainfo!C61) ->  | D61: =IF(datainfo!D61="","",datainfo!D61) -> 
B62: =IF(datainfo!B62="","",datainfo!B62) ->  | C62: =IF(datainfo!C62="","",datainfo!C62) ->  | D62: =IF(datainfo!D62="","",datainfo!D62) -> 
B63: =IF(datainfo!B63="","",datainfo!B63) ->  | C63: =IF(datainfo!C63="","",datainfo!C63) ->  | D63: =IF(datainfo!D63="","",datainfo!D63) -> 
B64: =IF(datainfo!B64="","",datainfo!B64) ->  | C64: =IF(datainfo!C64="","",datainfo!C64) ->  | D64: =IF(datainfo!D64="","",datainfo!D64) -> 
B65: =IF(datainfo!B65="","",datainfo!B65) ->  | C65: =IF(datainfo!C65="","",datainfo!C65) ->  | D65: =IF(datainfo!D65="","",datainfo!D65) -> 
B66: =IF(datainfo!B66="","",datainfo!B66) ->  | C66: =IF(datainfo!C66="","",datainfo!C66) ->  | D66: =IF(datainfo!D66="","",datainfo!D66) -> 
B67: =IF(datainfo!B67="","",datainfo!B67) ->  | C67: =IF(datainfo!C67="","",datainfo!C67) ->  | D67: =IF(datainfo!D67="","",datainfo!D67) -> 
B68: =IF(datainfo!B68="","",datainfo!B68) ->  | C68: =IF(datainfo!C68="","",datainfo!C68) ->  | D68: =IF(datainfo!D68="","",datainfo!D68) ->  | O68: =IF(B68="","",M68-D68) -> 
B69: =IF(datainfo!B69="","",datainfo!B69) ->  | C69: =IF(datainfo!C69="","",datainfo!C69) ->  | D69: =IF(datainfo!D69="","",datainfo!D69) -> 
B70: =IF(datainfo!B70="","",datainfo!B70) ->  | C70: =IF(datainfo!C70="","",datainfo!C70) ->  | D70: =IF(datainfo!D70="","",datainfo!D70) ->  | O70: =IF(B70="","",M70-D70) -> 
B71: =IF(datainfo!B71="","",datainfo!B71) ->  | C71: =IF(datainfo!C71="","",datainfo!C71) ->  | D71: =IF(datainfo!D71="","",datainfo!D71) -> 
B72: =IF(datainfo!B72="","",datainfo!B72) ->  | C72: =IF(datainfo!C72="","",datainfo!C72) ->  | D72: =IF(datainfo!D72="","",datainfo!D72) -> 
B73: =IF(datainfo!B73="","",datainfo!B73) ->  | C73: =IF(datainfo!C73="","",datainfo!C73) ->  | D73: =IF(datainfo!D73="","",datainfo!D73) -> 
B74: =IF(datainfo!B74="","",datainfo!B74) ->  | C74: =IF(datainfo!C74="","",datainfo!C74) ->  | D74: =IF(datainfo!D74="","",datainfo!D74) -> 
B75: =IF(datainfo!B75="","",datainfo!B75) ->  | C75: =IF(datainfo!C75="","",datainfo!C75) ->  | D75: =IF(datainfo!D75="","",datainfo!D75) -> 
B76: =IF(datainfo!B76="","",datainfo!B76) ->  | C76: =IF(datainfo!C76="","",datainfo!C76) ->  | D76: =IF(datainfo!D76="","",datainfo!D76) -> 
B77: =IF(datainfo!B77="","",datainfo!B77) ->  | C77: =IF(datainfo!C77="","",datainfo!C77) ->  | D77: =IF(datainfo!D77="","",datainfo!D77) -> 
B78: =IF(datainfo!B78="","",datainfo!B78) ->  | C78: =IF(datainfo!C78="","",datainfo!C78) ->  | D78: =IF(datainfo!D78="","",datainfo!D78) -> 
B79: =IF(datainfo!B79="","",datainfo!B79) ->  | C79: =IF(datainfo!C79="","",datainfo!C79) ->  | D79: =IF(datainfo!D79="","",datainfo!D79) -> 
B80: =IF(datainfo!B80="","",datainfo!B80) ->  | C80: =IF(datainfo!C80="","",datainfo!C80) ->  | D80: =IF(datainfo!D80="","",datainfo!D80) -> 
B81: =IF(datainfo!B81="","",datainfo!B81) ->  | C81: =IF(datainfo!C81="","",datainfo!C81) ->  | D81: =IF(datainfo!D81="","",datainfo!D81) -> 
B82: =IF(datainfo!B82="","",datainfo!B82) ->  | C82: =IF(datainfo!C82="","",datainfo!C82) ->  | D82: =IF(datainfo!D82="","",datainfo!D82) -> 
B83: =IF(datainfo!B83="","",datainfo!B83) ->  | C83: =IF(datainfo!C83="","",datainfo!C83) ->  | D83: =IF(datainfo!D83="","",datainfo!D83) -> 
B84: =IF(datainfo!B84="","",datainfo!B84) ->  | C84: =IF(datainfo!C84="","",datainfo!C84) ->  | D84: =IF(datainfo!D84="","",datainfo!D84) -> 
B85: =IF(datainfo!B85="","",datainfo!B85) ->  | C85: =IF(datainfo!C85="","",datainfo!C85) ->  | D85: =IF(datainfo!D85="","",datainfo!D85) -> 
B86: =IF(datainfo!B86="","",datainfo!B86) ->  | C86: =IF(datainfo!C86="","",datainfo!C86) ->  | D86: =IF(datainfo!D86="","",datainfo!D86) -> 
B87: =IF(datainfo!B87="","",datainfo!B87) ->  | C87: =IF(datainfo!C87="","",datainfo!C87) ->  | D87: =IF(datainfo!D87="","",datainfo!D87) -> 
B88: =IF(datainfo!B88="","",datainfo!B88) ->  | C88: =IF(datainfo!C88="","",datainfo!C88) ->  | D88: =IF(datainfo!D88="","",datainfo!D88) -> 
B89: =IF(datainfo!B89="","",datainfo!B89) ->  | C89: =IF(datainfo!C89="","",datainfo!C89) ->  | D89: =IF(datainfo!D89="","",datainfo!D89) -> 
B90: =IF(datainfo!B90="","",datainfo!B90) ->  | C90: =IF(datainfo!C90="","",datainfo!C90) ->  | D90: =IF(datainfo!D90="","",datainfo!D90) -> 
B91: =IF(datainfo!B91="","",datainfo!B91) ->  | C91: =IF(datainfo!C91="","",datainfo!C91) ->  | D91: =IF(datainfo!D91="","",datainfo!D91) -> 
B92: =IF(datainfo!B92="","",datainfo!B92) ->  | C92: =IF(datainfo!C92="","",datainfo!C92) ->  | D92: =IF(datainfo!D92="","",datainfo!D92) -> 
B93: =IF(datainfo!B93="","",datainfo!B93) ->  | C93: =IF(datainfo!C93="","",datainfo!C93) ->  | D93: =IF(datainfo!D93="","",datainfo!D93) -> 
B94: =IF(datainfo!B94="","",datainfo!B94) ->  | C94: =IF(datainfo!C94="","",datainfo!C94) ->  | D94: =IF(datainfo!D94="","",datainfo!D94) -> 
B95: =IF(datainfo!B95="","",datainfo!B95) ->  | C95: =IF(datainfo!C95="","",datainfo!C95) ->  | D95: =IF(datainfo!D95="","",datainfo!D95) -> 
B96: =IF(datainfo!B96="","",datainfo!B96) ->  | C96: =IF(datainfo!C96="","",datainfo!C96) ->  | D96: =IF(datainfo!D96="","",datainfo!D96) -> 
B97: =IF(datainfo!B97="","",datainfo!B97) ->  | C97: =IF(datainfo!C97="","",datainfo!C97) ->  | D97: =IF(datainfo!D97="","",datainfo!D97) -> 
B98: =IF(datainfo!B98="","",datainfo!B98) ->  | C98: =IF(datainfo!C98="","",datainfo!C98) ->  | D98: =IF(datainfo!D98="","",datainfo!D98) -> 
B99: =IF(datainfo!B99="","",datainfo!B99) ->  | C99: =IF(datainfo!C99="","",datainfo!C99) ->  | D99: =IF(datainfo!D99="","",datainfo!D99) -> 
B100: =IF(datainfo!B100="","",datainfo!B100) ->  | C100: =IF(datainfo!C100="","",datainfo!C100) ->  | D100: =IF(datainfo!D100="","",datainfo!D100) -> 
B101: =IF(datainfo!B101="","",datainfo!B101) ->  | C101: =IF(datainfo!C101="","",datainfo!C101) ->  | D101: =IF(datainfo!D101="","",datainfo!D101) -> 
B102: =IF(datainfo!B102="","",datainfo!B102) ->  | C102: =IF(datainfo!C102="","",datainfo!C102) ->  | D102: =IF(datainfo!D102="","",datainfo!D102) -> 
B103: =IF(datainfo!B103="","",datainfo!B103) ->  | C103: =IF(datainfo!C103="","",datainfo!C103) ->  | D103: =IF(datainfo!D103="","",datainfo!D103) -> 
B104: =IF(datainfo!B104="","",datainfo!B104) ->  | C104: =IF(datainfo!C104="","",datainfo!C104) ->  | D104: =IF(datainfo!D104="","",datainfo!D104) -> 
B105: =IF(datainfo!B105="","",datainfo!B105) ->  | C105: =IF(datainfo!C105="","",datainfo!C105) ->  | D105: =IF(datainfo!D105="","",datainfo!D105) -> 
B106: =IF(datainfo!B106="","",datainfo!B106) ->  | C106: =IF(datainfo!C106="","",datainfo!C106) ->  | D106: =IF(datainfo!D106="","",datainfo!D106) -> 
B107: =IF(datainfo!B107="","",datainfo!B107) ->  | C107: =IF(datainfo!C107="","",datainfo!C107) ->  | D107: =IF(datainfo!D107="","",datainfo!D107) -> 
B108: =IF(datainfo!B108="","",datainfo!B108) ->  | C108: =IF(datainfo!C108="","",datainfo!C108) ->  | D108: =IF(datainfo!D108="","",datainfo!D108) -> 
B109: =IF(datainfo!B109="","",datainfo!B109) ->  | C109: =IF(datainfo!C109="","",datainfo!C109) ->  | D109: =IF(datainfo!D109="","",datainfo!D109) -> 
B110: =IF(datainfo!B110="","",datainfo!B110) ->  | C110: =IF(datainfo!C110="","",datainfo!C110) ->  | D110: =IF(datainfo!D110="","",datainfo!D110) -> 
B111: =IF(datainfo!B111="","",datainfo!B111) ->  | C111: =IF(datainfo!C111="","",datainfo!C111) ->  | D111: =IF(datainfo!D111="","",datainfo!D111) -> 
B112: =IF(datainfo!B112="","",datainfo!B112) ->  | C112: =IF(datainfo!C112="","",datainfo!C112) ->  | D112: =IF(datainfo!D112="","",datainfo!D112) -> 
B113: =IF(datainfo!B113="","",datainfo!B113) ->  | C113: =IF(datainfo!C113="","",datainfo!C113) ->  | D113: =IF(datainfo!D113="","",datainfo!D113) -> 
B114: =IF(datainfo!B114="","",datainfo!B114) ->  | C114: =IF(datainfo!C114="","",datainfo!C114) ->  | D114: =IF(datainfo!D114="","",datainfo!D114) -> 
B115: =IF(datainfo!B115="","",datainfo!B115) ->  | C115: =IF(datainfo!C115="","",datainfo!C115) ->  | D115: =IF(datainfo!D115="","",datainfo!D115) -> 
B116: =IF(datainfo!B116="","",datainfo!B116) ->  | C116: =IF(datainfo!C116="","",datainfo!C116) ->  | D116: =IF(datainfo!D116="","",datainfo!D116) -> 
B117: =IF(datainfo!B117="","",datainfo!B117) ->  | C117: =IF(datainfo!C117="","",datainfo!C117) ->  | D117: =IF(datainfo!D117="","",datainfo!D117) -> 
B118: =IF(datainfo!B118="","",datainfo!B118) ->  | C118: =IF(datainfo!C118="","",datainfo!C118) ->  | D118: =IF(datainfo!D118="","",datainfo!D118) -> 
B119: =IF(datainfo!B119="","",datainfo!B119) ->  | C119: =IF(datainfo!C119="","",datainfo!C119) ->  | D119: =IF(datainfo!D119="","",datainfo!D119) -> 
B120: =IF(datainfo!B120="","",datainfo!B120) ->  | C120: =IF(datainfo!C120="","",datainfo!C120) ->  | D120: =IF(datainfo!D120="","",datainfo!D120) -> 
B121: =IF(datainfo!B121="","",datainfo!B121) ->  | C121: =IF(datainfo!C121="","",datainfo!C121) ->  | D121: =IF(datainfo!D121="","",datainfo!D121) -> 
B122: =IF(datainfo!B122="","",datainfo!B122) ->  | C122: =IF(datainfo!C122="","",datainfo!C122) ->  | D122: =IF(datainfo!D122="","",datainfo!D122) -> 
B123: =IF(datainfo!B123="","",datainfo!B123) ->  | C123: =IF(datainfo!C123="","",datainfo!C123) ->  | D123: =IF(datainfo!D123="","",datainfo!D123) -> 
B124: =IF(datainfo!B124="","",datainfo!B124) ->  | C124: =IF(datainfo!C124="","",datainfo!C124) ->  | D124: =IF(datainfo!D124="","",datainfo!D124) -> 
B125: =IF(datainfo!B125="","",datainfo!B125) ->  | C125: =IF(datainfo!C125="","",datainfo!C125) ->  | D125: =IF(datainfo!D125="","",datainfo!D125) -> 
B126: =IF(datainfo!B126="","",datainfo!B126) ->  | C126: =IF(datainfo!C126="","",datainfo!C126) ->  | D126: =IF(datainfo!D126="","",datainfo!D126) -> 
B127: =IF(datainfo!B127="","",datainfo!B127) ->  | C127: =IF(datainfo!C127="","",datainfo!C127) ->  | D127: =IF(datainfo!D127="","",datainfo!D127) -> 
B128: =IF(datainfo!B128="","",datainfo!B128) ->  | C128: =IF(datainfo!C128="","",datainfo!C128) ->  | D128: =IF(datainfo!D128="","",datainfo!D128) -> 
B129: =IF(datainfo!B129="","",datainfo!B129) ->  | C129: =IF(datainfo!C129="","",datainfo!C129) ->  | D129: =IF(datainfo!D129="","",datainfo!D129) -> 
B130: =IF(datainfo!B130="","",datainfo!B130) ->  | C130: =IF(datainfo!C130="","",datainfo!C130) ->  | D130: =IF(datainfo!D130="","",datainfo!D130) -> 
B131: =IF(datainfo!B131="","",datainfo!B131) ->  | C131: =IF(datainfo!C131="","",datainfo!C131) ->  | D131: =IF(datainfo!D131="","",datainfo!D131) -> 
B132: =IF(datainfo!B132="","",datainfo!B132) ->  | C132: =IF(datainfo!C132="","",datainfo!C132) ->  | D132: =IF(datainfo!D132="","",datainfo!D132) -> 
B133: =IF(datainfo!B133="","",datainfo!B133) ->  | C133: =IF(datainfo!C133="","",datainfo!C133) ->  | D133: =IF(datainfo!D133="","",datainfo!D133) -> 
B134: =IF(datainfo!B134="","",datainfo!B134) ->  | C134: =IF(datainfo!C134="","",datainfo!C134) ->  | D134: =IF(datainfo!D134="","",datainfo!D134) -> 
B135: =IF(datainfo!B135="","",datainfo!B135) ->  | C135: =IF(datainfo!C135="","",datainfo!C135) ->  | D135: =IF(datainfo!D135="","",datainfo!D135) -> 
B136: =IF(datainfo!B136="","",datainfo!B136) ->  | C136: =IF(datainfo!C136="","",datainfo!C136) ->  | D136: =IF(datainfo!D136="","",datainfo!D136) -> 
B137: =IF(datainfo!B137="","",datainfo!B137) ->  | C137: =IF(datainfo!C137="","",datainfo!C137) ->  | D137: =IF(datainfo!D137="","",datainfo!D137) -> 
B138: =IF(datainfo!B138="","",datainfo!B138) ->  | C138: =IF(datainfo!C138="","",datainfo!C138) ->  | D138: =IF(datainfo!D138="","",datainfo!D138) -> 
B139: =IF(datainfo!B139="","",datainfo!B139) ->  | C139: =IF(datainfo!C139="","",datainfo!C139) ->  | D139: =IF(datainfo!D139="","",datainfo!D139) -> 
B140: =IF(datainfo!B140="","",datainfo!B140) ->  | C140: =IF(datainfo!C140="","",datainfo!C140) ->  | D140: =IF(datainfo!D140="","",datainfo!D140) -> 
B141: =IF(datainfo!B141="","",datainfo!B141) ->  | C141: =IF(datainfo!C141="","",datainfo!C141) ->  | D141: =IF(datainfo!D141="","",datainfo!D141) -> 
B142: =IF(datainfo!B142="","",datainfo!B142) ->  | C142: =IF(datainfo!C142="","",datainfo!C142) ->  | D142: =IF(datainfo!D142="","",datainfo!D142) -> 
B143: =IF(datainfo!B143="","",datainfo!B143) ->  | C143: =IF(datainfo!C143="","",datainfo!C143) ->  | D143: =IF(datainfo!D143="","",datainfo!D143) -> 
B144: =IF(datainfo!B144="","",datainfo!B144) ->  | C144: =IF(datainfo!C144="","",datainfo!C144) ->  | D144: =IF(datainfo!D144="","",datainfo!D144) -> 
B145: =IF(datainfo!B145="","",datainfo!B145) ->  | C145: =IF(datainfo!C145="","",datainfo!C145) ->  | D145: =IF(datainfo!D145="","",datainfo!D145) -> 
B146: =IF(datainfo!B146="","",datainfo!B146) ->  | C146: =IF(datainfo!C146="","",datainfo!C146) ->  | D146: =IF(datainfo!D146="","",datainfo!D146) -> 
B147: =IF(datainfo!B147="","",datainfo!B147) ->  | C147: =IF(datainfo!C147="","",datainfo!C147) ->  | D147: =IF(datainfo!D147="","",datainfo!D147) -> 
B148: =IF(datainfo!B148="","",datainfo!B148) ->  | C148: =IF(datainfo!C148="","",datainfo!C148) ->  | D148: =IF(datainfo!D148="","",datainfo!D148) -> 
B149: =IF(datainfo!B149="","",datainfo!B149) ->  | C149: =IF(datainfo!C149="","",datainfo!C149) ->  | D149: =IF(datainfo!D149="","",datainfo!D149) -> 
B150: =IF(datainfo!B150="","",datainfo!B150) ->  | C150: =IF(datainfo!C150="","",datainfo!C150) ->  | D150: =IF(datainfo!D150="","",datainfo!D150) -> 
B151: =IF(datainfo!B151="","",datainfo!B151) ->  | C151: =IF(datainfo!C151="","",datainfo!C151) ->  | D151: =IF(datainfo!D151="","",datainfo!D151) -> 
B152: =IF(datainfo!B152="","",datainfo!B152) ->  | C152: =IF(datainfo!C152="","",datainfo!C152) ->  | D152: =IF(datainfo!D152="","",datainfo!D152) -> 
B153: =IF(datainfo!B153="","",datainfo!B153) ->  | C153: =IF(datainfo!C153="","",datainfo!C153) ->  | D153: =IF(datainfo!D153="","",datainfo!D153) -> 
B154: =IF(datainfo!B154="","",datainfo!B154) ->  | C154: =IF(datainfo!C154="","",datainfo!C154) ->  | D154: =IF(datainfo!D154="","",datainfo!D154) -> 
B155: =IF(datainfo!B155="","",datainfo!B155) ->  | C155: =IF(datainfo!C155="","",datainfo!C155) ->  | D155: =IF(datainfo!D155="","",datainfo!D155) -> 
B156: =IF(datainfo!B156="","",datainfo!B156) ->  | C156: =IF(datainfo!C156="","",datainfo!C156) ->  | D156: =IF(datainfo!D156="","",datainfo!D156) -> 
B157: =IF(datainfo!B157="","",datainfo!B157) ->  | C157: =IF(datainfo!C157="","",datainfo!C157) ->  | D157: =IF(datainfo!D157="","",datainfo!D157) -> 
B158: =IF(datainfo!B158="","",datainfo!B158) ->  | C158: =IF(datainfo!C158="","",datainfo!C158) ->  | D158: =IF(datainfo!D158="","",datainfo!D158) -> 
B159: =IF(datainfo!B159="","",datainfo!B159) ->  | C159: =IF(datainfo!C159="","",datainfo!C159) ->  | D159: =IF(datainfo!D159="","",datainfo!D159) -> 
B160: =IF(datainfo!B160="","",datainfo!B160) ->  | C160: =IF(datainfo!C160="","",datainfo!C160) ->  | D160: =IF(datainfo!D160="","",datainfo!D160) -> 
B161: =IF(datainfo!B161="","",datainfo!B161) ->  | C161: =IF(datainfo!C161="","",datainfo!C161) ->  | D161: =IF(datainfo!D161="","",datainfo!D161) -> 
B162: =IF(datainfo!B162="","",datainfo!B162) ->  | C162: =IF(datainfo!C162="","",datainfo!C162) ->  | D162: =IF(datainfo!D162="","",datainfo!D162) -> 
B163: =IF(datainfo!B163="","",datainfo!B163) ->  | C163: =IF(datainfo!C163="","",datainfo!C163) ->  | D163: =IF(datainfo!D163="","",datainfo!D163) -> 
B164: =IF(datainfo!B164="","",datainfo!B164) ->  | C164: =IF(datainfo!C164="","",datainfo!C164) ->  | D164: =IF(datainfo!D164="","",datainfo!D164) -> 
B165: =IF(datainfo!B165="","",datainfo!B165) ->  | C165: =IF(datainfo!C165="","",datainfo!C165) ->  | D165: =IF(datainfo!D165="","",datainfo!D165) -> 
B166: =IF(datainfo!B166="","",datainfo!B166) ->  | C166: =IF(datainfo!C166="","",datainfo!C166) ->  | D166: =IF(datainfo!D166="","",datainfo!D166) -> 
B167: =IF(datainfo!B167="","",datainfo!B167) ->  | C167: =IF(datainfo!C167="","",datainfo!C167) ->  | D167: =IF(datainfo!D167="","",datainfo!D167) -> 
B168: =IF(datainfo!B168="","",datainfo!B168) ->  | C168: =IF(datainfo!C168="","",datainfo!C168) ->  | D168: =IF(datainfo!D168="","",datainfo!D168) -> 
B169: =IF(datainfo!B169="","",datainfo!B169) ->  | C169: =IF(datainfo!C169="","",datainfo!C169) ->  | D169: =IF(datainfo!D169="","",datainfo!D169) -> 
B170: =IF(datainfo!B170="","",datainfo!B170) ->  | C170: =IF(datainfo!C170="","",datainfo!C170) ->  | D170: =IF(datainfo!D170="","",datainfo!D170) -> 
B171: =IF(datainfo!B171="","",datainfo!B171) ->  | C171: =IF(datainfo!C171="","",datainfo!C171) ->  | D171: =IF(datainfo!D171="","",datainfo!D171) -> 
B172: =IF(datainfo!B172="","",datainfo!B172) ->  | C172: =IF(datainfo!C172="","",datainfo!C172) ->  | D172: =IF(datainfo!D172="","",datainfo!D172) -> 
B173: =IF(datainfo!B173="","",datainfo!B173) ->  | C173: =IF(datainfo!C173="","",datainfo!C173) ->  | D173: =IF(datainfo!D173="","",datainfo!D173) -> 
B174: =IF(datainfo!B174="","",datainfo!B174) ->  | C174: =IF(datainfo!C174="","",datainfo!C174) ->  | D174: =IF(datainfo!D174="","",datainfo!D174) -> 
B175: =IF(datainfo!B175="","",datainfo!B175) ->  | C175: =IF(datainfo!C175="","",datainfo!C175) ->  | D175: =IF(datainfo!D175="","",datainfo!D175) -> 
B176: =IF(datainfo!B176="","",datainfo!B176) ->  | C176: =IF(datainfo!C176="","",datainfo!C176) ->  | D176: =IF(datainfo!D176="","",datainfo!D176) -> 
B177: =IF(datainfo!B177="","",datainfo!B177) ->  | C177: =IF(datainfo!C177="","",datainfo!C177) ->  | D177: =IF(datainfo!D177="","",datainfo!D177) -> 
B178: =IF(datainfo!B178="","",datainfo!B178) ->  | C178: =IF(datainfo!C178="","",datainfo!C178) ->  | D178: =IF(datainfo!D178="","",datainfo!D178) -> 
B179: =IF(datainfo!B179="","",datainfo!B179) ->  | C179: =IF(datainfo!C179="","",datainfo!C179) ->  | D179: =IF(datainfo!D179="","",datainfo!D179) -> 
B180: =IF(datainfo!B180="","",datainfo!B180) ->  | C180: =IF(datainfo!C180="","",datainfo!C180) ->  | D180: =IF(datainfo!D180="","",datainfo!D180) -> 
B181: =IF(datainfo!B181="","",datainfo!B181) ->  | C181: =IF(datainfo!C181="","",datainfo!C181) ->  | D181: =IF(datainfo!D181="","",datainfo!D181) -> 
B182: =IF(datainfo!B182="","",datainfo!B182) ->  | C182: =IF(datainfo!C182="","",datainfo!C182) ->  | D182: =IF(datainfo!D182="","",datainfo!D182) -> 
B183: =IF(datainfo!B183="","",datainfo!B183) ->  | C183: =IF(datainfo!C183="","",datainfo!C183) ->  | D183: =IF(datainfo!D183="","",datainfo!D183) -> 
B184: =IF(datainfo!B184="","",datainfo!B184) ->  | C184: =IF(datainfo!C184="","",datainfo!C184) ->  | D184: =IF(datainfo!D184="","",datainfo!D184) -> 
B185: =IF(datainfo!B185="","",datainfo!B185) ->  | C185: =IF(datainfo!C185="","",datainfo!C185) ->  | D185: =IF(datainfo!D185="","",datainfo!D185) -> 
B186: =IF(datainfo!B186="","",datainfo!B186) ->  | C186: =IF(datainfo!C186="","",datainfo!C186) ->  | D186: =IF(datainfo!D186="","",datainfo!D186) -> 
B187: =IF(datainfo!B187="","",datainfo!B187) ->  | C187: =IF(datainfo!C187="","",datainfo!C187) ->  | D187: =IF(datainfo!D187="","",datainfo!D187) -> 
B188: =IF(datainfo!B188="","",datainfo!B188) ->  | C188: =IF(datainfo!C188="","",datainfo!C188) ->  | D188: =IF(datainfo!D188="","",datainfo!D188) -> 
B189: =IF(datainfo!B189="","",datainfo!B189) ->  | C189: =IF(datainfo!C189="","",datainfo!C189) ->  | D189: =IF(datainfo!D189="","",datainfo!D189) -> 
B190: =IF(datainfo!B190="","",datainfo!B190) ->  | C190: =IF(datainfo!C190="","",datainfo!C190) ->  | D190: =IF(datainfo!D190="","",datainfo!D190) -> 
B191: =IF(datainfo!B191="","",datainfo!B191) ->  | C191: =IF(datainfo!C191="","",datainfo!C191) ->  | D191: =IF(datainfo!D191="","",datainfo!D191) -> 
B192: =IF(datainfo!B192="","",datainfo!B192) ->  | C192: =IF(datainfo!C192="","",datainfo!C192) ->  | D192: =IF(datainfo!D192="","",datainfo!D192) -> 
B193: =IF(datainfo!B193="","",datainfo!B193) ->  | C193: =IF(datainfo!C193="","",datainfo!C193) ->  | D193: =IF(datainfo!D193="","",datainfo!D193) -> 
B194: =IF(datainfo!B194="","",datainfo!B194) ->  | C194: =IF(datainfo!C194="","",datainfo!C194) ->  | D194: =IF(datainfo!D194="","",datainfo!D194) -> 
B195: =IF(datainfo!B195="","",datainfo!B195) ->  | C195: =IF(datainfo!C195="","",datainfo!C195) ->  | D195: =IF(datainfo!D195="","",datainfo!D195) -> 
B196: =IF(datainfo!B196="","",datainfo!B196) ->  | C196: =IF(datainfo!C196="","",datainfo!C196) ->  | D196: =IF(datainfo!D196="","",datainfo!D196) -> 
B197: =IF(datainfo!B197="","",datainfo!B197) ->  | C197: =IF(datainfo!C197="","",datainfo!C197) ->  | D197: =IF(datainfo!D197="","",datainfo!D197) -> 
B198: =IF(datainfo!B198="","",datainfo!B198) ->  | C198: =IF(datainfo!C198="","",datainfo!C198) ->  | D198: =IF(datainfo!D198="","",datainfo!D198) -> 
B199: =IF(datainfo!B199="","",datainfo!B199) ->  | C199: =IF(datainfo!C199="","",datainfo!C199) ->  | D199: =IF(datainfo!D199="","",datainfo!D199) -> 
B200: =IF(datainfo!B200="","",datainfo!B200) ->  | C200: =IF(datainfo!C200="","",datainfo!C200) ->  | D200: =IF(datainfo!D200="","",datainfo!D200) -> 
B201: =IF(datainfo!B201="","",datainfo!B201) ->  | C201: =IF(datainfo!C201="","",datainfo!C201) ->  | D201: =IF(datainfo!D201="","",datainfo!D201) -> 
... 170 more rows

Sheet ورقة7
A2: رقم الحركة | B2: قيد التسوية | C2: التاريخ | D2: اسم الشركة | E2: رقم الحساب | F2: الموظف | G2: التاريخ | I2: رصيد البنك الظاهر في كشف الحساب | J2: رصيد البنك الظاهر في الدفاتر | L2: يضاف له : | R2: يطرح منه : | U2: يضاف أو يطرح | AA2: يضاف له : | AG2: يطرح منه : | AL2: يضاف أو يطرح | AR2: قيد التسوية
L3: ايداعات واردة | M3: حوالات في الطريق | N3: مصروفات مودعة | O3: اخرى | P3: المجموع | R3: شيكات صادرة لم تصرف بعد | S3: اخرى | T3: المجموع | U3: اخطاء وارد في كشف البنك | V3: اخرى | W3: المجموع | Y3: الرصيد المعدني 1 | AA3: تحصيل شيكات (برسم التحصيل) | AB3: فوائد دائنة | AC3: شيكات صادرة راجعة | AD3: اخرى | AE3: المجموع | AG3: عمولات وفوائد مدينة | AH3: شيكات واردة راجعة | AI3: اخرى | AJ3: المجموع | AL3: اخطاء واردة في دفاتر الشركة | AM3: اخرى | AN3: المجموع | AP3: الرصيد المعدني 2 | AR3: =Y3 -> الرصيد المعدني 1 | AS3: =AP3 -> الرصيد المعدني 2 | AT3: فرق التسويات
A4: =data!AV4 -> 1 | B4: =data!AT4 -> 10007 alem 2020 | C4: =data!AS4 -> 2019-05-14 | D4: =data!B4 -> بيضاء برج | E4: =data!C4 -> 10002 | F4: =data!D4 -> بن محمد عمران | G4: =data!E4 -> 2018-03-14 | I4: =data!G4 -> 2475 | J4: =data!H4 -> 2650 | L4: =data!J4 -> 14 | M4: =data!K4 -> 14 | N4: =data!L4 -> 14 | O4: =data!M4 -> 14 | P4: =data!N4 -> 2531 | R4: =data!P4 -> 15 | S4: =data!Q4 -> 5 | T4: =data!R4 -> 20 | U4: =data!S4 -> 22 | V4: =data!T4 -> 88 | W4: =data!U4 -> 110 | Y4: =data!W4 -> 2661 | AA4: =data!Y4 -> 14 | AB4: =data!Z4 -> 14 | AC4: =data!AA4 -> 14 | AD4: =data!AB4 -> 14 | AE4: =data!AC4 -> 2594 | AG4: =data!AE4 -> 7.5 | AH4: =data!AF4 -> 7.5 | AI4: =data!AG4 -> 5 | AJ4: =data!AH4 -> -20 | AL4: =data!AJ4 -> 22 | AM4: =data!AK4 -> 88 | AN4: =data!AL4 -> -110 | AP4: =data!AN4 -> 2464 | AR4: =data!AP4 -> 2661 | AS4: =data!AQ4 -> 197 | AT4: =data!AR4 -> 0
A5: =data!AV5 -> 2 | B5: =data!AT5 -> 10008 alem 2020 | C5: =data!AS5 -> 2019-05-14 | D5: =data!B5 -> بيضاء برج | E5: =data!C5 -> 10008 | F5: =data!D5 -> محمدي البشير | G5: =data!E5 -> 2018-03-14 | I5: =data!G5 -> 3050 | J5: =data!H5 -> 4000 | L5: =data!J5 -> 0 | M5: =data!K5 -> 0 | N5: =data!L5 -> 0 | O5: =data!M5 -> 0 | P5: =data!N5 -> 3050 | R5: =data!P5 -> 0 | S5: =data!Q5 -> 0 | T5: =data!R5 -> 0 | U5: =data!S5 -> 0 | V5: =data!T5 -> 0 | W5: =data!U5 -> 0 | Y5: =data!W5 -> 3050 | AA5: =data!Y5 -> 0 | AB5: =data!Z5 -> 0 | AC5: =data!AA5 -> 0 | AD5: =data!AB5 -> 0 | AE5: =data!AC5 -> 4000 | AG5: =data!AE5 -> 0 | AH5: =data!AF5 -> 0 | AI5: =data!AG5 -> 0 | AJ5: =data!AH5 -> 0 | AL5: =data!AJ5 -> 0 | AM5: =data!AK5 -> 0 | AN5: =data!AL5 -> 0 | AP5: =data!AN5 -> 4000 | AR5: =data!AP5 -> 3050 | AS5: =data!AQ5 -> -950 | AT5: =data!AR5 -> 0
A6: =data!AV6 -> 3 | B6: =data!AT6 -> 10005 alem 2020 | C6: =data!AS6 -> 2019-05-14 | D6: =data!B6 -> بيضاء برج | E6: =data!C6 -> 10005 | F6: =data!D6 -> اكرم وفاء | G6: =data!E6 -> 2018-03-14 | I6: =data!G6 -> 2320 | J6: =data!H6 -> 2620 | L6: =data!J6 -> 0 | M6: =data!K6 -> 0 | N6: =data!L6 -> 0 | O6: =data!M6 -> 0 | P6: =data!N6 -> 2320 | R6: =data!P6 -> 0 | S6: =data!Q6 -> 0 | T6: =data!R6 -> 0 | U6: =data!S6 -> 0 | V6: =data!T6 -> 0 | W6: =data!U6 -> 0 | Y6: =data!W6 -> 2320 | AA6: =data!Y6 -> 0 | AB6: =data!Z6 -> 0 | AC6: =data!AA6 -> 0 | AD6: =data!AB6 -> 0 | AE6: =data!AC6 -> 2620 | AG6: =data!AE6 -> 0 | AH6: =data!AF6 -> 0 | AI6: =data!AG6 -> 0 | AJ6: =data!AH6 -> 0 | AL6: =data!AJ6 -> 0 | AM6: =data!AK6 -> 0 | AN6: =data!AL6 -> 0 | AP6: =data!AN6 -> 2620 | AR6: =data!AP6 -> 2320 | AS6: =data!AQ6 -> 2620 | AT6: =data!AR6 -> 0
A7: =data!AV7 -> 4 | B7: =data!AT7 -> 10001 alem 2020 | C7: =data!AS7 -> 2019-05-14 | D7: =data!B7 -> بيضاء برج | E7: =data!C7 -> 10001 | F7: =data!D7 -> احمد المهراوي | G7: =data!E7 -> 2018-03-14 | I7: =data!G7 -> 3110 | J7: =data!H7 -> 4000 | L7: =data!J7 -> 0 | M7: =data!K7 -> 0 | N7: =data!L7 -> 0 | O7: =data!M7 -> 0 | P7: =data!N7 -> 3110 | R7: =data!P7 -> 0 | S7: =data!Q7 -> 0 | T7: =data!R7 -> 0 | U7: =data!S7 -> 0 | V7: =data!T7 -> 0 | W7: =data!U7 -> 0 | Y7: =data!W7 -> 3110 | AA7: =data!Y7 -> 0 | AB7: =data!Z7 -> 0 | AC7: =data!AA7 -> 0 | AD7: =data!AB7 -> 0 | AE7: =data!AC7 -> 4000 | AG7: =data!AE7 -> 0 | AH7: =data!AF7 -> 0 | AI7: =data!AG7 -> 0 | AJ7: =data!AH7 -> 0 | AL7: =data!AJ7 -> 0 | AM7: =data!AK7 -> 0 | AN7: =data!AL7 -> 0 | AP7: =data!AN7 -> 4000 | AR7: =data!AP7 -> 3110 | AS7: =data!AQ7 -> 4000 | AT7: =data!AR7 -> -890
A8: =data!AV8 -> 5 | B8: =data!AT8 -> 10002 alem 2020 | C8: =data!AS8 -> 2019-05-14 | D8: =data!B8 -> بيضاء برج | E8: =data!C8 -> 10002 | F8: =data!D8 -> بن محمد عمران | G8: =data!E8 -> 2018-03-14 | I8: =data!G8 -> 2475 | J8: =data!H8 -> 2650 | L8: =data!J8 -> 0 | M8: =data!K8 -> 0 | N8: =data!L8 -> 0 | O8: =data!M8 -> 0 | P8: =data!N8 -> 2475 | R8: =data!P8 -> 0 | S8: =data!Q8 -> 0 | T8: =data!R8 -> 0 | U8: =data!S8 -> 0 | V8: =data!T8 -> 0 | W8: =data!U8 -> 0 | Y8: =data!W8 -> 2475 | AA8: =data!Y8 -> 0 | AB8: =data!Z8 -> 0 | AC8: =data!AA8 -> 0 | AD8: =data!AB8 -> 0 | AE8: =data!AC8 -> 2650 | AG8: =data!AE8 -> 0 | AH8: =data!AF8 -> 0 | AI8: =data!AG8 -> 0 | AJ8: =data!AH8 -> 0 | AL8: =data!AJ8 -> 0 | AM8: =data!AK8 -> 0 | AN8: =data!AL8 -> 0 | AP8: =data!AN8 -> 2650 | AR8: =data!AP8 -> 2475 | AS8: =data!AQ8 -> 2650 | AT8: =data!AR8 -> -175
A9: =data!AV9 -> 6 | B9: =data!AT9 -> 10003 alem 2020 | C9: =data!AS9 -> 2019-05-14 | D9: =data!B9 -> بيضاء برج | E9: =data!C9 -> 10003 | F9: =data!D9 -> ليلى بوصور | G9: =data!E9 -> 2018-03-14 | I9: =data!G9 -> 2403 | J9: =data!H9 -> 1980 | L9: =data!J9 -> 0 | M9: =data!K9 -> 0 | N9: =data!L9 -> 0 | O9: =data!M9 -> 0 | P9: =data!N9 -> 2403 | R9: =data!P9 -> 0 | S9: =data!Q9 -> 0 | T9: =data!R9 -> 0 | U9: =data!S9 -> 0 | V9: =data!T9 -> 0 | W9: =data!U9 -> 0 | Y9: =data!W9 -> 2403 | AA9: =data!Y9 -> 0 | AB9: =data!Z9 -> 0 | AC9: =data!AA9 -> 0 | AD9: =data!AB9 -> 0 | AE9: =data!AC9 -> 1980 | AG9: =data!AE9 -> 0 | AH9: =data!AF9 -> 0 | AI9: =data!AG9 -> 0 | AJ9: =data!AH9 -> 0 | AL9: =data!AJ9 -> 0 | AM9: =data!AK9 -> 0 | AN9: =data!AL9 -> 0 | AP9: =data!AN9 -> 1980 | AR9: =data!AP9 -> 2403 | AS9: =data!AQ9 -> 1980 | AT9: =data!AR9 -> 423
A10: =data!AV10 -> 7 | B10: =data!AT10 -> 10005 alem 2020 | C10: =data!AS10 -> 2019-05-14 | D10: =data!B10 -> بيضاء برج | E10: =data!C10 -> 10005 | F10: =data!D10 -> اكرم وفاء | G10: =data!E10 -> 2018-03-14 | I10: =data!G10 -> 2320 | J10: =data!H10 -> 2620 | L10: =data!J10 -> 150 | M10: =data!K10 -> 10 | N10: =data!L10 -> 1500 | O10: =data!M10 -> 1 | P10: =data!N10 -> 3981 | R10: =data!P10 -> 2300 | S10: =data!Q10 -> 120 | T10: =data!R10 -> 2420 | U10: =data!S10 -> 200 | V10: =data!T10 -> 5 | W10: =data!U10 -> 205 | Y10: =data!W10 -> 6606 | AA10: =data!Y10 -> 1 | AB10: =data!Z10 -> 2 | AC10: =data!AA10 -> 1.5 | AD10: =data!AB10 -> 3 | AE10: =data!AC10 -> 2612.5 | AG10: =data!AE10 -> 150 | AH10: =data!AF10 -> 150 | AI10: =data!AG10 -> 0.5 | AJ10: =data!AH10 -> -300.5 | AL10: =data!AJ10 -> 150 | AM10: =data!AK10 -> 5 | AN10: =data!AL10 -> -155 | AP10: =data!AN10 -> 2157 | AR10: =data!AP10 -> 6606 | AS10: =data!AQ10 -> 2157 | AT10: =data!AR10 -> 4449
A11: =data!AV11 -> 8 | B11: =data!AT11 -> 10008 alem 2020 | C11: =data!AS11 -> 2019-05-14 | D11: =data!B11 -> شركة الامل - بجاية | E11: =data!C11 -> 10008 | F11: =data!D11 -> محمدي البشير | G11: =data!E11 -> 2018-03-14 | I11: =data!G11 -> 3080 | J11: =data!H11 -> 4030 | L11: =data!J11 -> 300 | M11: =data!K11 -> 0 | N11: =data!L11 -> 0 | O11: =data!M11 -> 0 | P11: =data!N11 -> 3380 | R11: =data!P11 -> 0 | S11: =data!Q11 -> 0 | T11: =data!R11 -> 0 | U11: =data!S11 -> 0 | V11: =data!T11 -> 0 | W11: =data!U11 -> 0 | Y11: =data!W11 -> 3380 | AA11: =data!Y11 -> 0 | AB11: =data!Z11 -> 0 | AC11: =data!AA11 -> 0 | AD11: =data!AB11 -> 0 | AE11: =data!AC11 -> 4030 | AG11: =data!AE11 -> 0 | AH11: =data!AF11 -> 0 | AI11: =data!AG11 -> 0 | AJ11: =data!AH11 -> 0 | AL11: =data!AJ11 -> 0 | AM11: =data!AK11 -> 0 | AN11: =data!AL11 -> 0 | AP11: =data!AN11 -> 4030 | AR11: =data!AP11 -> 3380 | AS11: =data!AQ11 -> 4030 | AT11: =data!AR11 -> -650
A12: =data!AV12 -> 9 | B12: =data!AT12 -> 10008 alem 2020 | C12: =data!AS12 -> 2019-05-14 | D12: =data!B12 -> شركة الامل - بجاية | E12: =data!C12 -> 10008 | F12: =data!D12 -> محمدي البشير | G12: =data!E12 -> 2018-03-14 | I12: =data!G12 -> 3080 | J12: =data!H12 -> 4030 | L12: =data!J12 -> 1000 | M12: =data!K12 -> 100 | N12: =data!L12 -> 100 | O12: =data!M12 -> 500 | P12: =data!N12 -> 4780 | R12: =data!P12 -> 0 | S12: =data!Q12 -> 1000 | T12: =data!R12 -> 1000 | U12: =data!S12 -> -500 | V12: =data!T12 -> 2000 | W12: =data!U12 -> 1500 | Y12: =data!W12 -> 7280 | AA12: =data!Y12 -> 0 | AB12: =data!Z12 -> 0 | AC12: =data!AA12 -> 0 | AD12: =data!AB12 -> 0 | AE12: =data!AC12 -> 4030 | AG12: =data!AE12 -> 0 | AH12: =data!AF12 -> 0 | AI12: =data!AG12 -> 0 | AJ12: =data!AH12 -> 0 | AL12: =data!AJ12 -> 0 | AM12: =data!AK12 -> 0 | AN12: =data!AL12 -> 0 | AP12: =data!AN12 -> 4030 | AR12: =data!AP12 -> 7280 | AS12: =data!AQ12 -> 4030 | AT12: =data!AR12 -> 3250
A13: =data!AV13 -> 10 | B13: =data!AT13 -> 10001 alem 2020 | C13: =data!AS13 -> 2019-05-14 | D13: =data!B13 -> شركة الامل - بجاية | E13: =data!C13 -> 10001 | F13: =data!D13 -> احمد المهراوي | G13: =data!E13 -> 2020-03-25T22:31:55.260 | I13: =data!G13 -> 3200 | J13: =data!H13 -> 4090 | L13: =data!J13 -> 0 | M13: =data!K13 -> 0 | N13: =data!L13 -> 0 | O13: =data!M13 -> 0 | P13: =data!N13 -> 3200 | R13: =data!P13 -> 0 | S13: =data!Q13 -> 0 | T13: =data!R13 -> 0 | U13: =data!S13 -> -110 | V13: =data!T13 -> 0 | W13: =data!U13 -> -110 | Y13: =data!W13 -> 3090 | AA13: =data!Y13 -> 0 | AB13: =data!Z13 -> 0 | AC13: =data!AA13 -> 0 | AD13: =data!AB13 -> 0 | AE13: =data!AC13 -> 4090 | AG13: =data!AE13 -> 0 | AH13: =data!AF13 -> 0 | AI13: =data!AG13 -> 0 | AJ13: =data!AH13 -> 0 | AL13: =data!AJ13 -> 1000 | AM13: =data!AK13 -> 0 | AN13: =data!AL13 -> -1000 | AP13: =data!AN13 -> 3090 | AR13: =data!AP13 -> 3090 | AS13: =data!AQ13 -> 3090 | AT13: =data!AR13 -> 0
A14: =data!AV14 ->  | B14: =data!AT14 -> 0 | C14: =data!AS14 -> 00:00:00 | D14: =data!B14 -> 0 | E14: =data!C14 -> 0 | F14: =data!D14 -> 0 | G14: =data!E14 -> 00:00:00 | I14: =data!G14 -> 0 | J14: =data!H14 -> 0 | L14: =data!J14 -> 0 | M14: =data!K14 -> 0 | N14: =data!L14 -> 0 | O14: =data!M14 -> 0 | P14: =data!N14 -> 0 | R14: =data!P14 -> 0 | S14: =data!Q14 -> 0 | T14: =data!R14 -> 0 | U14: =data!S14 -> 0 | V14: =data!T14 -> 0 | W14: =data!U14 -> 0 | Y14: =data!W14 -> 0 | AA14: =data!Y14 -> 0 | AB14: =data!Z14 -> 0 | AC14: =data!AA14 -> 0 | AD14: =data!AB14 -> 0 | AE14: =data!AC14 -> 0 | AG14: =data!AE14 -> 0 | AH14: =data!AF14 -> 0 | AI14: =data!AG14 -> 0 | AJ14: =data!AH14 -> 0 | AL14: =data!AJ14 -> 0 | AM14: =data!AK14 -> 0 | AN14: =data!AL14 -> 0 | AP14: =data!AN14 -> 0 | AR14: =data!AP14 -> 0 | AS14: =data!AQ14 -> 0 | AT14: =data!AR14 -> 0
A15: =data!AV15 ->  | B15: =data!AT15 -> 0 | C15: =data!AS15 -> 00:00:00 | D15: =data!B15 -> 0 | E15: =data!C15 -> 0 | F15: =data!D15 -> 0 | G15: =data!E15 -> 00:00:00 | I15: =data!G15 -> 0 | J15: =data!H15 -> 0 | L15: =data!J15 -> 0 | M15: =data!K15 -> 0 | N15: =data!L15 -> 0 | O15: =data!M15 -> 0 | P15: =data!N15 -> 0 | R15: =data!P15 -> 0 | S15: =data!Q15 -> 0 | T15: =data!R15 -> 0 | U15: =data!S15 -> 0 | V15: =data!T15 -> 0 | W15: =data!U15 -> 0 | Y15: =data!W15 -> 0 | AA15: =data!Y15 -> 0 | AB15: =data!Z15 -> 0 | AC15: =data!AA15 -> 0 | AD15: =data!AB15 -> 0 | AE15: =data!AC15 -> 0 | AG15: =data!AE15 -> 0 | AH15: =data!AF15 -> 0 | AI15: =data!AG15 -> 0 | AJ15: =data!AH15 -> 0 | AL15: =data!AJ15 -> 0 | AM15: =data!AK15 -> 0 | AN15: =data!AL15 -> 0 | AP15: =data!AN15 -> 0 | AR15: =data!AP15 -> 0 | AS15: =data!AQ15 -> 0 | AT15: =data!AR15 -> 0
A16: =data!AV16 ->  | B16: =data!AT16 -> 0 | C16: =data!AS16 -> 00:00:00 | D16: =data!B16 -> 0 | E16: =data!C16 -> 0 | F16: =data!D16 -> 0 | G16: =data!E16 -> 00:00:00 | I16: =data!G16 -> 0 | J16: =data!H16 -> 0 | L16: =data!J16 -> 0 | M16: =data!K16 -> 0 | N16: =data!L16 -> 0 | O16: =data!M16 -> 0 | P16: =data!N16 -> 0 | R16: =data!P16 -> 0 | S16: =data!Q16 -> 0 | T16: =data!R16 -> 0 | U16: =data!S16 -> 0 | V16: =data!T16 -> 0 | W16: =data!U16 -> 0 | Y16: =data!W16 -> 0 | AA16: =data!Y16 -> 0 | AB16: =data!Z16 -> 0 | AC16: =data!AA16 -> 0 | AD16: =data!AB16 -> 0 | AE16: =data!AC16 -> 0 | AG16: =data!AE16 -> 0 | AH16: =data!AF16 -> 0 | AI16: =data!AG16 -> 0 | AJ16: =data!AH16 -> 0 | AL16: =data!AJ16 -> 0 | AM16: =data!AK16 -> 0 | AN16: =data!AL16 -> 0 | AP16: =data!AN16 -> 0 | AR16: =data!AP16 -> 0 | AS16: =data!AQ16 -> 0 | AT16: =data!AR16 -> 0
A17: =data!AV17 ->  | B17: =data!AT17 -> 0 | C17: =data!AS17 -> 00:00:00 | D17: =data!B17 -> 0 | E17: =data!C17 -> 0 | F17: =data!D17 -> 0 | G17: =data!E17 -> 00:00:00 | I17: =data!G17 -> 0 | J17: =data!H17 -> 0 | L17: =data!J17 -> 0 | M17: =data!K17 -> 0 | N17: =data!L17 -> 0 | O17: =data!M17 -> 0 | P17: =data!N17 -> 0 | R17: =data!P17 -> 0 | S17: =data!Q17 -> 0 | T17: =data!R17 -> 0 | U17: =data!S17 -> 0 | V17: =data!T17 -> 0 | W17: =data!U17 -> 0 | Y17: =data!W17 -> 0 | AA17: =data!Y17 -> 0 | AB17: =data!Z17 -> 0 | AC17: =data!AA17 -> 0 | AD17: =data!AB17 -> 0 | AE17: =data!AC17 -> 0 | AG17: =data!AE17 -> 0 | AH17: =data!AF17 -> 0 | AI17: =data!AG17 -> 0 | AJ17: =data!AH17 -> 0 | AL17: =data!AJ17 -> 0 | AM17: =data!AK17 -> 0 | AN17: =data!AL17 -> 0 | AP17: =data!AN17 -> 0 | AR17: =data!AP17 -> 0 | AS17: =data!AQ17 -> 0 | AT17: =data!AR17 -> 0
A18: =data!AV18 ->  | B18: =data!AT18 -> 0 | C18: =data!AS18 -> 00:00:00 | D18: =data!B18 -> 0 | E18: =data!C18 -> 0 | F18: =data!D18 -> 0 | G18: =data!E18 -> 00:00:00 | I18: =data!G18 -> 0 | J18: =data!H18 -> 0 | L18: =data!J18 -> 0 | M18: =data!K18 -> 0 | N18: =data!L18 -> 0 | O18: =data!M18 -> 0 | P18: =data!N18 -> 0 | R18: =data!P18 -> 0 | S18: =data!Q18 -> 0 | T18: =data!R18 -> 0 | U18: =data!S18 -> 0 | V18: =data!T18 -> 0 | W18: =data!U18 -> 0 | Y18: =data!W18 -> 0 | AA18: =data!Y18 -> 0 | AB18: =data!Z18 -> 0 | AC18: =data!AA18 -> 0 | AD18: =data!AB18 -> 0 | AE18: =data!AC18 -> 0 | AG18: =data!AE18 -> 0 | AH18: =data!AF18 -> 0 | AI18: =data!AG18 -> 0 | AJ18: =data!AH18 -> 0 | AL18: =data!AJ18 -> 0 | AM18: =data!AK18 -> 0 | AN18: =data!AL18 -> 0 | AP18: =data!AN18 -> 0 | AR18: =data!AP18 -> 0 | AS18: =data!AQ18 -> 0 | AT18: =data!AR18 -> 0
A19: =data!AV19 ->  | B19: =data!AT19 -> 0 | C19: =data!AS19 -> 00:00:00 | D19: =data!B19 -> 0 | E19: =data!C19 -> 0 | F19: =data!D19 -> 0 | G19: =data!E19 -> 00:00:00 | I19: =data!G19 -> 0 | J19: =data!H19 -> 0 | L19: =data!J19 -> 0 | M19: =data!K19 -> 0 | N19: =data!L19 -> 0 | O19: =data!M19 -> 0 | P19: =data!N19 -> 0 | R19: =data!P19 -> 0 | S19: =data!Q19 -> 0 | T19: =data!R19 -> 0 | U19: =data!S19 -> 0 | V19: =data!T19 -> 0 | W19: =data!U19 -> 0 | Y19: =data!W19 -> 0 | AA19: =data!Y19 -> 0 | AB19: =data!Z19 -> 0 | AC19: =data!AA19 -> 0 | AD19: =data!AB19 -> 0 | AE19: =data!AC19 -> 0 | AG19: =data!AE19 -> 0 | AH19: =data!AF19 -> 0 | AI19: =data!AG19 -> 0 | AJ19: =data!AH19 -> 0 | AL19: =data!AJ19 -> 0 | AM19: =data!AK19 -> 0 | AN19: =data!AL19 -> 0 | AP19: =data!AN19 -> 0 | AR19: =data!AP19 -> 0 | AS19: =data!AQ19 -> 0 | AT19: =data!AR19 -> 0
A20: =data!AV20 ->  | B20: =data!AT20 -> 0 | C20: =data!AS20 -> 00:00:00 | D20: =data!B20 -> 0 | E20: =data!C20 -> 0 | F20: =data!D20 -> 0 | G20: =data!E20 -> 00:00:00 | I20: =data!G20 -> 0 | J20: =data!H20 -> 0 | L20: =data!J20 -> 0 | M20: =data!K20 -> 0 | N20: =data!L20 -> 0 | O20: =data!M20 -> 0 | P20: =data!N20 -> 0 | R20: =data!P20 -> 0 | S20: =data!Q20 -> 0 | T20: =data!R20 -> 0 | U20: =data!S20 -> 0 | V20: =data!T20 -> 0 | W20: =data!U20 -> 0 | Y20: =data!W20 -> 0 | AA20: =data!Y20 -> 0 | AB20: =data!Z20 -> 0 | AC20: =data!AA20 -> 0 | AD20: =data!AB20 -> 0 | AE20: =data!AC20 -> 0 | AG20: =data!AE20 -> 0 | AH20: =data!AF20 -> 0 | AI20: =data!AG20 -> 0 | AJ20: =data!AH20 -> 0 | AL20: =data!AJ20 -> 0 | AM20: =data!AK20 -> 0 | AN20: =data!AL20 -> 0 | AP20: =data!AN20 -> 0 | AR20: =data!AP20 -> 0 | AS20: =data!AQ20 -> 0 | AT20: =data!AR20 -> 0
A21: =data!AV21 ->  | B21: =data!AT21 -> 0 | C21: =data!AS21 -> 00:00:00 | D21: =data!B21 -> 0 | E21: =data!C21 -> 0 | F21: =data!D21 -> 0 | G21: =data!E21 -> 00:00:00 | I21: =data!G21 -> 0 | J21: =data!H21 -> 0 | L21: =data!J21 -> 0 | M21: =data!K21 -> 0 | N21: =data!L21 -> 0 | O21: =data!M21 -> 0 | P21: =data!N21 -> 0 | R21: =data!P21 -> 0 | S21: =data!Q21 -> 0 | T21: =data!R21 -> 0 | U21: =data!S21 -> 0 | V21: =data!T21 -> 0 | W21: =data!U21 -> 0 | Y21: =data!W21 -> 0 | AA21: =data!Y21 -> 0 | AB21: =data!Z21 -> 0 | AC21: =data!AA21 -> 0 | AD21: =data!AB21 -> 0 | AE21: =data!AC21 -> 0 | AG21: =data!AE21 -> 0 | AH21: =data!AF21 -> 0 | AI21: =data!AG21 -> 0 | AJ21: =data!AH21 -> 0 | AL21: =data!AJ21 -> 0 | AM21: =data!AK21 -> 0 | AN21: =data!AL21 -> 0 | AP21: =data!AN21 -> 0 | AR21: =data!AP21 -> 0 | AS21: =data!AQ21 -> 0 | AT21: =data!AR21 -> 0
A22: =data!AV22 ->  | B22: =data!AT22 -> 0 | C22: =data!AS22 -> 00:00:00 | D22: =data!B22 -> 0 | E22: =data!C22 -> 0 | F22: =data!D22 -> 0 | G22: =data!E22 -> 00:00:00 | I22: =data!G22 -> 0 | J22: =data!H22 -> 0 | L22: =data!J22 -> 0 | M22: =data!K22 -> 0 | N22: =data!L22 -> 0 | O22: =data!M22 -> 0 | P22: =data!N22 -> 0 | R22: =data!P22 -> 0 | S22: =data!Q22 -> 0 | T22: =data!R22 -> 0 | U22: =data!S22 -> 0 | V22: =data!T22 -> 0 | W22: =data!U22 -> 0 | Y22: =data!W22 -> 0 | AA22: =data!Y22 -> 0 | AB22: =data!Z22 -> 0 | AC22: =data!AA22 -> 0 | AD22: =data!AB22 -> 0 | AE22: =data!AC22 -> 0 | AG22: =data!AE22 -> 0 | AH22: =data!AF22 -> 0 | AI22: =data!AG22 -> 0 | AJ22: =data!AH22 -> 0 | AL22: =data!AJ22 -> 0 | AM22: =data!AK22 -> 0 | AN22: =data!AL22 -> 0 | AP22: =data!AN22 -> 0 | AR22: =data!AP22 -> 0 | AS22: =data!AQ22 -> 0 | AT22: =data!AR22 -> 0
A23: =data!AV23 ->  | B23: =data!AT23 -> 0 | C23: =data!AS23 -> 00:00:00 | D23: =data!B23 -> 0 | E23: =data!C23 -> 0 | F23: =data!D23 -> 0 | G23: =data!E23 -> 00:00:00 | I23: =data!G23 -> 0 | J23: =data!H23 -> 0 | L23: =data!J23 -> 0 | M23: =data!K23 -> 0 | N23: =data!L23 -> 0 | O23: =data!M23 -> 0 | P23: =data!N23 -> 0 | R23: =data!P23 -> 0 | S23: =data!Q23 -> 0 | T23: =data!R23 -> 0 | U23: =data!S23 -> 0 | V23: =data!T23 -> 0 | W23: =data!U23 -> 0 | Y23: =data!W23 -> 0 | AA23: =data!Y23 -> 0 | AB23: =data!Z23 -> 0 | AC23: =data!AA23 -> 0 | AD23: =data!AB23 -> 0 | AE23: =data!AC23 -> 0 | AG23: =data!AE23 -> 0 | AH23: =data!AF23 -> 0 | AI23: =data!AG23 -> 0 | AJ23: =data!AH23 -> 0 | AL23: =data!AJ23 -> 0 | AM23: =data!AK23 -> 0 | AN23: =data!AL23 -> 0 | AP23: =data!AN23 -> 0 | AR23: =data!AP23 -> 0 | AS23: =data!AQ23 -> 0 | AT23: =data!AR23 -> 0
A24: =data!AV24 ->  | B24: =data!AT24 -> 0 | C24: =data!AS24 -> 00:00:00 | D24: =data!B24 -> 0 | E24: =data!C24 -> 0 | F24: =data!D24 -> 0 | G24: =data!E24 -> 00:00:00 | I24: =data!G24 -> 0 | J24: =data!H24 -> 0 | L24: =data!J24 -> 0 | M24: =data!K24 -> 0 | N24: =data!L24 -> 0 | O24: =data!M24 -> 0 | P24: =data!N24 -> 0 | R24: =data!P24 -> 0 | S24: =data!Q24 -> 0 | T24: =data!R24 -> 0 | U24: =data!S24 -> 0 | V24: =data!T24 -> 0 | W24: =data!U24 -> 0 | Y24: =data!W24 -> 0 | AA24: =data!Y24 -> 0 | AB24: =data!Z24 -> 0 | AC24: =data!AA24 -> 0 | AD24: =data!AB24 -> 0 | AE24: =data!AC24 -> 0 | AG24: =data!AE24 -> 0 | AH24: =data!AF24 -> 0 | AI24: =data!AG24 -> 0 | AJ24: =data!AH24 -> 0 | AL24: =data!AJ24 -> 0 | AM24: =data!AK24 -> 0 | AN24: =data!AL24 -> 0 | AP24: =data!AN24 -> 0 | AR24: =data!AP24 -> 0 | AS24: =data!AQ24 -> 0 | AT24: =data!AR24 -> 0
A25: =data!AV25 ->  | B25: =data!AT25 -> 0 | C25: =data!AS25 -> 00:00:00 | D25: =data!B25 -> 0 | E25: =data!C25 -> 0 | F25: =data!D25 -> 0 | G25: =data!E25 -> 00:00:00 | I25: =data!G25 -> 0 | J25: =data!H25 -> 0 | L25: =data!J25 -> 0 | M25: =data!K25 -> 0 | N25: =data!L25 -> 0 | O25: =data!M25 -> 0 | P25: =data!N25 -> 0 | R25: =data!P25 -> 0 | S25: =data!Q25 -> 0 | T25: =data!R25 -> 0 | U25: =data!S25 -> 0 | V25: =data!T25 -> 0 | W25: =data!U25 -> 0 | Y25: =data!W25 -> 0 | AA25: =data!Y25 -> 0 | AB25: =data!Z25 -> 0 | AC25: =data!AA25 -> 0 | AD25: =data!AB25 -> 0 | AE25: =data!AC25 -> 0 | AG25: =data!AE25 -> 0 | AH25: =data!AF25 -> 0 | AI25: =data!AG25 -> 0 | AJ25: =data!AH25 -> 0 | AL25: =data!AJ25 -> 0 | AM25: =data!AK25 -> 0 | AN25: =data!AL25 -> 0 | AP25: =data!AN25 -> 0 | AR25: =data!AP25 -> 0 | AS25: =data!AQ25 -> 0 | AT25: =data!AR25 -> 0
A26: =data!AV26 ->  | B26: =data!AT26 -> 0 | C26: =data!AS26 -> 00:00:00 | D26: =data!B26 -> 0 | E26: =data!C26 -> 0 | F26: =data!D26 -> 0 | G26: =data!E26 -> 00:00:00 | I26: =data!G26 -> 0 | J26: =data!H26 -> 0 | L26: =data!J26 -> 0 | M26: =data!K26 -> 0 | N26: =data!L26 -> 0 | O26: =data!M26 -> 0 | P26: =data!N26 -> 0 | R26: =data!P26 -> 0 | S26: =data!Q26 -> 0 | T26: =data!R26 -> 0 | U26: =data!S26 -> 0 | V26: =data!T26 -> 0 | W26: =data!U26 -> 0 | Y26: =data!W26 -> 0 | AA26: =data!Y26 -> 0 | AB26: =data!Z26 -> 0 | AC26: =data!AA26 -> 0 | AD26: =data!AB26 -> 0 | AE26: =data!AC26 -> 0 | AG26: =data!AE26 -> 0 | AH26: =data!AF26 -> 0 | AI26: =data!AG26 -> 0 | AJ26: =data!AH26 -> 0 | AL26: =data!AJ26 -> 0 | AM26: =data!AK26 -> 0 | AN26: =data!AL26 -> 0 | AP26: =data!AN26 -> 0 | AR26: =data!AP26 -> 0 | AS26: =data!AQ26 -> 0 | AT26: =data!AR26 -> 0
A27: =data!AV27 ->  | B27: =data!AT27 -> 0 | C27: =data!AS27 -> 00:00:00 | D27: =data!B27 -> 0 | E27: =data!C27 -> 0 | F27: =data!D27 -> 0 | G27: =data!E27 -> 00:00:00 | I27: =data!G27 -> 0 | J27: =data!H27 -> 0 | L27: =data!J27 -> 0 | M27: =data!K27 -> 0 | N27: =data!L27 -> 0 | O27: =data!M27 -> 0 | P27: =data!N27 -> 0 | R27: =data!P27 -> 0 | S27: =data!Q27 -> 0 | T27: =data!R27 -> 0 | U27: =data!S27 -> 0 | V27: =data!T27 -> 0 | W27: =data!U27 -> 0 | Y27: =data!W27 -> 0 | AA27: =data!Y27 -> 0 | AB27: =data!Z27 -> 0 | AC27: =data!AA27 -> 0 | AD27: =data!AB27 -> 0 | AE27: =data!AC27 -> 0 | AG27: =data!AE27 -> 0 | AH27: =data!AF27 -> 0 | AI27: =data!AG27 -> 0 | AJ27: =data!AH27 -> 0 | AL27: =data!AJ27 -> 0 | AM27: =data!AK27 -> 0 | AN27: =data!AL27 -> 0 | AP27: =data!AN27 -> 0 | AR27: =data!AP27 -> 0 | AS27: =data!AQ27 -> 0 | AT27: =data!AR27 -> 0
A28: =data!AV28 -> 0 | B28: =data!AT28 -> 0 | C28: =data!AS28 -> 00:00:00 | D28: =data!B28 -> 0 | E28: =data!C28 -> 0 | F28: =data!D28 -> 0 | G28: =data!E28 -> 00:00:00 | I28: =data!G28 -> 0 | J28: =data!H28 -> 0 | L28: =data!J28 -> 0 | M28: =data!K28 -> 0 | N28: =data!L28 -> 0 | O28: =data!M28 -> 0 | P28: =data!N28 -> 0 | R28: =data!P28 -> 0 | S28: =data!Q28 -> 0 | T28: =data!R28 -> 0 | U28: =data!S28 -> 0 | V28: =data!T28 -> 0 | W28: =data!U28 -> 0 | Y28: =data!W28 -> 0 | AA28: =data!Y28 -> 0 | AB28: =data!Z28 -> 0 | AC28: =data!AA28 -> 0 | AD28: =data!AB28 -> 0 | AE28: =data!AC28 -> 0 | AG28: =data!AE28 -> 0 | AH28: =data!AF28 -> 0 | AI28: =data!AG28 -> 0 | AJ28: =data!AH28 -> 0 | AL28: =data!AJ28 -> 0 | AM28: =data!AK28 -> 0 | AN28: =data!AL28 -> 0 | AP28: =data!AN28 -> 0 | AR28: =data!AP28 -> 0 | AS28: =data!AQ28 -> 0 | AT28: =data!AR28 -> 0
A29: =data!AV29 -> 0 | B29: =data!AT29 -> 0 | C29: =data!AS29 -> 00:00:00 | D29: =data!B29 -> 0 | E29: =data!C29 -> 0 | F29: =data!D29 -> 0 | G29: =data!E29 -> 00:00:00 | I29: =data!G29 -> 0 | J29: =data!H29 -> 0 | L29: =data!J29 -> 0 | M29: =data!K29 -> 0 | N29: =data!L29 -> 0 | O29: =data!M29 -> 0 | P29: =data!N29 -> 0 | R29: =data!P29 -> 0 | S29: =data!Q29 -> 0 | T29: =data!R29 -> 0 | U29: =data!S29 -> 0 | V29: =data!T29 -> 0 | W29: =data!U29 -> 0 | Y29: =data!W29 -> 0 | AA29: =data!Y29 -> 0 | AB29: =data!Z29 -> 0 | AC29: =data!AA29 -> 0 | AD29: =data!AB29 -> 0 | AE29: =data!AC29 -> 0 | AG29: =data!AE29 -> 0 | AH29: =data!AF29 -> 0 | AI29: =data!AG29 -> 0 | AJ29: =data!AH29 -> 0 | AL29: =data!AJ29 -> 0 | AM29: =data!AK29 -> 0 | AN29: =data!AL29 -> 0 | AP29: =data!AN29 -> 0 | AR29: =data!AP29 -> 0 | AS29: =data!AQ29 -> 0 | AT29: =data!AR29 -> 0
A30: =data!AV30 -> 0 | B30: =data!AT30 -> 0 | C30: =data!AS30 -> 00:00:00 | D30: =data!B30 -> 0 | E30: =data!C30 -> 0 | F30: =data!D30 -> 0 | G30: =data!E30 -> 00:00:00 | I30: =data!G30 -> 0 | J30: =data!H30 -> 0 | L30: =data!J30 -> 0 | M30: =data!K30 -> 0 | N30: =data!L30 -> 0 | O30: =data!M30 -> 0 | P30: =data!N30 -> 0 | R30: =data!P30 -> 0 | S30: =data!Q30 -> 0 | T30: =data!R30 -> 0 | U30: =data!S30 -> 0 | V30: =data!T30 -> 0 | W30: =data!U30 -> 0 | Y30: =data!W30 -> 0 | AA30: =data!Y30 -> 0 | AB30: =data!Z30 -> 0 | AC30: =data!AA30 -> 0 | AD30: =data!AB30 -> 0 | AE30: =data!AC30 -> 0 | AG30: =data!AE30 -> 0 | AH30: =data!AF30 -> 0 | AI30: =data!AG30 -> 0 | AJ30: =data!AH30 -> 0 | AL30: =data!AJ30 -> 0 | AM30: =data!AK30 -> 0 | AN30: =data!AL30 -> 0 | AP30: =data!AN30 -> 0 | AR30: =data!AP30 -> 0 | AS30: =data!AQ30 -> 0 | AT30: =data!AR30 -> 0
A31: =data!AV31 -> 0 | B31: =data!AT31 -> 0 | C31: =data!AS31 -> 00:00:00 | D31: =data!B31 -> 0 | E31: =data!C31 -> 0 | F31: =data!D31 -> 0 | G31: =data!E31 -> 00:00:00 | I31: =data!G31 -> 0 | J31: =data!H31 -> 0 | L31: =data!J31 -> 0 | M31: =data!K31 -> 0 | N31: =data!L31 -> 0 | O31: =data!M31 -> 0 | P31: =data!N31 -> 0 | R31: =data!P31 -> 0 | S31: =data!Q31 -> 0 | T31: =data!R31 -> 0 | U31: =data!S31 -> 0 | V31: =data!T31 -> 0 | W31: =data!U31 -> 0 | Y31: =data!W31 -> 0 | AA31: =data!Y31 -> 0 | AB31: =data!Z31 -> 0 | AC31: =data!AA31 -> 0 | AD31: =data!AB31 -> 0 | AE31: =data!AC31 -> 0 | AG31: =data!AE31 -> 0 | AH31: =data!AF31 -> 0 | AI31: =data!AG31 -> 0 | AJ31: =data!AH31 -> 0 | AL31: =data!AJ31 -> 0 | AM31: =data!AK31 -> 0 | AN31: =data!AL31 -> 0 | AP31: =data!AN31 -> 0 | AR31: =data!AP31 -> 0 | AS31: =data!AQ31 -> 0 | AT31: =data!AR31 -> 0
A32: =data!AV32 -> 0 | B32: =data!AT32 -> 0 | C32: =data!AS32 -> 00:00:00 | D32: =data!B32 -> 0 | E32: =data!C32 -> 0 | F32: =data!D32 -> 0 | G32: =data!E32 -> 00:00:00 | I32: =data!G32 -> 0 | J32: =data!H32 -> 0 | L32: =data!J32 -> 0 | M32: =data!K32 -> 0 | N32: =data!L32 -> 0 | O32: =data!M32 -> 0 | P32: =data!N32 -> 0 | R32: =data!P32 -> 0 | S32: =data!Q32 -> 0 | T32: =data!R32 -> 0 | U32: =data!S32 -> 0 | V32: =data!T32 -> 0 | W32: =data!U32 -> 0 | Y32: =data!W32 -> 0 | AA32: =data!Y32 -> 0 | AB32: =data!Z32 -> 0 | AC32: =data!AA32 -> 0 | AD32: =data!AB32 -> 0 | AE32: =data!AC32 -> 0 | AG32: =data!AE32 -> 0 | AH32: =data!AF32 -> 0 | AI32: =data!AG32 -> 0 | AJ32: =data!AH32 -> 0 | AL32: =data!AJ32 -> 0 | AM32: =data!AK32 -> 0 | AN32: =data!AL32 -> 0 | AP32: =data!AN32 -> 0 | AR32: =data!AP32 -> 0 | AS32: =data!AQ32 -> 0 | AT32: =data!AR32 -> 0
A33: =data!AV33 -> 0 | B33: =data!AT33 -> 0 | C33: =data!AS33 -> 00:00:00 | D33: =data!B33 -> 0 | E33: =data!C33 -> 0 | F33: =data!D33 -> 0 | G33: =data!E33 -> 00:00:00 | I33: =data!G33 -> 0 | J33: =data!H33 -> 0 | L33: =data!J33 -> 0 | M33: =data!K33 -> 0 | N33: =data!L33 -> 0 | O33: =data!M33 -> 0 | P33: =data!N33 -> 0 | R33: =data!P33 -> 0 | S33: =data!Q33 -> 0 | T33: =data!R33 -> 0 | U33: =data!S33 -> 0 | V33: =data!T33 -> 0 | W33: =data!U33 -> 0 | Y33: =data!W33 -> 0 | AA33: =data!Y33 -> 0 | AB33: =data!Z33 -> 0 | AC33: =data!AA33 -> 0 | AD33: =data!AB33 -> 0 | AE33: =data!AC33 -> 0 | AG33: =data!AE33 -> 0 | AH33: =data!AF33 -> 0 | AI33: =data!AG33 -> 0 | AJ33: =data!AH33 -> 0 | AL33: =data!AJ33 -> 0 | AM33: =data!AK33 -> 0 | AN33: =data!AL33 -> 0 | AP33: =data!AN33 -> 0 | AR33: =data!AP33 -> 0 | AS33: =data!AQ33 -> 0 | AT33: =data!AR33 -> 0
A34: =data!AV34 -> 0 | B34: =data!AT34 -> 0 | C34: =data!AS34 -> 00:00:00 | D34: =data!B34 -> 0 | E34: =data!C34 -> 0 | F34: =data!D34 -> 0 | G34: =data!E34 -> 00:00:00 | I34: =data!G34 -> 0 | J34: =data!H34 -> 0 | L34: =data!J34 -> 0 | M34: =data!K34 -> 0 | N34: =data!L34 -> 0 | O34: =data!M34 -> 0 | P34: =data!N34 -> 0 | R34: =data!P34 -> 0 | S34: =data!Q34 -> 0 | T34: =data!R34 -> 0 | U34: =data!S34 -> 0 | V34: =data!T34 -> 0 | W34: =data!U34 -> 0 | Y34: =data!W34 -> 0 | AA34: =data!Y34 -> 0 | AB34: =data!Z34 -> 0 | AC34: =data!AA34 -> 0 | AD34: =data!AB34 -> 0 | AE34: =data!AC34 -> 0 | AG34: =data!AE34 -> 0 | AH34: =data!AF34 -> 0 | AI34: =data!AG34 -> 0 | AJ34: =data!AH34 -> 0 | AL34: =data!AJ34 -> 0 | AM34: =data!AK34 -> 0 | AN34: =data!AL34 -> 0 | AP34: =data!AN34 -> 0 | AR34: =data!AP34 -> 0 | AS34: =data!AQ34 -> 0 | AT34: =data!AR34 -> 0
A35: =data!AV35 -> 0 | B35: =data!AT35 -> 0 | C35: =data!AS35 -> 00:00:00 | D35: =data!B35 -> 0 | E35: =data!C35 -> 0 | F35: =data!D35 -> 0 | G35: =data!E35 -> 00:00:00 | I35: =data!G35 -> 0 | J35: =data!H35 -> 0 | L35: =data!J35 -> 0 | M35: =data!K35 -> 0 | N35: =data!L35 -> 0 | O35: =data!M35 -> 0 | P35: =data!N35 -> 0 | R35: =data!P35 -> 0 | S35: =data!Q35 -> 0 | T35: =data!R35 -> 0 | U35: =data!S35 -> 0 | V35: =data!T35 -> 0 | W35: =data!U35 -> 0 | Y35: =data!W35 -> 0 | AA35: =data!Y35 -> 0 | AB35: =data!Z35 -> 0 | AC35: =data!AA35 -> 0 | AD35: =data!AB35 -> 0 | AE35: =data!AC35 -> 0 | AG35: =data!AE35 -> 0 | AH35: =data!AF35 -> 0 | AI35: =data!AG35 -> 0 | AJ35: =data!AH35 -> 0 | AL35: =data!AJ35 -> 0 | AM35: =data!AK35 -> 0 | AN35: =data!AL35 -> 0 | AP35: =data!AN35 -> 0 | AR35: =data!AP35 -> 0 | AS35: =data!AQ35 -> 0 | AT35: =data!AR35 -> 0
A36: =data!AV36 -> 0 | B36: =data!AT36 -> 0 | C36: =data!AS36 -> 00:00:00 | D36: =data!B36 -> 0 | E36: =data!C36 -> 0 | F36: =data!D36 -> 0 | G36: =data!E36 -> 00:00:00 | I36: =data!G36 -> 0 | J36: =data!H36 -> 0 | L36: =data!J36 -> 0 | M36: =data!K36 -> 0 | N36: =data!L36 -> 0 | O36: =data!M36 -> 0 | P36: =data!N36 -> 0 | R36: =data!P36 -> 0 | S36: =data!Q36 -> 0 | T36: =data!R36 -> 0 | U36: =data!S36 -> 0 | V36: =data!T36 -> 0 | W36: =data!U36 -> 0 | Y36: =data!W36 -> 0 | AA36: =data!Y36 -> 0 | AB36: =data!Z36 -> 0 | AC36: =data!AA36 -> 0 | AD36: =data!AB36 -> 0 | AE36: =data!AC36 -> 0 | AG36: =data!AE36 -> 0 | AH36: =data!AF36 -> 0 | AI36: =data!AG36 -> 0 | AJ36: =data!AH36 -> 0 | AL36: =data!AJ36 -> 0 | AM36: =data!AK36 -> 0 | AN36: =data!AL36 -> 0 | AP36: =data!AN36 -> 0 | AR36: =data!AP36 -> 0 | AS36: =data!AQ36 -> 0 | AT36: =data!AR36 -> 0
A37: =data!AV37 -> 0 | B37: =data!AT37 -> 0 | C37: =data!AS37 -> 00:00:00 | D37: =data!B37 -> 0 | E37: =data!C37 -> 0 | F37: =data!D37 -> 0 | G37: =data!E37 -> 00:00:00 | I37: =data!G37 -> 0 | J37: =data!H37 -> 0 | L37: =data!J37 -> 0 | M37: =data!K37 -> 0 | N37: =data!L37 -> 0 | O37: =data!M37 -> 0 | P37: =data!N37 -> 0 | R37: =data!P37 -> 0 | S37: =data!Q37 -> 0 | T37: =data!R37 -> 0 | U37: =data!S37 -> 0 | V37: =data!T37 -> 0 | W37: =data!U37 -> 0 | Y37: =data!W37 -> 0 | AA37: =data!Y37 -> 0 | AB37: =data!Z37 -> 0 | AC37: =data!AA37 -> 0 | AD37: =data!AB37 -> 0 | AE37: =data!AC37 -> 0 | AG37: =data!AE37 -> 0 | AH37: =data!AF37 -> 0 | AI37: =data!AG37 -> 0 | AJ37: =data!AH37 -> 0 | AL37: =data!AJ37 -> 0 | AM37: =data!AK37 -> 0 | AN37: =data!AL37 -> 0 | AP37: =data!AN37 -> 0 | AR37: =data!AP37 -> 0 | AS37: =data!AQ37 -> 0 | AT37: =data!AR37 -> 0
A38: =data!AV38 -> 0 | B38: =data!AT38 -> 0 | C38: =data!AS38 -> 00:00:00 | D38: =data!B38 -> 0 | E38: =data!C38 -> 0 | F38: =data!D38 -> 0 | G38: =data!E38 -> 00:00:00 | I38: =data!G38 -> 0 | J38: =data!H38 -> 0 | L38: =data!J38 -> 0 | M38: =data!K38 -> 0 | N38: =data!L38 -> 0 | O38: =data!M38 -> 0 | P38: =data!N38 -> 0 | R38: =data!P38 -> 0 | S38: =data!Q38 -> 0 | T38: =data!R38 -> 0 | U38: =data!S38 -> 0 | V38: =data!T38 -> 0 | W38: =data!U38 -> 0 | Y38: =data!W38 -> 0 | AA38: =data!Y38 -> 0 | AB38: =data!Z38 -> 0 | AC38: =data!AA38 -> 0 | AD38: =data!AB38 -> 0 | AE38: =data!AC38 -> 0 | AG38: =data!AE38 -> 0 | AH38: =data!AF38 -> 0 | AI38: =data!AG38 -> 0 | AJ38: =data!AH38 -> 0 | AL38: =data!AJ38 -> 0 | AM38: =data!AK38 -> 0 | AN38: =data!AL38 -> 0 | AP38: =data!AN38 -> 0 | AR38: =data!AP38 -> 0 | AS38: =data!AQ38 -> 0 | AT38: =data!AR38 -> 0
A39: =data!AV39 -> 0 | B39: =data!AT39 -> 0 | C39: =data!AS39 -> 00:00:00 | D39: =data!B39 -> 0 | E39: =data!C39 -> 0 | F39: =data!D39 -> 0 | G39: =data!E39 -> 00:00:00 | I39: =data!G39 -> 0 | J39: =data!H39 -> 0 | L39: =data!J39 -> 0 | M39: =data!K39 -> 0 | N39: =data!L39 -> 0 | O39: =data!M39 -> 0 | P39: =data!N39 -> 0 | R39: =data!P39 -> 0 | S39: =data!Q39 -> 0 | T39: =data!R39 -> 0 | U39: =data!S39 -> 0 | V39: =data!T39 -> 0 | W39: =data!U39 -> 0 | Y39: =data!W39 -> 0 | AA39: =data!Y39 -> 0 | AB39: =data!Z39 -> 0 | AC39: =data!AA39 -> 0 | AD39: =data!AB39 -> 0 | AE39: =data!AC39 -> 0 | AG39: =data!AE39 -> 0 | AH39: =data!AF39 -> 0 | AI39: =data!AG39 -> 0 | AJ39: =data!AH39 -> 0 | AL39: =data!AJ39 -> 0 | AM39: =data!AK39 -> 0 | AN39: =data!AL39 -> 0 | AP39: =data!AN39 -> 0 | AR39: =data!AP39 -> 0 | AS39: =data!AQ39 -> 0 | AT39: =data!AR39 -> 0
A40: =data!AV40 -> 0 | B40: =data!AT40 -> 0 | C40: =data!AS40 -> 00:00:00 | D40: =data!B40 -> 0 | E40: =data!C40 -> 0 | F40: =data!D40 -> 0 | G40: =data!E40 -> 00:00:00 | I40: =data!G40 -> 0 | J40: =data!H40 -> 0 | L40: =data!J40 -> 0 | M40: =data!K40 -> 0 | N40: =data!L40 -> 0 | O40: =data!M40 -> 0 | P40: =data!N40 -> 0 | R40: =data!P40 -> 0 | S40: =data!Q40 -> 0 | T40: =data!R40 -> 0 | U40: =data!S40 -> 0 | V40: =data!T40 -> 0 | W40: =data!U40 -> 0 | Y40: =data!W40 -> 0 | AA40: =data!Y40 -> 0 | AB40: =data!Z40 -> 0 | AC40: =data!AA40 -> 0 | AD40: =data!AB40 -> 0 | AE40: =data!AC40 -> 0 | AG40: =data!AE40 -> 0 | AH40: =data!AF40 -> 0 | AI40: =data!AG40 -> 0 | AJ40: =data!AH40 -> 0 | AL40: =data!AJ40 -> 0 | AM40: =data!AK40 -> 0 | AN40: =data!AL40 -> 0 | AP40: =data!AN40 -> 0 | AR40: =data!AP40 -> 0 | AS40: =data!AQ40 -> 0 | AT40: =data!AR40 -> 0
A41: =data!AV41 -> 0 | B41: =data!AT41 -> 0 | C41: =data!AS41 -> 00:00:00 | D41: =data!B41 -> 0 | E41: =data!C41 -> 0 | F41: =data!D41 -> 0 | G41: =data!E41 -> 00:00:00 | I41: =data!G41 -> 0 | J41: =data!H41 -> 0 | L41: =data!J41 -> 0 | M41: =data!K41 -> 0 | N41: =data!L41 -> 0 | O41: =data!M41 -> 0 | P41: =data!N41 -> 0 | R41: =data!P41 -> 0 | S41: =data!Q41 -> 0 | T41: =data!R41 -> 0 | U41: =data!S41 -> 0 | V41: =data!T41 -> 0 | W41: =data!U41 -> 0 | Y41: =data!W41 -> 0 | AA41: =data!Y41 -> 0 | AB41: =data!Z41 -> 0 | AC41: =data!AA41 -> 0 | AD41: =data!AB41 -> 0 | AE41: =data!AC41 -> 0 | AG41: =data!AE41 -> 0 | AH41: =data!AF41 -> 0 | AI41: =data!AG41 -> 0 | AJ41: =data!AH41 -> 0 | AL41: =data!AJ41 -> 0 | AM41: =data!AK41 -> 0 | AN41: =data!AL41 -> 0 | AP41: =data!AN41 -> 0 | AR41: =data!AP41 -> 0 | AS41: =data!AQ41 -> 0 | AT41: =data!AR41 -> 0
A42: =data!AV42 -> 0 | B42: =data!AT42 -> 0 | C42: =data!AS42 -> 00:00:00 | D42: =data!B42 -> 0 | E42: =data!C42 -> 0 | F42: =data!D42 -> 0 | G42: =data!E42 -> 00:00:00 | I42: =data!G42 -> 0 | J42: =data!H42 -> 0 | L42: =data!J42 -> 0 | M42: =data!K42 -> 0 | N42: =data!L42 -> 0 | O42: =data!M42 -> 0 | P42: =data!N42 -> 0 | R42: =data!P42 -> 0 | S42: =data!Q42 -> 0 | T42: =data!R42 -> 0 | U42: =data!S42 -> 0 | V42: =data!T42 -> 0 | W42: =data!U42 -> 0 | Y42: =data!W42 -> 0 | AA42: =data!Y42 -> 0 | AB42: =data!Z42 -> 0 | AC42: =data!AA42 -> 0 | AD42: =data!AB42 -> 0 | AE42: =data!AC42 -> 0 | AG42: =data!AE42 -> 0 | AH42: =data!AF42 -> 0 | AI42: =data!AG42 -> 0 | AJ42: =data!AH42 -> 0 | AL42: =data!AJ42 -> 0 | AM42: =data!AK42 -> 0 | AN42: =data!AL42 -> 0 | AP42: =data!AN42 -> 0 | AR42: =data!AP42 -> 0 | AS42: =data!AQ42 -> 0 | AT42: =data!AR42 -> 0
A43: =data!AV43 -> 0 | B43: =data!AT43 -> 0 | C43: =data!AS43 -> 00:00:00 | D43: =data!B43 -> 0 | E43: =data!C43 -> 0 | F43: =data!D43 -> 0 | G43: =data!E43 -> 00:00:00 | I43: =data!G43 -> 0 | J43: =data!H43 -> 0 | L43: =data!J43 -> 0 | M43: =data!K43 -> 0 | N43: =data!L43 -> 0 | O43: =data!M43 -> 0 | P43: =data!N43 -> 0 | R43: =data!P43 -> 0 | S43: =data!Q43 -> 0 | T43: =data!R43 -> 0 | U43: =data!S43 -> 0 | V43: =data!T43 -> 0 | W43: =data!U43 -> 0 | Y43: =data!W43 -> 0 | AA43: =data!Y43 -> 0 | AB43: =data!Z43 -> 0 | AC43: =data!AA43 -> 0 | AD43: =data!AB43 -> 0 | AE43: =data!AC43 -> 0 | AG43: =data!AE43 -> 0 | AH43: =data!AF43 -> 0 | AI43: =data!AG43 -> 0 | AJ43: =data!AH43 -> 0 | AL43: =data!AJ43 -> 0 | AM43: =data!AK43 -> 0 | AN43: =data!AL43 -> 0 | AP43: =data!AN43 -> 0 | AR43: =data!AP43 -> 0 | AS43: =data!AQ43 -> 0 | AT43: =data!AR43 -> 0
A44: =data!AV44 -> 0 | B44: =data!AT44 -> 0 | C44: =data!AS44 -> 00:00:00 | D44: =data!B44 -> 0 | E44: =data!C44 -> 0 | F44: =data!D44 -> 0 | G44: =data!E44 -> 00:00:00 | I44: =data!G44 -> 0 | J44: =data!H44 -> 0 | L44: =data!J44 -> 0 | M44: =data!K44 -> 0 | N44: =data!L44 -> 0 | O44: =data!M44 -> 0 | P44: =data!N44 -> 0 | R44: =data!P44 -> 0 | S44: =data!Q44 -> 0 | T44: =data!R44 -> 0 | U44: =data!S44 -> 0 | V44: =data!T44 -> 0 | W44: =data!U44 -> 0 | Y44: =data!W44 -> 0 | AA44: =data!Y44 -> 0 | AB44: =data!Z44 -> 0 | AC44: =data!AA44 -> 0 | AD44: =data!AB44 -> 0 | AE44: =data!AC44 -> 0 | AG44: =data!AE44 -> 0 | AH44: =data!AF44 -> 0 | AI44: =data!AG44 -> 0 | AJ44: =data!AH44 -> 0 | AL44: =data!AJ44 -> 0 | AM44: =data!AK44 -> 0 | AN44: =data!AL44 -> 0 | AP44: =data!AN44 -> 0 | AR44: =data!AP44 -> 0 | AS44: =data!AQ44 -> 0 | AT44: =data!AR44 -> 0
A45: =data!AV45 -> 0 | B45: =data!AT45 -> 0 | C45: =data!AS45 -> 00:00:00 | D45: =data!B45 -> 0 | E45: =data!C45 -> 0 | F45: =data!D45 -> 0 | G45: =data!E45 -> 00:00:00 | I45: =data!G45 -> 0 | J45: =data!H45 -> 0 | L45: =data!J45 -> 0 | M45: =data!K45 -> 0 | N45: =data!L45 -> 0 | O45: =data!M45 -> 0 | P45: =data!N45 -> 0 | R45: =data!P45 -> 0 | S45: =data!Q45 -> 0 | T45: =data!R45 -> 0 | U45: =data!S45 -> 0 | V45: =data!T45 -> 0 | W45: =data!U45 -> 0 | Y45: =data!W45 -> 0 | AA45: =data!Y45 -> 0 | AB45: =data!Z45 -> 0 | AC45: =data!AA45 -> 0 | AD45: =data!AB45 -> 0 | AE45: =data!AC45 -> 0 | AG45: =data!AE45 -> 0 | AH45: =data!AF45 -> 0 | AI45: =data!AG45 -> 0 | AJ45: =data!AH45 -> 0 | AL45: =data!AJ45 -> 0 | AM45: =data!AK45 -> 0 | AN45: =data!AL45 -> 0 | AP45: =data!AN45 -> 0 | AR45: =data!AP45 -> 0 | AS45: =data!AQ45 -> 0 | AT45: =data!AR45 -> 0
A46: =data!AV46 -> 0 | B46: =data!AT46 -> 0 | C46: =data!AS46 -> 00:00:00 | D46: =data!B46 -> 0 | E46: =data!C46 -> 0 | F46: =data!D46 -> 0 | G46: =data!E46 -> 00:00:00 | I46: =data!G46 -> 0 | J46: =data!H46 -> 0 | L46: =data!J46 -> 0 | M46: =data!K46 -> 0 | N46: =data!L46 -> 0 | O46: =data!M46 -> 0 | P46: =data!N46 -> 0 | R46: =data!P46 -> 0 | S46: =data!Q46 -> 0 | T46: =data!R46 -> 0 | U46: =data!S46 -> 0 | V46: =data!T46 -> 0 | W46: =data!U46 -> 0 | Y46: =data!W46 -> 0 | AA46: =data!Y46 -> 0 | AB46: =data!Z46 -> 0 | AC46: =data!AA46 -> 0 | AD46: =data!AB46 -> 0 | AE46: =data!AC46 -> 0 | AG46: =data!AE46 -> 0 | AH46: =data!AF46 -> 0 | AI46: =data!AG46 -> 0 | AJ46: =data!AH46 -> 0 | AL46: =data!AJ46 -> 0 | AM46: =data!AK46 -> 0 | AN46: =data!AL46 -> 0 | AP46: =data!AN46 -> 0 | AR46: =data!AP46 -> 0 | AS46: =data!AQ46 -> 0 | AT46: =data!AR46 -> 0
A47: =data!AV47 -> 0 | B47: =data!AT47 -> 0 | C47: =data!AS47 -> 00:00:00 | D47: =data!B47 -> 0 | E47: =data!C47 -> 0 | F47: =data!D47 -> 0 | G47: =data!E47 -> 00:00:00 | I47: =data!G47 -> 0 | J47: =data!H47 -> 0 | L47: =data!J47 -> 0 | M47: =data!K47 -> 0 | N47: =data!L47 -> 0 | O47: =data!M47 -> 0 | P47: =data!N47 -> 0 | R47: =data!P47 -> 0 | S47: =data!Q47 -> 0 | T47: =data!R47 -> 0 | U47: =data!S47 -> 0 | V47: =data!T47 -> 0 | W47: =data!U47 -> 0 | Y47: =data!W47 -> 0 | AA47: =data!Y47 -> 0 | AB47: =data!Z47 -> 0 | AC47: =data!AA47 -> 0 | AD47: =data!AB47 -> 0 | AE47: =data!AC47 -> 0 | AG47: =data!AE47 -> 0 | AH47: =data!AF47 -> 0 | AI47: =data!AG47 -> 0 | AJ47: =data!AH47 -> 0 | AL47: =data!AJ47 -> 0 | AM47: =data!AK47 -> 0 | AN47: =data!AL47 -> 0 | AP47: =data!AN47 -> 0 | AR47: =data!AP47 -> 0 | AS47: =data!AQ47 -> 0 | AT47: =data!AR47 -> 0
A48: =data!AV48 -> 0 | B48: =data!AT48 -> 0 | C48: =data!AS48 -> 00:00:00 | D48: =data!B48 -> 0 | E48: =data!C48 -> 0 | F48: =data!D48 -> 0 | G48: =data!E48 -> 00:00:00 | I48: =data!G48 -> 0 | J48: =data!H48 -> 0 | L48: =data!J48 -> 0 | M48: =data!K48 -> 0 | N48: =data!L48 -> 0 | O48: =data!M48 -> 0 | P48: =data!N48 -> 0 | R48: =data!P48 -> 0 | S48: =data!Q48 -> 0 | T48: =data!R48 -> 0 | U48: =data!S48 -> 0 | V48: =data!T48 -> 0 | W48: =data!U48 -> 0 | Y48: =data!W48 -> 0 | AA48: =data!Y48 -> 0 | AB48: =data!Z48 -> 0 | AC48: =data!AA48 -> 0 | AD48: =data!AB48 -> 0 | AE48: =data!AC48 -> 0 | AG48: =data!AE48 -> 0 | AH48: =data!AF48 -> 0 | AI48: =data!AG48 -> 0 | AJ48: =data!AH48 -> 0 | AL48: =data!AJ48 -> 0 | AM48: =data!AK48 -> 0 | AN48: =data!AL48 -> 0 | AP48: =data!AN48 -> 0 | AR48: =data!AP48 -> 0 | AS48: =data!AQ48 -> 0 | AT48: =data!AR48 -> 0
A49: =data!AV49 -> 0 | B49: =data!AT49 -> 0 | C49: =data!AS49 -> 00:00:00 | D49: =data!B49 -> 0 | E49: =data!C49 -> 0 | F49: =data!D49 -> 0 | G49: =data!E49 -> 00:00:00 | I49: =data!G49 -> 0 | J49: =data!H49 -> 0 | L49: =data!J49 -> 0 | M49: =data!K49 -> 0 | N49: =data!L49 -> 0 | O49: =data!M49 -> 0 | P49: =data!N49 -> 0 | R49: =data!P49 -> 0 | S49: =data!Q49 -> 0 | T49: =data!R49 -> 0 | U49: =data!S49 -> 0 | V49: =data!T49 -> 0 | W49: =data!U49 -> 0 | Y49: =data!W49 -> 0 | AA49: =data!Y49 -> 0 | AB49: =data!Z49 -> 0 | AC49: =data!AA49 -> 0 | AD49: =data!AB49 -> 0 | AE49: =data!AC49 -> 0 | AG49: =data!AE49 -> 0 | AH49: =data!AF49 -> 0 | AI49: =data!AG49 -> 0 | AJ49: =data!AH49 -> 0 | AL49: =data!AJ49 -> 0 | AM49: =data!AK49 -> 0 | AN49: =data!AL49 -> 0 | AP49: =data!AN49 -> 0 | AR49: =data!AP49 -> 0 | AS49: =data!AQ49 -> 0 | AT49: =data!AR49 -> 0
A50: =data!AV50 -> 0 | B50: =data!AT50 -> 0 | C50: =data!AS50 -> 00:00:00 | D50: =data!B50 -> 0 | E50: =data!C50 -> 0 | F50: =data!D50 -> 0 | G50: =data!E50 -> 00:00:00 | I50: =data!G50 -> 0 | J50: =data!H50 -> 0 | L50: =data!J50 -> 0 | M50: =data!K50 -> 0 | N50: =data!L50 -> 0 | O50: =data!M50 -> 0 | P50: =data!N50 -> 0 | R50: =data!P50 -> 0 | S50: =data!Q50 -> 0 | T50: =data!R50 -> 0 | U50: =data!S50 -> 0 | V50: =data!T50 -> 0 | W50: =data!U50 -> 0 | Y50: =data!W50 -> 0 | AA50: =data!Y50 -> 0 | AB50: =data!Z50 -> 0 | AC50: =data!AA50 -> 0 | AD50: =data!AB50 -> 0 | AE50: =data!AC50 -> 0 | AG50: =data!AE50 -> 0 | AH50: =data!AF50 -> 0 | AI50: =data!AG50 -> 0 | AJ50: =data!AH50 -> 0 | AL50: =data!AJ50 -> 0 | AM50: =data!AK50 -> 0 | AN50: =data!AL50 -> 0 | AP50: =data!AN50 -> 0 | AR50: =data!AP50 -> 0 | AS50: =data!AQ50 -> 0 | AT50: =data!AR50 -> 0
A51: =data!AV51 -> 0 | B51: =data!AT51 -> 0 | C51: =data!AS51 -> 00:00:00 | D51: =data!B51 -> 0 | E51: =data!C51 -> 0 | F51: =data!D51 -> 0 | G51: =data!E51 -> 00:00:00 | I51: =data!G51 -> 0 | J51: =data!H51 -> 0 | L51: =data!J51 -> 0 | M51: =data!K51 -> 0 | N51: =data!L51 -> 0 | O51: =data!M51 -> 0 | P51: =data!N51 -> 0 | R51: =data!P51 -> 0 | S51: =data!Q51 -> 0 | T51: =data!R51 -> 0 | U51: =data!S51 -> 0 | V51: =data!T51 -> 0 | W51: =data!U51 -> 0 | Y51: =data!W51 -> 0 | AA51: =data!Y51 -> 0 | AB51: =data!Z51 -> 0 | AC51: =data!AA51 -> 0 | AD51: =data!AB51 -> 0 | AE51: =data!AC51 -> 0 | AG51: =data!AE51 -> 0 | AH51: =data!AF51 -> 0 | AI51: =data!AG51 -> 0 | AJ51: =data!AH51 -> 0 | AL51: =data!AJ51 -> 0 | AM51: =data!AK51 -> 0 | AN51: =data!AL51 -> 0 | AP51: =data!AN51 -> 0 | AR51: =data!AP51 -> 0 | AS51: =data!AQ51 -> 0 | AT51: =data!AR51 -> 0
A52: =data!AV52 -> 0 | B52: =data!AT52 -> 0 | C52: =data!AS52 -> 00:00:00 | D52: =data!B52 -> 0 | E52: =data!C52 -> 0 | F52: =data!D52 -> 0 | G52: =data!E52 -> 00:00:00 | I52: =data!G52 -> 0 | J52: =data!H52 -> 0 | L52: =data!J52 -> 0 | M52: =data!K52 -> 0 | N52: =data!L52 -> 0 | O52: =data!M52 -> 0 | P52: =data!N52 -> 0 | R52: =data!P52 -> 0 | S52: =data!Q52 -> 0 | T52: =data!R52 -> 0 | U52: =data!S52 -> 0 | V52: =data!T52 -> 0 | W52: =data!U52 -> 0 | Y52: =data!W52 -> 0 | AA52: =data!Y52 -> 0 | AB52: =data!Z52 -> 0 | AC52: =data!AA52 -> 0 | AD52: =data!AB52 -> 0 | AE52: =data!AC52 -> 0 | AG52: =data!AE52 -> 0 | AH52: =data!AF52 -> 0 | AI52: =data!AG52 -> 0 | AJ52: =data!AH52 -> 0 | AL52: =data!AJ52 -> 0 | AM52: =data!AK52 -> 0 | AN52: =data!AL52 -> 0 | AP52: =data!AN52 -> 0 | AR52: =data!AP52 -> 0 | AS52: =data!AQ52 -> 0 | AT52: =data!AR52 -> 0
A53: =data!AV53 -> 0 | B53: =data!AT53 -> 0 | C53: =data!AS53 -> 00:00:00 | D53: =data!B53 -> 0 | E53: =data!C53 -> 0 | F53: =data!D53 -> 0 | G53: =data!E53 -> 00:00:00 | I53: =data!G53 -> 0 | J53: =data!H53 -> 0 | L53: =data!J53 -> 0 | M53: =data!K53 -> 0 | N53: =data!L53 -> 0 | O53: =data!M53 -> 0 | P53: =data!N53 -> 0 | R53: =data!P53 -> 0 | S53: =data!Q53 -> 0 | T53: =data!R53 -> 0 | U53: =data!S53 -> 0 | V53: =data!T53 -> 0 | W53: =data!U53 -> 0 | Y53: =data!W53 -> 0 | AA53: =data!Y53 -> 0 | AB53: =data!Z53 -> 0 | AC53: =data!AA53 -> 0 | AD53: =data!AB53 -> 0 | AE53: =data!AC53 -> 0 | AG53: =data!AE53 -> 0 | AH53: =data!AF53 -> 0 | AI53: =data!AG53 -> 0 | AJ53: =data!AH53 -> 0 | AL53: =data!AJ53 -> 0 | AM53: =data!AK53 -> 0 | AN53: =data!AL53 -> 0 | AP53: =data!AN53 -> 0 | AR53: =data!AP53 -> 0 | AS53: =data!AQ53 -> 0 | AT53: =data!AR53 -> 0
A54: =data!AV54 -> 0 | B54: =data!AT54 -> 0 | C54: =data!AS54 -> 00:00:00 | D54: =data!B54 -> 0 | E54: =data!C54 -> 0 | F54: =data!D54 -> 0 | G54: =data!E54 -> 00:00:00 | I54: =data!G54 -> 0 | J54: =data!H54 -> 0 | L54: =data!J54 -> 0 | M54: =data!K54 -> 0 | N54: =data!L54 -> 0 | O54: =data!M54 -> 0 | P54: =data!N54 -> 0 | R54: =data!P54 -> 0 | S54: =data!Q54 -> 0 | T54: =data!R54 -> 0 | U54: =data!S54 -> 0 | V54: =data!T54 -> 0 | W54: =data!U54 -> 0 | Y54: =data!W54 -> 0 | AA54: =data!Y54 -> 0 | AB54: =data!Z54 -> 0 | AC54: =data!AA54 -> 0 | AD54: =data!AB54 -> 0 | AE54: =data!AC54 -> 0 | AG54: =data!AE54 -> 0 | AH54: =data!AF54 -> 0 | AI54: =data!AG54 -> 0 | AJ54: =data!AH54 -> 0 | AL54: =data!AJ54 -> 0 | AM54: =data!AK54 -> 0 | AN54: =data!AL54 -> 0 | AP54: =data!AN54 -> 0 | AR54: =data!AP54 -> 0 | AS54: =data!AQ54 -> 0 | AT54: =data!AR54 -> 0
A55: =data!AV55 -> 0 | B55: =data!AT55 -> 0 | C55: =data!AS55 -> 00:00:00 | D55: =data!B55 -> 0 | E55: =data!C55 -> 0 | F55: =data!D55 -> 0 | G55: =data!E55 -> 00:00:00 | I55: =data!G55 -> 0 | J55: =data!H55 -> 0 | L55: =data!J55 -> 0 | M55: =data!K55 -> 0 | N55: =data!L55 -> 0 | O55: =data!M55 -> 0 | P55: =data!N55 -> 0 | R55: =data!P55 -> 0 | S55: =data!Q55 -> 0 | T55: =data!R55 -> 0 | U55: =data!S55 -> 0 | V55: =data!T55 -> 0 | W55: =data!U55 -> 0 | Y55: =data!W55 -> 0 | AA55: =data!Y55 -> 0 | AB55: =data!Z55 -> 0 | AC55: =data!AA55 -> 0 | AD55: =data!AB55 -> 0 | AE55: =data!AC55 -> 0 | AG55: =data!AE55 -> 0 | AH55: =data!AF55 -> 0 | AI55: =data!AG55 -> 0 | AJ55: =data!AH55 -> 0 | AL55: =data!AJ55 -> 0 | AM55: =data!AK55 -> 0 | AN55: =data!AL55 -> 0 | AP55: =data!AN55 -> 0 | AR55: =data!AP55 -> 0 | AS55: =data!AQ55 -> 0 | AT55: =data!AR55 -> 0
A56: =data!AV56 -> 0 | B56: =data!AT56 -> 0 | C56: =data!AS56 -> 00:00:00 | D56: =data!B56 -> 0 | E56: =data!C56 -> 0 | F56: =data!D56 -> 0 | G56: =data!E56 -> 00:00:00 | I56: =data!G56 -> 0 | J56: =data!H56 -> 0 | L56: =data!J56 -> 0 | M56: =data!K56 -> 0 | N56: =data!L56 -> 0 | O56: =data!M56 -> 0 | P56: =data!N56 -> 0 | R56: =data!P56 -> 0 | S56: =data!Q56 -> 0 | T56: =data!R56 -> 0 | U56: =data!S56 -> 0 | V56: =data!T56 -> 0 | W56: =data!U56 -> 0 | Y56: =data!W56 -> 0 | AA56: =data!Y56 -> 0 | AB56: =data!Z56 -> 0 | AC56: =data!AA56 -> 0 | AD56: =data!AB56 -> 0 | AE56: =data!AC56 -> 0 | AG56: =data!AE56 -> 0 | AH56: =data!AF56 -> 0 | AI56: =data!AG56 -> 0 | AJ56: =data!AH56 -> 0 | AL56: =data!AJ56 -> 0 | AM56: =data!AK56 -> 0 | AN56: =data!AL56 -> 0 | AP56: =data!AN56 -> 0 | AR56: =data!AP56 -> 0 | AS56: =data!AQ56 -> 0 | AT56: =data!AR56 -> 0
A57: =data!AV57 -> 0 | B57: =data!AT57 -> 0 | C57: =data!AS57 -> 00:00:00 | D57: =data!B57 -> 0 | E57: =data!C57 -> 0 | F57: =data!D57 -> 0 | G57: =data!E57 -> 00:00:00 | I57: =data!G57 -> 0 | J57: =data!H57 -> 0 | L57: =data!J57 -> 0 | M57: =data!K57 -> 0 | N57: =data!L57 -> 0 | O57: =data!M57 -> 0 | P57: =data!N57 -> 0 | R57: =data!P57 -> 0 | S57: =data!Q57 -> 0 | T57: =data!R57 -> 0 | U57: =data!S57 -> 0 | V57: =data!T57 -> 0 | W57: =data!U57 -> 0 | Y57: =data!W57 -> 0 | AA57: =data!Y57 -> 0 | AB57: =data!Z57 -> 0 | AC57: =data!AA57 -> 0 | AD57: =data!AB57 -> 0 | AE57: =data!AC57 -> 0 | AG57: =data!AE57 -> 0 | AH57: =data!AF57 -> 0 | AI57: =data!AG57 -> 0 | AJ57: =data!AH57 -> 0 | AL57: =data!AJ57 -> 0 | AM57: =data!AK57 -> 0 | AN57: =data!AL57 -> 0 | AP57: =data!AN57 -> 0 | AR57: =data!AP57 -> 0 | AS57: =data!AQ57 -> 0 | AT57: =data!AR57 -> 0
A58: =data!AV58 -> 0 | B58: =data!AT58 -> 0 | C58: =data!AS58 -> 00:00:00 | D58: =data!B58 -> 0 | E58: =data!C58 -> 0 | F58: =data!D58 -> 0 | G58: =data!E58 -> 00:00:00 | I58: =data!G58 -> 0 | J58: =data!H58 -> 0 | L58: =data!J58 -> 0 | M58: =data!K58 -> 0 | N58: =data!L58 -> 0 | O58: =data!M58 -> 0 | P58: =data!N58 -> 0 | R58: =data!P58 -> 0 | S58: =data!Q58 -> 0 | T58: =data!R58 -> 0 | U58: =data!S58 -> 0 | V58: =data!T58 -> 0 | W58: =data!U58 -> 0 | Y58: =data!W58 -> 0 | AA58: =data!Y58 -> 0 | AB58: =data!Z58 -> 0 | AC58: =data!AA58 -> 0 | AD58: =data!AB58 -> 0 | AE58: =data!AC58 -> 0 | AG58: =data!AE58 -> 0 | AH58: =data!AF58 -> 0 | AI58: =data!AG58 -> 0 | AJ58: =data!AH58 -> 0 | AL58: =data!AJ58 -> 0 | AM58: =data!AK58 -> 0 | AN58: =data!AL58 -> 0 | AP58: =data!AN58 -> 0 | AR58: =data!AP58 -> 0 | AS58: =data!AQ58 -> 0 | AT58: =data!AR58 -> 0
A59: =data!AV59 -> 0 | B59: =data!AT59 -> 0 | C59: =data!AS59 -> 00:00:00 | D59: =data!B59 -> 0 | E59: =data!C59 -> 0 | F59: =data!D59 -> 0 | G59: =data!E59 -> 00:00:00 | I59: =data!G59 -> 0 | J59: =data!H59 -> 0 | L59: =data!J59 -> 0 | M59: =data!K59 -> 0 | N59: =data!L59 -> 0 | O59: =data!M59 -> 0 | P59: =data!N59 -> 0 | R59: =data!P59 -> 0 | S59: =data!Q59 -> 0 | T59: =data!R59 -> 0 | U59: =data!S59 -> 0 | V59: =data!T59 -> 0 | W59: =data!U59 -> 0 | Y59: =data!W59 -> 0 | AA59: =data!Y59 -> 0 | AB59: =data!Z59 -> 0 | AC59: =data!AA59 -> 0 | AD59: =data!AB59 -> 0 | AE59: =data!AC59 -> 0 | AG59: =data!AE59 -> 0 | AH59: =data!AF59 -> 0 | AI59: =data!AG59 -> 0 | AJ59: =data!AH59 -> 0 | AL59: =data!AJ59 -> 0 | AM59: =data!AK59 -> 0 | AN59: =data!AL59 -> 0 | AP59: =data!AN59 -> 0 | AR59: =data!AP59 -> 0 | AS59: =data!AQ59 -> 0 | AT59: =data!AR59 -> 0
A60: =data!AV60 -> 0 | B60: =data!AT60 -> 0 | C60: =data!AS60 -> 00:00:00 | D60: =data!B60 -> 0 | E60: =data!C60 -> 0 | F60: =data!D60 -> 0 | G60: =data!E60 -> 00:00:00 | I60: =data!G60 -> 0 | J60: =data!H60 -> 0 | L60: =data!J60 -> 0 | M60: =data!K60 -> 0 | N60: =data!L60 -> 0 | O60: =data!M60 -> 0 | P60: =data!N60 -> 0 | R60: =data!P60 -> 0 | S60: =data!Q60 -> 0 | T60: =data!R60 -> 0 | U60: =data!S60 -> 0 | V60: =data!T60 -> 0 | W60: =data!U60 -> 0 | Y60: =data!W60 -> 0 | AA60: =data!Y60 -> 0 | AB60: =data!Z60 -> 0 | AC60: =data!AA60 -> 0 | AD60: =data!AB60 -> 0 | AE60: =data!AC60 -> 0 | AG60: =data!AE60 -> 0 | AH60: =data!AF60 -> 0 | AI60: =data!AG60 -> 0 | AJ60: =data!AH60 -> 0 | AL60: =data!AJ60 -> 0 | AM60: =data!AK60 -> 0 | AN60: =data!AL60 -> 0 | AP60: =data!AN60 -> 0 | AR60: =data!AP60 -> 0 | AS60: =data!AQ60 -> 0 | AT60: =data!AR60 -> 0
A61: =data!AV61 -> 0 | B61: =data!AT61 -> 0 | C61: =data!AS61 -> 00:00:00 | D61: =data!B61 -> 0 | E61: =data!C61 -> 0 | F61: =data!D61 -> 0 | G61: =data!E61 -> 00:00:00 | I61: =data!G61 -> 0 | J61: =data!H61 -> 0 | L61: =data!J61 -> 0 | M61: =data!K61 -> 0 | N61: =data!L61 -> 0 | O61: =data!M61 -> 0 | P61: =data!N61 -> 0 | R61: =data!P61 -> 0 | S61: =data!Q61 -> 0 | T61: =data!R61 -> 0 | U61: =data!S61 -> 0 | V61: =data!T61 -> 0 | W61: =data!U61 -> 0 | Y61: =data!W61 -> 0 | AA61: =data!Y61 -> 0 | AB61: =data!Z61 -> 0 | AC61: =data!AA61 -> 0 | AD61: =data!AB61 -> 0 | AE61: =data!AC61 -> 0 | AG61: =data!AE61 -> 0 | AH61: =data!AF61 -> 0 | AI61: =data!AG61 -> 0 | AJ61: =data!AH61 -> 0 | AL61: =data!AJ61 -> 0 | AM61: =data!AK61 -> 0 | AN61: =data!AL61 -> 0 | AP61: =data!AN61 -> 0 | AR61: =data!AP61 -> 0 | AS61: =data!AQ61 -> 0 | AT61: =data!AR61 -> 0
A62: =data!AV62 -> 0 | B62: =data!AT62 -> 0 | C62: =data!AS62 -> 00:00:00 | D62: =data!B62 -> 0 | E62: =data!C62 -> 0 | F62: =data!D62 -> 0 | G62: =data!E62 -> 00:00:00 | I62: =data!G62 -> 0 | J62: =data!H62 -> 0 | L62: =data!J62 -> 0 | M62: =data!K62 -> 0 | N62: =data!L62 -> 0 | O62: =data!M62 -> 0 | P62: =data!N62 -> 0 | R62: =data!P62 -> 0 | S62: =data!Q62 -> 0 | T62: =data!R62 -> 0 | U62: =data!S62 -> 0 | V62: =data!T62 -> 0 | W62: =data!U62 -> 0 | Y62: =data!W62 -> 0 | AA62: =data!Y62 -> 0 | AB62: =data!Z62 -> 0 | AC62: =data!AA62 -> 0 | AD62: =data!AB62 -> 0 | AE62: =data!AC62 -> 0 | AG62: =data!AE62 -> 0 | AH62: =data!AF62 -> 0 | AI62: =data!AG62 -> 0 | AJ62: =data!AH62 -> 0 | AL62: =data!AJ62 -> 0 | AM62: =data!AK62 -> 0 | AN62: =data!AL62 -> 0 | AP62: =data!AN62 -> 0 | AR62: =data!AP62 -> 0 | AS62: =data!AQ62 -> 0 | AT62: =data!AR62 -> 0
A63: =data!AV63 -> 0 | B63: =data!AT63 -> 0 | C63: =data!AS63 -> 00:00:00 | D63: =data!B63 -> 0 | E63: =data!C63 -> 0 | F63: =data!D63 -> 0 | G63: =data!E63 -> 00:00:00 | I63: =data!G63 -> 0 | J63: =data!H63 -> 0 | L63: =data!J63 -> 0 | M63: =data!K63 -> 0 | N63: =data!L63 -> 0 | O63: =data!M63 -> 0 | P63: =data!N63 -> 0 | R63: =data!P63 -> 0 | S63: =data!Q63 -> 0 | T63: =data!R63 -> 0 | U63: =data!S63 -> 0 | V63: =data!T63 -> 0 | W63: =data!U63 -> 0 | Y63: =data!W63 -> 0 | AA63: =data!Y63 -> 0 | AB63: =data!Z63 -> 0 | AC63: =data!AA63 -> 0 | AD63: =data!AB63 -> 0 | AE63: =data!AC63 -> 0 | AG63: =data!AE63 -> 0 | AH63: =data!AF63 -> 0 | AI63: =data!AG63 -> 0 | AJ63: =data!AH63 -> 0 | AL63: =data!AJ63 -> 0 | AM63: =data!AK63 -> 0 | AN63: =data!AL63 -> 0 | AP63: =data!AN63 -> 0 | AR63: =data!AP63 -> 0 | AS63: =data!AQ63 -> 0 | AT63: =data!AR63 -> 0
A64: =data!AV64 -> 0 | B64: =data!AT64 -> 0 | C64: =data!AS64 -> 00:00:00 | D64: =data!B64 -> 0 | E64: =data!C64 -> 0 | F64: =data!D64 -> 0 | G64: =data!E64 -> 00:00:00 | I64: =data!G64 -> 0 | J64: =data!H64 -> 0 | L64: =data!J64 -> 0 | M64: =data!K64 -> 0 | N64: =data!L64 -> 0 | O64: =data!M64 -> 0 | P64: =data!N64 -> 0 | R64: =data!P64 -> 0 | S64: =data!Q64 -> 0 | T64: =data!R64 -> 0 | U64: =data!S64 -> 0 | V64: =data!T64 -> 0 | W64: =data!U64 -> 0 | Y64: =data!W64 -> 0 | AA64: =data!Y64 -> 0 | AB64: =data!Z64 -> 0 | AC64: =data!AA64 -> 0 | AD64: =data!AB64 -> 0 | AE64: =data!AC64 -> 0 | AG64: =data!AE64 -> 0 | AH64: =data!AF64 -> 0 | AI64: =data!AG64 -> 0 | AJ64: =data!AH64 -> 0 | AL64: =data!AJ64 -> 0 | AM64: =data!AK64 -> 0 | AN64: =data!AL64 -> 0 | AP64: =data!AN64 -> 0 | AR64: =data!AP64 -> 0 | AS64: =data!AQ64 -> 0 | AT64: =data!AR64 -> 0
A65: =data!AV65 -> 0 | B65: =data!AT65 -> 0 | C65: =data!AS65 -> 00:00:00 | D65: =data!B65 -> 0 | E65: =data!C65 -> 0 | F65: =data!D65 -> 0 | G65: =data!E65 -> 00:00:00 | I65: =data!G65 -> 0 | J65: =data!H65 -> 0 | L65: =data!J65 -> 0 | M65: =data!K65 -> 0 | N65: =data!L65 -> 0 | O65: =data!M65 -> 0 | P65: =data!N65 -> 0 | R65: =data!P65 -> 0 | S65: =data!Q65 -> 0 | T65: =data!R65 -> 0 | U65: =data!S65 -> 0 | V65: =data!T65 -> 0 | W65: =data!U65 -> 0 | Y65: =data!W65 -> 0 | AA65: =data!Y65 -> 0 | AB65: =data!Z65 -> 0 | AC65: =data!AA65 -> 0 | AD65: =data!AB65 -> 0 | AE65: =data!AC65 -> 0 | AG65: =data!AE65 -> 0 | AH65: =data!AF65 -> 0 | AI65: =data!AG65 -> 0 | AJ65: =data!AH65 -> 0 | AL65: =data!AJ65 -> 0 | AM65: =data!AK65 -> 0 | AN65: =data!AL65 -> 0 | AP65: =data!AN65 -> 0 | AR65: =data!AP65 -> 0 | AS65: =data!AQ65 -> 0 | AT65: =data!AR65 -> 0
A66: =data!AV66 -> 0 | B66: =data!AT66 -> 0 | C66: =data!AS66 -> 00:00:00 | D66: =data!B66 -> 0 | E66: =data!C66 -> 0 | F66: =data!D66 -> 0 | G66: =data!E66 -> 00:00:00 | I66: =data!G66 -> 0 | J66: =data!H66 -> 0 | L66: =data!J66 -> 0 | M66: =data!K66 -> 0 | N66: =data!L66 -> 0 | O66: =data!M66 -> 0 | P66: =data!N66 -> 0 | R66: =data!P66 -> 0 | S66: =data!Q66 -> 0 | T66: =data!R66 -> 0 | U66: =data!S66 -> 0 | V66: =data!T66 -> 0 | W66: =data!U66 -> 0 | Y66: =data!W66 -> 0 | AA66: =data!Y66 -> 0 | AB66: =data!Z66 -> 0 | AC66: =data!AA66 -> 0 | AD66: =data!AB66 -> 0 | AE66: =data!AC66 -> 0 | AG66: =data!AE66 -> 0 | AH66: =data!AF66 -> 0 | AI66: =data!AG66 -> 0 | AJ66: =data!AH66 -> 0 | AL66: =data!AJ66 -> 0 | AM66: =data!AK66 -> 0 | AN66: =data!AL66 -> 0 | AP66: =data!AN66 -> 0 | AR66: =data!AP66 -> 0 | AS66: =data!AQ66 -> 0 | AT66: =data!AR66 -> 0
A67: =data!AV67 -> 0 | B67: =data!AT67 -> 0 | C67: =data!AS67 -> 00:00:00 | D67: =data!B67 -> 0 | E67: =data!C67 -> 0 | F67: =data!D67 -> 0 | G67: =data!E67 -> 00:00:00 | I67: =data!G67 -> 0 | J67: =data!H67 -> 0 | L67: =data!J67 -> 0 | M67: =data!K67 -> 0 | N67: =data!L67 -> 0 | O67: =data!M67 -> 0 | P67: =data!N67 -> 0 | R67: =data!P67 -> 0 | S67: =data!Q67 -> 0 | T67: =data!R67 -> 0 | U67: =data!S67 -> 0 | V67: =data!T67 -> 0 | W67: =data!U67 -> 0 | Y67: =data!W67 -> 0 | AA67: =data!Y67 -> 0 | AB67: =data!Z67 -> 0 | AC67: =data!AA67 -> 0 | AD67: =data!AB67 -> 0 | AE67: =data!AC67 -> 0 | AG67: =data!AE67 -> 0 | AH67: =data!AF67 -> 0 | AI67: =data!AG67 -> 0 | AJ67: =data!AH67 -> 0 | AL67: =data!AJ67 -> 0 | AM67: =data!AK67 -> 0 | AN67: =data!AL67 -> 0 | AP67: =data!AN67 -> 0 | AR67: =data!AP67 -> 0 | AS67: =data!AQ67 -> 0 | AT67: =data!AR67 -> 0
A68: =data!AV68 -> 0 | B68: =data!AT68 -> 0 | C68: =data!AS68 -> 00:00:00 | D68: =data!B68 -> 0 | E68: =data!C68 -> 0 | F68: =data!D68 -> 0 | G68: =data!E68 -> 00:00:00 | I68: =data!G68 -> 0 | J68: =data!H68 -> 0 | L68: =data!J68 -> 0 | M68: =data!K68 -> 0 | N68: =data!L68 -> 0 | O68: =data!M68 -> 0 | P68: =data!N68 -> 0 | R68: =data!P68 -> 0 | S68: =data!Q68 -> 0 | T68: =data!R68 -> 0 | U68: =data!S68 -> 0 | V68: =data!T68 -> 0 | W68: =data!U68 -> 0 | Y68: =data!W68 -> 0 | AA68: =data!Y68 -> 0 | AB68: =data!Z68 -> 0 | AC68: =data!AA68 -> 0 | AD68: =data!AB68 -> 0 | AE68: =data!AC68 -> 0 | AG68: =data!AE68 -> 0 | AH68: =data!AF68 -> 0 | AI68: =data!AG68 -> 0 | AJ68: =data!AH68 -> 0 | AL68: =data!AJ68 -> 0 | AM68: =data!AK68 -> 0 | AN68: =data!AL68 -> 0 | AP68: =data!AN68 -> 0 | AR68: =data!AP68 -> 0 | AS68: =data!AQ68 -> 0 | AT68: =data!AR68 -> 0
A69: =data!AV69 -> 0 | B69: =data!AT69 -> 0 | C69: =data!AS69 -> 00:00:00 | D69: =data!B69 -> 0 | E69: =data!C69 -> 0 | F69: =data!D69 -> 0 | G69: =data!E69 -> 00:00:00 | I69: =data!G69 -> 0 | J69: =data!H69 -> 0 | L69: =data!J69 -> 0 | M69: =data!K69 -> 0 | N69: =data!L69 -> 0 | O69: =data!M69 -> 0 | P69: =data!N69 -> 0 | R69: =data!P69 -> 0 | S69: =data!Q69 -> 0 | T69: =data!R69 -> 0 | U69: =data!S69 -> 0 | V69: =data!T69 -> 0 | W69: =data!U69 -> 0 | Y69: =data!W69 -> 0 | AA69: =data!Y69 -> 0 | AB69: =data!Z69 -> 0 | AC69: =data!AA69 -> 0 | AD69: =data!AB69 -> 0 | AE69: =data!AC69 -> 0 | AG69: =data!AE69 -> 0 | AH69: =data!AF69 -> 0 | AI69: =data!AG69 -> 0 | AJ69: =data!AH69 -> 0 | AL69: =data!AJ69 -> 0 | AM69: =data!AK69 -> 0 | AN69: =data!AL69 -> 0 | AP69: =data!AN69 -> 0 | AR69: =data!AP69 -> 0 | AS69: =data!AQ69 -> 0 | AT69: =data!AR69 -> 0
A70: =data!AV70 -> 0 | B70: =data!AT70 -> 0 | C70: =data!AS70 -> 00:00:00 | D70: =data!B70 -> 0 | E70: =data!C70 -> 0 | F70: =data!D70 -> 0 | G70: =data!E70 -> 00:00:00 | I70: =data!G70 -> 0 | J70: =data!H70 -> 0 | L70: =data!J70 -> 0 | M70: =data!K70 -> 0 | N70: =data!L70 -> 0 | O70: =data!M70 -> 0 | P70: =data!N70 -> 0 | R70: =data!P70 -> 0 | S70: =data!Q70 -> 0 | T70: =data!R70 -> 0 | U70: =data!S70 -> 0 | V70: =data!T70 -> 0 | W70: =data!U70 -> 0 | Y70: =data!W70 -> 0 | AA70: =data!Y70 -> 0 | AB70: =data!Z70 -> 0 | AC70: =data!AA70 -> 0 | AD70: =data!AB70 -> 0 | AE70: =data!AC70 -> 0 | AG70: =data!AE70 -> 0 | AH70: =data!AF70 -> 0 | AI70: =data!AG70 -> 0 | AJ70: =data!AH70 -> 0 | AL70: =data!AJ70 -> 0 | AM70: =data!AK70 -> 0 | AN70: =data!AL70 -> 0 | AP70: =data!AN70 -> 0 | AR70: =data!AP70 -> 0 | AS70: =data!AQ70 -> 0 | AT70: =data!AR70 -> 0
A71: =data!AV71 -> 0 | B71: =data!AT71 -> 0 | C71: =data!AS71 -> 00:00:00 | D71: =data!B71 -> 0 | E71: =data!C71 -> 0 | F71: =data!D71 -> 0 | G71: =data!E71 -> 00:00:00 | I71: =data!G71 -> 0 | J71: =data!H71 -> 0 | L71: =data!J71 -> 0 | M71: =data!K71 -> 0 | N71: =data!L71 -> 0 | O71: =data!M71 -> 0 | P71: =data!N71 -> 0 | R71: =data!P71 -> 0 | S71: =data!Q71 -> 0 | T71: =data!R71 -> 0 | U71: =data!S71 -> 0 | V71: =data!T71 -> 0 | W71: =data!U71 -> 0 | Y71: =data!W71 -> 0 | AA71: =data!Y71 -> 0 | AB71: =data!Z71 -> 0 | AC71: =data!AA71 -> 0 | AD71: =data!AB71 -> 0 | AE71: =data!AC71 -> 0 | AG71: =data!AE71 -> 0 | AH71: =data!AF71 -> 0 | AI71: =data!AG71 -> 0 | AJ71: =data!AH71 -> 0 | AL71: =data!AJ71 -> 0 | AM71: =data!AK71 -> 0 | AN71: =data!AL71 -> 0 | AP71: =data!AN71 -> 0 | AR71: =data!AP71 -> 0 | AS71: =data!AQ71 -> 0 | AT71: =data!AR71 -> 0
A72: =data!AV72 -> 0 | B72: =data!AT72 -> 0 | C72: =data!AS72 -> 00:00:00 | D72: =data!B72 -> 0 | E72: =data!C72 -> 0 | F72: =data!D72 -> 0 | G72: =data!E72 -> 00:00:00 | I72: =data!G72 -> 0 | J72: =data!H72 -> 0 | L72: =data!J72 -> 0 | M72: =data!K72 -> 0 | N72: =data!L72 -> 0 | O72: =data!M72 -> 0 | P72: =data!N72 -> 0 | R72: =data!P72 -> 0 | S72: =data!Q72 -> 0 | T72: =data!R72 -> 0 | U72: =data!S72 -> 0 | V72: =data!T72 -> 0 | W72: =data!U72 -> 0 | Y72: =data!W72 -> 0 | AA72: =data!Y72 -> 0 | AB72: =data!Z72 -> 0 | AC72: =data!AA72 -> 0 | AD72: =data!AB72 -> 0 | AE72: =data!AC72 -> 0 | AG72: =data!AE72 -> 0 | AH72: =data!AF72 -> 0 | AI72: =data!AG72 -> 0 | AJ72: =data!AH72 -> 0 | AL72: =data!AJ72 -> 0 | AM72: =data!AK72 -> 0 | AN72: =data!AL72 -> 0 | AP72: =data!AN72 -> 0 | AR72: =data!AP72 -> 0 | AS72: =data!AQ72 -> 0 | AT72: =data!AR72 -> 0
A73: =data!AV73 -> 0 | B73: =data!AT73 -> 0 | C73: =data!AS73 -> 00:00:00 | D73: =data!B73 -> 0 | E73: =data!C73 -> 0 | F73: =data!D73 -> 0 | G73: =data!E73 -> 00:00:00 | I73: =data!G73 -> 0 | J73: =data!H73 -> 0 | L73: =data!J73 -> 0 | M73: =data!K73 -> 0 | N73: =data!L73 -> 0 | O73: =data!M73 -> 0 | P73: =data!N73 -> 0 | R73: =data!P73 -> 0 | S73: =data!Q73 -> 0 | T73: =data!R73 -> 0 | U73: =data!S73 -> 0 | V73: =data!T73 -> 0 | W73: =data!U73 -> 0 | Y73: =data!W73 -> 0 | AA73: =data!Y73 -> 0 | AB73: =data!Z73 -> 0 | AC73: =data!AA73 -> 0 | AD73: =data!AB73 -> 0 | AE73: =data!AC73 -> 0 | AG73: =data!AE73 -> 0 | AH73: =data!AF73 -> 0 | AI73: =data!AG73 -> 0 | AJ73: =data!AH73 -> 0 | AL73: =data!AJ73 -> 0 | AM73: =data!AK73 -> 0 | AN73: =data!AL73 -> 0 | AP73: =data!AN73 -> 0 | AR73: =data!AP73 -> 0 | AS73: =data!AQ73 -> 0 | AT73: =data!AR73 -> 0
A74: =data!AV74 -> 0 | B74: =data!AT74 -> 0 | C74: =data!AS74 -> 00:00:00 | D74: =data!B74 -> 0 | E74: =data!C74 -> 0 | F74: =data!D74 -> 0 | G74: =data!E74 -> 00:00:00 | I74: =data!G74 -> 0 | J74: =data!H74 -> 0 | L74: =data!J74 -> 0 | M74: =data!K74 -> 0 | N74: =data!L74 -> 0 | O74: =data!M74 -> 0 | P74: =data!N74 -> 0 | R74: =data!P74 -> 0 | S74: =data!Q74 -> 0 | T74: =data!R74 -> 0 | U74: =data!S74 -> 0 | V74: =data!T74 -> 0 | W74: =data!U74 -> 0 | Y74: =data!W74 -> 0 | AA74: =data!Y74 -> 0 | AB74: =data!Z74 -> 0 | AC74: =data!AA74 -> 0 | AD74: =data!AB74 -> 0 | AE74: =data!AC74 -> 0 | AG74: =data!AE74 -> 0 | AH74: =data!AF74 -> 0 | AI74: =data!AG74 -> 0 | AJ74: =data!AH74 -> 0 | AL74: =data!AJ74 -> 0 | AM74: =data!AK74 -> 0 | AN74: =data!AL74 -> 0 | AP74: =data!AN74 -> 0 | AR74: =data!AP74 -> 0 | AS74: =data!AQ74 -> 0 | AT74: =data!AR74 -> 0
A75: =data!AV75 -> 0 | B75: =data!AT75 -> 0 | C75: =data!AS75 -> 00:00:00 | D75: =data!B75 -> 0 | E75: =data!C75 -> 0 | F75: =data!D75 -> 0 | G75: =data!E75 -> 00:00:00 | I75: =data!G75 -> 0 | J75: =data!H75 -> 0 | L75: =data!J75 -> 0 | M75: =data!K75 -> 0 | N75: =data!L75 -> 0 | O75: =data!M75 -> 0 | P75: =data!N75 -> 0 | R75: =data!P75 -> 0 | S75: =data!Q75 -> 0 | T75: =data!R75 -> 0 | U75: =data!S75 -> 0 | V75: =data!T75 -> 0 | W75: =data!U75 -> 0 | Y75: =data!W75 -> 0 | AA75: =data!Y75 -> 0 | AB75: =data!Z75 -> 0 | AC75: =data!AA75 -> 0 | AD75: =data!AB75 -> 0 | AE75: =data!AC75 -> 0 | AG75: =data!AE75 -> 0 | AH75: =data!AF75 -> 0 | AI75: =data!AG75 -> 0 | AJ75: =data!AH75 -> 0 | AL75: =data!AJ75 -> 0 | AM75: =data!AK75 -> 0 | AN75: =data!AL75 -> 0 | AP75: =data!AN75 -> 0 | AR75: =data!AP75 -> 0 | AS75: =data!AQ75 -> 0 | AT75: =data!AR75 -> 0
A76: =data!AV76 -> 0 | B76: =data!AT76 -> 0 | C76: =data!AS76 -> 00:00:00 | D76: =data!B76 -> 0 | E76: =data!C76 -> 0 | F76: =data!D76 -> 0 | G76: =data!E76 -> 00:00:00 | I76: =data!G76 -> 0 | J76: =data!H76 -> 0 | L76: =data!J76 -> 0 | M76: =data!K76 -> 0 | N76: =data!L76 -> 0 | O76: =data!M76 -> 0 | P76: =data!N76 -> 0 | R76: =data!P76 -> 0 | S76: =data!Q76 -> 0 | T76: =data!R76 -> 0 | U76: =data!S76 -> 0 | V76: =data!T76 -> 0 | W76: =data!U76 -> 0 | Y76: =data!W76 -> 0 | AA76: =data!Y76 -> 0 | AB76: =data!Z76 -> 0 | AC76: =data!AA76 -> 0 | AD76: =data!AB76 -> 0 | AE76: =data!AC76 -> 0 | AG76: =data!AE76 -> 0 | AH76: =data!AF76 -> 0 | AI76: =data!AG76 -> 0 | AJ76: =data!AH76 -> 0 | AL76: =data!AJ76 -> 0 | AM76: =data!AK76 -> 0 | AN76: =data!AL76 -> 0 | AP76: =data!AN76 -> 0 | AR76: =data!AP76 -> 0 | AS76: =data!AQ76 -> 0 | AT76: =data!AR76 -> 0
A77: =data!AV77 -> 0 | B77: =data!AT77 -> 0 | C77: =data!AS77 -> 00:00:00 | D77: =data!B77 -> 0 | E77: =data!C77 -> 0 | F77: =data!D77 -> 0 | G77: =data!E77 -> 00:00:00 | I77: =data!G77 -> 0 | J77: =data!H77 -> 0 | L77: =data!J77 -> 0 | M77: =data!K77 -> 0 | N77: =data!L77 -> 0 | O77: =data!M77 -> 0 | P77: =data!N77 -> 0 | R77: =data!P77 -> 0 | S77: =data!Q77 -> 0 | T77: =data!R77 -> 0 | U77: =data!S77 -> 0 | V77: =data!T77 -> 0 | W77: =data!U77 -> 0 | Y77: =data!W77 -> 0 | AA77: =data!Y77 -> 0 | AB77: =data!Z77 -> 0 | AC77: =data!AA77 -> 0 | AD77: =data!AB77 -> 0 | AE77: =data!AC77 -> 0 | AG77: =data!AE77 -> 0 | AH77: =data!AF77 -> 0 | AI77: =data!AG77 -> 0 | AJ77: =data!AH77 -> 0 | AL77: =data!AJ77 -> 0 | AM77: =data!AK77 -> 0 | AN77: =data!AL77 -> 0 | AP77: =data!AN77 -> 0 | AR77: =data!AP77 -> 0 | AS77: =data!AQ77 -> 0 | AT77: =data!AR77 -> 0
A78: =data!AV78 -> 0 | B78: =data!AT78 -> 0 | C78: =data!AS78 -> 00:00:00 | D78: =data!B78 -> 0 | E78: =data!C78 -> 0 | F78: =data!D78 -> 0 | G78: =data!E78 -> 00:00:00 | I78: =data!G78 -> 0 | J78: =data!H78 -> 0 | L78: =data!J78 -> 0 | M78: =data!K78 -> 0 | N78: =data!L78 -> 0 | O78: =data!M78 -> 0 | P78: =data!N78 -> 0 | R78: =data!P78 -> 0 | S78: =data!Q78 -> 0 | T78: =data!R78 -> 0 | U78: =data!S78 -> 0 | V78: =data!T78 -> 0 | W78: =data!U78 -> 0 | Y78: =data!W78 -> 0 | AA78: =data!Y78 -> 0 | AB78: =data!Z78 -> 0 | AC78: =data!AA78 -> 0 | AD78: =data!AB78 -> 0 | AE78: =data!AC78 -> 0 | AG78: =data!AE78 -> 0 | AH78: =data!AF78 -> 0 | AI78: =data!AG78 -> 0 | AJ78: =data!AH78 -> 0 | AL78: =data!AJ78 -> 0 | AM78: =data!AK78 -> 0 | AN78: =data!AL78 -> 0 | AP78: =data!AN78 -> 0 | AR78: =data!AP78 -> 0 | AS78: =data!AQ78 -> 0 | AT78: =data!AR78 -> 0
A79: =data!AV79 -> 0 | B79: =data!AT79 -> 0 | C79: =data!AS79 -> 00:00:00 | D79: =data!B79 -> 0 | E79: =data!C79 -> 0 | F79: =data!D79 -> 0 | G79: =data!E79 -> 00:00:00 | I79: =data!G79 -> 0 | J79: =data!H79 -> 0 | L79: =data!J79 -> 0 | M79: =data!K79 -> 0 | N79: =data!L79 -> 0 | O79: =data!M79 -> 0 | P79: =data!N79 -> 0 | R79: =data!P79 -> 0 | S79: =data!Q79 -> 0 | T79: =data!R79 -> 0 | U79: =data!S79 -> 0 | V79: =data!T79 -> 0 | W79: =data!U79 -> 0 | Y79: =data!W79 -> 0 | AA79: =data!Y79 -> 0 | AB79: =data!Z79 -> 0 | AC79: =data!AA79 -> 0 | AD79: =data!AB79 -> 0 | AE79: =data!AC79 -> 0 | AG79: =data!AE79 -> 0 | AH79: =data!AF79 -> 0 | AI79: =data!AG79 -> 0 | AJ79: =data!AH79 -> 0 | AL79: =data!AJ79 -> 0 | AM79: =data!AK79 -> 0 | AN79: =data!AL79 -> 0 | AP79: =data!AN79 -> 0 | AR79: =data!AP79 -> 0 | AS79: =data!AQ79 -> 0 | AT79: =data!AR79 -> 0
A80: =data!AV80 -> 0 | B80: =data!AT80 -> 0 | C80: =data!AS80 -> 00:00:00 | D80: =data!B80 -> 0 | E80: =data!C80 -> 0 | F80: =data!D80 -> 0 | G80: =data!E80 -> 00:00:00 | I80: =data!G80 -> 0 | J80: =data!H80 -> 0 | L80: =data!J80 -> 0 | M80: =data!K80 -> 0 | N80: =data!L80 -> 0 | O80: =data!M80 -> 0 | P80: =data!N80 -> 0 | R80: =data!P80 -> 0 | S80: =data!Q80 -> 0 | T80: =data!R80 -> 0 | U80: =data!S80 -> 0 | V80: =data!T80 -> 0 | W80: =data!U80 -> 0 | Y80: =data!W80 -> 0 | AA80: =data!Y80 -> 0 | AB80: =data!Z80 -> 0 | AC80: =data!AA80 -> 0 | AD80: =data!AB80 -> 0 | AE80: =data!AC80 -> 0 | AG80: =data!AE80 -> 0 | AH80: =data!AF80 -> 0 | AI80: =data!AG80 -> 0 | AJ80: =data!AH80 -> 0 | AL80: =data!AJ80 -> 0 | AM80: =data!AK80 -> 0 | AN80: =data!AL80 -> 0 | AP80: =data!AN80 -> 0 | AR80: =data!AP80 -> 0 | AS80: =data!AQ80 -> 0 | AT80: =data!AR80 -> 0
A81: =data!AV81 -> 0 | B81: =data!AT81 -> 0 | C81: =data!AS81 -> 00:00:00 | D81: =data!B81 -> 0 | E81: =data!C81 -> 0 | F81: =data!D81 -> 0 | G81: =data!E81 -> 00:00:00 | I81: =data!G81 -> 0 | J81: =data!H81 -> 0 | L81: =data!J81 -> 0 | M81: =data!K81 -> 0 | N81: =data!L81 -> 0 | O81: =data!M81 -> 0 | P81: =data!N81 -> 0 | R81: =data!P81 -> 0 | S81: =data!Q81 -> 0 | T81: =data!R81 -> 0 | U81: =data!S81 -> 0 | V81: =data!T81 -> 0 | W81: =data!U81 -> 0 | Y81: =data!W81 -> 0 | AA81: =data!Y81 -> 0 | AB81: =data!Z81 -> 0 | AC81: =data!AA81 -> 0 | AD81: =data!AB81 -> 0 | AE81: =data!AC81 -> 0 | AG81: =data!AE81 -> 0 | AH81: =data!AF81 -> 0 | AI81: =data!AG81 -> 0 | AJ81: =data!AH81 -> 0 | AL81: =data!AJ81 -> 0 | AM81: =data!AK81 -> 0 | AN81: =data!AL81 -> 0 | AP81: =data!AN81 -> 0 | AR81: =data!AP81 -> 0 | AS81: =data!AQ81 -> 0 | AT81: =data!AR81 -> 0
A82: =data!AV82 -> 0 | B82: =data!AT82 -> 0 | C82: =data!AS82 -> 00:00:00 | D82: =data!B82 -> 0 | E82: =data!C82 -> 0 | F82: =data!D82 -> 0 | G82: =data!E82 -> 00:00:00 | I82: =data!G82 -> 0 | J82: =data!H82 -> 0 | L82: =data!J82 -> 0 | M82: =data!K82 -> 0 | N82: =data!L82 -> 0 | O82: =data!M82 -> 0 | P82: =data!N82 -> 0 | R82: =data!P82 -> 0 | S82: =data!Q82 -> 0 | T82: =data!R82 -> 0 | U82: =data!S82 -> 0 | V82: =data!T82 -> 0 | W82: =data!U82 -> 0 | Y82: =data!W82 -> 0 | AA82: =data!Y82 -> 0 | AB82: =data!Z82 -> 0 | AC82: =data!AA82 -> 0 | AD82: =data!AB82 -> 0 | AE82: =data!AC82 -> 0 | AG82: =data!AE82 -> 0 | AH82: =data!AF82 -> 0 | AI82: =data!AG82 -> 0 | AJ82: =data!AH82 -> 0 | AL82: =data!AJ82 -> 0 | AM82: =data!AK82 -> 0 | AN82: =data!AL82 -> 0 | AP82: =data!AN82 -> 0 | AR82: =data!AP82 -> 0 | AS82: =data!AQ82 -> 0 | AT82: =data!AR82 -> 0
A83: =data!AV83 -> 0 | B83: =data!AT83 -> 0 | C83: =data!AS83 -> 00:00:00 | D83: =data!B83 -> 0 | E83: =data!C83 -> 0 | F83: =data!D83 -> 0 | G83: =data!E83 -> 00:00:00 | I83: =data!G83 -> 0 | J83: =data!H83 -> 0 | L83: =data!J83 -> 0 | M83: =data!K83 -> 0 | N83: =data!L83 -> 0 | O83: =data!M83 -> 0 | P83: =data!N83 -> 0 | R83: =data!P83 -> 0 | S83: =data!Q83 -> 0 | T83: =data!R83 -> 0 | U83: =data!S83 -> 0 | V83: =data!T83 -> 0 | W83: =data!U83 -> 0 | Y83: =data!W83 -> 0 | AA83: =data!Y83 -> 0 | AB83: =data!Z83 -> 0 | AC83: =data!AA83 -> 0 | AD83: =data!AB83 -> 0 | AE83: =data!AC83 -> 0 | AG83: =data!AE83 -> 0 | AH83: =data!AF83 -> 0 | AI83: =data!AG83 -> 0 | AJ83: =data!AH83 -> 0 | AL83: =data!AJ83 -> 0 | AM83: =data!AK83 -> 0 | AN83: =data!AL83 -> 0 | AP83: =data!AN83 -> 0 | AR83: =data!AP83 -> 0 | AS83: =data!AQ83 -> 0 | AT83: =data!AR83 -> 0
A84: =data!AV84 -> 0 | B84: =data!AT84 -> 0 | C84: =data!AS84 -> 00:00:00 | D84: =data!B84 -> 0 | E84: =data!C84 -> 0 | F84: =data!D84 -> 0 | G84: =data!E84 -> 00:00:00 | I84: =data!G84 -> 0 | J84: =data!H84 -> 0 | L84: =data!J84 -> 0 | M84: =data!K84 -> 0 | N84: =data!L84 -> 0 | O84: =data!M84 -> 0 | P84: =data!N84 -> 0 | R84: =data!P84 -> 0 | S84: =data!Q84 -> 0 | T84: =data!R84 -> 0 | U84: =data!S84 -> 0 | V84: =data!T84 -> 0 | W84: =data!U84 -> 0 | Y84: =data!W84 -> 0 | AA84: =data!Y84 -> 0 | AB84: =data!Z84 -> 0 | AC84: =data!AA84 -> 0 | AD84: =data!AB84 -> 0 | AE84: =data!AC84 -> 0 | AG84: =data!AE84 -> 0 | AH84: =data!AF84 -> 0 | AI84: =data!AG84 -> 0 | AJ84: =data!AH84 -> 0 | AL84: =data!AJ84 -> 0 | AM84: =data!AK84 -> 0 | AN84: =data!AL84 -> 0 | AP84: =data!AN84 -> 0 | AR84: =data!AP84 -> 0 | AS84: =data!AQ84 -> 0 | AT84: =data!AR84 -> 0
A85: =data!AV85 -> 0 | B85: =data!AT85 -> 0 | C85: =data!AS85 -> 00:00:00 | D85: =data!B85 -> 0 | E85: =data!C85 -> 0 | F85: =data!D85 -> 0 | G85: =data!E85 -> 00:00:00 | I85: =data!G85 -> 0 | J85: =data!H85 -> 0 | L85: =data!J85 -> 0 | M85: =data!K85 -> 0 | N85: =data!L85 -> 0 | O85: =data!M85 -> 0 | P85: =data!N85 -> 0 | R85: =data!P85 -> 0 | S85: =data!Q85 -> 0 | T85: =data!R85 -> 0 | U85: =data!S85 -> 0 | V85: =data!T85 -> 0 | W85: =data!U85 -> 0 | Y85: =data!W85 -> 0 | AA85: =data!Y85 -> 0 | AB85: =data!Z85 -> 0 | AC85: =data!AA85 -> 0 | AD85: =data!AB85 -> 0 | AE85: =data!AC85 -> 0 | AG85: =data!AE85 -> 0 | AH85: =data!AF85 -> 0 | AI85: =data!AG85 -> 0 | AJ85: =data!AH85 -> 0 | AL85: =data!AJ85 -> 0 | AM85: =data!AK85 -> 0 | AN85: =data!AL85 -> 0 | AP85: =data!AN85 -> 0 | AR85: =data!AP85 -> 0 | AS85: =data!AQ85 -> 0 | AT85: =data!AR85 -> 0
A86: =data!AV86 -> 0 | B86: =data!AT86 -> 0 | C86: =data!AS86 -> 00:00:00 | D86: =data!B86 -> 0 | E86: =data!C86 -> 0 | F86: =data!D86 -> 0 | G86: =data!E86 -> 00:00:00 | I86: =data!G86 -> 0 | J86: =data!H86 -> 0 | L86: =data!J86 -> 0 | M86: =data!K86 -> 0 | N86: =data!L86 -> 0 | O86: =data!M86 -> 0 | P86: =data!N86 -> 0 | R86: =data!P86 -> 0 | S86: =data!Q86 -> 0 | T86: =data!R86 -> 0 | U86: =data!S86 -> 0 | V86: =data!T86 -> 0 | W86: =data!U86 -> 0 | Y86: =data!W86 -> 0 | AA86: =data!Y86 -> 0 | AB86: =data!Z86 -> 0 | AC86: =data!AA86 -> 0 | AD86: =data!AB86 -> 0 | AE86: =data!AC86 -> 0 | AG86: =data!AE86 -> 0 | AH86: =data!AF86 -> 0 | AI86: =data!AG86 -> 0 | AJ86: =data!AH86 -> 0 | AL86: =data!AJ86 -> 0 | AM86: =data!AK86 -> 0 | AN86: =data!AL86 -> 0 | AP86: =data!AN86 -> 0 | AR86: =data!AP86 -> 0 | AS86: =data!AQ86 -> 0 | AT86: =data!AR86 -> 0
A87: =data!AV87 -> 0 | B87: =data!AT87 -> 0 | C87: =data!AS87 -> 00:00:00 | D87: =data!B87 -> 0 | E87: =data!C87 -> 0 | F87: =data!D87 -> 0 | G87: =data!E87 -> 00:00:00 | I87: =data!G87 -> 0 | J87: =data!H87 -> 0 | L87: =data!J87 -> 0 | M87: =data!K87 -> 0 | N87: =data!L87 -> 0 | O87: =data!M87 -> 0 | P87: =data!N87 -> 0 | R87: =data!P87 -> 0 | S87: =data!Q87 -> 0 | T87: =data!R87 -> 0 | U87: =data!S87 -> 0 | V87: =data!T87 -> 0 | W87: =data!U87 -> 0 | Y87: =data!W87 -> 0 | AA87: =data!Y87 -> 0 | AB87: =data!Z87 -> 0 | AC87: =data!AA87 -> 0 | AD87: =data!AB87 -> 0 | AE87: =data!AC87 -> 0 | AG87: =data!AE87 -> 0 | AH87: =data!AF87 -> 0 | AI87: =data!AG87 -> 0 | AJ87: =data!AH87 -> 0 | AL87: =data!AJ87 -> 0 | AM87: =data!AK87 -> 0 | AN87: =data!AL87 -> 0 | AP87: =data!AN87 -> 0 | AR87: =data!AP87 -> 0 | AS87: =data!AQ87 -> 0 | AT87: =data!AR87 -> 0
A88: =data!AV88 -> 0 | B88: =data!AT88 -> 0 | C88: =data!AS88 -> 00:00:00 | D88: =data!B88 -> 0 | E88: =data!C88 -> 0 | F88: =data!D88 -> 0 | G88: =data!E88 -> 00:00:00 | I88: =data!G88 -> 0 | J88: =data!H88 -> 0 | L88: =data!J88 -> 0 | M88: =data!K88 -> 0 | N88: =data!L88 -> 0 | O88: =data!M88 -> 0 | P88: =data!N88 -> 0 | R88: =data!P88 -> 0 | S88: =data!Q88 -> 0 | T88: =data!R88 -> 0 | U88: =data!S88 -> 0 | V88: =data!T88 -> 0 | W88: =data!U88 -> 0 | Y88: =data!W88 -> 0 | AA88: =data!Y88 -> 0 | AB88: =data!Z88 -> 0 | AC88: =data!AA88 -> 0 | AD88: =data!AB88 -> 0 | AE88: =data!AC88 -> 0 | AG88: =data!AE88 -> 0 | AH88: =data!AF88 -> 0 | AI88: =data!AG88 -> 0 | AJ88: =data!AH88 -> 0 | AL88: =data!AJ88 -> 0 | AM88: =data!AK88 -> 0 | AN88: =data!AL88 -> 0 | AP88: =data!AN88 -> 0 | AR88: =data!AP88 -> 0 | AS88: =data!AQ88 -> 0 | AT88: =data!AR88 -> 0
A89: =data!AV89 -> 0 | B89: =data!AT89 -> 0 | C89: =data!AS89 -> 00:00:00 | D89: =data!B89 -> 0 | E89: =data!C89 -> 0 | F89: =data!D89 -> 0 | G89: =data!E89 -> 00:00:00 | I89: =data!G89 -> 0 | J89: =data!H89 -> 0 | L89: =data!J89 -> 0 | M89: =data!K89 -> 0 | N89: =data!L89 -> 0 | O89: =data!M89 -> 0 | P89: =data!N89 -> 0 | R89: =data!P89 -> 0 | S89: =data!Q89 -> 0 | T89: =data!R89 -> 0 | U89: =data!S89 -> 0 | V89: =data!T89 -> 0 | W89: =data!U89 -> 0 | Y89: =data!W89 -> 0 | AA89: =data!Y89 -> 0 | AB89: =data!Z89 -> 0 | AC89: =data!AA89 -> 0 | AD89: =data!AB89 -> 0 | AE89: =data!AC89 -> 0 | AG89: =data!AE89 -> 0 | AH89: =data!AF89 -> 0 | AI89: =data!AG89 -> 0 | AJ89: =data!AH89 -> 0 | AL89: =data!AJ89 -> 0 | AM89: =data!AK89 -> 0 | AN89: =data!AL89 -> 0 | AP89: =data!AN89 -> 0 | AR89: =data!AP89 -> 0 | AS89: =data!AQ89 -> 0 | AT89: =data!AR89 -> 0
A90: =data!AV90 -> 0 | B90: =data!AT90 -> 0 | C90: =data!AS90 -> 00:00:00 | D90: =data!B90 -> 0 | E90: =data!C90 -> 0 | F90: =data!D90 -> 0 | G90: =data!E90 -> 00:00:00 | I90: =data!G90 -> 0 | J90: =data!H90 -> 0 | L90: =data!J90 -> 0 | M90: =data!K90 -> 0 | N90: =data!L90 -> 0 | O90: =data!M90 -> 0 | P90: =data!N90 -> 0 | R90: =data!P90 -> 0 | S90: =data!Q90 -> 0 | T90: =data!R90 -> 0 | U90: =data!S90 -> 0 | V90: =data!T90 -> 0 | W90: =data!U90 -> 0 | Y90: =data!W90 -> 0 | AA90: =data!Y90 -> 0 | AB90: =data!Z90 -> 0 | AC90: =data!AA90 -> 0 | AD90: =data!AB90 -> 0 | AE90: =data!AC90 -> 0 | AG90: =data!AE90 -> 0 | AH90: =data!AF90 -> 0 | AI90: =data!AG90 -> 0 | AJ90: =data!AH90 -> 0 | AL90: =data!AJ90 -> 0 | AM90: =data!AK90 -> 0 | AN90: =data!AL90 -> 0 | AP90: =data!AN90 -> 0 | AR90: =data!AP90 -> 0 | AS90: =data!AQ90 -> 0 | AT90: =data!AR90 -> 0
A91: =data!AV91 -> 0 | B91: =data!AT91 -> 0 | C91: =data!AS91 -> 00:00:00 | D91: =data!B91 -> 0 | E91: =data!C91 -> 0 | F91: =data!D91 -> 0 | G91: =data!E91 -> 00:00:00 | I91: =data!G91 -> 0 | J91: =data!H91 -> 0 | L91: =data!J91 -> 0 | M91: =data!K91 -> 0 | N91: =data!L91 -> 0 | O91: =data!M91 -> 0 | P91: =data!N91 -> 0 | R91: =data!P91 -> 0 | S91: =data!Q91 -> 0 | T91: =data!R91 -> 0 | U91: =data!S91 -> 0 | V91: =data!T91 -> 0 | W91: =data!U91 -> 0 | Y91: =data!W91 -> 0 | AA91: =data!Y91 -> 0 | AB91: =data!Z91 -> 0 | AC91: =data!AA91 -> 0 | AD91: =data!AB91 -> 0 | AE91: =data!AC91 -> 0 | AG91: =data!AE91 -> 0 | AH91: =data!AF91 -> 0 | AI91: =data!AG91 -> 0 | AJ91: =data!AH91 -> 0 | AL91: =data!AJ91 -> 0 | AM91: =data!AK91 -> 0 | AN91: =data!AL91 -> 0 | AP91: =data!AN91 -> 0 | AR91: =data!AP91 -> 0 | AS91: =data!AQ91 -> 0 | AT91: =data!AR91 -> 0
A92: =data!AV92 -> 0 | B92: =data!AT92 -> 0 | C92: =data!AS92 -> 00:00:00 | D92: =data!B92 -> 0 | E92: =data!C92 -> 0 | F92: =data!D92 -> 0 | G92: =data!E92 -> 00:00:00 | I92: =data!G92 -> 0 | J92: =data!H92 -> 0 | L92: =data!J92 -> 0 | M92: =data!K92 -> 0 | N92: =data!L92 -> 0 | O92: =data!M92 -> 0 | P92: =data!N92 -> 0 | R92: =data!P92 -> 0 | S92: =data!Q92 -> 0 | T92: =data!R92 -> 0 | U92: =data!S92 -> 0 | V92: =data!T92 -> 0 | W92: =data!U92 -> 0 | Y92: =data!W92 -> 0 | AA92: =data!Y92 -> 0 | AB92: =data!Z92 -> 0 | AC92: =data!AA92 -> 0 | AD92: =data!AB92 -> 0 | AE92: =data!AC92 -> 0 | AG92: =data!AE92 -> 0 | AH92: =data!AF92 -> 0 | AI92: =data!AG92 -> 0 | AJ92: =data!AH92 -> 0 | AL92: =data!AJ92 -> 0 | AM92: =data!AK92 -> 0 | AN92: =data!AL92 -> 0 | AP92: =data!AN92 -> 0 | AR92: =data!AP92 -> 0 | AS92: =data!AQ92 -> 0 | AT92: =data!AR92 -> 0
A93: =data!AV93 -> 0 | B93: =data!AT93 -> 0 | C93: =data!AS93 -> 00:00:00 | D93: =data!B93 -> 0 | E93: =data!C93 -> 0 | F93: =data!D93 -> 0 | G93: =data!E93 -> 00:00:00 | I93: =data!G93 -> 0 | J93: =data!H93 -> 0 | L93: =data!J93 -> 0 | M93: =data!K93 -> 0 | N93: =data!L93 -> 0 | O93: =data!M93 -> 0 | P93: =data!N93 -> 0 | R93: =data!P93 -> 0 | S93: =data!Q93 -> 0 | T93: =data!R93 -> 0 | U93: =data!S93 -> 0 | V93: =data!T93 -> 0 | W93: =data!U93 -> 0 | Y93: =data!W93 -> 0 | AA93: =data!Y93 -> 0 | AB93: =data!Z93 -> 0 | AC93: =data!AA93 -> 0 | AD93: =data!AB93 -> 0 | AE93: =data!AC93 -> 0 | AG93: =data!AE93 -> 0 | AH93: =data!AF93 -> 0 | AI93: =data!AG93 -> 0 | AJ93: =data!AH93 -> 0 | AL93: =data!AJ93 -> 0 | AM93: =data!AK93 -> 0 | AN93: =data!AL93 -> 0 | AP93: =data!AN93 -> 0 | AR93: =data!AP93 -> 0 | AS93: =data!AQ93 -> 0 | AT93: =data!AR93 -> 0
A94: =data!AV94 -> 0 | B94: =data!AT94 -> 0 | C94: =data!AS94 -> 00:00:00 | D94: =data!B94 -> 0 | E94: =data!C94 -> 0 | F94: =data!D94 -> 0 | G94: =data!E94 -> 00:00:00 | I94: =data!G94 -> 0 | J94: =data!H94 -> 0 | L94: =data!J94 -> 0 | M94: =data!K94 -> 0 | N94: =data!L94 -> 0 | O94: =data!M94 -> 0 | P94: =data!N94 -> 0 | R94: =data!P94 -> 0 | S94: =data!Q94 -> 0 | T94: =data!R94 -> 0 | U94: =data!S94 -> 0 | V94: =data!T94 -> 0 | W94: =data!U94 -> 0 | Y94: =data!W94 -> 0 | AA94: =data!Y94 -> 0 | AB94: =data!Z94 -> 0 | AC94: =data!AA94 -> 0 | AD94: =data!AB94 -> 0 | AE94: =data!AC94 -> 0 | AG94: =data!AE94 -> 0 | AH94: =data!AF94 -> 0 | AI94: =data!AG94 -> 0 | AJ94: =data!AH94 -> 0 | AL94: =data!AJ94 -> 0 | AM94: =data!AK94 -> 0 | AN94: =data!AL94 -> 0 | AP94: =data!AN94 -> 0 | AR94: =data!AP94 -> 0 | AS94: =data!AQ94 -> 0 | AT94: =data!AR94 -> 0
A95: =data!AV95 -> 0 | B95: =data!AT95 -> 0 | C95: =data!AS95 -> 00:00:00 | D95: =data!B95 -> 0 | E95: =data!C95 -> 0 | F95: =data!D95 -> 0 | G95: =data!E95 -> 00:00:00 | I95: =data!G95 -> 0 | J95: =data!H95 -> 0 | L95: =data!J95 -> 0 | M95: =data!K95 -> 0 | N95: =data!L95 -> 0 | O95: =data!M95 -> 0 | P95: =data!N95 -> 0 | R95: =data!P95 -> 0 | S95: =data!Q95 -> 0 | T95: =data!R95 -> 0 | U95: =data!S95 -> 0 | V95: =data!T95 -> 0 | W95: =data!U95 -> 0 | Y95: =data!W95 -> 0 | AA95: =data!Y95 -> 0 | AB95: =data!Z95 -> 0 | AC95: =data!AA95 -> 0 | AD95: =data!AB95 -> 0 | AE95: =data!AC95 -> 0 | AG95: =data!AE95 -> 0 | AH95: =data!AF95 -> 0 | AI95: =data!AG95 -> 0 | AJ95: =data!AH95 -> 0 | AL95: =data!AJ95 -> 0 | AM95: =data!AK95 -> 0 | AN95: =data!AL95 -> 0 | AP95: =data!AN95 -> 0 | AR95: =data!AP95 -> 0 | AS95: =data!AQ95 -> 0 | AT95: =data!AR95 -> 0
A96: =data!AV96 -> 0 | B96: =data!AT96 -> 0 | C96: =data!AS96 -> 00:00:00 | D96: =data!B96 -> 0 | E96: =data!C96 -> 0 | F96: =data!D96 -> 0 | G96: =data!E96 -> 00:00:00 | I96: =data!G96 -> 0 | J96: =data!H96 -> 0 | L96: =data!J96 -> 0 | M96: =data!K96 -> 0 | N96: =data!L96 -> 0 | O96: =data!M96 -> 0 | P96: =data!N96 -> 0 | R96: =data!P96 -> 0 | S96: =data!Q96 -> 0 | T96: =data!R96 -> 0 | U96: =data!S96 -> 0 | V96: =data!T96 -> 0 | W96: =data!U96 -> 0 | Y96: =data!W96 -> 0 | AA96: =data!Y96 -> 0 | AB96: =data!Z96 -> 0 | AC96: =data!AA96 -> 0 | AD96: =data!AB96 -> 0 | AE96: =data!AC96 -> 0 | AG96: =data!AE96 -> 0 | AH96: =data!AF96 -> 0 | AI96: =data!AG96 -> 0 | AJ96: =data!AH96 -> 0 | AL96: =data!AJ96 -> 0 | AM96: =data!AK96 -> 0 | AN96: =data!AL96 -> 0 | AP96: =data!AN96 -> 0 | AR96: =data!AP96 -> 0 | AS96: =data!AQ96 -> 0 | AT96: =data!AR96 -> 0
A97: =data!AV97 -> 0 | B97: =data!AT97 -> 0 | C97: =data!AS97 -> 00:00:00 | D97: =data!B97 -> 0 | E97: =data!C97 -> 0 | F97: =data!D97 -> 0 | G97: =data!E97 -> 00:00:00 | I97: =data!G97 -> 0 | J97: =data!H97 -> 0 | L97: =data!J97 -> 0 | M97: =data!K97 -> 0 | N97: =data!L97 -> 0 | O97: =data!M97 -> 0 | P97: =data!N97 -> 0 | R97: =data!P97 -> 0 | S97: =data!Q97 -> 0 | T97: =data!R97 -> 0 | U97: =data!S97 -> 0 | V97: =data!T97 -> 0 | W97: =data!U97 -> 0 | Y97: =data!W97 -> 0 | AA97: =data!Y97 -> 0 | AB97: =data!Z97 -> 0 | AC97: =data!AA97 -> 0 | AD97: =data!AB97 -> 0 | AE97: =data!AC97 -> 0 | AG97: =data!AE97 -> 0 | AH97: =data!AF97 -> 0 | AI97: =data!AG97 -> 0 | AJ97: =data!AH97 -> 0 | AL97: =data!AJ97 -> 0 | AM97: =data!AK97 -> 0 | AN97: =data!AL97 -> 0 | AP97: =data!AN97 -> 0 | AR97: =data!AP97 -> 0 | AS97: =data!AQ97 -> 0 | AT97: =data!AR97 -> 0
A98: =data!AV98 -> 0 | B98: =data!AT98 -> 0 | C98: =data!AS98 -> 00:00:00 | D98: =data!B98 -> 0 | E98: =data!C98 -> 0 | F98: =data!D98 -> 0 | G98: =data!E98 -> 00:00:00 | I98: =data!G98 -> 0 | J98: =data!H98 -> 0 | L98: =data!J98 -> 0 | M98: =data!K98 -> 0 | N98: =data!L98 -> 0 | O98: =data!M98 -> 0 | P98: =data!N98 -> 0 | R98: =data!P98 -> 0 | S98: =data!Q98 -> 0 | T98: =data!R98 -> 0 | U98: =data!S98 -> 0 | V98: =data!T98 -> 0 | W98: =data!U98 -> 0 | Y98: =data!W98 -> 0 | AA98: =data!Y98 -> 0 | AB98: =data!Z98 -> 0 | AC98: =data!AA98 -> 0 | AD98: =data!AB98 -> 0 | AE98: =data!AC98 -> 0 | AG98: =data!AE98 -> 0 | AH98: =data!AF98 -> 0 | AI98: =data!AG98 -> 0 | AJ98: =data!AH98 -> 0 | AL98: =data!AJ98 -> 0 | AM98: =data!AK98 -> 0 | AN98: =data!AL98 -> 0 | AP98: =data!AN98 -> 0 | AR98: =data!AP98 -> 0 | AS98: =data!AQ98 -> 0 | AT98: =data!AR98 -> 0
A99: =data!AV99 -> 0 | B99: =data!AT99 -> 0 | C99: =data!AS99 -> 00:00:00 | D99: =data!B99 -> 0 | E99: =data!C99 -> 0 | F99: =data!D99 -> 0 | G99: =data!E99 -> 00:00:00 | I99: =data!G99 -> 0 | J99: =data!H99 -> 0 | L99: =data!J99 -> 0 | M99: =data!K99 -> 0 | N99: =data!L99 -> 0 | O99: =data!M99 -> 0 | P99: =data!N99 -> 0 | R99: =data!P99 -> 0 | S99: =data!Q99 -> 0 | T99: =data!R99 -> 0 | U99: =data!S99 -> 0 | V99: =data!T99 -> 0 | W99: =data!U99 -> 0 | Y99: =data!W99 -> 0 | AA99: =data!Y99 -> 0 | AB99: =data!Z99 -> 0 | AC99: =data!AA99 -> 0 | AD99: =data!AB99 -> 0 | AE99: =data!AC99 -> 0 | AG99: =data!AE99 -> 0 | AH99: =data!AF99 -> 0 | AI99: =data!AG99 -> 0 | AJ99: =data!AH99 -> 0 | AL99: =data!AJ99 -> 0 | AM99: =data!AK99 -> 0 | AN99: =data!AL99 -> 0 | AP99: =data!AN99 -> 0 | AR99: =data!AP99 -> 0 | AS99: =data!AQ99 -> 0 | AT99: =data!AR99 -> 0
A100: =data!AV100 -> 0 | B100: =data!AT100 -> 0 | C100: =data!AS100 -> 00:00:00 | D100: =data!B100 -> 0 | E100: =data!C100 -> 0 | F100: =data!D100 -> 0 | G100: =data!E100 -> 00:00:00 | I100: =data!G100 -> 0 | J100: =data!H100 -> 0 | L100: =data!J100 -> 0 | M100: =data!K100 -> 0 | N100: =data!L100 -> 0 | O100: =data!M100 -> 0 | P100: =data!N100 -> 0 | R100: =data!P100 -> 0 | S100: =data!Q100 -> 0 | T100: =data!R100 -> 0 | U100: =data!S100 -> 0 | V100: =data!T100 -> 0 | W100: =data!U100 -> 0 | Y100: =data!W100 -> 0 | AA100: =data!Y100 -> 0 | AB100: =data!Z100 -> 0 | AC100: =data!AA100 -> 0 | AD100: =data!AB100 -> 0 | AE100: =data!AC100 -> 0 | AG100: =data!AE100 -> 0 | AH100: =data!AF100 -> 0 | AI100: =data!AG100 -> 0 | AJ100: =data!AH100 -> 0 | AL100: =data!AJ100 -> 0 | AM100: =data!AK100 -> 0 | AN100: =data!AL100 -> 0 | AP100: =data!AN100 -> 0 | AR100: =data!AP100 -> 0 | AS100: =data!AQ100 -> 0 | AT100: =data!AR100 -> 0
A101: =data!AV101 -> 0 | B101: =data!AT101 -> 0 | C101: =data!AS101 -> 00:00:00 | D101: =data!B101 -> 0 | E101: =data!C101 -> 0 | F101: =data!D101 -> 0 | G101: =data!E101 -> 00:00:00 | I101: =data!G101 -> 0 | J101: =data!H101 -> 0 | L101: =data!J101 -> 0 | M101: =data!K101 -> 0 | N101: =data!L101 -> 0 | O101: =data!M101 -> 0 | P101: =data!N101 -> 0 | R101: =data!P101 -> 0 | S101: =data!Q101 -> 0 | T101: =data!R101 -> 0 | U101: =data!S101 -> 0 | V101: =data!T101 -> 0 | W101: =data!U101 -> 0 | Y101: =data!W101 -> 0 | AA101: =data!Y101 -> 0 | AB101: =data!Z101 -> 0 | AC101: =data!AA101 -> 0 | AD101: =data!AB101 -> 0 | AE101: =data!AC101 -> 0 | AG101: =data!AE101 -> 0 | AH101: =data!AF101 -> 0 | AI101: =data!AG101 -> 0 | AJ101: =data!AH101 -> 0 | AL101: =data!AJ101 -> 0 | AM101: =data!AK101 -> 0 | AN101: =data!AL101 -> 0 | AP101: =data!AN101 -> 0 | AR101: =data!AP101 -> 0 | AS101: =data!AQ101 -> 0 | AT101: =data!AR101 -> 0
A102: =data!AV102 -> 0 | B102: =data!AT102 -> 0 | C102: =data!AS102 -> 00:00:00 | D102: =data!B102 -> 0 | E102: =data!C102 -> 0 | F102: =data!D102 -> 0 | G102: =data!E102 -> 00:00:00 | I102: =data!G102 -> 0 | J102: =data!H102 -> 0 | L102: =data!J102 -> 0 | M102: =data!K102 -> 0 | N102: =data!L102 -> 0 | O102: =data!M102 -> 0 | P102: =data!N102 -> 0 | R102: =data!P102 -> 0 | S102: =data!Q102 -> 0 | T102: =data!R102 -> 0 | U102: =data!S102 -> 0 | V102: =data!T102 -> 0 | W102: =data!U102 -> 0 | Y102: =data!W102 -> 0 | AA102: =data!Y102 -> 0 | AB102: =data!Z102 -> 0 | AC102: =data!AA102 -> 0 | AD102: =data!AB102 -> 0 | AE102: =data!AC102 -> 0 | AG102: =data!AE102 -> 0 | AH102: =data!AF102 -> 0 | AI102: =data!AG102 -> 0 | AJ102: =data!AH102 -> 0 | AL102: =data!AJ102 -> 0 | AM102: =data!AK102 -> 0 | AN102: =data!AL102 -> 0 | AP102: =data!AN102 -> 0 | AR102: =data!AP102 -> 0 | AS102: =data!AQ102 -> 0 | AT102: =data!AR102 -> 0
A103: =data!AV103 -> 0 | B103: =data!AT103 -> 0 | C103: =data!AS103 -> 00:00:00 | D103: =data!B103 -> 0 | E103: =data!C103 -> 0 | F103: =data!D103 -> 0 | G103: =data!E103 -> 00:00:00 | I103: =data!G103 -> 0 | J103: =data!H103 -> 0 | L103: =data!J103 -> 0 | M103: =data!K103 -> 0 | N103: =data!L103 -> 0 | O103: =data!M103 -> 0 | P103: =data!N103 -> 0 | R103: =data!P103 -> 0 | S103: =data!Q103 -> 0 | T103: =data!R103 -> 0 | U103: =data!S103 -> 0 | V103: =data!T103 -> 0 | W103: =data!U103 -> 0 | Y103: =data!W103 -> 0 | AA103: =data!Y103 -> 0 | AB103: =data!Z103 -> 0 | AC103: =data!AA103 -> 0 | AD103: =data!AB103 -> 0 | AE103: =data!AC103 -> 0 | AG103: =data!AE103 -> 0 | AH103: =data!AF103 -> 0 | AI103: =data!AG103 -> 0 | AJ103: =data!AH103 -> 0 | AL103: =data!AJ103 -> 0 | AM103: =data!AK103 -> 0 | AN103: =data!AL103 -> 0 | AP103: =data!AN103 -> 0 | AR103: =data!AP103 -> 0 | AS103: =data!AQ103 -> 0 | AT103: =data!AR103 -> 0
A104: =data!AV104 -> 0 | B104: =data!AT104 -> 0 | C104: =data!AS104 -> 00:00:00 | D104: =data!B104 -> 0 | E104: =data!C104 -> 0 | F104: =data!D104 -> 0 | G104: =data!E104 -> 00:00:00 | I104: =data!G104 -> 0 | J104: =data!H104 -> 0 | L104: =data!J104 -> 0 | M104: =data!K104 -> 0 | N104: =data!L104 -> 0 | O104: =data!M104 -> 0 | P104: =data!N104 -> 0 | R104: =data!P104 -> 0 | S104: =data!Q104 -> 0 | T104: =data!R104 -> 0 | U104: =data!S104 -> 0 | V104: =data!T104 -> 0 | W104: =data!U104 -> 0 | Y104: =data!W104 -> 0 | AA104: =data!Y104 -> 0 | AB104: =data!Z104 -> 0 | AC104: =data!AA104 -> 0 | AD104: =data!AB104 -> 0 | AE104: =data!AC104 -> 0 | AG104: =data!AE104 -> 0 | AH104: =data!AF104 -> 0 | AI104: =data!AG104 -> 0 | AJ104: =data!AH104 -> 0 | AL104: =data!AJ104 -> 0 | AM104: =data!AK104 -> 0 | AN104: =data!AL104 -> 0 | AP104: =data!AN104 -> 0 | AR104: =data!AP104 -> 0 | AS104: =data!AQ104 -> 0 | AT104: =data!AR104 -> 0
A105: =data!AV105 -> 0 | B105: =data!AT105 -> 0 | C105: =data!AS105 -> 00:00:00 | D105: =data!B105 -> 0 | E105: =data!C105 -> 0 | F105: =data!D105 -> 0 | G105: =data!E105 -> 00:00:00 | I105: =data!G105 -> 0 | J105: =data!H105 -> 0 | L105: =data!J105 -> 0 | M105: =data!K105 -> 0 | N105: =data!L105 -> 0 | O105: =data!M105 -> 0 | P105: =data!N105 -> 0 | R105: =data!P105 -> 0 | S105: =data!Q105 -> 0 | T105: =data!R105 -> 0 | U105: =data!S105 -> 0 | V105: =data!T105 -> 0 | W105: =data!U105 -> 0 | Y105: =data!W105 -> 0 | AA105: =data!Y105 -> 0 | AB105: =data!Z105 -> 0 | AC105: =data!AA105 -> 0 | AD105: =data!AB105 -> 0 | AE105: =data!AC105 -> 0 | AG105: =data!AE105 -> 0 | AH105: =data!AF105 -> 0 | AI105: =data!AG105 -> 0 | AJ105: =data!AH105 -> 0 | AL105: =data!AJ105 -> 0 | AM105: =data!AK105 -> 0 | AN105: =data!AL105 -> 0 | AP105: =data!AN105 -> 0 | AR105: =data!AP105 -> 0 | AS105: =data!AQ105 -> 0 | AT105: =data!AR105 -> 0
A106: =data!AV106 -> 0 | B106: =data!AT106 -> 0 | C106: =data!AS106 -> 00:00:00 | D106: =data!B106 -> 0 | E106: =data!C106 -> 0 | F106: =data!D106 -> 0 | G106: =data!E106 -> 00:00:00 | I106: =data!G106 -> 0 | J106: =data!H106 -> 0 | L106: =data!J106 -> 0 | M106: =data!K106 -> 0 | N106: =data!L106 -> 0 | O106: =data!M106 -> 0 | P106: =data!N106 -> 0 | R106: =data!P106 -> 0 | S106: =data!Q106 -> 0 | T106: =data!R106 -> 0 | U106: =data!S106 -> 0 | V106: =data!T106 -> 0 | W106: =data!U106 -> 0 | Y106: =data!W106 -> 0 | AA106: =data!Y106 -> 0 | AB106: =data!Z106 -> 0 | AC106: =data!AA106 -> 0 | AD106: =data!AB106 -> 0 | AE106: =data!AC106 -> 0 | AG106: =data!AE106 -> 0 | AH106: =data!AF106 -> 0 | AI106: =data!AG106 -> 0 | AJ106: =data!AH106 -> 0 | AL106: =data!AJ106 -> 0 | AM106: =data!AK106 -> 0 | AN106: =data!AL106 -> 0 | AP106: =data!AN106 -> 0 | AR106: =data!AP106 -> 0 | AS106: =data!AQ106 -> 0 | AT106: =data!AR106 -> 0
A107: =data!AV107 -> 0 | B107: =data!AT107 -> 0 | C107: =data!AS107 -> 00:00:00 | D107: =data!B107 -> 0 | E107: =data!C107 -> 0 | F107: =data!D107 -> 0 | G107: =data!E107 -> 00:00:00 | I107: =data!G107 -> 0 | J107: =data!H107 -> 0 | L107: =data!J107 -> 0 | M107: =data!K107 -> 0 | N107: =data!L107 -> 0 | O107: =data!M107 -> 0 | P107: =data!N107 -> 0 | R107: =data!P107 -> 0 | S107: =data!Q107 -> 0 | T107: =data!R107 -> 0 | U107: =data!S107 -> 0 | V107: =data!T107 -> 0 | W107: =data!U107 -> 0 | Y107: =data!W107 -> 0 | AA107: =data!Y107 -> 0 | AB107: =data!Z107 -> 0 | AC107: =data!AA107 -> 0 | AD107: =data!AB107 -> 0 | AE107: =data!AC107 -> 0 | AG107: =data!AE107 -> 0 | AH107: =data!AF107 -> 0 | AI107: =data!AG107 -> 0 | AJ107: =data!AH107 -> 0 | AL107: =data!AJ107 -> 0 | AM107: =data!AK107 -> 0 | AN107: =data!AL107 -> 0 | AP107: =data!AN107 -> 0 | AR107: =data!AP107 -> 0 | AS107: =data!AQ107 -> 0 | AT107: =data!AR107 -> 0
A108: =data!AV108 -> 0 | B108: =data!AT108 -> 0 | C108: =data!AS108 -> 00:00:00 | D108: =data!B108 -> 0 | E108: =data!C108 -> 0 | F108: =data!D108 -> 0 | G108: =data!E108 -> 00:00:00 | I108: =data!G108 -> 0 | J108: =data!H108 -> 0 | L108: =data!J108 -> 0 | M108: =data!K108 -> 0 | N108: =data!L108 -> 0 | O108: =data!M108 -> 0 | P108: =data!N108 -> 0 | R108: =data!P108 -> 0 | S108: =data!Q108 -> 0 | T108: =data!R108 -> 0 | U108: =data!S108 -> 0 | V108: =data!T108 -> 0 | W108: =data!U108 -> 0 | Y108: =data!W108 -> 0 | AA108: =data!Y108 -> 0 | AB108: =data!Z108 -> 0 | AC108: =data!AA108 -> 0 | AD108: =data!AB108 -> 0 | AE108: =data!AC108 -> 0 | AG108: =data!AE108 -> 0 | AH108: =data!AF108 -> 0 | AI108: =data!AG108 -> 0 | AJ108: =data!AH108 -> 0 | AL108: =data!AJ108 -> 0 | AM108: =data!AK108 -> 0 | AN108: =data!AL108 -> 0 | AP108: =data!AN108 -> 0 | AR108: =data!AP108 -> 0 | AS108: =data!AQ108 -> 0 | AT108: =data!AR108 -> 0
A109: =data!AV109 -> 0 | B109: =data!AT109 -> 0 | C109: =data!AS109 -> 00:00:00 | D109: =data!B109 -> 0 | E109: =data!C109 -> 0 | F109: =data!D109 -> 0 | G109: =data!E109 -> 00:00:00 | I109: =data!G109 -> 0 | J109: =data!H109 -> 0 | L109: =data!J109 -> 0 | M109: =data!K109 -> 0 | N109: =data!L109 -> 0 | O109: =data!M109 -> 0 | P109: =data!N109 -> 0 | R109: =data!P109 -> 0 | S109: =data!Q109 -> 0 | T109: =data!R109 -> 0 | U109: =data!S109 -> 0 | V109: =data!T109 -> 0 | W109: =data!U109 -> 0 | Y109: =data!W109 -> 0 | AA109: =data!Y109 -> 0 | AB109: =data!Z109 -> 0 | AC109: =data!AA109 -> 0 | AD109: =data!AB109 -> 0 | AE109: =data!AC109 -> 0 | AG109: =data!AE109 -> 0 | AH109: =data!AF109 -> 0 | AI109: =data!AG109 -> 0 | AJ109: =data!AH109 -> 0 | AL109: =data!AJ109 -> 0 | AM109: =data!AK109 -> 0 | AN109: =data!AL109 -> 0 | AP109: =data!AN109 -> 0 | AR109: =data!AP109 -> 0 | AS109: =data!AQ109 -> 0 | AT109: =data!AR109 -> 0
A110: =data!AV110 -> 0 | B110: =data!AT110 -> 0 | C110: =data!AS110 -> 00:00:00 | D110: =data!B110 -> 0 | E110: =data!C110 -> 0 | F110: =data!D110 -> 0 | G110: =data!E110 -> 00:00:00 | I110: =data!G110 -> 0 | J110: =data!H110 -> 0 | L110: =data!J110 -> 0 | M110: =data!K110 -> 0 | N110: =data!L110 -> 0 | O110: =data!M110 -> 0 | P110: =data!N110 -> 0 | R110: =data!P110 -> 0 | S110: =data!Q110 -> 0 | T110: =data!R110 -> 0 | U110: =data!S110 -> 0 | V110: =data!T110 -> 0 | W110: =data!U110 -> 0 | Y110: =data!W110 -> 0 | AA110: =data!Y110 -> 0 | AB110: =data!Z110 -> 0 | AC110: =data!AA110 -> 0 | AD110: =data!AB110 -> 0 | AE110: =data!AC110 -> 0 | AG110: =data!AE110 -> 0 | AH110: =data!AF110 -> 0 | AI110: =data!AG110 -> 0 | AJ110: =data!AH110 -> 0 | AL110: =data!AJ110 -> 0 | AM110: =data!AK110 -> 0 | AN110: =data!AL110 -> 0 | AP110: =data!AN110 -> 0 | AR110: =data!AP110 -> 0 | AS110: =data!AQ110 -> 0 | AT110: =data!AR110 -> 0
A111: =data!AV111 -> 0 | B111: =data!AT111 -> 0 | C111: =data!AS111 -> 00:00:00 | D111: =data!B111 -> 0 | E111: =data!C111 -> 0 | F111: =data!D111 -> 0 | G111: =data!E111 -> 00:00:00 | I111: =data!G111 -> 0 | J111: =data!H111 -> 0 | L111: =data!J111 -> 0 | M111: =data!K111 -> 0 | N111: =data!L111 -> 0 | O111: =data!M111 -> 0 | P111: =data!N111 -> 0 | R111: =data!P111 -> 0 | S111: =data!Q111 -> 0 | T111: =data!R111 -> 0 | U111: =data!S111 -> 0 | V111: =data!T111 -> 0 | W111: =data!U111 -> 0 | Y111: =data!W111 -> 0 | AA111: =data!Y111 -> 0 | AB111: =data!Z111 -> 0 | AC111: =data!AA111 -> 0 | AD111: =data!AB111 -> 0 | AE111: =data!AC111 -> 0 | AG111: =data!AE111 -> 0 | AH111: =data!AF111 -> 0 | AI111: =data!AG111 -> 0 | AJ111: =data!AH111 -> 0 | AL111: =data!AJ111 -> 0 | AM111: =data!AK111 -> 0 | AN111: =data!AL111 -> 0 | AP111: =data!AN111 -> 0 | AR111: =data!AP111 -> 0 | AS111: =data!AQ111 -> 0 | AT111: =data!AR111 -> 0
A112: =data!AV112 -> 0 | B112: =data!AT112 -> 0 | C112: =data!AS112 -> 00:00:00 | D112: =data!B112 -> 0 | E112: =data!C112 -> 0 | F112: =data!D112 -> 0 | G112: =data!E112 -> 00:00:00 | I112: =data!G112 -> 0 | J112: =data!H112 -> 0 | L112: =data!J112 -> 0 | M112: =data!K112 -> 0 | N112: =data!L112 -> 0 | O112: =data!M112 -> 0 | P112: =data!N112 -> 0 | R112: =data!P112 -> 0 | S112: =data!Q112 -> 0 | T112: =data!R112 -> 0 | U112: =data!S112 -> 0 | V112: =data!T112 -> 0 | W112: =data!U112 -> 0 | Y112: =data!W112 -> 0 | AA112: =data!Y112 -> 0 | AB112: =data!Z112 -> 0 | AC112: =data!AA112 -> 0 | AD112: =data!AB112 -> 0 | AE112: =data!AC112 -> 0 | AG112: =data!AE112 -> 0 | AH112: =data!AF112 -> 0 | AI112: =data!AG112 -> 0 | AJ112: =data!AH112 -> 0 | AL112: =data!AJ112 -> 0 | AM112: =data!AK112 -> 0 | AN112: =data!AL112 -> 0 | AP112: =data!AN112 -> 0 | AR112: =data!AP112 -> 0 | AS112: =data!AQ112 -> 0 | AT112: =data!AR112 -> 0
A113: =data!AV113 -> 0 | B113: =data!AT113 -> 0 | C113: =data!AS113 -> 00:00:00 | D113: =data!B113 -> 0 | E113: =data!C113 -> 0 | F113: =data!D113 -> 0 | G113: =data!E113 -> 00:00:00 | I113: =data!G113 -> 0 | J113: =data!H113 -> 0 | L113: =data!J113 -> 0 | M113: =data!K113 -> 0 | N113: =data!L113 -> 0 | O113: =data!M113 -> 0 | P113: =data!N113 -> 0 | R113: =data!P113 -> 0 | S113: =data!Q113 -> 0 | T113: =data!R113 -> 0 | U113: =data!S113 -> 0 | V113: =data!T113 -> 0 | W113: =data!U113 -> 0 | Y113: =data!W113 -> 0 | AA113: =data!Y113 -> 0 | AB113: =data!Z113 -> 0 | AC113: =data!AA113 -> 0 | AD113: =data!AB113 -> 0 | AE113: =data!AC113 -> 0 | AG113: =data!AE113 -> 0 | AH113: =data!AF113 -> 0 | AI113: =data!AG113 -> 0 | AJ113: =data!AH113 -> 0 | AL113: =data!AJ113 -> 0 | AM113: =data!AK113 -> 0 | AN113: =data!AL113 -> 0 | AP113: =data!AN113 -> 0 | AR113: =data!AP113 -> 0 | AS113: =data!AQ113 -> 0 | AT113: =data!AR113 -> 0
A114: =data!AV114 -> 0 | B114: =data!AT114 -> 0 | C114: =data!AS114 -> 00:00:00 | D114: =data!B114 -> 0 | E114: =data!C114 -> 0 | F114: =data!D114 -> 0 | G114: =data!E114 -> 00:00:00 | I114: =data!G114 -> 0 | J114: =data!H114 -> 0 | L114: =data!J114 -> 0 | M114: =data!K114 -> 0 | N114: =data!L114 -> 0 | O114: =data!M114 -> 0 | P114: =data!N114 -> 0 | R114: =data!P114 -> 0 | S114: =data!Q114 -> 0 | T114: =data!R114 -> 0 | U114: =data!S114 -> 0 | V114: =data!T114 -> 0 | W114: =data!U114 -> 0 | Y114: =data!W114 -> 0 | AA114: =data!Y114 -> 0 | AB114: =data!Z114 -> 0 | AC114: =data!AA114 -> 0 | AD114: =data!AB114 -> 0 | AE114: =data!AC114 -> 0 | AG114: =data!AE114 -> 0 | AH114: =data!AF114 -> 0 | AI114: =data!AG114 -> 0 | AJ114: =data!AH114 -> 0 | AL114: =data!AJ114 -> 0 | AM114: =data!AK114 -> 0 | AN114: =data!AL114 -> 0 | AP114: =data!AN114 -> 0 | AR114: =data!AP114 -> 0 | AS114: =data!AQ114 -> 0 | AT114: =data!AR114 -> 0
A115: =data!AV115 -> 0 | B115: =data!AT115 -> 0 | C115: =data!AS115 -> 00:00:00 | D115: =data!B115 -> 0 | E115: =data!C115 -> 0 | F115: =data!D115 -> 0 | G115: =data!E115 -> 00:00:00 | I115: =data!G115 -> 0 | J115: =data!H115 -> 0 | L115: =data!J115 -> 0 | M115: =data!K115 -> 0 | N115: =data!L115 -> 0 | O115: =data!M115 -> 0 | P115: =data!N115 -> 0 | R115: =data!P115 -> 0 | S115: =data!Q115 -> 0 | T115: =data!R115 -> 0 | U115: =data!S115 -> 0 | V115: =data!T115 -> 0 | W115: =data!U115 -> 0 | Y115: =data!W115 -> 0 | AA115: =data!Y115 -> 0 | AB115: =data!Z115 -> 0 | AC115: =data!AA115 -> 0 | AD115: =data!AB115 -> 0 | AE115: =data!AC115 -> 0 | AG115: =data!AE115 -> 0 | AH115: =data!AF115 -> 0 | AI115: =data!AG115 -> 0 | AJ115: =data!AH115 -> 0 | AL115: =data!AJ115 -> 0 | AM115: =data!AK115 -> 0 | AN115: =data!AL115 -> 0 | AP115: =data!AN115 -> 0 | AR115: =data!AP115 -> 0 | AS115: =data!AQ115 -> 0 | AT115: =data!AR115 -> 0
A116: =data!AV116 -> 0 | B116: =data!AT116 -> 0 | C116: =data!AS116 -> 00:00:00 | D116: =data!B116 -> 0 | E116: =data!C116 -> 0 | F116: =data!D116 -> 0 | G116: =data!E116 -> 00:00:00 | I116: =data!G116 -> 0 | J116: =data!H116 -> 0 | L116: =data!J116 -> 0 | M116: =data!K116 -> 0 | N116: =data!L116 -> 0 | O116: =data!M116 -> 0 | P116: =data!N116 -> 0 | R116: =data!P116 -> 0 | S116: =data!Q116 -> 0 | T116: =data!R116 -> 0 | U116: =data!S116 -> 0 | V116: =data!T116 -> 0 | W116: =data!U116 -> 0 | Y116: =data!W116 -> 0 | AA116: =data!Y116 -> 0 | AB116: =data!Z116 -> 0 | AC116: =data!AA116 -> 0 | AD116: =data!AB116 -> 0 | AE116: =data!AC116 -> 0 | AG116: =data!AE116 -> 0 | AH116: =data!AF116 -> 0 | AI116: =data!AG116 -> 0 | AJ116: =data!AH116 -> 0 | AL116: =data!AJ116 -> 0 | AM116: =data!AK116 -> 0 | AN116: =data!AL116 -> 0 | AP116: =data!AN116 -> 0 | AR116: =data!AP116 -> 0 | AS116: =data!AQ116 -> 0 | AT116: =data!AR116 -> 0
A117: =data!AV117 -> 0 | B117: =data!AT117 -> 0 | C117: =data!AS117 -> 00:00:00 | D117: =data!B117 -> 0 | E117: =data!C117 -> 0 | F117: =data!D117 -> 0 | G117: =data!E117 -> 00:00:00 | I117: =data!G117 -> 0 | J117: =data!H117 -> 0 | L117: =data!J117 -> 0 | M117: =data!K117 -> 0 | N117: =data!L117 -> 0 | O117: =data!M117 -> 0 | P117: =data!N117 -> 0 | R117: =data!P117 -> 0 | S117: =data!Q117 -> 0 | T117: =data!R117 -> 0 | U117: =data!S117 -> 0 | V117: =data!T117 -> 0 | W117: =data!U117 -> 0 | Y117: =data!W117 -> 0 | AA117: =data!Y117 -> 0 | AB117: =data!Z117 -> 0 | AC117: =data!AA117 -> 0 | AD117: =data!AB117 -> 0 | AE117: =data!AC117 -> 0 | AG117: =data!AE117 -> 0 | AH117: =data!AF117 -> 0 | AI117: =data!AG117 -> 0 | AJ117: =data!AH117 -> 0 | AL117: =data!AJ117 -> 0 | AM117: =data!AK117 -> 0 | AN117: =data!AL117 -> 0 | AP117: =data!AN117 -> 0 | AR117: =data!AP117 -> 0 | AS117: =data!AQ117 -> 0 | AT117: =data!AR117 -> 0
A118: =data!AV118 -> 0 | B118: =data!AT118 -> 0 | C118: =data!AS118 -> 00:00:00 | D118: =data!B118 -> 0 | E118: =data!C118 -> 0 | F118: =data!D118 -> 0 | G118: =data!E118 -> 00:00:00 | I118: =data!G118 -> 0 | J118: =data!H118 -> 0 | L118: =data!J118 -> 0 | M118: =data!K118 -> 0 | N118: =data!L118 -> 0 | O118: =data!M118 -> 0 | P118: =data!N118 -> 0 | R118: =data!P118 -> 0 | S118: =data!Q118 -> 0 | T118: =data!R118 -> 0 | U118: =data!S118 -> 0 | V118: =data!T118 -> 0 | W118: =data!U118 -> 0 | Y118: =data!W118 -> 0 | AA118: =data!Y118 -> 0 | AB118: =data!Z118 -> 0 | AC118: =data!AA118 -> 0 | AD118: =data!AB118 -> 0 | AE118: =data!AC118 -> 0 | AG118: =data!AE118 -> 0 | AH118: =data!AF118 -> 0 | AI118: =data!AG118 -> 0 | AJ118: =data!AH118 -> 0 | AL118: =data!AJ118 -> 0 | AM118: =data!AK118 -> 0 | AN118: =data!AL118 -> 0 | AP118: =data!AN118 -> 0 | AR118: =data!AP118 -> 0 | AS118: =data!AQ118 -> 0 | AT118: =data!AR118 -> 0
A119: =data!AV119 -> 0 | B119: =data!AT119 -> 0 | C119: =data!AS119 -> 00:00:00 | D119: =data!B119 -> 0 | E119: =data!C119 -> 0 | F119: =data!D119 -> 0 | G119: =data!E119 -> 00:00:00 | I119: =data!G119 -> 0 | J119: =data!H119 -> 0 | L119: =data!J119 -> 0 | M119: =data!K119 -> 0 | N119: =data!L119 -> 0 | O119: =data!M119 -> 0 | P119: =data!N119 -> 0 | R119: =data!P119 -> 0 | S119: =data!Q119 -> 0 | T119: =data!R119 -> 0 | U119: =data!S119 -> 0 | V119: =data!T119 -> 0 | W119: =data!U119 -> 0 | Y119: =data!W119 -> 0 | AA119: =data!Y119 -> 0 | AB119: =data!Z119 -> 0 | AC119: =data!AA119 -> 0 | AD119: =data!AB119 -> 0 | AE119: =data!AC119 -> 0 | AG119: =data!AE119 -> 0 | AH119: =data!AF119 -> 0 | AI119: =data!AG119 -> 0 | AJ119: =data!AH119 -> 0 | AL119: =data!AJ119 -> 0 | AM119: =data!AK119 -> 0 | AN119: =data!AL119 -> 0 | AP119: =data!AN119 -> 0 | AR119: =data!AP119 -> 0 | AS119: =data!AQ119 -> 0 | AT119: =data!AR119 -> 0
A120: =data!AV120 -> 0 | B120: =data!AT120 -> 0 | C120: =data!AS120 -> 00:00:00 | D120: =data!B120 -> 0 | E120: =data!C120 -> 0 | F120: =data!D120 -> 0 | G120: =data!E120 -> 00:00:00 | I120: =data!G120 -> 0 | J120: =data!H120 -> 0 | L120: =data!J120 -> 0 | M120: =data!K120 -> 0 | N120: =data!L120 -> 0 | O120: =data!M120 -> 0 | P120: =data!N120 -> 0 | R120: =data!P120 -> 0 | S120: =data!Q120 -> 0 | T120: =data!R120 -> 0 | U120: =data!S120 -> 0 | V120: =data!T120 -> 0 | W120: =data!U120 -> 0 | Y120: =data!W120 -> 0 | AA120: =data!Y120 -> 0 | AB120: =data!Z120 -> 0 | AC120: =data!AA120 -> 0 | AD120: =data!AB120 -> 0 | AE120: =data!AC120 -> 0 | AG120: =data!AE120 -> 0 | AH120: =data!AF120 -> 0 | AI120: =data!AG120 -> 0 | AJ120: =data!AH120 -> 0 | AL120: =data!AJ120 -> 0 | AM120: =data!AK120 -> 0 | AN120: =data!AL120 -> 0 | AP120: =data!AN120 -> 0 | AR120: =data!AP120 -> 0 | AS120: =data!AQ120 -> 0 | AT120: =data!AR120 -> 0
A121: =data!AV121 -> 0 | B121: =data!AT121 -> 0 | C121: =data!AS121 -> 00:00:00 | D121: =data!B121 -> 0 | E121: =data!C121 -> 0 | F121: =data!D121 -> 0 | G121: =data!E121 -> 00:00:00 | I121: =data!G121 -> 0 | J121: =data!H121 -> 0 | L121: =data!J121 -> 0 | M121: =data!K121 -> 0 | N121: =data!L121 -> 0 | O121: =data!M121 -> 0 | P121: =data!N121 -> 0 | R121: =data!P121 -> 0 | S121: =data!Q121 -> 0 | T121: =data!R121 -> 0 | U121: =data!S121 -> 0 | V121: =data!T121 -> 0 | W121: =data!U121 -> 0 | Y121: =data!W121 -> 0 | AA121: =data!Y121 -> 0 | AB121: =data!Z121 -> 0 | AC121: =data!AA121 -> 0 | AD121: =data!AB121 -> 0 | AE121: =data!AC121 -> 0 | AG121: =data!AE121 -> 0 | AH121: =data!AF121 -> 0 | AI121: =data!AG121 -> 0 | AJ121: =data!AH121 -> 0 | AL121: =data!AJ121 -> 0 | AM121: =data!AK121 -> 0 | AN121: =data!AL121 -> 0 | AP121: =data!AN121 -> 0 | AR121: =data!AP121 -> 0 | AS121: =data!AQ121 -> 0 | AT121: =data!AR121 -> 0
A122: =data!AV122 -> 0 | B122: =data!AT122 -> 0 | C122: =data!AS122 -> 00:00:00 | D122: =data!B122 -> 0 | E122: =data!C122 -> 0 | F122: =data!D122 -> 0 | G122: =data!E122 -> 00:00:00 | I122: =data!G122 -> 0 | J122: =data!H122 -> 0 | L122: =data!J122 -> 0 | M122: =data!K122 -> 0 | N122: =data!L122 -> 0 | O122: =data!M122 -> 0 | P122: =data!N122 -> 0 | R122: =data!P122 -> 0 | S122: =data!Q122 -> 0 | T122: =data!R122 -> 0 | U122: =data!S122 -> 0 | V122: =data!T122 -> 0 | W122: =data!U122 -> 0 | Y122: =data!W122 -> 0 | AA122: =data!Y122 -> 0 | AB122: =data!Z122 -> 0 | AC122: =data!AA122 -> 0 | AD122: =data!AB122 -> 0 | AE122: =data!AC122 -> 0 | AG122: =data!AE122 -> 0 | AH122: =data!AF122 -> 0 | AI122: =data!AG122 -> 0 | AJ122: =data!AH122 -> 0 | AL122: =data!AJ122 -> 0 | AM122: =data!AK122 -> 0 | AN122: =data!AL122 -> 0 | AP122: =data!AN122 -> 0 | AR122: =data!AP122 -> 0 | AS122: =data!AQ122 -> 0 | AT122: =data!AR122 -> 0
A123: =data!AV123 -> 0 | B123: =data!AT123 -> 0 | C123: =data!AS123 -> 00:00:00 | D123: =data!B123 -> 0 | E123: =data!C123 -> 0 | F123: =data!D123 -> 0 | G123: =data!E123 -> 00:00:00 | I123: =data!G123 -> 0 | J123: =data!H123 -> 0 | L123: =data!J123 -> 0 | M123: =data!K123 -> 0 | N123: =data!L123 -> 0 | O123: =data!M123 -> 0 | P123: =data!N123 -> 0 | R123: =data!P123 -> 0 | S123: =data!Q123 -> 0 | T123: =data!R123 -> 0 | U123: =data!S123 -> 0 | V123: =data!T123 -> 0 | W123: =data!U123 -> 0 | Y123: =data!W123 -> 0 | AA123: =data!Y123 -> 0 | AB123: =data!Z123 -> 0 | AC123: =data!AA123 -> 0 | AD123: =data!AB123 -> 0 | AE123: =data!AC123 -> 0 | AG123: =data!AE123 -> 0 | AH123: =data!AF123 -> 0 | AI123: =data!AG123 -> 0 | AJ123: =data!AH123 -> 0 | AL123: =data!AJ123 -> 0 | AM123: =data!AK123 -> 0 | AN123: =data!AL123 -> 0 | AP123: =data!AN123 -> 0 | AR123: =data!AP123 -> 0 | AS123: =data!AQ123 -> 0 | AT123: =data!AR123 -> 0
A124: =data!AV124 -> 0 | B124: =data!AT124 -> 0 | C124: =data!AS124 -> 00:00:00 | D124: =data!B124 -> 0 | E124: =data!C124 -> 0 | F124: =data!D124 -> 0 | G124: =data!E124 -> 00:00:00 | I124: =data!G124 -> 0 | J124: =data!H124 -> 0 | L124: =data!J124 -> 0 | M124: =data!K124 -> 0 | N124: =data!L124 -> 0 | O124: =data!M124 -> 0 | P124: =data!N124 -> 0 | R124: =data!P124 -> 0 | S124: =data!Q124 -> 0 | T124: =data!R124 -> 0 | U124: =data!S124 -> 0 | V124: =data!T124 -> 0 | W124: =data!U124 -> 0 | Y124: =data!W124 -> 0 | AA124: =data!Y124 -> 0 | AB124: =data!Z124 -> 0 | AC124: =data!AA124 -> 0 | AD124: =data!AB124 -> 0 | AE124: =data!AC124 -> 0 | AG124: =data!AE124 -> 0 | AH124: =data!AF124 -> 0 | AI124: =data!AG124 -> 0 | AJ124: =data!AH124 -> 0 | AL124: =data!AJ124 -> 0 | AM124: =data!AK124 -> 0 | AN124: =data!AL124 -> 0 | AP124: =data!AN124 -> 0 | AR124: =data!AP124 -> 0 | AS124: =data!AQ124 -> 0 | AT124: =data!AR124 -> 0
A125: =data!AV125 -> 0 | B125: =data!AT125 -> 0 | C125: =data!AS125 -> 00:00:00 | D125: =data!B125 -> 0 | E125: =data!C125 -> 0 | F125: =data!D125 -> 0 | G125: =data!E125 -> 00:00:00 | I125: =data!G125 -> 0 | J125: =data!H125 -> 0 | L125: =data!J125 -> 0 | M125: =data!K125 -> 0 | N125: =data!L125 -> 0 | O125: =data!M125 -> 0 | P125: =data!N125 -> 0 | R125: =data!P125 -> 0 | S125: =data!Q125 -> 0 | T125: =data!R125 -> 0 | U125: =data!S125 -> 0 | V125: =data!T125 -> 0 | W125: =data!U125 -> 0 | Y125: =data!W125 -> 0 | AA125: =data!Y125 -> 0 | AB125: =data!Z125 -> 0 | AC125: =data!AA125 -> 0 | AD125: =data!AB125 -> 0 | AE125: =data!AC125 -> 0 | AG125: =data!AE125 -> 0 | AH125: =data!AF125 -> 0 | AI125: =data!AG125 -> 0 | AJ125: =data!AH125 -> 0 | AL125: =data!AJ125 -> 0 | AM125: =data!AK125 -> 0 | AN125: =data!AL125 -> 0 | AP125: =data!AN125 -> 0 | AR125: =data!AP125 -> 0 | AS125: =data!AQ125 -> 0 | AT125: =data!AR125 -> 0
A126: =data!AV126 -> 0 | B126: =data!AT126 -> 0 | C126: =data!AS126 -> 00:00:00 | D126: =data!B126 -> 0 | E126: =data!C126 -> 0 | F126: =data!D126 -> 0 | G126: =data!E126 -> 00:00:00 | I126: =data!G126 -> 0 | J126: =data!H126 -> 0 | L126: =data!J126 -> 0 | M126: =data!K126 -> 0 | N126: =data!L126 -> 0 | O126: =data!M126 -> 0 | P126: =data!N126 -> 0 | R126: =data!P126 -> 0 | S126: =data!Q126 -> 0 | T126: =data!R126 -> 0 | U126: =data!S126 -> 0 | V126: =data!T126 -> 0 | W126: =data!U126 -> 0 | Y126: =data!W126 -> 0 | AA126: =data!Y126 -> 0 | AB126: =data!Z126 -> 0 | AC126: =data!AA126 -> 0 | AD126: =data!AB126 -> 0 | AE126: =data!AC126 -> 0 | AG126: =data!AE126 -> 0 | AH126: =data!AF126 -> 0 | AI126: =data!AG126 -> 0 | AJ126: =data!AH126 -> 0 | AL126: =data!AJ126 -> 0 | AM126: =data!AK126 -> 0 | AN126: =data!AL126 -> 0 | AP126: =data!AN126 -> 0 | AR126: =data!AP126 -> 0 | AS126: =data!AQ126 -> 0 | AT126: =data!AR126 -> 0
A127: =data!AV127 -> 0 | B127: =data!AT127 -> 0 | C127: =data!AS127 -> 00:00:00 | D127: =data!B127 -> 0 | E127: =data!C127 -> 0 | F127: =data!D127 -> 0 | G127: =data!E127 -> 00:00:00 | I127: =data!G127 -> 0 | J127: =data!H127 -> 0 | L127: =data!J127 -> 0 | M127: =data!K127 -> 0 | N127: =data!L127 -> 0 | O127: =data!M127 -> 0 | P127: =data!N127 -> 0 | R127: =data!P127 -> 0 | S127: =data!Q127 -> 0 | T127: =data!R127 -> 0 | U127: =data!S127 -> 0 | V127: =data!T127 -> 0 | W127: =data!U127 -> 0 | Y127: =data!W127 -> 0 | AA127: =data!Y127 -> 0 | AB127: =data!Z127 -> 0 | AC127: =data!AA127 -> 0 | AD127: =data!AB127 -> 0 | AE127: =data!AC127 -> 0 | AG127: =data!AE127 -> 0 | AH127: =data!AF127 -> 0 | AI127: =data!AG127 -> 0 | AJ127: =data!AH127 -> 0 | AL127: =data!AJ127 -> 0 | AM127: =data!AK127 -> 0 | AN127: =data!AL127 -> 0 | AP127: =data!AN127 -> 0 | AR127: =data!AP127 -> 0 | AS127: =data!AQ127 -> 0 | AT127: =data!AR127 -> 0
A128: =data!AV128 -> 0 | B128: =data!AT128 -> 0 | C128: =data!AS128 -> 00:00:00 | D128: =data!B128 -> 0 | E128: =data!C128 -> 0 | F128: =data!D128 -> 0 | G128: =data!E128 -> 00:00:00 | I128: =data!G128 -> 0 | J128: =data!H128 -> 0 | L128: =data!J128 -> 0 | M128: =data!K128 -> 0 | N128: =data!L128 -> 0 | O128: =data!M128 -> 0 | P128: =data!N128 -> 0 | R128: =data!P128 -> 0 | S128: =data!Q128 -> 0 | T128: =data!R128 -> 0 | U128: =data!S128 -> 0 | V128: =data!T128 -> 0 | W128: =data!U128 -> 0 | Y128: =data!W128 -> 0 | AA128: =data!Y128 -> 0 | AB128: =data!Z128 -> 0 | AC128: =data!AA128 -> 0 | AD128: =data!AB128 -> 0 | AE128: =data!AC128 -> 0 | AG128: =data!AE128 -> 0 | AH128: =data!AF128 -> 0 | AI128: =data!AG128 -> 0 | AJ128: =data!AH128 -> 0 | AL128: =data!AJ128 -> 0 | AM128: =data!AK128 -> 0 | AN128: =data!AL128 -> 0 | AP128: =data!AN128 -> 0 | AR128: =data!AP128 -> 0 | AS128: =data!AQ128 -> 0 | AT128: =data!AR128 -> 0
A129: =data!AV129 -> 0 | B129: =data!AT129 -> 0 | C129: =data!AS129 -> 00:00:00 | D129: =data!B129 -> 0 | E129: =data!C129 -> 0 | F129: =data!D129 -> 0 | G129: =data!E129 -> 00:00:00 | I129: =data!G129 -> 0 | J129: =data!H129 -> 0 | L129: =data!J129 -> 0 | M129: =data!K129 -> 0 | N129: =data!L129 -> 0 | O129: =data!M129 -> 0 | P129: =data!N129 -> 0 | R129: =data!P129 -> 0 | S129: =data!Q129 -> 0 | T129: =data!R129 -> 0 | U129: =data!S129 -> 0 | V129: =data!T129 -> 0 | W129: =data!U129 -> 0 | Y129: =data!W129 -> 0 | AA129: =data!Y129 -> 0 | AB129: =data!Z129 -> 0 | AC129: =data!AA129 -> 0 | AD129: =data!AB129 -> 0 | AE129: =data!AC129 -> 0 | AG129: =data!AE129 -> 0 | AH129: =data!AF129 -> 0 | AI129: =data!AG129 -> 0 | AJ129: =data!AH129 -> 0 | AL129: =data!AJ129 -> 0 | AM129: =data!AK129 -> 0 | AN129: =data!AL129 -> 0 | AP129: =data!AN129 -> 0 | AR129: =data!AP129 -> 0 | AS129: =data!AQ129 -> 0 | AT129: =data!AR129 -> 0
A130: =data!AV130 -> 0 | B130: =data!AT130 -> 0 | C130: =data!AS130 -> 00:00:00 | D130: =data!B130 -> 0 | E130: =data!C130 -> 0 | F130: =data!D130 -> 0 | G130: =data!E130 -> 00:00:00 | I130: =data!G130 -> 0 | J130: =data!H130 -> 0 | L130: =data!J130 -> 0 | M130: =data!K130 -> 0 | N130: =data!L130 -> 0 | O130: =data!M130 -> 0 | P130: =data!N130 -> 0 | R130: =data!P130 -> 0 | S130: =data!Q130 -> 0 | T130: =data!R130 -> 0 | U130: =data!S130 -> 0 | V130: =data!T130 -> 0 | W130: =data!U130 -> 0 | Y130: =data!W130 -> 0 | AA130: =data!Y130 -> 0 | AB130: =data!Z130 -> 0 | AC130: =data!AA130 -> 0 | AD130: =data!AB130 -> 0 | AE130: =data!AC130 -> 0 | AG130: =data!AE130 -> 0 | AH130: =data!AF130 -> 0 | AI130: =data!AG130 -> 0 | AJ130: =data!AH130 -> 0 | AL130: =data!AJ130 -> 0 | AM130: =data!AK130 -> 0 | AN130: =data!AL130 -> 0 | AP130: =data!AN130 -> 0 | AR130: =data!AP130 -> 0 | AS130: =data!AQ130 -> 0 | AT130: =data!AR130 -> 0
A131: =data!AV131 -> 0 | B131: =data!AT131 -> 0 | C131: =data!AS131 -> 00:00:00 | D131: =data!B131 -> 0 | E131: =data!C131 -> 0 | F131: =data!D131 -> 0 | G131: =data!E131 -> 00:00:00 | I131: =data!G131 -> 0 | J131: =data!H131 -> 0 | L131: =data!J131 -> 0 | M131: =data!K131 -> 0 | N131: =data!L131 -> 0 | O131: =data!M131 -> 0 | P131: =data!N131 -> 0 | R131: =data!P131 -> 0 | S131: =data!Q131 -> 0 | T131: =data!R131 -> 0 | U131: =data!S131 -> 0 | V131: =data!T131 -> 0 | W131: =data!U131 -> 0 | Y131: =data!W131 -> 0 | AA131: =data!Y131 -> 0 | AB131: =data!Z131 -> 0 | AC131: =data!AA131 -> 0 | AD131: =data!AB131 -> 0 | AE131: =data!AC131 -> 0 | AG131: =data!AE131 -> 0 | AH131: =data!AF131 -> 0 | AI131: =data!AG131 -> 0 | AJ131: =data!AH131 -> 0 | AL131: =data!AJ131 -> 0 | AM131: =data!AK131 -> 0 | AN131: =data!AL131 -> 0 | AP131: =data!AN131 -> 0 | AR131: =data!AP131 -> 0 | AS131: =data!AQ131 -> 0 | AT131: =data!AR131 -> 0
A132: =data!AV132 -> 0 | B132: =data!AT132 -> 0 | C132: =data!AS132 -> 00:00:00 | D132: =data!B132 -> 0 | E132: =data!C132 -> 0 | F132: =data!D132 -> 0 | G132: =data!E132 -> 00:00:00 | I132: =data!G132 -> 0 | J132: =data!H132 -> 0 | L132: =data!J132 -> 0 | M132: =data!K132 -> 0 | N132: =data!L132 -> 0 | O132: =data!M132 -> 0 | P132: =data!N132 -> 0 | R132: =data!P132 -> 0 | S132: =data!Q132 -> 0 | T132: =data!R132 -> 0 | U132: =data!S132 -> 0 | V132: =data!T132 -> 0 | W132: =data!U132 -> 0 | Y132: =data!W132 -> 0 | AA132: =data!Y132 -> 0 | AB132: =data!Z132 -> 0 | AC132: =data!AA132 -> 0 | AD132: =data!AB132 -> 0 | AE132: =data!AC132 -> 0 | AG132: =data!AE132 -> 0 | AH132: =data!AF132 -> 0 | AI132: =data!AG132 -> 0 | AJ132: =data!AH132 -> 0 | AL132: =data!AJ132 -> 0 | AM132: =data!AK132 -> 0 | AN132: =data!AL132 -> 0 | AP132: =data!AN132 -> 0 | AR132: =data!AP132 -> 0 | AS132: =data!AQ132 -> 0 | AT132: =data!AR132 -> 0
A133: =data!AV133 -> 0 | B133: =data!AT133 -> 0 | C133: =data!AS133 -> 00:00:00 | D133: =data!B133 -> 0 | E133: =data!C133 -> 0 | F133: =data!D133 -> 0 | G133: =data!E133 -> 00:00:00 | I133: =data!G133 -> 0 | J133: =data!H133 -> 0 | L133: =data!J133 -> 0 | M133: =data!K133 -> 0 | N133: =data!L133 -> 0 | O133: =data!M133 -> 0 | P133: =data!N133 -> 0 | R133: =data!P133 -> 0 | S133: =data!Q133 -> 0 | T133: =data!R133 -> 0 | U133: =data!S133 -> 0 | V133: =data!T133 -> 0 | W133: =data!U133 -> 0 | Y133: =data!W133 -> 0 | AA133: =data!Y133 -> 0 | AB133: =data!Z133 -> 0 | AC133: =data!AA133 -> 0 | AD133: =data!AB133 -> 0 | AE133: =data!AC133 -> 0 | AG133: =data!AE133 -> 0 | AH133: =data!AF133 -> 0 | AI133: =data!AG133 -> 0 | AJ133: =data!AH133 -> 0 | AL133: =data!AJ133 -> 0 | AM133: =data!AK133 -> 0 | AN133: =data!AL133 -> 0 | AP133: =data!AN133 -> 0 | AR133: =data!AP133 -> 0 | AS133: =data!AQ133 -> 0 | AT133: =data!AR133 -> 0
A134: =data!AV134 -> 0 | B134: =data!AT134 -> 0 | C134: =data!AS134 -> 00:00:00 | D134: =data!B134 -> 0 | E134: =data!C134 -> 0 | F134: =data!D134 -> 0 | G134: =data!E134 -> 00:00:00 | I134: =data!G134 -> 0 | J134: =data!H134 -> 0 | L134: =data!J134 -> 0 | M134: =data!K134 -> 0 | N134: =data!L134 -> 0 | O134: =data!M134 -> 0 | P134: =data!N134 -> 0 | R134: =data!P134 -> 0 | S134: =data!Q134 -> 0 | T134: =data!R134 -> 0 | U134: =data!S134 -> 0 | V134: =data!T134 -> 0 | W134: =data!U134 -> 0 | Y134: =data!W134 -> 0 | AA134: =data!Y134 -> 0 | AB134: =data!Z134 -> 0 | AC134: =data!AA134 -> 0 | AD134: =data!AB134 -> 0 | AE134: =data!AC134 -> 0 | AG134: =data!AE134 -> 0 | AH134: =data!AF134 -> 0 | AI134: =data!AG134 -> 0 | AJ134: =data!AH134 -> 0 | AL134: =data!AJ134 -> 0 | AM134: =data!AK134 -> 0 | AN134: =data!AL134 -> 0 | AP134: =data!AN134 -> 0 | AR134: =data!AP134 -> 0 | AS134: =data!AQ134 -> 0 | AT134: =data!AR134 -> 0
A135: =data!AV135 -> 0 | B135: =data!AT135 -> 0 | C135: =data!AS135 -> 00:00:00 | D135: =data!B135 -> 0 | E135: =data!C135 -> 0 | F135: =data!D135 -> 0 | G135: =data!E135 -> 00:00:00 | I135: =data!G135 -> 0 | J135: =data!H135 -> 0 | L135: =data!J135 -> 0 | M135: =data!K135 -> 0 | N135: =data!L135 -> 0 | O135: =data!M135 -> 0 | P135: =data!N135 -> 0 | R135: =data!P135 -> 0 | S135: =data!Q135 -> 0 | T135: =data!R135 -> 0 | U135: =data!S135 -> 0 | V135: =data!T135 -> 0 | W135: =data!U135 -> 0 | Y135: =data!W135 -> 0 | AA135: =data!Y135 -> 0 | AB135: =data!Z135 -> 0 | AC135: =data!AA135 -> 0 | AD135: =data!AB135 -> 0 | AE135: =data!AC135 -> 0 | AG135: =data!AE135 -> 0 | AH135: =data!AF135 -> 0 | AI135: =data!AG135 -> 0 | AJ135: =data!AH135 -> 0 | AL135: =data!AJ135 -> 0 | AM135: =data!AK135 -> 0 | AN135: =data!AL135 -> 0 | AP135: =data!AN135 -> 0 | AR135: =data!AP135 -> 0 | AS135: =data!AQ135 -> 0 | AT135: =data!AR135 -> 0
A136: =data!AV136 -> 0 | B136: =data!AT136 -> 0 | C136: =data!AS136 -> 00:00:00 | D136: =data!B136 -> 0 | E136: =data!C136 -> 0 | F136: =data!D136 -> 0 | G136: =data!E136 -> 00:00:00 | I136: =data!G136 -> 0 | J136: =data!H136 -> 0 | L136: =data!J136 -> 0 | M136: =data!K136 -> 0 | N136: =data!L136 -> 0 | O136: =data!M136 -> 0 | P136: =data!N136 -> 0 | R136: =data!P136 -> 0 | S136: =data!Q136 -> 0 | T136: =data!R136 -> 0 | U136: =data!S136 -> 0 | V136: =data!T136 -> 0 | W136: =data!U136 -> 0 | Y136: =data!W136 -> 0 | AA136: =data!Y136 -> 0 | AB136: =data!Z136 -> 0 | AC136: =data!AA136 -> 0 | AD136: =data!AB136 -> 0 | AE136: =data!AC136 -> 0 | AG136: =data!AE136 -> 0 | AH136: =data!AF136 -> 0 | AI136: =data!AG136 -> 0 | AJ136: =data!AH136 -> 0 | AL136: =data!AJ136 -> 0 | AM136: =data!AK136 -> 0 | AN136: =data!AL136 -> 0 | AP136: =data!AN136 -> 0 | AR136: =data!AP136 -> 0 | AS136: =data!AQ136 -> 0 | AT136: =data!AR136 -> 0
A137: =data!AV137 -> 0 | B137: =data!AT137 -> 0 | C137: =data!AS137 -> 00:00:00 | D137: =data!B137 -> 0 | E137: =data!C137 -> 0 | F137: =data!D137 -> 0 | G137: =data!E137 -> 00:00:00 | I137: =data!G137 -> 0 | J137: =data!H137 -> 0 | L137: =data!J137 -> 0 | M137: =data!K137 -> 0 | N137: =data!L137 -> 0 | O137: =data!M137 -> 0 | P137: =data!N137 -> 0 | R137: =data!P137 -> 0 | S137: =data!Q137 -> 0 | T137: =data!R137 -> 0 | U137: =data!S137 -> 0 | V137: =data!T137 -> 0 | W137: =data!U137 -> 0 | Y137: =data!W137 -> 0 | AA137: =data!Y137 -> 0 | AB137: =data!Z137 -> 0 | AC137: =data!AA137 -> 0 | AD137: =data!AB137 -> 0 | AE137: =data!AC137 -> 0 | AG137: =data!AE137 -> 0 | AH137: =data!AF137 -> 0 | AI137: =data!AG137 -> 0 | AJ137: =data!AH137 -> 0 | AL137: =data!AJ137 -> 0 | AM137: =data!AK137 -> 0 | AN137: =data!AL137 -> 0 | AP137: =data!AN137 -> 0 | AR137: =data!AP137 -> 0 | AS137: =data!AQ137 -> 0 | AT137: =data!AR137 -> 0
A138: =data!AV138 -> 0 | B138: =data!AT138 -> 0 | C138: =data!AS138 -> 00:00:00 | D138: =data!B138 -> 0 | E138: =data!C138 -> 0 | F138: =data!D138 -> 0 | G138: =data!E138 -> 00:00:00 | I138: =data!G138 -> 0 | J138: =data!H138 -> 0 | L138: =data!J138 -> 0 | M138: =data!K138 -> 0 | N138: =data!L138 -> 0 | O138: =data!M138 -> 0 | P138: =data!N138 -> 0 | R138: =data!P138 -> 0 | S138: =data!Q138 -> 0 | T138: =data!R138 -> 0 | U138: =data!S138 -> 0 | V138: =data!T138 -> 0 | W138: =data!U138 -> 0 | Y138: =data!W138 -> 0 | AA138: =data!Y138 -> 0 | AB138: =data!Z138 -> 0 | AC138: =data!AA138 -> 0 | AD138: =data!AB138 -> 0 | AE138: =data!AC138 -> 0 | AG138: =data!AE138 -> 0 | AH138: =data!AF138 -> 0 | AI138: =data!AG138 -> 0 | AJ138: =data!AH138 -> 0 | AL138: =data!AJ138 -> 0 | AM138: =data!AK138 -> 0 | AN138: =data!AL138 -> 0 | AP138: =data!AN138 -> 0 | AR138: =data!AP138 -> 0 | AS138: =data!AQ138 -> 0 | AT138: =data!AR138 -> 0
A139: =data!AV139 -> 0 | B139: =data!AT139 -> 0 | C139: =data!AS139 -> 00:00:00 | D139: =data!B139 -> 0 | E139: =data!C139 -> 0 | F139: =data!D139 -> 0 | G139: =data!E139 -> 00:00:00 | I139: =data!G139 -> 0 | J139: =data!H139 -> 0 | L139: =data!J139 -> 0 | M139: =data!K139 -> 0 | N139: =data!L139 -> 0 | O139: =data!M139 -> 0 | P139: =data!N139 -> 0 | R139: =data!P139 -> 0 | S139: =data!Q139 -> 0 | T139: =data!R139 -> 0 | U139: =data!S139 -> 0 | V139: =data!T139 -> 0 | W139: =data!U139 -> 0 | Y139: =data!W139 -> 0 | AA139: =data!Y139 -> 0 | AB139: =data!Z139 -> 0 | AC139: =data!AA139 -> 0 | AD139: =data!AB139 -> 0 | AE139: =data!AC139 -> 0 | AG139: =data!AE139 -> 0 | AH139: =data!AF139 -> 0 | AI139: =data!AG139 -> 0 | AJ139: =data!AH139 -> 0 | AL139: =data!AJ139 -> 0 | AM139: =data!AK139 -> 0 | AN139: =data!AL139 -> 0 | AP139: =data!AN139 -> 0 | AR139: =data!AP139 -> 0 | AS139: =data!AQ139 -> 0 | AT139: =data!AR139 -> 0
A140: =data!AV140 -> 0 | B140: =data!AT140 -> 0 | C140: =data!AS140 -> 00:00:00 | D140: =data!B140 -> 0 | E140: =data!C140 -> 0 | F140: =data!D140 -> 0 | G140: =data!E140 -> 00:00:00 | I140: =data!G140 -> 0 | J140: =data!H140 -> 0 | L140: =data!J140 -> 0 | M140: =data!K140 -> 0 | N140: =data!L140 -> 0 | O140: =data!M140 -> 0 | P140: =data!N140 -> 0 | R140: =data!P140 -> 0 | S140: =data!Q140 -> 0 | T140: =data!R140 -> 0 | U140: =data!S140 -> 0 | V140: =data!T140 -> 0 | W140: =data!U140 -> 0 | Y140: =data!W140 -> 0 | AA140: =data!Y140 -> 0 | AB140: =data!Z140 -> 0 | AC140: =data!AA140 -> 0 | AD140: =data!AB140 -> 0 | AE140: =data!AC140 -> 0 | AG140: =data!AE140 -> 0 | AH140: =data!AF140 -> 0 | AI140: =data!AG140 -> 0 | AJ140: =data!AH140 -> 0 | AL140: =data!AJ140 -> 0 | AM140: =data!AK140 -> 0 | AN140: =data!AL140 -> 0 | AP140: =data!AN140 -> 0 | AR140: =data!AP140 -> 0 | AS140: =data!AQ140 -> 0 | AT140: =data!AR140 -> 0
A141: =data!AV141 -> 0 | B141: =data!AT141 -> 0 | C141: =data!AS141 -> 00:00:00 | D141: =data!B141 -> 0 | E141: =data!C141 -> 0 | F141: =data!D141 -> 0 | G141: =data!E141 -> 00:00:00 | I141: =data!G141 -> 0 | J141: =data!H141 -> 0 | L141: =data!J141 -> 0 | M141: =data!K141 -> 0 | N141: =data!L141 -> 0 | O141: =data!M141 -> 0 | P141: =data!N141 -> 0 | R141: =data!P141 -> 0 | S141: =data!Q141 -> 0 | T141: =data!R141 -> 0 | U141: =data!S141 -> 0 | V141: =data!T141 -> 0 | W141: =data!U141 -> 0 | Y141: =data!W141 -> 0 | AA141: =data!Y141 -> 0 | AB141: =data!Z141 -> 0 | AC141: =data!AA141 -> 0 | AD141: =data!AB141 -> 0 | AE141: =data!AC141 -> 0 | AG141: =data!AE141 -> 0 | AH141: =data!AF141 -> 0 | AI141: =data!AG141 -> 0 | AJ141: =data!AH141 -> 0 | AL141: =data!AJ141 -> 0 | AM141: =data!AK141 -> 0 | AN141: =data!AL141 -> 0 | AP141: =data!AN141 -> 0 | AR141: =data!AP141 -> 0 | AS141: =data!AQ141 -> 0 | AT141: =data!AR141 -> 0
A142: =data!AV142 -> 0 | B142: =data!AT142 -> 0 | C142: =data!AS142 -> 00:00:00 | D142: =data!B142 -> 0 | E142: =data!C142 -> 0 | F142: =data!D142 -> 0 | G142: =data!E142 -> 00:00:00 | I142: =data!G142 -> 0 | J142: =data!H142 -> 0 | L142: =data!J142 -> 0 | M142: =data!K142 -> 0 | N142: =data!L142 -> 0 | O142: =data!M142 -> 0 | P142: =data!N142 -> 0 | R142: =data!P142 -> 0 | S142: =data!Q142 -> 0 | T142: =data!R142 -> 0 | U142: =data!S142 -> 0 | V142: =data!T142 -> 0 | W142: =data!U142 -> 0 | Y142: =data!W142 -> 0 | AA142: =data!Y142 -> 0 | AB142: =data!Z142 -> 0 | AC142: =data!AA142 -> 0 | AD142: =data!AB142 -> 0 | AE142: =data!AC142 -> 0 | AG142: =data!AE142 -> 0 | AH142: =data!AF142 -> 0 | AI142: =data!AG142 -> 0 | AJ142: =data!AH142 -> 0 | AL142: =data!AJ142 -> 0 | AM142: =data!AK142 -> 0 | AN142: =data!AL142 -> 0 | AP142: =data!AN142 -> 0 | AR142: =data!AP142 -> 0 | AS142: =data!AQ142 -> 0 | AT142: =data!AR142 -> 0
A143: =data!AV143 -> 0 | B143: =data!AT143 -> 0 | C143: =data!AS143 -> 00:00:00 | D143: =data!B143 -> 0 | E143: =data!C143 -> 0 | F143: =data!D143 -> 0 | G143: =data!E143 -> 00:00:00 | I143: =data!G143 -> 0 | J143: =data!H143 -> 0 | L143: =data!J143 -> 0 | M143: =data!K143 -> 0 | N143: =data!L143 -> 0 | O143: =data!M143 -> 0 | P143: =data!N143 -> 0 | R143: =data!P143 -> 0 | S143: =data!Q143 -> 0 | T143: =data!R143 -> 0 | U143: =data!S143 -> 0 | V143: =data!T143 -> 0 | W143: =data!U143 -> 0 | Y143: =data!W143 -> 0 | AA143: =data!Y143 -> 0 | AB143: =data!Z143 -> 0 | AC143: =data!AA143 -> 0 | AD143: =data!AB143 -> 0 | AE143: =data!AC143 -> 0 | AG143: =data!AE143 -> 0 | AH143: =data!AF143 -> 0 | AI143: =data!AG143 -> 0 | AJ143: =data!AH143 -> 0 | AL143: =data!AJ143 -> 0 | AM143: =data!AK143 -> 0 | AN143: =data!AL143 -> 0 | AP143: =data!AN143 -> 0 | AR143: =data!AP143 -> 0 | AS143: =data!AQ143 -> 0 | AT143: =data!AR143 -> 0
A144: =data!AV144 -> 0 | B144: =data!AT144 -> 0 | C144: =data!AS144 -> 00:00:00 | D144: =data!B144 -> 0 | E144: =data!C144 -> 0 | F144: =data!D144 -> 0 | G144: =data!E144 -> 00:00:00 | I144: =data!G144 -> 0 | J144: =data!H144 -> 0 | L144: =data!J144 -> 0 | M144: =data!K144 -> 0 | N144: =data!L144 -> 0 | O144: =data!M144 -> 0 | P144: =data!N144 -> 0 | R144: =data!P144 -> 0 | S144: =data!Q144 -> 0 | T144: =data!R144 -> 0 | U144: =data!S144 -> 0 | V144: =data!T144 -> 0 | W144: =data!U144 -> 0 | Y144: =data!W144 -> 0 | AA144: =data!Y144 -> 0 | AB144: =data!Z144 -> 0 | AC144: =data!AA144 -> 0 | AD144: =data!AB144 -> 0 | AE144: =data!AC144 -> 0 | AG144: =data!AE144 -> 0 | AH144: =data!AF144 -> 0 | AI144: =data!AG144 -> 0 | AJ144: =data!AH144 -> 0 | AL144: =data!AJ144 -> 0 | AM144: =data!AK144 -> 0 | AN144: =data!AL144 -> 0 | AP144: =data!AN144 -> 0 | AR144: =data!AP144 -> 0 | AS144: =data!AQ144 -> 0 | AT144: =data!AR144 -> 0
A145: =data!AV145 -> 0 | B145: =data!AT145 -> 0 | C145: =data!AS145 -> 00:00:00 | D145: =data!B145 -> 0 | E145: =data!C145 -> 0 | F145: =data!D145 -> 0 | G145: =data!E145 -> 00:00:00 | I145: =data!G145 -> 0 | J145: =data!H145 -> 0 | L145: =data!J145 -> 0 | M145: =data!K145 -> 0 | N145: =data!L145 -> 0 | O145: =data!M145 -> 0 | P145: =data!N145 -> 0 | R145: =data!P145 -> 0 | S145: =data!Q145 -> 0 | T145: =data!R145 -> 0 | U145: =data!S145 -> 0 | V145: =data!T145 -> 0 | W145: =data!U145 -> 0 | Y145: =data!W145 -> 0 | AA145: =data!Y145 -> 0 | AB145: =data!Z145 -> 0 | AC145: =data!AA145 -> 0 | AD145: =data!AB145 -> 0 | AE145: =data!AC145 -> 0 | AG145: =data!AE145 -> 0 | AH145: =data!AF145 -> 0 | AI145: =data!AG145 -> 0 | AJ145: =data!AH145 -> 0 | AL145: =data!AJ145 -> 0 | AM145: =data!AK145 -> 0 | AN145: =data!AL145 -> 0 | AP145: =data!AN145 -> 0 | AR145: =data!AP145 -> 0 | AS145: =data!AQ145 -> 0 | AT145: =data!AR145 -> 0
A146: =data!AV146 -> 0 | B146: =data!AT146 -> 0 | C146: =data!AS146 -> 00:00:00 | D146: =data!B146 -> 0 | E146: =data!C146 -> 0 | F146: =data!D146 -> 0 | G146: =data!E146 -> 00:00:00 | I146: =data!G146 -> 0 | J146: =data!H146 -> 0 | L146: =data!J146 -> 0 | M146: =data!K146 -> 0 | N146: =data!L146 -> 0 | O146: =data!M146 -> 0 | P146: =data!N146 -> 0 | R146: =data!P146 -> 0 | S146: =data!Q146 -> 0 | T146: =data!R146 -> 0 | U146: =data!S146 -> 0 | V146: =data!T146 -> 0 | W146: =data!U146 -> 0 | Y146: =data!W146 -> 0 | AA146: =data!Y146 -> 0 | AB146: =data!Z146 -> 0 | AC146: =data!AA146 -> 0 | AD146: =data!AB146 -> 0 | AE146: =data!AC146 -> 0 | AG146: =data!AE146 -> 0 | AH146: =data!AF146 -> 0 | AI146: =data!AG146 -> 0 | AJ146: =data!AH146 -> 0 | AL146: =data!AJ146 -> 0 | AM146: =data!AK146 -> 0 | AN146: =data!AL146 -> 0 | AP146: =data!AN146 -> 0 | AR146: =data!AP146 -> 0 | AS146: =data!AQ146 -> 0 | AT146: =data!AR146 -> 0
A147: =data!AV147 -> 0 | B147: =data!AT147 -> 0 | C147: =data!AS147 -> 00:00:00 | D147: =data!B147 -> 0 | E147: =data!C147 -> 0 | F147: =data!D147 -> 0 | G147: =data!E147 -> 00:00:00 | I147: =data!G147 -> 0 | J147: =data!H147 -> 0 | L147: =data!J147 -> 0 | M147: =data!K147 -> 0 | N147: =data!L147 -> 0 | O147: =data!M147 -> 0 | P147: =data!N147 -> 0 | R147: =data!P147 -> 0 | S147: =data!Q147 -> 0 | T147: =data!R147 -> 0 | U147: =data!S147 -> 0 | V147: =data!T147 -> 0 | W147: =data!U147 -> 0 | Y147: =data!W147 -> 0 | AA147: =data!Y147 -> 0 | AB147: =data!Z147 -> 0 | AC147: =data!AA147 -> 0 | AD147: =data!AB147 -> 0 | AE147: =data!AC147 -> 0 | AG147: =data!AE147 -> 0 | AH147: =data!AF147 -> 0 | AI147: =data!AG147 -> 0 | AJ147: =data!AH147 -> 0 | AL147: =data!AJ147 -> 0 | AM147: =data!AK147 -> 0 | AN147: =data!AL147 -> 0 | AP147: =data!AN147 -> 0 | AR147: =data!AP147 -> 0 | AS147: =data!AQ147 -> 0 | AT147: =data!AR147 -> 0
A148: =data!AV148 -> 0 | B148: =data!AT148 -> 0 | C148: =data!AS148 -> 00:00:00 | D148: =data!B148 -> 0 | E148: =data!C148 -> 0 | F148: =data!D148 -> 0 | G148: =data!E148 -> 00:00:00 | I148: =data!G148 -> 0 | J148: =data!H148 -> 0 | L148: =data!J148 -> 0 | M148: =data!K148 -> 0 | N148: =data!L148 -> 0 | O148: =data!M148 -> 0 | P148: =data!N148 -> 0 | R148: =data!P148 -> 0 | S148: =data!Q148 -> 0 | T148: =data!R148 -> 0 | U148: =data!S148 -> 0 | V148: =data!T148 -> 0 | W148: =data!U148 -> 0 | Y148: =data!W148 -> 0 | AA148: =data!Y148 -> 0 | AB148: =data!Z148 -> 0 | AC148: =data!AA148 -> 0 | AD148: =data!AB148 -> 0 | AE148: =data!AC148 -> 0 | AG148: =data!AE148 -> 0 | AH148: =data!AF148 -> 0 | AI148: =data!AG148 -> 0 | AJ148: =data!AH148 -> 0 | AL148: =data!AJ148 -> 0 | AM148: =data!AK148 -> 0 | AN148: =data!AL148 -> 0 | AP148: =data!AN148 -> 0 | AR148: =data!AP148 -> 0 | AS148: =data!AQ148 -> 0 | AT148: =data!AR148 -> 0
A149: =data!AV149 -> 0 | B149: =data!AT149 -> 0 | C149: =data!AS149 -> 00:00:00 | D149: =data!B149 -> 0 | E149: =data!C149 -> 0 | F149: =data!D149 -> 0 | G149: =data!E149 -> 00:00:00 | I149: =data!G149 -> 0 | J149: =data!H149 -> 0 | L149: =data!J149 -> 0 | M149: =data!K149 -> 0 | N149: =data!L149 -> 0 | O149: =data!M149 -> 0 | P149: =data!N149 -> 0 | R149: =data!P149 -> 0 | S149: =data!Q149 -> 0 | T149: =data!R149 -> 0 | U149: =data!S149 -> 0 | V149: =data!T149 -> 0 | W149: =data!U149 -> 0 | Y149: =data!W149 -> 0 | AA149: =data!Y149 -> 0 | AB149: =data!Z149 -> 0 | AC149: =data!AA149 -> 0 | AD149: =data!AB149 -> 0 | AE149: =data!AC149 -> 0 | AG149: =data!AE149 -> 0 | AH149: =data!AF149 -> 0 | AI149: =data!AG149 -> 0 | AJ149: =data!AH149 -> 0 | AL149: =data!AJ149 -> 0 | AM149: =data!AK149 -> 0 | AN149: =data!AL149 -> 0 | AP149: =data!AN149 -> 0 | AR149: =data!AP149 -> 0 | AS149: =data!AQ149 -> 0 | AT149: =data!AR149 -> 0
A150: =data!AV150 -> 0 | B150: =data!AT150 -> 0 | C150: =data!AS150 -> 00:00:00 | D150: =data!B150 -> 0 | E150: =data!C150 -> 0 | F150: =data!D150 -> 0 | G150: =data!E150 -> 00:00:00 | I150: =data!G150 -> 0 | J150: =data!H150 -> 0 | L150: =data!J150 -> 0 | M150: =data!K150 -> 0 | N150: =data!L150 -> 0 | O150: =data!M150 -> 0 | P150: =data!N150 -> 0 | R150: =data!P150 -> 0 | S150: =data!Q150 -> 0 | T150: =data!R150 -> 0 | U150: =data!S150 -> 0 | V150: =data!T150 -> 0 | W150: =data!U150 -> 0 | Y150: =data!W150 -> 0 | AA150: =data!Y150 -> 0 | AB150: =data!Z150 -> 0 | AC150: =data!AA150 -> 0 | AD150: =data!AB150 -> 0 | AE150: =data!AC150 -> 0 | AG150: =data!AE150 -> 0 | AH150: =data!AF150 -> 0 | AI150: =data!AG150 -> 0 | AJ150: =data!AH150 -> 0 | AL150: =data!AJ150 -> 0 | AM150: =data!AK150 -> 0 | AN150: =data!AL150 -> 0 | AP150: =data!AN150 -> 0 | AR150: =data!AP150 -> 0 | AS150: =data!AQ150 -> 0 | AT150: =data!AR150 -> 0
A151: =data!AV151 -> 0 | B151: =data!AT151 -> 0 | C151: =data!AS151 -> 00:00:00 | D151: =data!B151 -> 0 | E151: =data!C151 -> 0 | F151: =data!D151 -> 0 | G151: =data!E151 -> 00:00:00 | I151: =data!G151 -> 0 | J151: =data!H151 -> 0 | L151: =data!J151 -> 0 | M151: =data!K151 -> 0 | N151: =data!L151 -> 0 | O151: =data!M151 -> 0 | P151: =data!N151 -> 0 | R151: =data!P151 -> 0 | S151: =data!Q151 -> 0 | T151: =data!R151 -> 0 | U151: =data!S151 -> 0 | V151: =data!T151 -> 0 | W151: =data!U151 -> 0 | Y151: =data!W151 -> 0 | AA151: =data!Y151 -> 0 | AB151: =data!Z151 -> 0 | AC151: =data!AA151 -> 0 | AD151: =data!AB151 -> 0 | AE151: =data!AC151 -> 0 | AG151: =data!AE151 -> 0 | AH151: =data!AF151 -> 0 | AI151: =data!AG151 -> 0 | AJ151: =data!AH151 -> 0 | AL151: =data!AJ151 -> 0 | AM151: =data!AK151 -> 0 | AN151: =data!AL151 -> 0 | AP151: =data!AN151 -> 0 | AR151: =data!AP151 -> 0 | AS151: =data!AQ151 -> 0 | AT151: =data!AR151 -> 0
A152: =data!AV152 -> 0 | B152: =data!AT152 -> 0 | C152: =data!AS152 -> 00:00:00 | D152: =data!B152 -> 0 | E152: =data!C152 -> 0 | F152: =data!D152 -> 0 | G152: =data!E152 -> 00:00:00 | I152: =data!G152 -> 0 | J152: =data!H152 -> 0 | L152: =data!J152 -> 0 | M152: =data!K152 -> 0 | N152: =data!L152 -> 0 | O152: =data!M152 -> 0 | P152: =data!N152 -> 0 | R152: =data!P152 -> 0 | S152: =data!Q152 -> 0 | T152: =data!R152 -> 0 | U152: =data!S152 -> 0 | V152: =data!T152 -> 0 | W152: =data!U152 -> 0 | Y152: =data!W152 -> 0 | AA152: =data!Y152 -> 0 | AB152: =data!Z152 -> 0 | AC152: =data!AA152 -> 0 | AD152: =data!AB152 -> 0 | AE152: =data!AC152 -> 0 | AG152: =data!AE152 -> 0 | AH152: =data!AF152 -> 0 | AI152: =data!AG152 -> 0 | AJ152: =data!AH152 -> 0 | AL152: =data!AJ152 -> 0 | AM152: =data!AK152 -> 0 | AN152: =data!AL152 -> 0 | AP152: =data!AN152 -> 0 | AR152: =data!AP152 -> 0 | AS152: =data!AQ152 -> 0 | AT152: =data!AR152 -> 0
A153: =data!AV153 -> 0 | B153: =data!AT153 -> 0 | C153: =data!AS153 -> 00:00:00 | D153: =data!B153 -> 0 | E153: =data!C153 -> 0 | F153: =data!D153 -> 0 | G153: =data!E153 -> 00:00:00 | I153: =data!G153 -> 0 | J153: =data!H153 -> 0 | L153: =data!J153 -> 0 | M153: =data!K153 -> 0 | N153: =data!L153 -> 0 | O153: =data!M153 -> 0 | P153: =data!N153 -> 0 | R153: =data!P153 -> 0 | S153: =data!Q153 -> 0 | T153: =data!R153 -> 0 | U153: =data!S153 -> 0 | V153: =data!T153 -> 0 | W153: =data!U153 -> 0 | Y153: =data!W153 -> 0 | AA153: =data!Y153 -> 0 | AB153: =data!Z153 -> 0 | AC153: =data!AA153 -> 0 | AD153: =data!AB153 -> 0 | AE153: =data!AC153 -> 0 | AG153: =data!AE153 -> 0 | AH153: =data!AF153 -> 0 | AI153: =data!AG153 -> 0 | AJ153: =data!AH153 -> 0 | AL153: =data!AJ153 -> 0 | AM153: =data!AK153 -> 0 | AN153: =data!AL153 -> 0 | AP153: =data!AN153 -> 0 | AR153: =data!AP153 -> 0 | AS153: =data!AQ153 -> 0 | AT153: =data!AR153 -> 0
A154: =data!AV154 -> 0 | B154: =data!AT154 -> 0 | C154: =data!AS154 -> 00:00:00 | D154: =data!B154 -> 0 | E154: =data!C154 -> 0 | F154: =data!D154 -> 0 | G154: =data!E154 -> 00:00:00 | I154: =data!G154 -> 0 | J154: =data!H154 -> 0 | L154: =data!J154 -> 0 | M154: =data!K154 -> 0 | N154: =data!L154 -> 0 | O154: =data!M154 -> 0 | P154: =data!N154 -> 0 | R154: =data!P154 -> 0 | S154: =data!Q154 -> 0 | T154: =data!R154 -> 0 | U154: =data!S154 -> 0 | V154: =data!T154 -> 0 | W154: =data!U154 -> 0 | Y154: =data!W154 -> 0 | AA154: =data!Y154 -> 0 | AB154: =data!Z154 -> 0 | AC154: =data!AA154 -> 0 | AD154: =data!AB154 -> 0 | AE154: =data!AC154 -> 0 | AG154: =data!AE154 -> 0 | AH154: =data!AF154 -> 0 | AI154: =data!AG154 -> 0 | AJ154: =data!AH154 -> 0 | AL154: =data!AJ154 -> 0 | AM154: =data!AK154 -> 0 | AN154: =data!AL154 -> 0 | AP154: =data!AN154 -> 0 | AR154: =data!AP154 -> 0 | AS154: =data!AQ154 -> 0 | AT154: =data!AR154 -> 0
A155: =data!AV155 -> 0 | B155: =data!AT155 -> 0 | C155: =data!AS155 -> 00:00:00 | D155: =data!B155 -> 0 | E155: =data!C155 -> 0 | F155: =data!D155 -> 0 | G155: =data!E155 -> 00:00:00 | I155: =data!G155 -> 0 | J155: =data!H155 -> 0 | L155: =data!J155 -> 0 | M155: =data!K155 -> 0 | N155: =data!L155 -> 0 | O155: =data!M155 -> 0 | P155: =data!N155 -> 0 | R155: =data!P155 -> 0 | S155: =data!Q155 -> 0 | T155: =data!R155 -> 0 | U155: =data!S155 -> 0 | V155: =data!T155 -> 0 | W155: =data!U155 -> 0 | Y155: =data!W155 -> 0 | AA155: =data!Y155 -> 0 | AB155: =data!Z155 -> 0 | AC155: =data!AA155 -> 0 | AD155: =data!AB155 -> 0 | AE155: =data!AC155 -> 0 | AG155: =data!AE155 -> 0 | AH155: =data!AF155 -> 0 | AI155: =data!AG155 -> 0 | AJ155: =data!AH155 -> 0 | AL155: =data!AJ155 -> 0 | AM155: =data!AK155 -> 0 | AN155: =data!AL155 -> 0 | AP155: =data!AN155 -> 0 | AR155: =data!AP155 -> 0 | AS155: =data!AQ155 -> 0 | AT155: =data!AR155 -> 0
A156: =data!AV156 -> 0 | B156: =data!AT156 -> 0 | C156: =data!AS156 -> 00:00:00 | D156: =data!B156 -> 0 | E156: =data!C156 -> 0 | F156: =data!D156 -> 0 | G156: =data!E156 -> 00:00:00 | I156: =data!G156 -> 0 | J156: =data!H156 -> 0 | L156: =data!J156 -> 0 | M156: =data!K156 -> 0 | N156: =data!L156 -> 0 | O156: =data!M156 -> 0 | P156: =data!N156 -> 0 | R156: =data!P156 -> 0 | S156: =data!Q156 -> 0 | T156: =data!R156 -> 0 | U156: =data!S156 -> 0 | V156: =data!T156 -> 0 | W156: =data!U156 -> 0 | Y156: =data!W156 -> 0 | AA156: =data!Y156 -> 0 | AB156: =data!Z156 -> 0 | AC156: =data!AA156 -> 0 | AD156: =data!AB156 -> 0 | AE156: =data!AC156 -> 0 | AG156: =data!AE156 -> 0 | AH156: =data!AF156 -> 0 | AI156: =data!AG156 -> 0 | AJ156: =data!AH156 -> 0 | AL156: =data!AJ156 -> 0 | AM156: =data!AK156 -> 0 | AN156: =data!AL156 -> 0 | AP156: =data!AN156 -> 0 | AR156: =data!AP156 -> 0 | AS156: =data!AQ156 -> 0 | AT156: =data!AR156 -> 0
A157: =data!AV157 -> 0 | B157: =data!AT157 -> 0 | C157: =data!AS157 -> 00:00:00 | D157: =data!B157 -> 0 | E157: =data!C157 -> 0 | F157: =data!D157 -> 0 | G157: =data!E157 -> 00:00:00 | I157: =data!G157 -> 0 | J157: =data!H157 -> 0 | L157: =data!J157 -> 0 | M157: =data!K157 -> 0 | N157: =data!L157 -> 0 | O157: =data!M157 -> 0 | P157: =data!N157 -> 0 | R157: =data!P157 -> 0 | S157: =data!Q157 -> 0 | T157: =data!R157 -> 0 | U157: =data!S157 -> 0 | V157: =data!T157 -> 0 | W157: =data!U157 -> 0 | Y157: =data!W157 -> 0 | AA157: =data!Y157 -> 0 | AB157: =data!Z157 -> 0 | AC157: =data!AA157 -> 0 | AD157: =data!AB157 -> 0 | AE157: =data!AC157 -> 0 | AG157: =data!AE157 -> 0 | AH157: =data!AF157 -> 0 | AI157: =data!AG157 -> 0 | AJ157: =data!AH157 -> 0 | AL157: =data!AJ157 -> 0 | AM157: =data!AK157 -> 0 | AN157: =data!AL157 -> 0 | AP157: =data!AN157 -> 0 | AR157: =data!AP157 -> 0 | AS157: =data!AQ157 -> 0 | AT157: =data!AR157 -> 0
A158: =data!AV158 -> 0 | B158: =data!AT158 -> 0 | C158: =data!AS158 -> 00:00:00 | D158: =data!B158 -> 0 | E158: =data!C158 -> 0 | F158: =data!D158 -> 0 | G158: =data!E158 -> 00:00:00 | I158: =data!G158 -> 0 | J158: =data!H158 -> 0 | L158: =data!J158 -> 0 | M158: =data!K158 -> 0 | N158: =data!L158 -> 0 | O158: =data!M158 -> 0 | P158: =data!N158 -> 0 | R158: =data!P158 -> 0 | S158: =data!Q158 -> 0 | T158: =data!R158 -> 0 | U158: =data!S158 -> 0 | V158: =data!T158 -> 0 | W158: =data!U158 -> 0 | Y158: =data!W158 -> 0 | AA158: =data!Y158 -> 0 | AB158: =data!Z158 -> 0 | AC158: =data!AA158 -> 0 | AD158: =data!AB158 -> 0 | AE158: =data!AC158 -> 0 | AG158: =data!AE158 -> 0 | AH158: =data!AF158 -> 0 | AI158: =data!AG158 -> 0 | AJ158: =data!AH158 -> 0 | AL158: =data!AJ158 -> 0 | AM158: =data!AK158 -> 0 | AN158: =data!AL158 -> 0 | AP158: =data!AN158 -> 0 | AR158: =data!AP158 -> 0 | AS158: =data!AQ158 -> 0 | AT158: =data!AR158 -> 0
A159: =data!AV159 -> 0 | B159: =data!AT159 -> 0 | C159: =data!AS159 -> 00:00:00 | D159: =data!B159 -> 0 | E159: =data!C159 -> 0 | F159: =data!D159 -> 0 | G159: =data!E159 -> 00:00:00 | I159: =data!G159 -> 0 | J159: =data!H159 -> 0 | L159: =data!J159 -> 0 | M159: =data!K159 -> 0 | N159: =data!L159 -> 0 | O159: =data!M159 -> 0 | P159: =data!N159 -> 0 | R159: =data!P159 -> 0 | S159: =data!Q159 -> 0 | T159: =data!R159 -> 0 | U159: =data!S159 -> 0 | V159: =data!T159 -> 0 | W159: =data!U159 -> 0 | Y159: =data!W159 -> 0 | AA159: =data!Y159 -> 0 | AB159: =data!Z159 -> 0 | AC159: =data!AA159 -> 0 | AD159: =data!AB159 -> 0 | AE159: =data!AC159 -> 0 | AG159: =data!AE159 -> 0 | AH159: =data!AF159 -> 0 | AI159: =data!AG159 -> 0 | AJ159: =data!AH159 -> 0 | AL159: =data!AJ159 -> 0 | AM159: =data!AK159 -> 0 | AN159: =data!AL159 -> 0 | AP159: =data!AN159 -> 0 | AR159: =data!AP159 -> 0 | AS159: =data!AQ159 -> 0 | AT159: =data!AR159 -> 0
A160: =data!AV160 -> 0 | B160: =data!AT160 -> 0 | C160: =data!AS160 -> 00:00:00 | D160: =data!B160 -> 0 | E160: =data!C160 -> 0 | F160: =data!D160 -> 0 | G160: =data!E160 -> 00:00:00 | I160: =data!G160 -> 0 | J160: =data!H160 -> 0 | L160: =data!J160 -> 0 | M160: =data!K160 -> 0 | N160: =data!L160 -> 0 | O160: =data!M160 -> 0 | P160: =data!N160 -> 0 | R160: =data!P160 -> 0 | S160: =data!Q160 -> 0 | T160: =data!R160 -> 0 | U160: =data!S160 -> 0 | V160: =data!T160 -> 0 | W160: =data!U160 -> 0 | Y160: =data!W160 -> 0 | AA160: =data!Y160 -> 0 | AB160: =data!Z160 -> 0 | AC160: =data!AA160 -> 0 | AD160: =data!AB160 -> 0 | AE160: =data!AC160 -> 0 | AG160: =data!AE160 -> 0 | AH160: =data!AF160 -> 0 | AI160: =data!AG160 -> 0 | AJ160: =data!AH160 -> 0 | AL160: =data!AJ160 -> 0 | AM160: =data!AK160 -> 0 | AN160: =data!AL160 -> 0 | AP160: =data!AN160 -> 0 | AR160: =data!AP160 -> 0 | AS160: =data!AQ160 -> 0 | AT160: =data!AR160 -> 0
A161: =data!AV161 -> 0 | B161: =data!AT161 -> 0 | C161: =data!AS161 -> 00:00:00 | D161: =data!B161 -> 0 | E161: =data!C161 -> 0 | F161: =data!D161 -> 0 | G161: =data!E161 -> 00:00:00 | I161: =data!G161 -> 0 | J161: =data!H161 -> 0 | L161: =data!J161 -> 0 | M161: =data!K161 -> 0 | N161: =data!L161 -> 0 | O161: =data!M161 -> 0 | P161: =data!N161 -> 0 | R161: =data!P161 -> 0 | S161: =data!Q161 -> 0 | T161: =data!R161 -> 0 | U161: =data!S161 -> 0 | V161: =data!T161 -> 0 | W161: =data!U161 -> 0 | Y161: =data!W161 -> 0 | AA161: =data!Y161 -> 0 | AB161: =data!Z161 -> 0 | AC161: =data!AA161 -> 0 | AD161: =data!AB161 -> 0 | AE161: =data!AC161 -> 0 | AG161: =data!AE161 -> 0 | AH161: =data!AF161 -> 0 | AI161: =data!AG161 -> 0 | AJ161: =data!AH161 -> 0 | AL161: =data!AJ161 -> 0 | AM161: =data!AK161 -> 0 | AN161: =data!AL161 -> 0 | AP161: =data!AN161 -> 0 | AR161: =data!AP161 -> 0 | AS161: =data!AQ161 -> 0 | AT161: =data!AR161 -> 0
A162: =data!AV162 -> 0 | B162: =data!AT162 -> 0 | C162: =data!AS162 -> 00:00:00 | D162: =data!B162 -> 0 | E162: =data!C162 -> 0 | F162: =data!D162 -> 0 | G162: =data!E162 -> 00:00:00 | I162: =data!G162 -> 0 | J162: =data!H162 -> 0 | L162: =data!J162 -> 0 | M162: =data!K162 -> 0 | N162: =data!L162 -> 0 | O162: =data!M162 -> 0 | P162: =data!N162 -> 0 | R162: =data!P162 -> 0 | S162: =data!Q162 -> 0 | T162: =data!R162 -> 0 | U162: =data!S162 -> 0 | V162: =data!T162 -> 0 | W162: =data!U162 -> 0 | Y162: =data!W162 -> 0 | AA162: =data!Y162 -> 0 | AB162: =data!Z162 -> 0 | AC162: =data!AA162 -> 0 | AD162: =data!AB162 -> 0 | AE162: =data!AC162 -> 0 | AG162: =data!AE162 -> 0 | AH162: =data!AF162 -> 0 | AI162: =data!AG162 -> 0 | AJ162: =data!AH162 -> 0 | AL162: =data!AJ162 -> 0 | AM162: =data!AK162 -> 0 | AN162: =data!AL162 -> 0 | AP162: =data!AN162 -> 0 | AR162: =data!AP162 -> 0 | AS162: =data!AQ162 -> 0 | AT162: =data!AR162 -> 0
A163: =data!AV163 -> 0 | B163: =data!AT163 -> 0 | C163: =data!AS163 -> 00:00:00 | D163: =data!B163 -> 0 | E163: =data!C163 -> 0 | F163: =data!D163 -> 0 | G163: =data!E163 -> 00:00:00 | I163: =data!G163 -> 0 | J163: =data!H163 -> 0 | L163: =data!J163 -> 0 | M163: =data!K163 -> 0 | N163: =data!L163 -> 0 | O163: =data!M163 -> 0 | P163: =data!N163 -> 0 | R163: =data!P163 -> 0 | S163: =data!Q163 -> 0 | T163: =data!R163 -> 0 | U163: =data!S163 -> 0 | V163: =data!T163 -> 0 | W163: =data!U163 -> 0 | Y163: =data!W163 -> 0 | AA163: =data!Y163 -> 0 | AB163: =data!Z163 -> 0 | AC163: =data!AA163 -> 0 | AD163: =data!AB163 -> 0 | AE163: =data!AC163 -> 0 | AG163: =data!AE163 -> 0 | AH163: =data!AF163 -> 0 | AI163: =data!AG163 -> 0 | AJ163: =data!AH163 -> 0 | AL163: =data!AJ163 -> 0 | AM163: =data!AK163 -> 0 | AN163: =data!AL163 -> 0 | AP163: =data!AN163 -> 0 | AR163: =data!AP163 -> 0 | AS163: =data!AQ163 -> 0 | AT163: =data!AR163 -> 0
A164: =data!AV164 -> 0 | B164: =data!AT164 -> 0 | C164: =data!AS164 -> 00:00:00 | D164: =data!B164 -> 0 | E164: =data!C164 -> 0 | F164: =data!D164 -> 0 | G164: =data!E164 -> 00:00:00 | I164: =data!G164 -> 0 | J164: =data!H164 -> 0 | L164: =data!J164 -> 0 | M164: =data!K164 -> 0 | N164: =data!L164 -> 0 | O164: =data!M164 -> 0 | P164: =data!N164 -> 0 | R164: =data!P164 -> 0 | S164: =data!Q164 -> 0 | T164: =data!R164 -> 0 | U164: =data!S164 -> 0 | V164: =data!T164 -> 0 | W164: =data!U164 -> 0 | Y164: =data!W164 -> 0 | AA164: =data!Y164 -> 0 | AB164: =data!Z164 -> 0 | AC164: =data!AA164 -> 0 | AD164: =data!AB164 -> 0 | AE164: =data!AC164 -> 0 | AG164: =data!AE164 -> 0 | AH164: =data!AF164 -> 0 | AI164: =data!AG164 -> 0 | AJ164: =data!AH164 -> 0 | AL164: =data!AJ164 -> 0 | AM164: =data!AK164 -> 0 | AN164: =data!AL164 -> 0 | AP164: =data!AN164 -> 0 | AR164: =data!AP164 -> 0 | AS164: =data!AQ164 -> 0 | AT164: =data!AR164 -> 0
A165: =data!AV165 -> 0 | B165: =data!AT165 -> 0 | C165: =data!AS165 -> 00:00:00 | D165: =data!B165 -> 0 | E165: =data!C165 -> 0 | F165: =data!D165 -> 0 | G165: =data!E165 -> 00:00:00 | I165: =data!G165 -> 0 | J165: =data!H165 -> 0 | L165: =data!J165 -> 0 | M165: =data!K165 -> 0 | N165: =data!L165 -> 0 | O165: =data!M165 -> 0 | P165: =data!N165 -> 0 | R165: =data!P165 -> 0 | S165: =data!Q165 -> 0 | T165: =data!R165 -> 0 | U165: =data!S165 -> 0 | V165: =data!T165 -> 0 | W165: =data!U165 -> 0 | Y165: =data!W165 -> 0 | AA165: =data!Y165 -> 0 | AB165: =data!Z165 -> 0 | AC165: =data!AA165 -> 0 | AD165: =data!AB165 -> 0 | AE165: =data!AC165 -> 0 | AG165: =data!AE165 -> 0 | AH165: =data!AF165 -> 0 | AI165: =data!AG165 -> 0 | AJ165: =data!AH165 -> 0 | AL165: =data!AJ165 -> 0 | AM165: =data!AK165 -> 0 | AN165: =data!AL165 -> 0 | AP165: =data!AN165 -> 0 | AR165: =data!AP165 -> 0 | AS165: =data!AQ165 -> 0 | AT165: =data!AR165 -> 0
A166: =data!AV166 -> 0 | B166: =data!AT166 -> 0 | C166: =data!AS166 -> 00:00:00 | D166: =data!B166 -> 0 | E166: =data!C166 -> 0 | F166: =data!D166 -> 0 | G166: =data!E166 -> 00:00:00 | I166: =data!G166 -> 0 | J166: =data!H166 -> 0 | L166: =data!J166 -> 0 | M166: =data!K166 -> 0 | N166: =data!L166 -> 0 | O166: =data!M166 -> 0 | P166: =data!N166 -> 0 | R166: =data!P166 -> 0 | S166: =data!Q166 -> 0 | T166: =data!R166 -> 0 | U166: =data!S166 -> 0 | V166: =data!T166 -> 0 | W166: =data!U166 -> 0 | Y166: =data!W166 -> 0 | AA166: =data!Y166 -> 0 | AB166: =data!Z166 -> 0 | AC166: =data!AA166 -> 0 | AD166: =data!AB166 -> 0 | AE166: =data!AC166 -> 0 | AG166: =data!AE166 -> 0 | AH166: =data!AF166 -> 0 | AI166: =data!AG166 -> 0 | AJ166: =data!AH166 -> 0 | AL166: =data!AJ166 -> 0 | AM166: =data!AK166 -> 0 | AN166: =data!AL166 -> 0 | AP166: =data!AN166 -> 0 | AR166: =data!AP166 -> 0 | AS166: =data!AQ166 -> 0 | AT166: =data!AR166 -> 0
A167: =data!AV167 -> 0 | B167: =data!AT167 -> 0 | C167: =data!AS167 -> 00:00:00 | D167: =data!B167 -> 0 | E167: =data!C167 -> 0 | F167: =data!D167 -> 0 | G167: =data!E167 -> 00:00:00 | I167: =data!G167 -> 0 | J167: =data!H167 -> 0 | L167: =data!J167 -> 0 | M167: =data!K167 -> 0 | N167: =data!L167 -> 0 | O167: =data!M167 -> 0 | P167: =data!N167 -> 0 | R167: =data!P167 -> 0 | S167: =data!Q167 -> 0 | T167: =data!R167 -> 0 | U167: =data!S167 -> 0 | V167: =data!T167 -> 0 | W167: =data!U167 -> 0 | Y167: =data!W167 -> 0 | AA167: =data!Y167 -> 0 | AB167: =data!Z167 -> 0 | AC167: =data!AA167 -> 0 | AD167: =data!AB167 -> 0 | AE167: =data!AC167 -> 0 | AG167: =data!AE167 -> 0 | AH167: =data!AF167 -> 0 | AI167: =data!AG167 -> 0 | AJ167: =data!AH167 -> 0 | AL167: =data!AJ167 -> 0 | AM167: =data!AK167 -> 0 | AN167: =data!AL167 -> 0 | AP167: =data!AN167 -> 0 | AR167: =data!AP167 -> 0 | AS167: =data!AQ167 -> 0 | AT167: =data!AR167 -> 0
A168: =data!AV168 -> 0 | B168: =data!AT168 -> 0 | C168: =data!AS168 -> 00:00:00 | D168: =data!B168 -> 0 | E168: =data!C168 -> 0 | F168: =data!D168 -> 0 | G168: =data!E168 -> 00:00:00 | I168: =data!G168 -> 0 | J168: =data!H168 -> 0 | L168: =data!J168 -> 0 | M168: =data!K168 -> 0 | N168: =data!L168 -> 0 | O168: =data!M168 -> 0 | P168: =data!N168 -> 0 | R168: =data!P168 -> 0 | S168: =data!Q168 -> 0 | T168: =data!R168 -> 0 | U168: =data!S168 -> 0 | V168: =data!T168 -> 0 | W168: =data!U168 -> 0 | Y168: =data!W168 -> 0 | AA168: =data!Y168 -> 0 | AB168: =data!Z168 -> 0 | AC168: =data!AA168 -> 0 | AD168: =data!AB168 -> 0 | AE168: =data!AC168 -> 0 | AG168: =data!AE168 -> 0 | AH168: =data!AF168 -> 0 | AI168: =data!AG168 -> 0 | AJ168: =data!AH168 -> 0 | AL168: =data!AJ168 -> 0 | AM168: =data!AK168 -> 0 | AN168: =data!AL168 -> 0 | AP168: =data!AN168 -> 0 | AR168: =data!AP168 -> 0 | AS168: =data!AQ168 -> 0 | AT168: =data!AR168 -> 0
A169: =data!AV169 -> 0 | B169: =data!AT169 -> 0 | C169: =data!AS169 -> 00:00:00 | D169: =data!B169 -> 0 | E169: =data!C169 -> 0 | F169: =data!D169 -> 0 | G169: =data!E169 -> 00:00:00 | I169: =data!G169 -> 0 | J169: =data!H169 -> 0 | L169: =data!J169 -> 0 | M169: =data!K169 -> 0 | N169: =data!L169 -> 0 | O169: =data!M169 -> 0 | P169: =data!N169 -> 0 | R169: =data!P169 -> 0 | S169: =data!Q169 -> 0 | T169: =data!R169 -> 0 | U169: =data!S169 -> 0 | V169: =data!T169 -> 0 | W169: =data!U169 -> 0 | Y169: =data!W169 -> 0 | AA169: =data!Y169 -> 0 | AB169: =data!Z169 -> 0 | AC169: =data!AA169 -> 0 | AD169: =data!AB169 -> 0 | AE169: =data!AC169 -> 0 | AG169: =data!AE169 -> 0 | AH169: =data!AF169 -> 0 | AI169: =data!AG169 -> 0 | AJ169: =data!AH169 -> 0 | AL169: =data!AJ169 -> 0 | AM169: =data!AK169 -> 0 | AN169: =data!AL169 -> 0 | AP169: =data!AN169 -> 0 | AR169: =data!AP169 -> 0 | AS169: =data!AQ169 -> 0 | AT169: =data!AR169 -> 0
A170: =data!AV170 -> 0 | B170: =data!AT170 -> 0 | C170: =data!AS170 -> 00:00:00 | D170: =data!B170 -> 0 | E170: =data!C170 -> 0 | F170: =data!D170 -> 0 | G170: =data!E170 -> 00:00:00 | I170: =data!G170 -> 0 | J170: =data!H170 -> 0 | L170: =data!J170 -> 0 | M170: =data!K170 -> 0 | N170: =data!L170 -> 0 | O170: =data!M170 -> 0 | P170: =data!N170 -> 0 | R170: =data!P170 -> 0 | S170: =data!Q170 -> 0 | T170: =data!R170 -> 0 | U170: =data!S170 -> 0 | V170: =data!T170 -> 0 | W170: =data!U170 -> 0 | Y170: =data!W170 -> 0 | AA170: =data!Y170 -> 0 | AB170: =data!Z170 -> 0 | AC170: =data!AA170 -> 0 | AD170: =data!AB170 -> 0 | AE170: =data!AC170 -> 0 | AG170: =data!AE170 -> 0 | AH170: =data!AF170 -> 0 | AI170: =data!AG170 -> 0 | AJ170: =data!AH170 -> 0 | AL170: =data!AJ170 -> 0 | AM170: =data!AK170 -> 0 | AN170: =data!AL170 -> 0 | AP170: =data!AN170 -> 0 | AR170: =data!AP170 -> 0 | AS170: =data!AQ170 -> 0 | AT170: =data!AR170 -> 0
A171: =data!AV171 -> 0 | B171: =data!AT171 -> 0 | C171: =data!AS171 -> 00:00:00 | D171: =data!B171 -> 0 | E171: =data!C171 -> 0 | F171: =data!D171 -> 0 | G171: =data!E171 -> 00:00:00 | I171: =data!G171 -> 0 | J171: =data!H171 -> 0 | L171: =data!J171 -> 0 | M171: =data!K171 -> 0 | N171: =data!L171 -> 0 | O171: =data!M171 -> 0 | P171: =data!N171 -> 0 | R171: =data!P171 -> 0 | S171: =data!Q171 -> 0 | T171: =data!R171 -> 0 | U171: =data!S171 -> 0 | V171: =data!T171 -> 0 | W171: =data!U171 -> 0 | Y171: =data!W171 -> 0 | AA171: =data!Y171 -> 0 | AB171: =data!Z171 -> 0 | AC171: =data!AA171 -> 0 | AD171: =data!AB171 -> 0 | AE171: =data!AC171 -> 0 | AG171: =data!AE171 -> 0 | AH171: =data!AF171 -> 0 | AI171: =data!AG171 -> 0 | AJ171: =data!AH171 -> 0 | AL171: =data!AJ171 -> 0 | AM171: =data!AK171 -> 0 | AN171: =data!AL171 -> 0 | AP171: =data!AN171 -> 0 | AR171: =data!AP171 -> 0 | AS171: =data!AQ171 -> 0 | AT171: =data!AR171 -> 0
A172: =data!AV172 -> 0 | B172: =data!AT172 -> 0 | C172: =data!AS172 -> 00:00:00 | D172: =data!B172 -> 0 | E172: =data!C172 -> 0 | F172: =data!D172 -> 0 | G172: =data!E172 -> 00:00:00 | I172: =data!G172 -> 0 | J172: =data!H172 -> 0 | L172: =data!J172 -> 0 | M172: =data!K172 -> 0 | N172: =data!L172 -> 0 | O172: =data!M172 -> 0 | P172: =data!N172 -> 0 | R172: =data!P172 -> 0 | S172: =data!Q172 -> 0 | T172: =data!R172 -> 0 | U172: =data!S172 -> 0 | V172: =data!T172 -> 0 | W172: =data!U172 -> 0 | Y172: =data!W172 -> 0 | AA172: =data!Y172 -> 0 | AB172: =data!Z172 -> 0 | AC172: =data!AA172 -> 0 | AD172: =data!AB172 -> 0 | AE172: =data!AC172 -> 0 | AG172: =data!AE172 -> 0 | AH172: =data!AF172 -> 0 | AI172: =data!AG172 -> 0 | AJ172: =data!AH172 -> 0 | AL172: =data!AJ172 -> 0 | AM172: =data!AK172 -> 0 | AN172: =data!AL172 -> 0 | AP172: =data!AN172 -> 0 | AR172: =data!AP172 -> 0 | AS172: =data!AQ172 -> 0 | AT172: =data!AR172 -> 0
A173: =data!AV173 -> 0 | B173: =data!AT173 -> 0 | C173: =data!AS173 -> 00:00:00 | D173: =data!B173 -> 0 | E173: =data!C173 -> 0 | F173: =data!D173 -> 0 | G173: =data!E173 -> 00:00:00 | I173: =data!G173 -> 0 | J173: =data!H173 -> 0 | L173: =data!J173 -> 0 | M173: =data!K173 -> 0 | N173: =data!L173 -> 0 | O173: =data!M173 -> 0 | P173: =data!N173 -> 0 | R173: =data!P173 -> 0 | S173: =data!Q173 -> 0 | T173: =data!R173 -> 0 | U173: =data!S173 -> 0 | V173: =data!T173 -> 0 | W173: =data!U173 -> 0 | Y173: =data!W173 -> 0 | AA173: =data!Y173 -> 0 | AB173: =data!Z173 -> 0 | AC173: =data!AA173 -> 0 | AD173: =data!AB173 -> 0 | AE173: =data!AC173 -> 0 | AG173: =data!AE173 -> 0 | AH173: =data!AF173 -> 0 | AI173: =data!AG173 -> 0 | AJ173: =data!AH173 -> 0 | AL173: =data!AJ173 -> 0 | AM173: =data!AK173 -> 0 | AN173: =data!AL173 -> 0 | AP173: =data!AN173 -> 0 | AR173: =data!AP173 -> 0 | AS173: =data!AQ173 -> 0 | AT173: =data!AR173 -> 0
A174: =data!AV174 -> 0 | B174: =data!AT174 -> 0 | C174: =data!AS174 -> 00:00:00 | D174: =data!B174 -> 0 | E174: =data!C174 -> 0 | F174: =data!D174 -> 0 | G174: =data!E174 -> 00:00:00 | I174: =data!G174 -> 0 | J174: =data!H174 -> 0 | L174: =data!J174 -> 0 | M174: =data!K174 -> 0 | N174: =data!L174 -> 0 | O174: =data!M174 -> 0 | P174: =data!N174 -> 0 | R174: =data!P174 -> 0 | S174: =data!Q174 -> 0 | T174: =data!R174 -> 0 | U174: =data!S174 -> 0 | V174: =data!T174 -> 0 | W174: =data!U174 -> 0 | Y174: =data!W174 -> 0 | AA174: =data!Y174 -> 0 | AB174: =data!Z174 -> 0 | AC174: =data!AA174 -> 0 | AD174: =data!AB174 -> 0 | AE174: =data!AC174 -> 0 | AG174: =data!AE174 -> 0 | AH174: =data!AF174 -> 0 | AI174: =data!AG174 -> 0 | AJ174: =data!AH174 -> 0 | AL174: =data!AJ174 -> 0 | AM174: =data!AK174 -> 0 | AN174: =data!AL174 -> 0 | AP174: =data!AN174 -> 0 | AR174: =data!AP174 -> 0 | AS174: =data!AQ174 -> 0 | AT174: =data!AR174 -> 0
A175: =data!AV175 -> 0 | B175: =data!AT175 -> 0 | C175: =data!AS175 -> 00:00:00 | D175: =data!B175 -> 0 | E175: =data!C175 -> 0 | F175: =data!D175 -> 0 | G175: =data!E175 -> 00:00:00 | I175: =data!G175 -> 0 | J175: =data!H175 -> 0 | L175: =data!J175 -> 0 | M175: =data!K175 -> 0 | N175: =data!L175 -> 0 | O175: =data!M175 -> 0 | P175: =data!N175 -> 0 | R175: =data!P175 -> 0 | S175: =data!Q175 -> 0 | T175: =data!R175 -> 0 | U175: =data!S175 -> 0 | V175: =data!T175 -> 0 | W175: =data!U175 -> 0 | Y175: =data!W175 -> 0 | AA175: =data!Y175 -> 0 | AB175: =data!Z175 -> 0 | AC175: =data!AA175 -> 0 | AD175: =data!AB175 -> 0 | AE175: =data!AC175 -> 0 | AG175: =data!AE175 -> 0 | AH175: =data!AF175 -> 0 | AI175: =data!AG175 -> 0 | AJ175: =data!AH175 -> 0 | AL175: =data!AJ175 -> 0 | AM175: =data!AK175 -> 0 | AN175: =data!AL175 -> 0 | AP175: =data!AN175 -> 0 | AR175: =data!AP175 -> 0 | AS175: =data!AQ175 -> 0 | AT175: =data!AR175 -> 0
A176: =data!AV176 -> 0 | B176: =data!AT176 -> 0 | C176: =data!AS176 -> 00:00:00 | D176: =data!B176 -> 0 | E176: =data!C176 -> 0 | F176: =data!D176 -> 0 | G176: =data!E176 -> 00:00:00 | I176: =data!G176 -> 0 | J176: =data!H176 -> 0 | L176: =data!J176 -> 0 | M176: =data!K176 -> 0 | N176: =data!L176 -> 0 | O176: =data!M176 -> 0 | P176: =data!N176 -> 0 | R176: =data!P176 -> 0 | S176: =data!Q176 -> 0 | T176: =data!R176 -> 0 | U176: =data!S176 -> 0 | V176: =data!T176 -> 0 | W176: =data!U176 -> 0 | Y176: =data!W176 -> 0 | AA176: =data!Y176 -> 0 | AB176: =data!Z176 -> 0 | AC176: =data!AA176 -> 0 | AD176: =data!AB176 -> 0 | AE176: =data!AC176 -> 0 | AG176: =data!AE176 -> 0 | AH176: =data!AF176 -> 0 | AI176: =data!AG176 -> 0 | AJ176: =data!AH176 -> 0 | AL176: =data!AJ176 -> 0 | AM176: =data!AK176 -> 0 | AN176: =data!AL176 -> 0 | AP176: =data!AN176 -> 0 | AR176: =data!AP176 -> 0 | AS176: =data!AQ176 -> 0 | AT176: =data!AR176 -> 0
A177: =data!AV177 -> 0 | B177: =data!AT177 -> 0 | C177: =data!AS177 -> 00:00:00 | D177: =data!B177 -> 0 | E177: =data!C177 -> 0 | F177: =data!D177 -> 0 | G177: =data!E177 -> 00:00:00 | I177: =data!G177 -> 0 | J177: =data!H177 -> 0 | L177: =data!J177 -> 0 | M177: =data!K177 -> 0 | N177: =data!L177 -> 0 | O177: =data!M177 -> 0 | P177: =data!N177 -> 0 | R177: =data!P177 -> 0 | S177: =data!Q177 -> 0 | T177: =data!R177 -> 0 | U177: =data!S177 -> 0 | V177: =data!T177 -> 0 | W177: =data!U177 -> 0 | Y177: =data!W177 -> 0 | AA177: =data!Y177 -> 0 | AB177: =data!Z177 -> 0 | AC177: =data!AA177 -> 0 | AD177: =data!AB177 -> 0 | AE177: =data!AC177 -> 0 | AG177: =data!AE177 -> 0 | AH177: =data!AF177 -> 0 | AI177: =data!AG177 -> 0 | AJ177: =data!AH177 -> 0 | AL177: =data!AJ177 -> 0 | AM177: =data!AK177 -> 0 | AN177: =data!AL177 -> 0 | AP177: =data!AN177 -> 0 | AR177: =data!AP177 -> 0 | AS177: =data!AQ177 -> 0 | AT177: =data!AR177 -> 0
A178: =data!AV178 -> 0 | B178: =data!AT178 -> 0 | C178: =data!AS178 -> 00:00:00 | D178: =data!B178 -> 0 | E178: =data!C178 -> 0 | F178: =data!D178 -> 0 | G178: =data!E178 -> 00:00:00 | I178: =data!G178 -> 0 | J178: =data!H178 -> 0 | L178: =data!J178 -> 0 | M178: =data!K178 -> 0 | N178: =data!L178 -> 0 | O178: =data!M178 -> 0 | P178: =data!N178 -> 0 | R178: =data!P178 -> 0 | S178: =data!Q178 -> 0 | T178: =data!R178 -> 0 | U178: =data!S178 -> 0 | V178: =data!T178 -> 0 | W178: =data!U178 -> 0 | Y178: =data!W178 -> 0 | AA178: =data!Y178 -> 0 | AB178: =data!Z178 -> 0 | AC178: =data!AA178 -> 0 | AD178: =data!AB178 -> 0 | AE178: =data!AC178 -> 0 | AG178: =data!AE178 -> 0 | AH178: =data!AF178 -> 0 | AI178: =data!AG178 -> 0 | AJ178: =data!AH178 -> 0 | AL178: =data!AJ178 -> 0 | AM178: =data!AK178 -> 0 | AN178: =data!AL178 -> 0 | AP178: =data!AN178 -> 0 | AR178: =data!AP178 -> 0 | AS178: =data!AQ178 -> 0 | AT178: =data!AR178 -> 0
A179: =data!AV179 -> 0 | B179: =data!AT179 -> 0 | C179: =data!AS179 -> 00:00:00 | D179: =data!B179 -> 0 | E179: =data!C179 -> 0 | F179: =data!D179 -> 0 | G179: =data!E179 -> 00:00:00 | I179: =data!G179 -> 0 | J179: =data!H179 -> 0 | L179: =data!J179 -> 0 | M179: =data!K179 -> 0 | N179: =data!L179 -> 0 | O179: =data!M179 -> 0 | P179: =data!N179 -> 0 | R179: =data!P179 -> 0 | S179: =data!Q179 -> 0 | T179: =data!R179 -> 0 | U179: =data!S179 -> 0 | V179: =data!T179 -> 0 | W179: =data!U179 -> 0 | Y179: =data!W179 -> 0 | AA179: =data!Y179 -> 0 | AB179: =data!Z179 -> 0 | AC179: =data!AA179 -> 0 | AD179: =data!AB179 -> 0 | AE179: =data!AC179 -> 0 | AG179: =data!AE179 -> 0 | AH179: =data!AF179 -> 0 | AI179: =data!AG179 -> 0 | AJ179: =data!AH179 -> 0 | AL179: =data!AJ179 -> 0 | AM179: =data!AK179 -> 0 | AN179: =data!AL179 -> 0 | AP179: =data!AN179 -> 0 | AR179: =data!AP179 -> 0 | AS179: =data!AQ179 -> 0 | AT179: =data!AR179 -> 0
A180: =data!AV180 -> 0 | B180: =data!AT180 -> 0 | C180: =data!AS180 -> 00:00:00 | D180: =data!B180 -> 0 | E180: =data!C180 -> 0 | F180: =data!D180 -> 0 | G180: =data!E180 -> 00:00:00 | I180: =data!G180 -> 0 | J180: =data!H180 -> 0 | L180: =data!J180 -> 0 | M180: =data!K180 -> 0 | N180: =data!L180 -> 0 | O180: =data!M180 -> 0 | P180: =data!N180 -> 0 | R180: =data!P180 -> 0 | S180: =data!Q180 -> 0 | T180: =data!R180 -> 0 | U180: =data!S180 -> 0 | V180: =data!T180 -> 0 | W180: =data!U180 -> 0 | Y180: =data!W180 -> 0 | AA180: =data!Y180 -> 0 | AB180: =data!Z180 -> 0 | AC180: =data!AA180 -> 0 | AD180: =data!AB180 -> 0 | AE180: =data!AC180 -> 0 | AG180: =data!AE180 -> 0 | AH180: =data!AF180 -> 0 | AI180: =data!AG180 -> 0 | AJ180: =data!AH180 -> 0 | AL180: =data!AJ180 -> 0 | AM180: =data!AK180 -> 0 | AN180: =data!AL180 -> 0 | AP180: =data!AN180 -> 0 | AR180: =data!AP180 -> 0 | AS180: =data!AQ180 -> 0 | AT180: =data!AR180 -> 0
A181: =data!AV181 -> 0 | B181: =data!AT181 -> 0 | C181: =data!AS181 -> 00:00:00 | D181: =data!B181 -> 0 | E181: =data!C181 -> 0 | F181: =data!D181 -> 0 | G181: =data!E181 -> 00:00:00 | I181: =data!G181 -> 0 | J181: =data!H181 -> 0 | L181: =data!J181 -> 0 | M181: =data!K181 -> 0 | N181: =data!L181 -> 0 | O181: =data!M181 -> 0 | P181: =data!N181 -> 0 | R181: =data!P181 -> 0 | S181: =data!Q181 -> 0 | T181: =data!R181 -> 0 | U181: =data!S181 -> 0 | V181: =data!T181 -> 0 | W181: =data!U181 -> 0 | Y181: =data!W181 -> 0 | AA181: =data!Y181 -> 0 | AB181: =data!Z181 -> 0 | AC181: =data!AA181 -> 0 | AD181: =data!AB181 -> 0 | AE181: =data!AC181 -> 0 | AG181: =data!AE181 -> 0 | AH181: =data!AF181 -> 0 | AI181: =data!AG181 -> 0 | AJ181: =data!AH181 -> 0 | AL181: =data!AJ181 -> 0 | AM181: =data!AK181 -> 0 | AN181: =data!AL181 -> 0 | AP181: =data!AN181 -> 0 | AR181: =data!AP181 -> 0 | AS181: =data!AQ181 -> 0 | AT181: =data!AR181 -> 0
A182: =data!AV182 -> 0 | B182: =data!AT182 -> 0 | C182: =data!AS182 -> 00:00:00 | D182: =data!B182 -> 0 | E182: =data!C182 -> 0 | F182: =data!D182 -> 0 | G182: =data!E182 -> 00:00:00 | I182: =data!G182 -> 0 | J182: =data!H182 -> 0 | L182: =data!J182 -> 0 | M182: =data!K182 -> 0 | N182: =data!L182 -> 0 | O182: =data!M182 -> 0 | P182: =data!N182 -> 0 | R182: =data!P182 -> 0 | S182: =data!Q182 -> 0 | T182: =data!R182 -> 0 | U182: =data!S182 -> 0 | V182: =data!T182 -> 0 | W182: =data!U182 -> 0 | Y182: =data!W182 -> 0 | AA182: =data!Y182 -> 0 | AB182: =data!Z182 -> 0 | AC182: =data!AA182 -> 0 | AD182: =data!AB182 -> 0 | AE182: =data!AC182 -> 0 | AG182: =data!AE182 -> 0 | AH182: =data!AF182 -> 0 | AI182: =data!AG182 -> 0 | AJ182: =data!AH182 -> 0 | AL182: =data!AJ182 -> 0 | AM182: =data!AK182 -> 0 | AN182: =data!AL182 -> 0 | AP182: =data!AN182 -> 0 | AR182: =data!AP182 -> 0 | AS182: =data!AQ182 -> 0 | AT182: =data!AR182 -> 0
A183: =data!AV183 -> 0 | B183: =data!AT183 -> 0 | C183: =data!AS183 -> 00:00:00 | D183: =data!B183 -> 0 | E183: =data!C183 -> 0 | F183: =data!D183 -> 0 | G183: =data!E183 -> 00:00:00 | I183: =data!G183 -> 0 | J183: =data!H183 -> 0 | L183: =data!J183 -> 0 | M183: =data!K183 -> 0 | N183: =data!L183 -> 0 | O183: =data!M183 -> 0 | P183: =data!N183 -> 0 | R183: =data!P183 -> 0 | S183: =data!Q183 -> 0 | T183: =data!R183 -> 0 | U183: =data!S183 -> 0 | V183: =data!T183 -> 0 | W183: =data!U183 -> 0 | Y183: =data!W183 -> 0 | AA183: =data!Y183 -> 0 | AB183: =data!Z183 -> 0 | AC183: =data!AA183 -> 0 | AD183: =data!AB183 -> 0 | AE183: =data!AC183 -> 0 | AG183: =data!AE183 -> 0 | AH183: =data!AF183 -> 0 | AI183: =data!AG183 -> 0 | AJ183: =data!AH183 -> 0 | AL183: =data!AJ183 -> 0 | AM183: =data!AK183 -> 0 | AN183: =data!AL183 -> 0 | AP183: =data!AN183 -> 0 | AR183: =data!AP183 -> 0 | AS183: =data!AQ183 -> 0 | AT183: =data!AR183 -> 0
A184: =data!AV184 -> 0 | B184: =data!AT184 -> 0 | C184: =data!AS184 -> 00:00:00 | D184: =data!B184 -> 0 | E184: =data!C184 -> 0 | F184: =data!D184 -> 0 | G184: =data!E184 -> 00:00:00 | I184: =data!G184 -> 0 | J184: =data!H184 -> 0 | L184: =data!J184 -> 0 | M184: =data!K184 -> 0 | N184: =data!L184 -> 0 | O184: =data!M184 -> 0 | P184: =data!N184 -> 0 | R184: =data!P184 -> 0 | S184: =data!Q184 -> 0 | T184: =data!R184 -> 0 | U184: =data!S184 -> 0 | V184: =data!T184 -> 0 | W184: =data!U184 -> 0 | Y184: =data!W184 -> 0 | AA184: =data!Y184 -> 0 | AB184: =data!Z184 -> 0 | AC184: =data!AA184 -> 0 | AD184: =data!AB184 -> 0 | AE184: =data!AC184 -> 0 | AG184: =data!AE184 -> 0 | AH184: =data!AF184 -> 0 | AI184: =data!AG184 -> 0 | AJ184: =data!AH184 -> 0 | AL184: =data!AJ184 -> 0 | AM184: =data!AK184 -> 0 | AN184: =data!AL184 -> 0 | AP184: =data!AN184 -> 0 | AR184: =data!AP184 -> 0 | AS184: =data!AQ184 -> 0 | AT184: =data!AR184 -> 0
A185: =data!AV185 -> 0 | B185: =data!AT185 -> 0 | C185: =data!AS185 -> 00:00:00 | D185: =data!B185 -> 0 | E185: =data!C185 -> 0 | F185: =data!D185 -> 0 | G185: =data!E185 -> 00:00:00 | I185: =data!G185 -> 0 | J185: =data!H185 -> 0 | L185: =data!J185 -> 0 | M185: =data!K185 -> 0 | N185: =data!L185 -> 0 | O185: =data!M185 -> 0 | P185: =data!N185 -> 0 | R185: =data!P185 -> 0 | S185: =data!Q185 -> 0 | T185: =data!R185 -> 0 | U185: =data!S185 -> 0 | V185: =data!T185 -> 0 | W185: =data!U185 -> 0 | Y185: =data!W185 -> 0 | AA185: =data!Y185 -> 0 | AB185: =data!Z185 -> 0 | AC185: =data!AA185 -> 0 | AD185: =data!AB185 -> 0 | AE185: =data!AC185 -> 0 | AG185: =data!AE185 -> 0 | AH185: =data!AF185 -> 0 | AI185: =data!AG185 -> 0 | AJ185: =data!AH185 -> 0 | AL185: =data!AJ185 -> 0 | AM185: =data!AK185 -> 0 | AN185: =data!AL185 -> 0 | AP185: =data!AN185 -> 0 | AR185: =data!AP185 -> 0 | AS185: =data!AQ185 -> 0 | AT185: =data!AR185 -> 0
A186: =data!AV186 -> 0 | B186: =data!AT186 -> 0 | C186: =data!AS186 -> 00:00:00 | D186: =data!B186 -> 0 | E186: =data!C186 -> 0 | F186: =data!D186 -> 0 | G186: =data!E186 -> 00:00:00 | I186: =data!G186 -> 0 | J186: =data!H186 -> 0 | L186: =data!J186 -> 0 | M186: =data!K186 -> 0 | N186: =data!L186 -> 0 | O186: =data!M186 -> 0 | P186: =data!N186 -> 0 | R186: =data!P186 -> 0 | S186: =data!Q186 -> 0 | T186: =data!R186 -> 0 | U186: =data!S186 -> 0 | V186: =data!T186 -> 0 | W186: =data!U186 -> 0 | Y186: =data!W186 -> 0 | AA186: =data!Y186 -> 0 | AB186: =data!Z186 -> 0 | AC186: =data!AA186 -> 0 | AD186: =data!AB186 -> 0 | AE186: =data!AC186 -> 0 | AG186: =data!AE186 -> 0 | AH186: =data!AF186 -> 0 | AI186: =data!AG186 -> 0 | AJ186: =data!AH186 -> 0 | AL186: =data!AJ186 -> 0 | AM186: =data!AK186 -> 0 | AN186: =data!AL186 -> 0 | AP186: =data!AN186 -> 0 | AR186: =data!AP186 -> 0 | AS186: =data!AQ186 -> 0 | AT186: =data!AR186 -> 0
A187: =data!AV187 -> 0 | B187: =data!AT187 -> 0 | C187: =data!AS187 -> 00:00:00 | D187: =data!B187 -> 0 | E187: =data!C187 -> 0 | F187: =data!D187 -> 0 | G187: =data!E187 -> 00:00:00 | I187: =data!G187 -> 0 | J187: =data!H187 -> 0 | L187: =data!J187 -> 0 | M187: =data!K187 -> 0 | N187: =data!L187 -> 0 | O187: =data!M187 -> 0 | P187: =data!N187 -> 0 | R187: =data!P187 -> 0 | S187: =data!Q187 -> 0 | T187: =data!R187 -> 0 | U187: =data!S187 -> 0 | V187: =data!T187 -> 0 | W187: =data!U187 -> 0 | Y187: =data!W187 -> 0 | AA187: =data!Y187 -> 0 | AB187: =data!Z187 -> 0 | AC187: =data!AA187 -> 0 | AD187: =data!AB187 -> 0 | AE187: =data!AC187 -> 0 | AG187: =data!AE187 -> 0 | AH187: =data!AF187 -> 0 | AI187: =data!AG187 -> 0 | AJ187: =data!AH187 -> 0 | AL187: =data!AJ187 -> 0 | AM187: =data!AK187 -> 0 | AN187: =data!AL187 -> 0 | AP187: =data!AN187 -> 0 | AR187: =data!AP187 -> 0 | AS187: =data!AQ187 -> 0 | AT187: =data!AR187 -> 0
A188: =data!AV188 -> 0 | B188: =data!AT188 -> 0 | C188: =data!AS188 -> 00:00:00 | D188: =data!B188 -> 0 | E188: =data!C188 -> 0 | F188: =data!D188 -> 0 | G188: =data!E188 -> 00:00:00 | I188: =data!G188 -> 0 | J188: =data!H188 -> 0 | L188: =data!J188 -> 0 | M188: =data!K188 -> 0 | N188: =data!L188 -> 0 | O188: =data!M188 -> 0 | P188: =data!N188 -> 0 | R188: =data!P188 -> 0 | S188: =data!Q188 -> 0 | T188: =data!R188 -> 0 | U188: =data!S188 -> 0 | V188: =data!T188 -> 0 | W188: =data!U188 -> 0 | Y188: =data!W188 -> 0 | AA188: =data!Y188 -> 0 | AB188: =data!Z188 -> 0 | AC188: =data!AA188 -> 0 | AD188: =data!AB188 -> 0 | AE188: =data!AC188 -> 0 | AG188: =data!AE188 -> 0 | AH188: =data!AF188 -> 0 | AI188: =data!AG188 -> 0 | AJ188: =data!AH188 -> 0 | AL188: =data!AJ188 -> 0 | AM188: =data!AK188 -> 0 | AN188: =data!AL188 -> 0 | AP188: =data!AN188 -> 0 | AR188: =data!AP188 -> 0 | AS188: =data!AQ188 -> 0 | AT188: =data!AR188 -> 0
A189: =data!AV189 -> 0 | B189: =data!AT189 -> 0 | C189: =data!AS189 -> 00:00:00 | D189: =data!B189 -> 0 | E189: =data!C189 -> 0 | F189: =data!D189 -> 0 | G189: =data!E189 -> 00:00:00 | I189: =data!G189 -> 0 | J189: =data!H189 -> 0 | L189: =data!J189 -> 0 | M189: =data!K189 -> 0 | N189: =data!L189 -> 0 | O189: =data!M189 -> 0 | P189: =data!N189 -> 0 | R189: =data!P189 -> 0 | S189: =data!Q189 -> 0 | T189: =data!R189 -> 0 | U189: =data!S189 -> 0 | V189: =data!T189 -> 0 | W189: =data!U189 -> 0 | Y189: =data!W189 -> 0 | AA189: =data!Y189 -> 0 | AB189: =data!Z189 -> 0 | AC189: =data!AA189 -> 0 | AD189: =data!AB189 -> 0 | AE189: =data!AC189 -> 0 | AG189: =data!AE189 -> 0 | AH189: =data!AF189 -> 0 | AI189: =data!AG189 -> 0 | AJ189: =data!AH189 -> 0 | AL189: =data!AJ189 -> 0 | AM189: =data!AK189 -> 0 | AN189: =data!AL189 -> 0 | AP189: =data!AN189 -> 0 | AR189: =data!AP189 -> 0 | AS189: =data!AQ189 -> 0 | AT189: =data!AR189 -> 0
A190: =data!AV190 -> 0 | B190: =data!AT190 -> 0 | C190: =data!AS190 -> 00:00:00 | D190: =data!B190 -> 0 | E190: =data!C190 -> 0 | F190: =data!D190 -> 0 | G190: =data!E190 -> 00:00:00 | I190: =data!G190 -> 0 | J190: =data!H190 -> 0 | L190: =data!J190 -> 0 | M190: =data!K190 -> 0 | N190: =data!L190 -> 0 | O190: =data!M190 -> 0 | P190: =data!N190 -> 0 | R190: =data!P190 -> 0 | S190: =data!Q190 -> 0 | T190: =data!R190 -> 0 | U190: =data!S190 -> 0 | V190: =data!T190 -> 0 | W190: =data!U190 -> 0 | Y190: =data!W190 -> 0 | AA190: =data!Y190 -> 0 | AB190: =data!Z190 -> 0 | AC190: =data!AA190 -> 0 | AD190: =data!AB190 -> 0 | AE190: =data!AC190 -> 0 | AG190: =data!AE190 -> 0 | AH190: =data!AF190 -> 0 | AI190: =data!AG190 -> 0 | AJ190: =data!AH190 -> 0 | AL190: =data!AJ190 -> 0 | AM190: =data!AK190 -> 0 | AN190: =data!AL190 -> 0 | AP190: =data!AN190 -> 0 | AR190: =data!AP190 -> 0 | AS190: =data!AQ190 -> 0 | AT190: =data!AR190 -> 0
A191: =data!AV191 -> 0 | B191: =data!AT191 -> 0 | C191: =data!AS191 -> 00:00:00 | D191: =data!B191 -> 0 | E191: =data!C191 -> 0 | F191: =data!D191 -> 0 | G191: =data!E191 -> 00:00:00 | I191: =data!G191 -> 0 | J191: =data!H191 -> 0 | L191: =data!J191 -> 0 | M191: =data!K191 -> 0 | N191: =data!L191 -> 0 | O191: =data!M191 -> 0 | P191: =data!N191 -> 0 | R191: =data!P191 -> 0 | S191: =data!Q191 -> 0 | T191: =data!R191 -> 0 | U191: =data!S191 -> 0 | V191: =data!T191 -> 0 | W191: =data!U191 -> 0 | Y191: =data!W191 -> 0 | AA191: =data!Y191 -> 0 | AB191: =data!Z191 -> 0 | AC191: =data!AA191 -> 0 | AD191: =data!AB191 -> 0 | AE191: =data!AC191 -> 0 | AG191: =data!AE191 -> 0 | AH191: =data!AF191 -> 0 | AI191: =data!AG191 -> 0 | AJ191: =data!AH191 -> 0 | AL191: =data!AJ191 -> 0 | AM191: =data!AK191 -> 0 | AN191: =data!AL191 -> 0 | AP191: =data!AN191 -> 0 | AR191: =data!AP191 -> 0 | AS191: =data!AQ191 -> 0 | AT191: =data!AR191 -> 0
A192: =data!AV192 -> 0 | B192: =data!AT192 -> 0 | C192: =data!AS192 -> 00:00:00 | D192: =data!B192 -> 0 | E192: =data!C192 -> 0 | F192: =data!D192 -> 0 | G192: =data!E192 -> 00:00:00 | I192: =data!G192 -> 0 | J192: =data!H192 -> 0 | L192: =data!J192 -> 0 | M192: =data!K192 -> 0 | N192: =data!L192 -> 0 | O192: =data!M192 -> 0 | P192: =data!N192 -> 0 | R192: =data!P192 -> 0 | S192: =data!Q192 -> 0 | T192: =data!R192 -> 0 | U192: =data!S192 -> 0 | V192: =data!T192 -> 0 | W192: =data!U192 -> 0 | Y192: =data!W192 -> 0 | AA192: =data!Y192 -> 0 | AB192: =data!Z192 -> 0 | AC192: =data!AA192 -> 0 | AD192: =data!AB192 -> 0 | AE192: =data!AC192 -> 0 | AG192: =data!AE192 -> 0 | AH192: =data!AF192 -> 0 | AI192: =data!AG192 -> 0 | AJ192: =data!AH192 -> 0 | AL192: =data!AJ192 -> 0 | AM192: =data!AK192 -> 0 | AN192: =data!AL192 -> 0 | AP192: =data!AN192 -> 0 | AR192: =data!AP192 -> 0 | AS192: =data!AQ192 -> 0 | AT192: =data!AR192 -> 0
A193: =data!AV193 -> 0 | B193: =data!AT193 -> 0 | C193: =data!AS193 -> 00:00:00 | D193: =data!B193 -> 0 | E193: =data!C193 -> 0 | F193: =data!D193 -> 0 | G193: =data!E193 -> 00:00:00 | I193: =data!G193 -> 0 | J193: =data!H193 -> 0 | L193: =data!J193 -> 0 | M193: =data!K193 -> 0 | N193: =data!L193 -> 0 | O193: =data!M193 -> 0 | P193: =data!N193 -> 0 | R193: =data!P193 -> 0 | S193: =data!Q193 -> 0 | T193: =data!R193 -> 0 | U193: =data!S193 -> 0 | V193: =data!T193 -> 0 | W193: =data!U193 -> 0 | Y193: =data!W193 -> 0 | AA193: =data!Y193 -> 0 | AB193: =data!Z193 -> 0 | AC193: =data!AA193 -> 0 | AD193: =data!AB193 -> 0 | AE193: =data!AC193 -> 0 | AG193: =data!AE193 -> 0 | AH193: =data!AF193 -> 0 | AI193: =data!AG193 -> 0 | AJ193: =data!AH193 -> 0 | AL193: =data!AJ193 -> 0 | AM193: =data!AK193 -> 0 | AN193: =data!AL193 -> 0 | AP193: =data!AN193 -> 0 | AR193: =data!AP193 -> 0 | AS193: =data!AQ193 -> 0 | AT193: =data!AR193 -> 0
A194: =data!AV194 -> 0 | B194: =data!AT194 -> 0 | C194: =data!AS194 -> 00:00:00 | D194: =data!B194 -> 0 | E194: =data!C194 -> 0 | F194: =data!D194 -> 0 | G194: =data!E194 -> 00:00:00 | I194: =data!G194 -> 0 | J194: =data!H194 -> 0 | L194: =data!J194 -> 0 | M194: =data!K194 -> 0 | N194: =data!L194 -> 0 | O194: =data!M194 -> 0 | P194: =data!N194 -> 0 | R194: =data!P194 -> 0 | S194: =data!Q194 -> 0 | T194: =data!R194 -> 0 | U194: =data!S194 -> 0 | V194: =data!T194 -> 0 | W194: =data!U194 -> 0 | Y194: =data!W194 -> 0 | AA194: =data!Y194 -> 0 | AB194: =data!Z194 -> 0 | AC194: =data!AA194 -> 0 | AD194: =data!AB194 -> 0 | AE194: =data!AC194 -> 0 | AG194: =data!AE194 -> 0 | AH194: =data!AF194 -> 0 | AI194: =data!AG194 -> 0 | AJ194: =data!AH194 -> 0 | AL194: =data!AJ194 -> 0 | AM194: =data!AK194 -> 0 | AN194: =data!AL194 -> 0 | AP194: =data!AN194 -> 0 | AR194: =data!AP194 -> 0 | AS194: =data!AQ194 -> 0 | AT194: =data!AR194 -> 0
A195: =data!AV195 -> 0 | B195: =data!AT195 -> 0 | C195: =data!AS195 -> 00:00:00 | D195: =data!B195 -> 0 | E195: =data!C195 -> 0 | F195: =data!D195 -> 0 | G195: =data!E195 -> 00:00:00 | I195: =data!G195 -> 0 | J195: =data!H195 -> 0 | L195: =data!J195 -> 0 | M195: =data!K195 -> 0 | N195: =data!L195 -> 0 | O195: =data!M195 -> 0 | P195: =data!N195 -> 0 | R195: =data!P195 -> 0 | S195: =data!Q195 -> 0 | T195: =data!R195 -> 0 | U195: =data!S195 -> 0 | V195: =data!T195 -> 0 | W195: =data!U195 -> 0 | Y195: =data!W195 -> 0 | AA195: =data!Y195 -> 0 | AB195: =data!Z195 -> 0 | AC195: =data!AA195 -> 0 | AD195: =data!AB195 -> 0 | AE195: =data!AC195 -> 0 | AG195: =data!AE195 -> 0 | AH195: =data!AF195 -> 0 | AI195: =data!AG195 -> 0 | AJ195: =data!AH195 -> 0 | AL195: =data!AJ195 -> 0 | AM195: =data!AK195 -> 0 | AN195: =data!AL195 -> 0 | AP195: =data!AN195 -> 0 | AR195: =data!AP195 -> 0 | AS195: =data!AQ195 -> 0 | AT195: =data!AR195 -> 0
A196: =data!AV196 -> 0 | B196: =data!AT196 -> 0 | C196: =data!AS196 -> 00:00:00 | D196: =data!B196 -> 0 | E196: =data!C196 -> 0 | F196: =data!D196 -> 0 | G196: =data!E196 -> 00:00:00 | I196: =data!G196 -> 0 | J196: =data!H196 -> 0 | L196: =data!J196 -> 0 | M196: =data!K196 -> 0 | N196: =data!L196 -> 0 | O196: =data!M196 -> 0 | P196: =data!N196 -> 0 | R196: =data!P196 -> 0 | S196: =data!Q196 -> 0 | T196: =data!R196 -> 0 | U196: =data!S196 -> 0 | V196: =data!T196 -> 0 | W196: =data!U196 -> 0 | Y196: =data!W196 -> 0 | AA196: =data!Y196 -> 0 | AB196: =data!Z196 -> 0 | AC196: =data!AA196 -> 0 | AD196: =data!AB196 -> 0 | AE196: =data!AC196 -> 0 | AG196: =data!AE196 -> 0 | AH196: =data!AF196 -> 0 | AI196: =data!AG196 -> 0 | AJ196: =data!AH196 -> 0 | AL196: =data!AJ196 -> 0 | AM196: =data!AK196 -> 0 | AN196: =data!AL196 -> 0 | AP196: =data!AN196 -> 0 | AR196: =data!AP196 -> 0 | AS196: =data!AQ196 -> 0 | AT196: =data!AR196 -> 0
A197: =data!AV197 -> 0 | B197: =data!AT197 -> 0 | C197: =data!AS197 -> 00:00:00 | D197: =data!B197 -> 0 | E197: =data!C197 -> 0 | F197: =data!D197 -> 0 | G197: =data!E197 -> 00:00:00 | I197: =data!G197 -> 0 | J197: =data!H197 -> 0 | L197: =data!J197 -> 0 | M197: =data!K197 -> 0 | N197: =data!L197 -> 0 | O197: =data!M197 -> 0 | P197: =data!N197 -> 0 | R197: =data!P197 -> 0 | S197: =data!Q197 -> 0 | T197: =data!R197 -> 0 | U197: =data!S197 -> 0 | V197: =data!T197 -> 0 | W197: =data!U197 -> 0 | Y197: =data!W197 -> 0 | AA197: =data!Y197 -> 0 | AB197: =data!Z197 -> 0 | AC197: =data!AA197 -> 0 | AD197: =data!AB197 -> 0 | AE197: =data!AC197 -> 0 | AG197: =data!AE197 -> 0 | AH197: =data!AF197 -> 0 | AI197: =data!AG197 -> 0 | AJ197: =data!AH197 -> 0 | AL197: =data!AJ197 -> 0 | AM197: =data!AK197 -> 0 | AN197: =data!AL197 -> 0 | AP197: =data!AN197 -> 0 | AR197: =data!AP197 -> 0 | AS197: =data!AQ197 -> 0 | AT197: =data!AR197 -> 0
A198: =data!AV198 -> 0 | B198: =data!AT198 -> 0 | C198: =data!AS198 -> 00:00:00 | D198: =data!B198 -> 0 | E198: =data!C198 -> 0 | F198: =data!D198 -> 0 | G198: =data!E198 -> 00:00:00 | I198: =data!G198 -> 0 | J198: =data!H198 -> 0 | L198: =data!J198 -> 0 | M198: =data!K198 -> 0 | N198: =data!L198 -> 0 | O198: =data!M198 -> 0 | P198: =data!N198 -> 0 | R198: =data!P198 -> 0 | S198: =data!Q198 -> 0 | T198: =data!R198 -> 0 | U198: =data!S198 -> 0 | V198: =data!T198 -> 0 | W198: =data!U198 -> 0 | Y198: =data!W198 -> 0 | AA198: =data!Y198 -> 0 | AB198: =data!Z198 -> 0 | AC198: =data!AA198 -> 0 | AD198: =data!AB198 -> 0 | AE198: =data!AC198 -> 0 | AG198: =data!AE198 -> 0 | AH198: =data!AF198 -> 0 | AI198: =data!AG198 -> 0 | AJ198: =data!AH198 -> 0 | AL198: =data!AJ198 -> 0 | AM198: =data!AK198 -> 0 | AN198: =data!AL198 -> 0 | AP198: =data!AN198 -> 0 | AR198: =data!AP198 -> 0 | AS198: =data!AQ198 -> 0 | AT198: =data!AR198 -> 0
A199: =data!AV199 -> 0 | B199: =data!AT199 -> 0 | C199: =data!AS199 -> 00:00:00 | D199: =data!B199 -> 0 | E199: =data!C199 -> 0 | F199: =data!D199 -> 0 | G199: =data!E199 -> 00:00:00 | I199: =data!G199 -> 0 | J199: =data!H199 -> 0 | L199: =data!J199 -> 0 | M199: =data!K199 -> 0 | N199: =data!L199 -> 0 | O199: =data!M199 -> 0 | P199: =data!N199 -> 0 | R199: =data!P199 -> 0 | S199: =data!Q199 -> 0 | T199: =data!R199 -> 0 | U199: =data!S199 -> 0 | V199: =data!T199 -> 0 | W199: =data!U199 -> 0 | Y199: =data!W199 -> 0 | AA199: =data!Y199 -> 0 | AB199: =data!Z199 -> 0 | AC199: =data!AA199 -> 0 | AD199: =data!AB199 -> 0 | AE199: =data!AC199 -> 0 | AG199: =data!AE199 -> 0 | AH199: =data!AF199 -> 0 | AI199: =data!AG199 -> 0 | AJ199: =data!AH199 -> 0 | AL199: =data!AJ199 -> 0 | AM199: =data!AK199 -> 0 | AN199: =data!AL199 -> 0 | AP199: =data!AN199 -> 0 | AR199: =data!AP199 -> 0 | AS199: =data!AQ199 -> 0 | AT199: =data!AR199 -> 0
A200: =data!AV200 -> 0 | B200: =data!AT200 -> 0 | C200: =data!AS200 -> 00:00:00 | D200: =data!B200 -> 0 | E200: =data!C200 -> 0 | F200: =data!D200 -> 0 | G200: =data!E200 -> 00:00:00 | I200: =data!G200 -> 0 | J200: =data!H200 -> 0 | L200: =data!J200 -> 0 | M200: =data!K200 -> 0 | N200: =data!L200 -> 0 | O200: =data!M200 -> 0 | P200: =data!N200 -> 0 | R200: =data!P200 -> 0 | S200: =data!Q200 -> 0 | T200: =data!R200 -> 0 | U200: =data!S200 -> 0 | V200: =data!T200 -> 0 | W200: =data!U200 -> 0 | Y200: =data!W200 -> 0 | AA200: =data!Y200 -> 0 | AB200: =data!Z200 -> 0 | AC200: =data!AA200 -> 0 | AD200: =data!AB200 -> 0 | AE200: =data!AC200 -> 0 | AG200: =data!AE200 -> 0 | AH200: =data!AF200 -> 0 | AI200: =data!AG200 -> 0 | AJ200: =data!AH200 -> 0 | AL200: =data!AJ200 -> 0 | AM200: =data!AK200 -> 0 | AN200: =data!AL200 -> 0 | AP200: =data!AN200 -> 0 | AR200: =data!AP200 -> 0 | AS200: =data!AQ200 -> 0 | AT200: =data!AR200 -> 0
A201: =data!AV201 -> 0 | B201: =data!AT201 -> 0 | C201: =data!AS201 -> 00:00:00 | D201: =data!B201 -> 0 | E201: =data!C201 -> 0 | F201: =data!D201 -> 0 | G201: =data!E201 -> 00:00:00 | I201: =data!G201 -> 0 | J201: =data!H201 -> 0 | L201: =data!J201 -> 0 | M201: =data!K201 -> 0 | N201: =data!L201 -> 0 | O201: =data!M201 -> 0 | P201: =data!N201 -> 0 | R201: =data!P201 -> 0 | S201: =data!Q201 -> 0 | T201: =data!R201 -> 0 | U201: =data!S201 -> 0 | V201: =data!T201 -> 0 | W201: =data!U201 -> 0 | Y201: =data!W201 -> 0 | AA201: =data!Y201 -> 0 | AB201: =data!Z201 -> 0 | AC201: =data!AA201 -> 0 | AD201: =data!AB201 -> 0 | AE201: =data!AC201 -> 0 | AG201: =data!AE201 -> 0 | AH201: =data!AF201 -> 0 | AI201: =data!AG201 -> 0 | AJ201: =data!AH201 -> 0 | AL201: =data!AJ201 -> 0 | AM201: =data!AK201 -> 0 | AN201: =data!AL201 -> 0 | AP201: =data!AN201 -> 0 | AR201: =data!AP201 -> 0 | AS201: =data!AQ201 -> 0 | AT201: =data!AR201 -> 0
... 488 more rows

Sheet Sheet1

Sheet الرصيد
A2: الرصيد | D2: =الحركة!B4 -> 0 | H2: الراتب الاساسي | I2: اضافات | J2: اجمالي الراتب | K2: الاقتطاعات | N2: مجموع الاقتطاعات | O2: صافي الراتب المستحق | Q2: الرصيد
K3: ضريبة دخل | L3: الضمان الاجتماعي | M3: اخرى
A4: الرقم | B4: رقم الحساب الجاري | C4: الموظف | D4: الرصيد(دفع/قبض) | E4: التاريخ | H4: =VLOOKUP($D$2,'الراتب الشهري'!$B$9:$K$3500,3,0) ->  | I4: =VLOOKUP($D$2,'الراتب الشهري'!$B$9:$K$3500,4,0) ->  | J4: =VLOOKUP($D$2,'الراتب الشهري'!$B$9:$K$3500,5,0) ->  | K4: =VLOOKUP($D$2,'الراتب الشهري'!$B$9:$K$3500,6,0) ->  | L4: =VLOOKUP($D$2,'الراتب الشهري'!$B$9:$K$3500,7,0) ->  | M4: =VLOOKUP($D$2,'الراتب الشهري'!$B$9:$K$3500,8,0) ->  | N4: =VLOOKUP($D$2,'الراتب الشهري'!$B$9:$K$3500,9,0) ->  | O4: =VLOOKUP($D$2,'الراتب الشهري'!$B$9:$K$3500,10,0) ->  | Q4: =O4+SUM(D6:D296) ->  | BA4: ترقيم | BB4: بحث | BC4: ترتيب
A6: =IF(B6="","",SUBTOTAL(3,$B$6:B6)) -> 1 | B6: =IFERROR(VLOOKUP($BC6,datainfo!$A$5:$E$10000,2,0),"") -> 10006 | C6: =IFERROR(VLOOKUP($BC6,datainfo!$A$5:$E$10000,3,0),"") -> عيسى مهند | D6: =IFERROR(VLOOKUP($BC6,datainfo!$A$5:$E$10000,4,0),"") -> 1810 | E6: =IFERROR(VLOOKUP($BC6,datainfo!$A$5:$E$10000,5,0),"") -> 2020-04-11T23:56:27.760 | BA6: =ROWS(datainfo!$A$5:A5) -> 1 | BB6: =IF(ISNUMBER(SEARCH($D$2,datainfo!B5)),BA6,"") -> 1 | BC6: =IFERROR(SMALL(BB6:BB472,BA6),"") -> 1
A7: =IF(B7="","",SUBTOTAL(3,$B$6:B7)) ->  | B7: =IFERROR(VLOOKUP($BC7,datainfo!$A$5:$E$10000,2,0),"") ->  | C7: =IFERROR(VLOOKUP($BC7,datainfo!$A$5:$E$10000,3,0),"") ->  | D7: =IFERROR(VLOOKUP($BC7,datainfo!$A$5:$E$10000,4,0),"") ->  | E7: =IFERROR(VLOOKUP($BC7,datainfo!$A$5:$E$10000,5,0),"") ->  | BA7: =ROWS(datainfo!$A$5:A6) -> 2 | BB7: =IF(ISNUMBER(SEARCH($D$2,datainfo!B6)),BA7,"") -> 2 | BC7: =IFERROR(SMALL(BB7:BB473,BA7),"") -> 
A8: =IF(B8="","",SUBTOTAL(3,$B$6:B8)) ->  | B8: =IFERROR(VLOOKUP($BC8,datainfo!$A$5:$E$10000,2,0),"") ->  | C8: =IFERROR(VLOOKUP($BC8,datainfo!$A$5:$E$10000,3,0),"") ->  | D8: =IFERROR(VLOOKUP($BC8,datainfo!$A$5:$E$10000,4,0),"") ->  | E8: =IFERROR(VLOOKUP($BC8,datainfo!$A$5:$E$10000,5,0),"") ->  | BA8: =ROWS(datainfo!$A$5:A7) -> 3 | BB8: =IF(ISNUMBER(SEARCH($D$2,datainfo!B7)),BA8,"") -> 
A9: =IF(B9="","",SUBTOTAL(3,$B$6:B9)) ->  | B9: =IFERROR(VLOOKUP($BC9,datainfo!$A$5:$E$10000,2,0),"") ->  | C9: =IFERROR(VLOOKUP($BC9,datainfo!$A$5:$E$10000,3,0),"") ->  | D9: =IFERROR(VLOOKUP($BC9,datainfo!$A$5:$E$10000,4,0),"") ->  | E9: =IFERROR(VLOOKUP($BC9,datainfo!$A$5:$E$10000,5,0),"") ->  | BA9: =ROWS(datainfo!$A$5:A8) -> 4 | BB9: =IF(ISNUMBER(SEARCH($D$2,datainfo!B8)),BA9,"") -> 
A10: =IF(B10="","",SUBTOTAL(3,$B$6:B10)) ->  | B10: =IFERROR(VLOOKUP($BC10,datainfo!$A$5:$E$10000,2,0),"") ->  | C10: =IFERROR(VLOOKUP($BC10,datainfo!$A$5:$E$10000,3,0),"") ->  | D10: =IFERROR(VLOOKUP($BC10,datainfo!$A$5:$E$10000,4,0),"") ->  | E10: =IFERROR(VLOOKUP($BC10,datainfo!$A$5:$E$10000,5,0),"") ->  | BA10: =ROWS(datainfo!$A$5:A9) -> 5 | BB10: =IF(ISNUMBER(SEARCH($D$2,datainfo!B9)),BA10,"") -> 
A11: =IF(B11="","",SUBTOTAL(3,$B$6:B11)) ->  | B11: =IFERROR(VLOOKUP($BC11,datainfo!$A$5:$E$10000,2,0),"") ->  | C11: =IFERROR(VLOOKUP($BC11,datainfo!$A$5:$E$10000,3,0),"") ->  | D11: =IFERROR(VLOOKUP($BC11,datainfo!$A$5:$E$10000,4,0),"") ->  | E11: =IFERROR(VLOOKUP($BC11,datainfo!$A$5:$E$10000,5,0),"") ->  | BA11: =ROWS(datainfo!$A$5:A10) -> 6 | BB11: =IF(ISNUMBER(SEARCH($D$2,datainfo!B10)),BA11,"") -> 
A12: =IF(B12="","",SUBTOTAL(3,$B$6:B12)) ->  | B12: =IFERROR(VLOOKUP($BC12,datainfo!$A$5:$E$10000,2,0),"") ->  | C12: =IFERROR(VLOOKUP($BC12,datainfo!$A$5:$E$10000,3,0),"") ->  | D12: =IFERROR(VLOOKUP($BC12,datainfo!$A$5:$E$10000,4,0),"") ->  | E12: =IFERROR(VLOOKUP($BC12,datainfo!$A$5:$E$10000,5,0),"") ->  | BA12: =ROWS(datainfo!$A$5:A11) -> 7 | BB12: =IF(ISNUMBER(SEARCH($D$2,datainfo!B11)),BA12,"") -> 
A13: =IF(B13="","",SUBTOTAL(3,$B$6:B13)) ->  | B13: =IFERROR(VLOOKUP($BC13,datainfo!$A$5:$E$10000,2,0),"") ->  | C13: =IFERROR(VLOOKUP($BC13,datainfo!$A$5:$E$10000,3,0),"") ->  | D13: =IFERROR(VLOOKUP($BC13,datainfo!$A$5:$E$10000,4,0),"") ->  | E13: =IFERROR(VLOOKUP($BC13,datainfo!$A$5:$E$10000,5,0),"") ->  | BA13: =ROWS(datainfo!$A$5:A12) -> 8 | BB13: =IF(ISNUMBER(SEARCH($D$2,datainfo!B12)),BA13,"") -> 
A14: =IF(B14="","",SUBTOTAL(3,$B$6:B14)) ->  | B14: =IFERROR(VLOOKUP($BC14,datainfo!$A$5:$E$10000,2,0),"") ->  | C14: =IFERROR(VLOOKUP($BC14,datainfo!$A$5:$E$10000,3,0),"") ->  | D14: =IFERROR(VLOOKUP($BC14,datainfo!$A$5:$E$10000,4,0),"") ->  | E14: =IFERROR(VLOOKUP($BC14,datainfo!$A$5:$E$10000,5,0),"") ->  | BA14: =ROWS(datainfo!$A$5:A13) -> 9 | BB14: =IF(ISNUMBER(SEARCH($D$2,datainfo!B13)),BA14,"") -> 
A15: =IF(B15="","",SUBTOTAL(3,$B$6:B15)) ->  | B15: =IFERROR(VLOOKUP($BC15,datainfo!$A$5:$E$10000,2,0),"") ->  | C15: =IFERROR(VLOOKUP($BC15,datainfo!$A$5:$E$10000,3,0),"") ->  | D15: =IFERROR(VLOOKUP($BC15,datainfo!$A$5:$E$10000,4,0),"") ->  | E15: =IFERROR(VLOOKUP($BC15,datainfo!$A$5:$E$10000,5,0),"") ->  | BA15: =ROWS(datainfo!$A$5:A14) -> 10 | BB15: =IF(ISNUMBER(SEARCH($D$2,datainfo!B14)),BA15,"") ->  | BC15: =IFERROR(SMALL(BB15:BB481,BA15),"") -> 
A16: =IF(B16="","",SUBTOTAL(3,$B$6:B16)) ->  | B16: =IFERROR(VLOOKUP($BC16,datainfo!$A$5:$E$10000,2,0),"") ->  | C16: =IFERROR(VLOOKUP($BC16,datainfo!$A$5:$E$10000,3,0),"") ->  | D16: =IFERROR(VLOOKUP($BC16,datainfo!$A$5:$E$10000,4,0),"") ->  | E16: =IFERROR(VLOOKUP($BC16,datainfo!$A$5:$E$10000,5,0),"") ->  | BA16: =ROWS(datainfo!$A$5:A15) -> 11 | BB16: =IF(ISNUMBER(SEARCH($D$2,datainfo!B15)),BA16,"") -> 
A17: =IF(B17="","",SUBTOTAL(3,$B$6:B17)) ->  | B17: =IFERROR(VLOOKUP($BC17,datainfo!$A$5:$E$10000,2,0),"") ->  | C17: =IFERROR(VLOOKUP($BC17,datainfo!$A$5:$E$10000,3,0),"") ->  | D17: =IFERROR(VLOOKUP($BC17,datainfo!$A$5:$E$10000,4,0),"") ->  | E17: =IFERROR(VLOOKUP($BC17,datainfo!$A$5:$E$10000,5,0),"") ->  | BA17: =ROWS(datainfo!$A$5:A16) -> 12 | BB17: =IF(ISNUMBER(SEARCH($D$2,datainfo!B16)),BA17,"") -> 
A18: =IF(B18="","",SUBTOTAL(3,$B$6:B18)) ->  | B18: =IFERROR(VLOOKUP($BC18,datainfo!$A$5:$E$10000,2,0),"") ->  | C18: =IFERROR(VLOOKUP($BC18,datainfo!$A$5:$E$10000,3,0),"") ->  | D18: =IFERROR(VLOOKUP($BC18,datainfo!$A$5:$E$10000,4,0),"") ->  | E18: =IFERROR(VLOOKUP($BC18,datainfo!$A$5:$E$10000,5,0),"") ->  | BA18: =ROWS(datainfo!$A$5:A17) -> 13 | BB18: =IF(ISNUMBER(SEARCH($D$2,datainfo!B17)),BA18,"") -> 
A19: =IF(B19="","",SUBTOTAL(3,$B$6:B19)) ->  | B19: =IFERROR(VLOOKUP($BC19,datainfo!$A$5:$E$10000,2,0),"") ->  | C19: =IFERROR(VLOOKUP($BC19,datainfo!$A$5:$E$10000,3,0),"") ->  | D19: =IFERROR(VLOOKUP($BC19,datainfo!$A$5:$E$10000,4,0),"") ->  | E19: =IFERROR(VLOOKUP($BC19,datainfo!$A$5:$E$10000,5,0),"") ->  | BA19: =ROWS(datainfo!$A$5:A18) -> 14 | BB19: =IF(ISNUMBER(SEARCH($D$2,datainfo!B18)),BA19,"") -> 
A20: =IF(B20="","",SUBTOTAL(3,$B$6:B20)) ->  | B20: =IFERROR(VLOOKUP($BC20,datainfo!$A$5:$E$10000,2,0),"") ->  | C20: =IFERROR(VLOOKUP($BC20,datainfo!$A$5:$E$10000,3,0),"") ->  | D20: =IFERROR(VLOOKUP($BC20,datainfo!$A$5:$E$10000,4,0),"") ->  | E20: =IFERROR(VLOOKUP($BC20,datainfo!$A$5:$E$10000,5,0),"") ->  | BA20: =ROWS(datainfo!$A$5:A19) -> 15 | BB20: =IF(ISNUMBER(SEARCH($D$2,datainfo!B19)),BA20,"") -> 
A21: =IF(B21="","",SUBTOTAL(3,$B$6:B21)) ->  | B21: =IFERROR(VLOOKUP($BC21,datainfo!$A$5:$E$10000,2,0),"") ->  | C21: =IFERROR(VLOOKUP($BC21,datainfo!$A$5:$E$10000,3,0),"") ->  | D21: =IFERROR(VLOOKUP($BC21,datainfo!$A$5:$E$10000,4,0),"") ->  | E21: =IFERROR(VLOOKUP($BC21,datainfo!$A$5:$E$10000,5,0),"") ->  | BA21: =ROWS(datainfo!$A$5:A20) -> 16 | BB21: =IF(ISNUMBER(SEARCH($D$2,datainfo!B20)),BA21,"") -> 
A22: =IF(B22="","",SUBTOTAL(3,$B$6:B22)) ->  | B22: =IFERROR(VLOOKUP($BC22,datainfo!$A$5:$E$10000,2,0),"") ->  | C22: =IFERROR(VLOOKUP($BC22,datainfo!$A$5:$E$10000,3,0),"") ->  | D22: =IFERROR(VLOOKUP($BC22,datainfo!$A$5:$E$10000,4,0),"") ->  | E22: =IFERROR(VLOOKUP($BC22,datainfo!$A$5:$E$10000,5,0),"") ->  | BA22: =ROWS(datainfo!$A$5:A21) -> 17 | BB22: =IF(ISNUMBER(SEARCH($D$2,datainfo!B21)),BA22,"") -> 
A23: =IF(B23="","",SUBTOTAL(3,$B$6:B23)) ->  | B23: =IFERROR(VLOOKUP($BC23,datainfo!$A$5:$E$10000,2,0),"") ->  | C23: =IFERROR(VLOOKUP($BC23,datainfo!$A$5:$E$10000,3,0),"") ->  | D23: =IFERROR(VLOOKUP($BC23,datainfo!$A$5:$E$10000,4,0),"") ->  | E23: =IFERROR(VLOOKUP($BC23,datainfo!$A$5:$E$10000,5,0),"") ->  | BA23: =ROWS(datainfo!$A$5:A22) -> 18 | BB23: =IF(ISNUMBER(SEARCH($D$2,datainfo!B22)),BA23,"") -> 
A24: =IF(B24="","",SUBTOTAL(3,$B$6:B24)) ->  | B24: =IFERROR(VLOOKUP($BC24,datainfo!$A$5:$E$10000,2,0),"") ->  | C24: =IFERROR(VLOOKUP($BC24,datainfo!$A$5:$E$10000,3,0),"") ->  | D24: =IFERROR(VLOOKUP($BC24,datainfo!$A$5:$E$10000,4,0),"") ->  | E24: =IFERROR(VLOOKUP($BC24,datainfo!$A$5:$E$10000,5,0),"") ->  | BA24: =ROWS(datainfo!$A$5:A23) -> 19 | BB24: =IF(ISNUMBER(SEARCH($D$2,datainfo!B23)),BA24,"") -> 
A25: =IF(B25="","",SUBTOTAL(3,$B$6:B25)) ->  | B25: =IFERROR(VLOOKUP($BC25,datainfo!$A$5:$E$10000,2,0),"") ->  | C25: =IFERROR(VLOOKUP($BC25,datainfo!$A$5:$E$10000,3,0),"") ->  | D25: =IFERROR(VLOOKUP($BC25,datainfo!$A$5:$E$10000,4,0),"") ->  | E25: =IFERROR(VLOOKUP($BC25,datainfo!$A$5:$E$10000,5,0),"") ->  | BA25: =ROWS(datainfo!$A$5:A24) -> 20 | BB25: =IF(ISNUMBER(SEARCH($D$2,datainfo!B24)),BA25,"") -> 
A26: =IF(B26="","",SUBTOTAL(3,$B$6:B26)) ->  | B26: =IFERROR(VLOOKUP($BC26,datainfo!$A$5:$E$10000,2,0),"") ->  | C26: =IFERROR(VLOOKUP($BC26,datainfo!$A$5:$E$10000,3,0),"") ->  | D26: =IFERROR(VLOOKUP($BC26,datainfo!$A$5:$E$10000,4,0),"") ->  | E26: =IFERROR(VLOOKUP($BC26,datainfo!$A$5:$E$10000,5,0),"") ->  | BA26: =ROWS(datainfo!$A$5:A25) -> 21 | BB26: =IF(ISNUMBER(SEARCH($D$2,datainfo!B25)),BA26,"") -> 
A27: =IF(B27="","",SUBTOTAL(3,$B$6:B27)) ->  | B27: =IFERROR(VLOOKUP($BC27,datainfo!$A$5:$E$10000,2,0),"") ->  | C27: =IFERROR(VLOOKUP($BC27,datainfo!$A$5:$E$10000,3,0),"") ->  | D27: =IFERROR(VLOOKUP($BC27,datainfo!$A$5:$E$10000,4,0),"") ->  | E27: =IFERROR(VLOOKUP($BC27,datainfo!$A$5:$E$10000,5,0),"") ->  | BA27: =ROWS(datainfo!$A$5:A26) -> 22 | BB27: =IF(ISNUMBER(SEARCH($D$2,datainfo!B26)),BA27,"") -> 
A28: =IF(B28="","",SUBTOTAL(3,$B$6:B28)) ->  | B28: =IFERROR(VLOOKUP($BC28,datainfo!$A$5:$E$10000,2,0),"") ->  | C28: =IFERROR(VLOOKUP($BC28,datainfo!$A$5:$E$10000,3,0),"") ->  | D28: =IFERROR(VLOOKUP($BC28,datainfo!$A$5:$E$10000,4,0),"") ->  | E28: =IFERROR(VLOOKUP($BC28,datainfo!$A$5:$E$10000,5,0),"") ->  | BA28: =ROWS(datainfo!$A$5:A27) -> 23 | BB28: =IF(ISNUMBER(SEARCH($D$2,datainfo!B27)),BA28,"") -> 
A29: =IF(B29="","",SUBTOTAL(3,$B$6:B29)) ->  | B29: =IFERROR(VLOOKUP($BC29,datainfo!$A$5:$E$10000,2,0),"") ->  | C29: =IFERROR(VLOOKUP($BC29,datainfo!$A$5:$E$10000,3,0),"") ->  | D29: =IFERROR(VLOOKUP($BC29,datainfo!$A$5:$E$10000,4,0),"") ->  | E29: =IFERROR(VLOOKUP($BC29,datainfo!$A$5:$E$10000,5,0),"") ->  | BA29: =ROWS(datainfo!$A$5:A28) -> 24 | BB29: =IF(ISNUMBER(SEARCH($D$2,datainfo!B28)),BA29,"") -> 
A30: =IF(B30="","",SUBTOTAL(3,$B$6:B30)) ->  | B30: =IFERROR(VLOOKUP($BC30,datainfo!$A$5:$E$10000,2,0),"") ->  | C30: =IFERROR(VLOOKUP($BC30,datainfo!$A$5:$E$10000,3,0),"") ->  | D30: =IFERROR(VLOOKUP($BC30,datainfo!$A$5:$E$10000,4,0),"") ->  | E30: =IFERROR(VLOOKUP($BC30,datainfo!$A$5:$E$10000,5,0),"") ->  | BA30: =ROWS(datainfo!$A$5:A29) -> 25 | BB30: =IF(ISNUMBER(SEARCH($D$2,datainfo!B29)),BA30,"") -> 
A31: =IF(B31="","",SUBTOTAL(3,$B$6:B31)) ->  | B31: =IFERROR(VLOOKUP($BC31,datainfo!$A$5:$E$10000,2,0),"") ->  | C31: =IFERROR(VLOOKUP($BC31,datainfo!$A$5:$E$10000,3,0),"") ->  | D31: =IFERROR(VLOOKUP($BC31,datainfo!$A$5:$E$10000,4,0),"") ->  | E31: =IFERROR(VLOOKUP($BC31,datainfo!$A$5:$E$10000,5,0),"") ->  | BA31: =ROWS(datainfo!$A$5:A30) -> 26 | BB31: =IF(ISNUMBER(SEARCH($D$2,datainfo!B30)),BA31,"") -> 
A32: =IF(B32="","",SUBTOTAL(3,$B$6:B32)) ->  | B32: =IFERROR(VLOOKUP($BC32,datainfo!$A$5:$E$10000,2,0),"") ->  | C32: =IFERROR(VLOOKUP($BC32,datainfo!$A$5:$E$10000,3,0),"") ->  | D32: =IFERROR(VLOOKUP($BC32,datainfo!$A$5:$E$10000,4,0),"") ->  | E32: =IFERROR(VLOOKUP($BC32,datainfo!$A$5:$E$10000,5,0),"") ->  | BA32: =ROWS(datainfo!$A$5:A31) -> 27 | BB32: =IF(ISNUMBER(SEARCH($D$2,datainfo!B31)),BA32,"") -> 
A33: =IF(B33="","",SUBTOTAL(3,$B$6:B33)) ->  | B33: =IFERROR(VLOOKUP($BC33,datainfo!$A$5:$E$10000,2,0),"") ->  | C33: =IFERROR(VLOOKUP($BC33,datainfo!$A$5:$E$10000,3,0),"") ->  | D33: =IFERROR(VLOOKUP($BC33,datainfo!$A$5:$E$10000,4,0),"") ->  | E33: =IFERROR(VLOOKUP($BC33,datainfo!$A$5:$E$10000,5,0),"") ->  | BA33: =ROWS(datainfo!$A$5:A32) -> 28 | BB33: =IF(ISNUMBER(SEARCH($D$2,datainfo!B32)),BA33,"") -> 
A34: =IF(B34="","",SUBTOTAL(3,$B$6:B34)) ->  | B34: =IFERROR(VLOOKUP($BC34,datainfo!$A$5:$E$10000,2,0),"") ->  | C34: =IFERROR(VLOOKUP($BC34,datainfo!$A$5:$E$10000,3,0),"") ->  | D34: =IFERROR(VLOOKUP($BC34,datainfo!$A$5:$E$10000,4,0),"") ->  | E34: =IFERROR(VLOOKUP($BC34,datainfo!$A$5:$E$10000,5,0),"") ->  | BA34: =ROWS(datainfo!$A$5:A33) -> 29 | BB34: =IF(ISNUMBER(SEARCH($D$2,datainfo!B33)),BA34,"") -> 
A35: =IF(B35="","",SUBTOTAL(3,$B$6:B35)) ->  | B35: =IFERROR(VLOOKUP($BC35,datainfo!$A$5:$E$10000,2,0),"") ->  | C35: =IFERROR(VLOOKUP($BC35,datainfo!$A$5:$E$10000,3,0),"") ->  | D35: =IFERROR(VLOOKUP($BC35,datainfo!$A$5:$E$10000,4,0),"") ->  | E35: =IFERROR(VLOOKUP($BC35,datainfo!$A$5:$E$10000,5,0),"") ->  | BA35: =ROWS(datainfo!$A$5:A34) -> 30 | BB35: =IF(ISNUMBER(SEARCH($D$2,datainfo!B34)),BA35,"") -> 
A36: =IF(B36="","",SUBTOTAL(3,$B$6:B36)) ->  | B36: =IFERROR(VLOOKUP($BC36,datainfo!$A$5:$E$10000,2,0),"") ->  | C36: =IFERROR(VLOOKUP($BC36,datainfo!$A$5:$E$10000,3,0),"") ->  | D36: =IFERROR(VLOOKUP($BC36,datainfo!$A$5:$E$10000,4,0),"") ->  | E36: =IFERROR(VLOOKUP($BC36,datainfo!$A$5:$E$10000,5,0),"") ->  | BA36: =ROWS(datainfo!$A$5:A35) -> 31 | BB36: =IF(ISNUMBER(SEARCH($D$2,datainfo!B35)),BA36,"") -> 
A37: =IF(B37="","",SUBTOTAL(3,$B$6:B37)) ->  | B37: =IFERROR(VLOOKUP($BC37,datainfo!$A$5:$E$10000,2,0),"") ->  | C37: =IFERROR(VLOOKUP($BC37,datainfo!$A$5:$E$10000,3,0),"") ->  | D37: =IFERROR(VLOOKUP($BC37,datainfo!$A$5:$E$10000,4,0),"") ->  | E37: =IFERROR(VLOOKUP($BC37,datainfo!$A$5:$E$10000,5,0),"") ->  | BA37: =ROWS(datainfo!$A$5:A36) -> 32 | BB37: =IF(ISNUMBER(SEARCH($D$2,datainfo!B36)),BA37,"") -> 
A38: =IF(B38="","",SUBTOTAL(3,$B$6:B38)) ->  | B38: =IFERROR(VLOOKUP($BC38,datainfo!$A$5:$E$10000,2,0),"") ->  | C38: =IFERROR(VLOOKUP($BC38,datainfo!$A$5:$E$10000,3,0),"") ->  | D38: =IFERROR(VLOOKUP($BC38,datainfo!$A$5:$E$10000,4,0),"") ->  | E38: =IFERROR(VLOOKUP($BC38,datainfo!$A$5:$E$10000,5,0),"") ->  | BA38: =ROWS(datainfo!$A$5:A37) -> 33 | BB38: =IF(ISNUMBER(SEARCH($D$2,datainfo!B37)),BA38,"") -> 
A39: =IF(B39="","",SUBTOTAL(3,$B$6:B39)) ->  | B39: =IFERROR(VLOOKUP($BC39,datainfo!$A$5:$E$10000,2,0),"") ->  | C39: =IFERROR(VLOOKUP($BC39,datainfo!$A$5:$E$10000,3,0),"") ->  | D39: =IFERROR(VLOOKUP($BC39,datainfo!$A$5:$E$10000,4,0),"") ->  | E39: =IFERROR(VLOOKUP($BC39,datainfo!$A$5:$E$10000,5,0),"") ->  | BA39: =ROWS(datainfo!$A$5:A38) -> 34 | BB39: =IF(ISNUMBER(SEARCH($D$2,datainfo!B38)),BA39,"") -> 
A40: =IF(B40="","",SUBTOTAL(3,$B$6:B40)) ->  | B40: =IFERROR(VLOOKUP($BC40,datainfo!$A$5:$E$10000,2,0),"") ->  | C40: =IFERROR(VLOOKUP($BC40,datainfo!$A$5:$E$10000,3,0),"") ->  | D40: =IFERROR(VLOOKUP($BC40,datainfo!$A$5:$E$10000,4,0),"") ->  | E40: =IFERROR(VLOOKUP($BC40,datainfo!$A$5:$E$10000,5,0),"") ->  | BA40: =ROWS(datainfo!$A$5:A39) -> 35 | BB40: =IF(ISNUMBER(SEARCH($D$2,datainfo!B39)),BA40,"") -> 
A41: =IF(B41="","",SUBTOTAL(3,$B$6:B41)) ->  | B41: =IFERROR(VLOOKUP($BC41,datainfo!$A$5:$E$10000,2,0),"") ->  | C41: =IFERROR(VLOOKUP($BC41,datainfo!$A$5:$E$10000,3,0),"") ->  | D41: =IFERROR(VLOOKUP($BC41,datainfo!$A$5:$E$10000,4,0),"") ->  | E41: =IFERROR(VLOOKUP($BC41,datainfo!$A$5:$E$10000,5,0),"") ->  | BA41: =ROWS(datainfo!$A$5:A40) -> 36 | BB41: =IF(ISNUMBER(SEARCH($D$2,datainfo!B40)),BA41,"") -> 
A42: =IF(B42="","",SUBTOTAL(3,$B$6:B42)) ->  | B42: =IFERROR(VLOOKUP($BC42,datainfo!$A$5:$E$10000,2,0),"") ->  | C42: =IFERROR(VLOOKUP($BC42,datainfo!$A$5:$E$10000,3,0),"") ->  | D42: =IFERROR(VLOOKUP($BC42,datainfo!$A$5:$E$10000,4,0),"") ->  | E42: =IFERROR(VLOOKUP($BC42,datainfo!$A$5:$E$10000,5,0),"") ->  | BA42: =ROWS(datainfo!$A$5:A41) -> 37 | BB42: =IF(ISNUMBER(SEARCH($D$2,datainfo!B41)),BA42,"") -> 
A43: =IF(B43="","",SUBTOTAL(3,$B$6:B43)) ->  | B43: =IFERROR(VLOOKUP($BC43,datainfo!$A$5:$E$10000,2,0),"") ->  | C43: =IFERROR(VLOOKUP($BC43,datainfo!$A$5:$E$10000,3,0),"") ->  | D43: =IFERROR(VLOOKUP($BC43,datainfo!$A$5:$E$10000,4,0),"") ->  | E43: =IFERROR(VLOOKUP($BC43,datainfo!$A$5:$E$10000,5,0),"") ->  | BA43: =ROWS(datainfo!$A$5:A42) -> 38 | BB43: =IF(ISNUMBER(SEARCH($D$2,datainfo!B42)),BA43,"") -> 
A44: =IF(B44="","",SUBTOTAL(3,$B$6:B44)) ->  | B44: =IFERROR(VLOOKUP($BC44,datainfo!$A$5:$E$10000,2,0),"") ->  | C44: =IFERROR(VLOOKUP($BC44,datainfo!$A$5:$E$10000,3,0),"") ->  | D44: =IFERROR(VLOOKUP($BC44,datainfo!$A$5:$E$10000,4,0),"") ->  | E44: =IFERROR(VLOOKUP($BC44,datainfo!$A$5:$E$10000,5,0),"") ->  | BA44: =ROWS(datainfo!$A$5:A43) -> 39 | BB44: =IF(ISNUMBER(SEARCH($D$2,datainfo!B43)),BA44,"") -> 
A45: =IF(B45="","",SUBTOTAL(3,$B$6:B45)) ->  | B45: =IFERROR(VLOOKUP($BC45,datainfo!$A$5:$E$10000,2,0),"") ->  | C45: =IFERROR(VLOOKUP($BC45,datainfo!$A$5:$E$10000,3,0),"") ->  | D45: =IFERROR(VLOOKUP($BC45,datainfo!$A$5:$E$10000,4,0),"") ->  | E45: =IFERROR(VLOOKUP($BC45,datainfo!$A$5:$E$10000,5,0),"") ->  | BA45: =ROWS(datainfo!$A$5:A44) -> 40 | BB45: =IF(ISNUMBER(SEARCH($D$2,datainfo!B44)),BA45,"") -> 
A46: =IF(B46="","",SUBTOTAL(3,$B$6:B46)) ->  | B46: =IFERROR(VLOOKUP($BC46,datainfo!$A$5:$E$10000,2,0),"") ->  | C46: =IFERROR(VLOOKUP($BC46,datainfo!$A$5:$E$10000,3,0),"") ->  | D46: =IFERROR(VLOOKUP($BC46,datainfo!$A$5:$E$10000,4,0),"") ->  | E46: =IFERROR(VLOOKUP($BC46,datainfo!$A$5:$E$10000,5,0),"") ->  | BA46: =ROWS(datainfo!$A$5:A45) -> 41 | BB46: =IF(ISNUMBER(SEARCH($D$2,datainfo!B45)),BA46,"") -> 
A47: =IF(B47="","",SUBTOTAL(3,$B$6:B47)) ->  | B47: =IFERROR(VLOOKUP($BC47,datainfo!$A$5:$E$10000,2,0),"") ->  | C47: =IFERROR(VLOOKUP($BC47,datainfo!$A$5:$E$10000,3,0),"") ->  | D47: =IFERROR(VLOOKUP($BC47,datainfo!$A$5:$E$10000,4,0),"") ->  | E47: =IFERROR(VLOOKUP($BC47,datainfo!$A$5:$E$10000,5,0),"") ->  | BA47: =ROWS(datainfo!$A$5:A46) -> 42 | BB47: =IF(ISNUMBER(SEARCH($D$2,datainfo!B46)),BA47,"") -> 
A48: =IF(B48="","",SUBTOTAL(3,$B$6:B48)) ->  | B48: =IFERROR(VLOOKUP($BC48,datainfo!$A$5:$E$10000,2,0),"") ->  | C48: =IFERROR(VLOOKUP($BC48,datainfo!$A$5:$E$10000,3,0),"") ->  | D48: =IFERROR(VLOOKUP($BC48,datainfo!$A$5:$E$10000,4,0),"") ->  | E48: =IFERROR(VLOOKUP($BC48,datainfo!$A$5:$E$10000,5,0),"") ->  | BA48: =ROWS(datainfo!$A$5:A47) -> 43 | BB48: =IF(ISNUMBER(SEARCH($D$2,datainfo!B47)),BA48,"") -> 
A49: =IF(B49="","",SUBTOTAL(3,$B$6:B49)) ->  | B49: =IFERROR(VLOOKUP($BC49,datainfo!$A$5:$E$10000,2,0),"") ->  | C49: =IFERROR(VLOOKUP($BC49,datainfo!$A$5:$E$10000,3,0),"") ->  | D49: =IFERROR(VLOOKUP($BC49,datainfo!$A$5:$E$10000,4,0),"") ->  | E49: =IFERROR(VLOOKUP($BC49,datainfo!$A$5:$E$10000,5,0),"") ->  | BA49: =ROWS(datainfo!$A$5:A48) -> 44 | BB49: =IF(ISNUMBER(SEARCH($D$2,datainfo!B48)),BA49,"") -> 
A50: =IF(B50="","",SUBTOTAL(3,$B$6:B50)) ->  | B50: =IFERROR(VLOOKUP($BC50,datainfo!$A$5:$E$10000,2,0),"") ->  | C50: =IFERROR(VLOOKUP($BC50,datainfo!$A$5:$E$10000,3,0),"") ->  | D50: =IFERROR(VLOOKUP($BC50,datainfo!$A$5:$E$10000,4,0),"") ->  | E50: =IFERROR(VLOOKUP($BC50,datainfo!$A$5:$E$10000,5,0),"") ->  | BA50: =ROWS(datainfo!$A$5:A49) -> 45 | BB50: =IF(ISNUMBER(SEARCH($D$2,datainfo!B49)),BA50,"") -> 
A51: =IF(B51="","",SUBTOTAL(3,$B$6:B51)) ->  | B51: =IFERROR(VLOOKUP($BC51,datainfo!$A$5:$E$10000,2,0),"") ->  | C51: =IFERROR(VLOOKUP($BC51,datainfo!$A$5:$E$10000,3,0),"") ->  | D51: =IFERROR(VLOOKUP($BC51,datainfo!$A$5:$E$10000,4,0),"") ->  | E51: =IFERROR(VLOOKUP($BC51,datainfo!$A$5:$E$10000,5,0),"") ->  | BA51: =ROWS(datainfo!$A$5:A50) -> 46 | BB51: =IF(ISNUMBER(SEARCH($D$2,datainfo!B50)),BA51,"") -> 
A52: =IF(B52="","",SUBTOTAL(3,$B$6:B52)) ->  | B52: =IFERROR(VLOOKUP($BC52,datainfo!$A$5:$E$10000,2,0),"") ->  | C52: =IFERROR(VLOOKUP($BC52,datainfo!$A$5:$E$10000,3,0),"") ->  | D52: =IFERROR(VLOOKUP($BC52,datainfo!$A$5:$E$10000,4,0),"") ->  | E52: =IFERROR(VLOOKUP($BC52,datainfo!$A$5:$E$10000,5,0),"") ->  | BA52: =ROWS(datainfo!$A$5:A51) -> 47 | BB52: =IF(ISNUMBER(SEARCH($D$2,datainfo!B51)),BA52,"") -> 
